Workbook

Sheet CampbellDiagram
N1: 1 | O1: =N1+1 -> 2 | P1: 3 | Q1: 4 | R1: 5 | S1: 6 | T1: 7 | U1: 8 | V1: 9 | W1: 10 | X1: 11 | Y1: 12 | Z1: 13 | AA1: 14 | AB1: 15 | AC1: 16 | AD1: 17 | AE1: 18 | AF1: 19 | AG1: 20 | AH1: 21 | AI1: 22 | AJ1: 23 | AK1: 24 | AL1: 25 | AM1: 26 | AN1: 27 | AO1: 28 | AP1: 29 | AQ1: 30 | AR1: 31 | AS1: 32 | AT1: 33 | AU1: 34 | AV1: 35 | AW1: 36
B2: Natural Frequencies (Hz) as a Function of Rotor Speed | L2: 2 | M2: 600 | N2: =M2+(1/36)/($L2/60) -> 600.8333333 | O2: 601.6666667 | P2: 602.5 | Q2: 603.3333333 | R2: 604.1666667 | S2: 605 | T2: 605.8333333 | U2: 606.6666667 | V2: 607.5 | W2: 608.3333333 | X2: 609.1666667 | Y2: 610 | Z2: 610.8333333 | AA2: 611.6666667 | AB2: 612.5 | AC2: 613.3333333 | AD2: 614.1666667 | AE2: 615 | AF2: 615.8333333 | AG2: 616.6666667 | AH2: 617.5 | AI2: 618.3333333 | AJ2: 619.1666667 | AK2: 620 | AL2: 620.8333333 | AM2: 621.6666667 | AN2: 622.5 | AO2: 623.3333333 | AP2: 624.1666667 | AQ2: 625 | AR2: 625.8333333 | AS2: 626.6666667 | AT2: 627.5 | AU2: 628.3333333 | AV2: 629.1666667 | AW2: 630
B3: Rotor Speed (rpm) | C3: 0 | D3: =C3+2 -> 2 | E3: 4 | F3: 6 | G3: 8 | H3: 10 | I3: 12 | J3: 14 | L3: =L2+2 -> 4 | M3: 600 | N3: =M3+(1/36)/($L3/60) -> 600.4166667 | O3: 600.8333333 | P3: 601.25 | Q3: 601.6666667 | R3: 602.0833333 | S3: 602.5 | T3: 602.9166667 | U3: 603.3333333 | V3: 603.75 | W3: 604.1666667 | X3: 604.5833333 | Y3: 605 | Z3: 605.4166667 | AA3: 605.8333333 | AB3: 606.25 | AC3: 606.6666667 | AD3: 607.0833333 | AE3: 607.5 | AF3: 607.9166667 | AG3: 608.3333333 | AH3: 608.75 | AI3: 609.1666667 | AJ3: 609.5833333 | AK3: 610 | AL3: 610.4166667 | AM3: 610.8333333 | AN3: 611.25 | AO3: 611.6666667 | AP3: 612.0833333 | AQ3: 612.5 | AR3: 612.9166667 | AS3: 613.3333333 | AT3: 613.75 | AU3: 614.1666667 | AV3: 614.5833333 | AW3: 615
A4: 1 | B4: 1st Tower FA | C4: ='0 RPM'!$BO17 -> 0.03614023808 | D4: ='2 RPM'!$BO17 -> 0.0361224066 | E4: ='4 RPM'!$BO17 -> 0.03613037747 | F4: ='6 RPM'!$BO17 -> 0.03611158331 | G4: ='8 RPM'!$BO17 -> 0.03619238779 | H4: ='10 RPM'!$BO17 -> 0.03620732523 | I4: ='12 RPM'!$BO17 -> 0.03622273896 | J4: ='14 RPM'!$BO17 -> 0.03623823895 | L4: 6 | M4: 600 | N4: =M4+(1/36)/($L4/60) -> 600.2777778 | O4: 600.5555556 | P4: 600.8333333 | Q4: 601.1111111 | R4: 601.3888889 | S4: 601.6666667 | T4: 601.9444444 | U4: 602.2222222 | V4: 602.5 | W4: 602.7777778 | X4: 603.0555556 | Y4: 603.3333333 | Z4: 603.6111111 | AA4: 603.8888889 | AB4: 604.1666667 | AC4: 604.4444444 | AD4: 604.7222222 | AE4: 605 | AF4: 605.2777778 | AG4: 605.5555556 | AH4: 605.8333333 | AI4: 606.1111111 | AJ4: 606.3888889 | AK4: 606.6666667 | AL4: 606.9444444 | AM4: 607.2222222 | AN4: 607.5 | AO4: 607.7777778 | AP4: 608.0555556 | AQ4: 608.3333333 | AR4: 608.6111111 | AS4: 608.8888889 | AT4: 609.1666667 | AU4: 609.4444444 | AV4: 609.7222222 | AW4: 610
A5: =A4+1 -> 2 | B5: 1st Tower SS | C5: ='0 RPM'!$BO18 -> 0.03617386749 | D5: ='2 RPM'!$BO18 -> 0.03622713231 | E5: ='4 RPM'!$BO18 -> 0.03619026882 | F5: ='6 RPM'!$BO18 -> 0.03617905418 | G5: ='8 RPM'!$BO18 -> 0.03619238779 | H5: ='10 RPM'!$BO18 -> 0.03607558303 | I5: ='12 RPM'!$BO18 -> 0.03606433533 | J5: ='14 RPM'!$BO18 -> 0.03605440659 | L5: 8 | M5: 600 | N5: =M5+(1/36)/($L5/60) -> 600.2083333 | O5: 600.4166667 | P5: 600.625 | Q5: 600.8333333 | R5: 601.0416667 | S5: 601.25 | T5: 601.4583333 | U5: 601.6666667 | V5: 601.875 | W5: 602.0833333 | X5: 602.2916667 | Y5: 602.5 | Z5: 602.7083333 | AA5: 602.9166667 | AB5: 603.125 | AC5: 603.3333333 | AD5: 603.5416667 | AE5: 603.75 | AF5: 603.9583333 | AG5: 604.1666667 | AH5: 604.375 | AI5: 604.5833333 | AJ5: 604.7916667 | AK5: 605 | AL5: 605.2083333 | AM5: 605.4166667 | AN5: 605.625 | AO5: 605.8333333 | AP5: 606.0416667 | AQ5: 606.25 | AR5: 606.4583333 | AS5: 606.6666667 | AT5: 606.875 | AU5: 607.0833333 | AV5: 607.2916667 | AW5: 607.5
A6: 3 | B6: 2nd Tower FA | C6: ='0 RPM'!$BO19 -> 0.03614023808 | D6: ='2 RPM'!$BO19 -> 0.0361224066 | E6: ='4 RPM'!$BO19 -> 0.03613037747 | F6: ='6 RPM'!$BO19 -> 0.03611158331 | G6: ='8 RPM'!$BO19 -> 0.03619238779 | H6: ='10 RPM'!$BO19 -> 0.03620732523 | I6: ='12 RPM'!$BO19 -> 0.03622273896 | J6: ='14 RPM'!$BO19 -> 0.03623823895 | L6: 10 | M6: 600 | N6: =M6+(1/36)/($L6/60) -> 600.1666667 | O6: 600.3333333 | P6: 600.5 | Q6: 600.6666667 | R6: 600.8333333 | S6: 601 | T6: 601.1666667 | U6: 601.3333333 | V6: 601.5 | W6: 601.6666667 | X6: 601.8333333 | Y6: 602 | Z6: 602.1666667 | AA6: 602.3333333 | AB6: 602.5 | AC6: 602.6666667 | AD6: 602.8333333 | AE6: 603 | AF6: 603.1666667 | AG6: 603.3333333 | AH6: 603.5 | AI6: 603.6666667 | AJ6: 603.8333333 | AK6: 604 | AL6: 604.1666667 | AM6: 604.3333333 | AN6: 604.5 | AO6: 604.6666667 | AP6: 604.8333333 | AQ6: 605 | AR6: 605.1666667 | AS6: 605.3333333 | AT6: 605.5 | AU6: 605.6666667 | AV6: 605.8333333 | AW6: 606
A7: 4 | B7: 2nd Tower SS | C7: ='0 RPM'!$BO20 -> 0.03617386749 | D7: ='2 RPM'!$BO20 -> 0.03622713231 | E7: ='4 RPM'!$BO20 -> 0.03619026882 | F7: ='6 RPM'!$BO20 -> 0.03617905418 | G7: ='8 RPM'!$BO20 -> 0.03619238779 | H7: ='10 RPM'!$BO20 -> 0.03620732523 | I7: ='12 RPM'!$BO20 -> 0.03622273896 | J7: ='14 RPM'!$BO20 -> 0.03623823895 | L7: 12 | M7: 600 | N7: =M7+(1/36)/($L7/60) -> 600.1388889 | O7: 600.2777778 | P7: 600.4166667 | Q7: 600.5555556 | R7: 600.6944444 | S7: 600.8333333 | T7: 600.9722222 | U7: 601.1111111 | V7: 601.25 | W7: 601.3888889 | X7: 601.5277778 | Y7: 601.6666667 | Z7: 601.8055556 | AA7: 601.9444444 | AB7: 602.0833333 | AC7: 602.2222222 | AD7: 602.3611111 | AE7: 602.5 | AF7: 602.6388889 | AG7: 602.7777778 | AH7: 602.9166667 | AI7: 603.0555556 | AJ7: 603.1944444 | AK7: 603.3333333 | AL7: 603.4722222 | AM7: 603.6111111 | AN7: 603.75 | AO7: 603.8888889 | AP7: 604.0277778 | AQ7: 604.1666667 | AR7: 604.3055556 | AS7: 604.4444444 | AT7: 604.5833333 | AU7: 604.7222222 | AV7: 604.8611111 | AW7: 605
A8: 5 | B8: 1st Blade Flap (Regressive) | C8: ='0 RPM'!$BO22 -> 0.03614023808 | D8: ='2 RPM'!$BO22 -> 0.0361224066 | E8: ='4 RPM'!$BO22 -> 0.03613037747 | F8: ='6 RPM'!$BO22 -> 0.03617905418 | G8: ='8 RPM'!$BO22 -> 0.03619238779 | H8: ='10 RPM'!$BO22 -> 0.03620732523 | I8: ='12 RPM'!$BO22 -> 0.03622273896 | J8: ='14 RPM'!$BO22 -> 0.03623823895 | L8: 14 | M8: 600 | N8: =M8+(1/36)/($L8/60) -> 600.1190476 | O8: 600.2380952 | P8: 600.3571429 | Q8: 600.4761905 | R8: 600.5952381 | S8: 600.7142857 | T8: 600.8333333 | U8: 600.952381 | V8: 601.0714286 | W8: 601.1904762 | X8: 601.3095238 | Y8: 601.4285714 | Z8: 601.547619 | AA8: 601.6666667 | AB8: 601.7857143 | AC8: 601.9047619 | AD8: 602.0238095 | AE8: 602.1428571 | AF8: 602.2619048 | AG8: 602.3809524 | AH8: 602.5 | AI8: 602.6190476 | AJ8: 602.7380952 | AK8: 602.8571429 | AL8: 602.9761905 | AM8: 603.0952381 | AN8: 603.2142857 | AO8: 603.3333333 | AP8: 603.452381 | AQ8: 603.5714286 | AR8: 603.6904762 | AS8: 603.8095238 | AT8: 603.9285714 | AU8: 604.047619 | AV8: 604.1666667 | AW8: 604.2857143
A9: 6 | B9: 1st Blade Flap (Collective) | C9: ='0 RPM'!$BO23 -> 0.428484042 | D9: ='2 RPM'!$BO23 -> 0.01191542339 | E9: ='4 RPM'!$BO23 -> 0.01191062717 | F9: ='6 RPM'!$BO23 -> 0.01192383174 | G9: ='8 RPM'!$BO23 -> 0.01191841847 | H9: ='10 RPM'!$BO23 -> 0.01191309419 | I9: ='12 RPM'!$BO23 -> 0.01190840197 | J9: ='14 RPM'!$BO23 -> 0.01190350511
A10: 7 | B10: 1st Blade Flap (Progressive) | C10: ='0 RPM'!$BO24 -> 0.5502457647 | D10: ='2 RPM'!$BO24 -> 0.529952443 | E10: ='4 RPM'!$BO24 -> 0.03613037747 | F10: ='6 RPM'!$BO24 -> 0.03611158331 | G10: ='8 RPM'!$BO24 -> 0.03608977279 | H10: ='10 RPM'!$BO24 -> 0.03607558303 | I10: ='12 RPM'!$BO24 -> 0.03606433533 | J10: ='14 RPM'!$BO24 -> 0.03605440659
A11: 8 | B11: 1st Blade Edge (Regressive) | C11: ='0 RPM'!$BO25 -> 0.4254473667 | D11: ='2 RPM'!$BO25 -> 0.425104438 | E11: ='4 RPM'!$BO25 -> 0.6771896716 | F11: ='6 RPM'!$BO25 -> 0.4262766496 | G11: ='8 RPM'!$BO25 -> 0.4261490363 | H11: ='10 RPM'!$BO25 -> 0.687828809 | I11: ='12 RPM'!$BO25 -> 0.6932382681 | J11: ='14 RPM'!$BO25 -> 0.6996803494
A12: 9 | B12: 1st Blade Edge (Progressive) | C12: ='0 RPM'!$BO27 -> 0.653546827 | D12: ='2 RPM'!$BO27 -> 0.62141159 | E12: ='4 RPM'!$BO27 -> 0.5899839245 | F12: ='6 RPM'!$BO27 -> 0.5586431164 | G12: ='8 RPM'!$BO27 -> 0.5309517872 | H12: ='10 RPM'!$BO27 -> 0.506077495 | I12: ='12 RPM'!$BO27 -> 0.4619861772 | J12: ='14 RPM'!$BO27 -> 0.4423283303 | K12: <--With too high of perturbation size
A13: 10 | B13: 2nd Blade Flap (Regressive) | C13: ='0 RPM'!$BO28 -> 0.03614023808 | D13: ='2 RPM'!$BO28 -> 0.0361224066 | E13: ='4 RPM'!$BO28 -> 0.03613037747 | F13: ='6 RPM'!$BO28 -> 0.03617905418 | G13: ='8 RPM'!$BO28 -> 0.03619238779 | H13: ='10 RPM'!$BO28 -> 0.03620732523 | I13: ='12 RPM'!$BO28 -> 0.03622273896 | J13: ='14 RPM'!$BO28 -> 0.03623823895 | K13: <--With too high of perturbation size
A14: 11 | B14: 2nd Blade Flap (Collective) | C14: ='0 RPM'!$BO29 -> 2.40209992 | D14: ='2 RPM'!$BO29 -> 0.01191542339 | E14: ='4 RPM'!$BO29 -> 0.01191062717 | F14: ='6 RPM'!$BO29 -> 0.01192383174 | G14: ='8 RPM'!$BO29 -> 0.01191841847 | H14: ='10 RPM'!$BO29 -> 0.01191309419 | I14: ='12 RPM'!$BO29 -> 0.01190840197 | J14: ='14 RPM'!$BO29 -> 0.01190350511
A15: 12 | B15: 2nd Blade Flap (Progressive) | C15: ='0 RPM'!$BO26 -> 0.03617386749 | D15: ='2 RPM'!$BO26 -> 0.03622713231 | E15: ='4 RPM'!$BO26 -> 0.03619026882 | F15: ='6 RPM'!$BO26 -> 0.03617905418 | G15: ='8 RPM'!$BO26 -> 0.5309517872 | H15: ='10 RPM'!$BO26 -> 0.506077495 | I15: ='12 RPM'!$BO26 -> 0.4252004937 | J15: ='14 RPM'!$BO26 -> 0.4231464856
A16: 13 | B16: 1st Drivetrain Torsion | C16: ='0 RPM'!$BO17 -> 0.03614023808 | D16: ='2 RPM'!$BO17 -> 0.0361224066 | E16: ='4 RPM'!$BO17 -> 0.03613037747 | F16: ='6 RPM'!$BO17 -> 0.03611158331 | G16: ='8 RPM'!$BO17 -> 0.03619238779 | H16: ='10 RPM'!$BO17 -> 0.03620732523 | I16: ='12 RPM'!$BO17 -> 0.03622273896 | J16: ='14 RPM'!$BO17 -> 0.03623823895
A17: 14 | B17: Nacelle Yaw (Not Shown) | C17: ='0 RPM'!$BO15 -> 0.03614023808 | D17: ='2 RPM'!$BO15 -> 0.0361224066 | E17: ='4 RPM'!$BO15 -> 0.03613037747 | F17: ='6 RPM'!$BO15 -> 0.03611158331 | G17: ='8 RPM'!$BO15 -> 0.03619238779 | H17: ='10 RPM'!$BO15 -> 0.03620732523 | I17: ='12 RPM'!$BO15 -> 0.03622273896 | J17: ='14 RPM'!$BO15 -> 0.03623823895
A18: 15 | B18: Extra Edge (Not Shown) | C18: ='0 RPM'!$BO16 -> 0.01194648387 | D18: ='2 RPM'!$BO16 -> 0.01191542339 | E18: ='4 RPM'!$BO16 -> 0.01191062717 | F18: ='6 RPM'!$BO16 -> 0.01192383174 | G18: ='8 RPM'!$BO16 -> 0.01191841847 | H18: ='10 RPM'!$BO16 -> 0.01191309419 | I18: ='12 RPM'!$BO16 -> 0.01190840197 | J18: ='14 RPM'!$BO16 -> 0.01190350511
B19: 1P | C19: =C3/60 -> 0 | D19: 0.03333333333 | E19: 0.06666666667 | F19: 0.1 | G19: 0.1333333333 | H19: 0.1666666667 | I19: 0.2 | J19: 0.2333333333
B20: 3P | C20: =3*C19 -> 0 | D20: 0.1 | E20: 0.2 | F20: 0.3 | G20: 0.4 | H20: 0.5 | I20: 0.6 | J20: 0.7
B21: 6P | C21: =6*C19 -> 0 | D21: 0.2 | E21: 0.4 | F21: 0.6 | G21: 0.8 | H21: 1 | I21: 1.2 | J21: 1.4
B22: 9P | C22: =9*C19 -> 0 | D22: 0.3 | E22: 0.6 | F22: 0.9 | G22: 1.2 | H22: 1.5 | I22: 1.8 | J22: 2.1
B23: 12P | C23: =12*C19 -> 0 | D23: 0.4 | E23: 0.8 | F23: 1.2 | G23: 1.6 | H23: 2 | I23: 2.4 | J23: 2.8

Sheet 0 RPM
A1: This worksheet is used to sort the mode shapes and frequencies and to help you determine which modes are which for up to 30 modes (up to 30 DOFs).
A2: To use this spreadsheet, paste the appropriate data output from MBC3 into the six gray cells marked with comments (DescStates, MBC_ModeShapeMagnitude, MBC_ModeShapePhaseDeg_MBC_DampingRatio, MBC_DampedFrequencyHz, MBC_NaturalFrequencyHz). The Scaling should be calculated according to the comment, but is not output by MBC3. Do not change any other cell!
A3: NOTE: This spreadsheet doesn't work if any natural (undamped) frequency is 0.0 or if any natural (undamped) frequency is in duplicate--to avoid the resulting error, in the cells where the frequencies are pasted-in, change the error-causing frequency (or frequencies) by a very small amount!
D4: BladeLength | E4: 117 | F4: TowerHt | G4: 144.495
C5: Mode Shapes and Frequencies
C6: Mode Number | E6: 1 | G6: =E6+1 -> 2 | I6: =G6+1 -> 3 | K6: =I6+1 -> 4 | M6: =K6+1 -> 5 | O6: =M6+1 -> 6 | Q6: =O6+1 -> 7 | S6: =Q6+1 -> 8 | U6: =S6+1 -> 9 | W6: =U6+1 -> 10 | Y6: =W6+1 -> 11 | AA6: =Y6+1 -> 12 | AC6: =AA6+1 -> 13 | AE6: =AC6+1 -> 14 | AG6: =AE6+1 -> 15 | AI6: =AG6+1 -> 16 | AK6: =AI6+1 -> 17 | AM6: =AK6+1 -> 18 | AO6: =AM6+1 -> 19 | AQ6: =AO6+1 -> 20 | AS6: =AQ6+1 -> 21 | AU6: =AS6+1 -> 22 | AW6: =AU6+1 -> 23 | AY6: =AW6+1 -> 24 | BA6: =AY6+1 -> 25 | BC6: =BA6+1 -> 26 | BE6: =BC6+1 -> 27 | BG6: =BE6+1 -> 28 | BI6: =BG6+1 -> 29 | BK6: =BI6+1 -> 30
C7: Natural (Undamped) Frequencies (Hz) | E7: =IF(VLOOKUP(E$6+$BO$47,$D$48:$BO$77,64,FALSE)="","",VLOOKUP(E$6+$BO$47,$D$48:$BO$77,64,FALSE)) -> 0.00774681223 | G7: =IF(VLOOKUP(G$6+$BO$47,$D$48:$BO$77,64,FALSE)="","",VLOOKUP(G$6+$BO$47,$D$48:$BO$77,64,FALSE)) -> 0.007817762466 | I7: =IF(VLOOKUP(I$6+$BO$47,$D$48:$BO$77,64,FALSE)="","",VLOOKUP(I$6+$BO$47,$D$48:$BO$77,64,FALSE)) -> 0.01194648387 | K7: =IF(VLOOKUP(K$6+$BO$47,$D$48:$BO$77,64,FALSE)="","",VLOOKUP(K$6+$BO$47,$D$48:$BO$77,64,FALSE)) -> 0.03614023808 | M7: =IF(VLOOKUP(M$6+$BO$47,$D$48:$BO$77,64,FALSE)="","",VLOOKUP(M$6+$BO$47,$D$48:$BO$77,64,FALSE)) -> 0.03617386749 | O7: =IF(VLOOKUP(O$6+$BO$47,$D$48:$BO$77,64,FALSE)="","",VLOOKUP(O$6+$BO$47,$D$48:$BO$77,64,FALSE)) -> 0.05057703655 | Q7: =IF(VLOOKUP(Q$6+$BO$47,$D$48:$BO$77,64,FALSE)="","",VLOOKUP(Q$6+$BO$47,$D$48:$BO$77,64,FALSE)) -> 0.4254473667 | S7: =IF(VLOOKUP(S$6+$BO$47,$D$48:$BO$77,64,FALSE)="","",VLOOKUP(S$6+$BO$47,$D$48:$BO$77,64,FALSE)) -> 0.428484042 | U7: =IF(VLOOKUP(U$6+$BO$47,$D$48:$BO$77,64,FALSE)="","",VLOOKUP(U$6+$BO$47,$D$48:$BO$77,64,FALSE)) -> 0.5502457647 | W7: =IF(VLOOKUP(W$6+$BO$47,$D$48:$BO$77,64,FALSE)="","",VLOOKUP(W$6+$BO$47,$D$48:$BO$77,64,FALSE)) -> 0.557754314 | Y7: =IF(VLOOKUP(Y$6+$BO$47,$D$48:$BO$77,64,FALSE)="","",VLOOKUP(Y$6+$BO$47,$D$48:$BO$77,64,FALSE)) -> 0.5911745548 | AA7: =IF(VLOOKUP(AA$6+$BO$47,$D$48:$BO$77,64,FALSE)="","",VLOOKUP(AA$6+$BO$47,$D$48:$BO$77,64,FALSE)) -> 0.6480244909 | AC7: =IF(VLOOKUP(AC$6+$BO$47,$D$48:$BO$77,64,FALSE)="","",VLOOKUP(AC$6+$BO$47,$D$48:$BO$77,64,FALSE)) -> 0.653546827 | AE7: =IF(VLOOKUP(AE$6+$BO$47,$D$48:$BO$77,64,FALSE)="","",VLOOKUP(AE$6+$BO$47,$D$48:$BO$77,64,FALSE)) -> 0.6859128346 | AG7: =IF(VLOOKUP(AG$6+$BO$47,$D$48:$BO$77,64,FALSE)="","",VLOOKUP(AG$6+$BO$47,$D$48:$BO$77,64,FALSE)) -> 2.40209992 | AI7: =IF(VLOOKUP(AI$6+$BO$47,$D$48:$BO$77,64,FALSE)="","",VLOOKUP(AI$6+$BO$47,$D$48:$BO$77,64,FALSE)) -> 2.407209019 | AK7: =IF(VLOOKUP(AK$6+$BO$47,$D$48:$BO$77,64,FALSE)="","",VLOOKUP(AK$6+$BO$47,$D$48:$BO$77,64,FALSE)) -> 2.446337417 | AM7: =IF(VLOOKUP(AM$6+$BO$47,$D$48:$BO$77,64,FALSE)="","",VLOOKUP(AM$6+$BO$47,$D$48:$BO$77,64,FALSE)) -> 2.584554958 | AO7: =IF(VLOOKUP(AO$6+$BO$47,$D$48:$BO$77,64,FALSE)="","",VLOOKUP(AO$6+$BO$47,$D$48:$BO$77,64,FALSE)) -> 2.670926333 | AQ7: =IF(VLOOKUP(AQ$6+$BO$47,$D$48:$BO$77,64,FALSE)="","",VLOOKUP(AQ$6+$BO$47,$D$48:$BO$77,64,FALSE)) -> 4.808053797 | AS7: =IF(VLOOKUP(AS$6+$BO$47,$D$48:$BO$77,64,FALSE)="","",VLOOKUP(AS$6+$BO$47,$D$48:$BO$77,64,FALSE)) ->  | AU7: =IF(VLOOKUP(AU$6+$BO$47,$D$48:$BO$77,64,FALSE)="","",VLOOKUP(AU$6+$BO$47,$D$48:$BO$77,64,FALSE)) ->  | AW7: =IF(VLOOKUP(AW$6+$BO$47,$D$48:$BO$77,64,FALSE)="","",VLOOKUP(AW$6+$BO$47,$D$48:$BO$77,64,FALSE)) ->  | AY7: =IF(VLOOKUP(AY$6+$BO$47,$D$48:$BO$77,64,FALSE)="","",VLOOKUP(AY$6+$BO$47,$D$48:$BO$77,64,FALSE)) ->  | BA7: =IF(VLOOKUP(BA$6+$BO$47,$D$48:$BO$77,64,FALSE)="","",VLOOKUP(BA$6+$BO$47,$D$48:$BO$77,64,FALSE)) ->  | BC7: =IF(VLOOKUP(BC$6+$BO$47,$D$48:$BO$77,64,FALSE)="","",VLOOKUP(BC$6+$BO$47,$D$48:$BO$77,64,FALSE)) ->  | BE7: =IF(VLOOKUP(BE$6+$BO$47,$D$48:$BO$77,64,FALSE)="","",VLOOKUP(BE$6+$BO$47,$D$48:$BO$77,64,FALSE)) ->  | BG7: =IF(VLOOKUP(BG$6+$BO$47,$D$48:$BO$77,64,FALSE)="","",VLOOKUP(BG$6+$BO$47,$D$48:$BO$77,64,FALSE)) ->  | BI7: =IF(VLOOKUP(BI$6+$BO$47,$D$48:$BO$77,64,FALSE)="","",VLOOKUP(BI$6+$BO$47,$D$48:$BO$77,64,FALSE)) ->  | BK7: =IF(VLOOKUP(BK$6+$BO$47,$D$48:$BO$77,64,FALSE)="","",VLOOKUP(BK$6+$BO$47,$D$48:$BO$77,64,FALSE)) -> 
C8: Damped Frequencies (Hz) | E8: =IF(VLOOKUP(E$6+$BO$47,$D$48:$BO$77,63,FALSE)="","",VLOOKUP(E$6+$BO$47,$D$48:$BO$77,63,FALSE)) -> 0.007743633839 | G8: =IF(VLOOKUP(G$6+$BO$47,$D$48:$BO$77,63,FALSE)="","",VLOOKUP(G$6+$BO$47,$D$48:$BO$77,63,FALSE)) -> 0.007815845115 | I8: =IF(VLOOKUP(I$6+$BO$47,$D$48:$BO$77,63,FALSE)="","",VLOOKUP(I$6+$BO$47,$D$48:$BO$77,63,FALSE)) -> 0.01156356487 | K8: =IF(VLOOKUP(K$6+$BO$47,$D$48:$BO$77,63,FALSE)="","",VLOOKUP(K$6+$BO$47,$D$48:$BO$77,63,FALSE)) -> 0.03612966051 | M8: =IF(VLOOKUP(M$6+$BO$47,$D$48:$BO$77,63,FALSE)="","",VLOOKUP(M$6+$BO$47,$D$48:$BO$77,63,FALSE)) -> 0.03616385211 | O8: =IF(VLOOKUP(O$6+$BO$47,$D$48:$BO$77,63,FALSE)="","",VLOOKUP(O$6+$BO$47,$D$48:$BO$77,63,FALSE)) -> 0.05057623464 | Q8: =IF(VLOOKUP(Q$6+$BO$47,$D$48:$BO$77,63,FALSE)="","",VLOOKUP(Q$6+$BO$47,$D$48:$BO$77,63,FALSE)) -> 0.4254361504 | S8: =IF(VLOOKUP(S$6+$BO$47,$D$48:$BO$77,63,FALSE)="","",VLOOKUP(S$6+$BO$47,$D$48:$BO$77,63,FALSE)) -> 0.4284675822 | U8: =IF(VLOOKUP(U$6+$BO$47,$D$48:$BO$77,63,FALSE)="","",VLOOKUP(U$6+$BO$47,$D$48:$BO$77,63,FALSE)) -> 0.5500223517 | W8: =IF(VLOOKUP(W$6+$BO$47,$D$48:$BO$77,63,FALSE)="","",VLOOKUP(W$6+$BO$47,$D$48:$BO$77,63,FALSE)) -> 0.5575120459 | Y8: =IF(VLOOKUP(Y$6+$BO$47,$D$48:$BO$77,63,FALSE)="","",VLOOKUP(Y$6+$BO$47,$D$48:$BO$77,63,FALSE)) -> 0.5909422925 | AA8: =IF(VLOOKUP(AA$6+$BO$47,$D$48:$BO$77,63,FALSE)="","",VLOOKUP(AA$6+$BO$47,$D$48:$BO$77,63,FALSE)) -> 0.6477449902 | AC8: =IF(VLOOKUP(AC$6+$BO$47,$D$48:$BO$77,63,FALSE)="","",VLOOKUP(AC$6+$BO$47,$D$48:$BO$77,63,FALSE)) -> 0.6532581107 | AE8: =IF(VLOOKUP(AE$6+$BO$47,$D$48:$BO$77,63,FALSE)="","",VLOOKUP(AE$6+$BO$47,$D$48:$BO$77,63,FALSE)) -> 0.685639007 | AG8: =IF(VLOOKUP(AG$6+$BO$47,$D$48:$BO$77,63,FALSE)="","",VLOOKUP(AG$6+$BO$47,$D$48:$BO$77,63,FALSE)) -> 2.393143353 | AI8: =IF(VLOOKUP(AI$6+$BO$47,$D$48:$BO$77,63,FALSE)="","",VLOOKUP(AI$6+$BO$47,$D$48:$BO$77,63,FALSE)) -> 2.389277428 | AK8: =IF(VLOOKUP(AK$6+$BO$47,$D$48:$BO$77,63,FALSE)="","",VLOOKUP(AK$6+$BO$47,$D$48:$BO$77,63,FALSE)) -> 2.42531598 | AM8: =IF(VLOOKUP(AM$6+$BO$47,$D$48:$BO$77,63,FALSE)="","",VLOOKUP(AM$6+$BO$47,$D$48:$BO$77,63,FALSE)) -> 2.580220561 | AO8: =IF(VLOOKUP(AO$6+$BO$47,$D$48:$BO$77,63,FALSE)="","",VLOOKUP(AO$6+$BO$47,$D$48:$BO$77,63,FALSE)) -> 2.670519698 | AQ8: =IF(VLOOKUP(AQ$6+$BO$47,$D$48:$BO$77,63,FALSE)="","",VLOOKUP(AQ$6+$BO$47,$D$48:$BO$77,63,FALSE)) -> 4.805506289 | AS8: =IF(VLOOKUP(AS$6+$BO$47,$D$48:$BO$77,63,FALSE)="","",VLOOKUP(AS$6+$BO$47,$D$48:$BO$77,63,FALSE)) ->  | AU8: =IF(VLOOKUP(AU$6+$BO$47,$D$48:$BO$77,63,FALSE)="","",VLOOKUP(AU$6+$BO$47,$D$48:$BO$77,63,FALSE)) ->  | AW8: =IF(VLOOKUP(AW$6+$BO$47,$D$48:$BO$77,63,FALSE)="","",VLOOKUP(AW$6+$BO$47,$D$48:$BO$77,63,FALSE)) ->  | AY8: =IF(VLOOKUP(AY$6+$BO$47,$D$48:$BO$77,63,FALSE)="","",VLOOKUP(AY$6+$BO$47,$D$48:$BO$77,63,FALSE)) ->  | BA8: =IF(VLOOKUP(BA$6+$BO$47,$D$48:$BO$77,63,FALSE)="","",VLOOKUP(BA$6+$BO$47,$D$48:$BO$77,63,FALSE)) ->  | BC8: =IF(VLOOKUP(BC$6+$BO$47,$D$48:$BO$77,63,FALSE)="","",VLOOKUP(BC$6+$BO$47,$D$48:$BO$77,63,FALSE)) ->  | BE8: =IF(VLOOKUP(BE$6+$BO$47,$D$48:$BO$77,63,FALSE)="","",VLOOKUP(BE$6+$BO$47,$D$48:$BO$77,63,FALSE)) ->  | BG8: =IF(VLOOKUP(BG$6+$BO$47,$D$48:$BO$77,63,FALSE)="","",VLOOKUP(BG$6+$BO$47,$D$48:$BO$77,63,FALSE)) ->  | BI8: =IF(VLOOKUP(BI$6+$BO$47,$D$48:$BO$77,63,FALSE)="","",VLOOKUP(BI$6+$BO$47,$D$48:$BO$77,63,FALSE)) ->  | BK8: =IF(VLOOKUP(BK$6+$BO$47,$D$48:$BO$77,63,FALSE)="","",VLOOKUP(BK$6+$BO$47,$D$48:$BO$77,63,FALSE)) -> 
C9: Damping Ratio (-) | E9: =IF(VLOOKUP(E$6+$BO$47,$D$48:$BO$77,62,FALSE)="","",VLOOKUP(E$6+$BO$47,$D$48:$BO$77,62,FALSE)) -> 0.02864261269 | G9: =IF(VLOOKUP(G$6+$BO$47,$D$48:$BO$77,62,FALSE)="","",VLOOKUP(G$6+$BO$47,$D$48:$BO$77,62,FALSE)) -> 0.02214613857 | I9: =IF(VLOOKUP(I$6+$BO$47,$D$48:$BO$77,62,FALSE)="","",VLOOKUP(I$6+$BO$47,$D$48:$BO$77,62,FALSE)) -> 0.2511540141 | K9: =IF(VLOOKUP(K$6+$BO$47,$D$48:$BO$77,62,FALSE)="","",VLOOKUP(K$6+$BO$47,$D$48:$BO$77,62,FALSE)) -> 0.02419249691 | M9: =IF(VLOOKUP(M$6+$BO$47,$D$48:$BO$77,62,FALSE)="","",VLOOKUP(M$6+$BO$47,$D$48:$BO$77,62,FALSE)) -> 0.02352995589 | O9: =IF(VLOOKUP(O$6+$BO$47,$D$48:$BO$77,62,FALSE)="","",VLOOKUP(O$6+$BO$47,$D$48:$BO$77,62,FALSE)) -> 0.005631158033 | Q9: =IF(VLOOKUP(Q$6+$BO$47,$D$48:$BO$77,62,FALSE)="","",VLOOKUP(Q$6+$BO$47,$D$48:$BO$77,62,FALSE)) -> 0.007261278564 | S9: =IF(VLOOKUP(S$6+$BO$47,$D$48:$BO$77,62,FALSE)="","",VLOOKUP(S$6+$BO$47,$D$48:$BO$77,62,FALSE)) -> 0.008765062542 | U9: =IF(VLOOKUP(U$6+$BO$47,$D$48:$BO$77,62,FALSE)="","",VLOOKUP(U$6+$BO$47,$D$48:$BO$77,62,FALSE)) -> 0.02849356379 | W9: =IF(VLOOKUP(W$6+$BO$47,$D$48:$BO$77,62,FALSE)="","",VLOOKUP(W$6+$BO$47,$D$48:$BO$77,62,FALSE)) -> 0.02947097471 | Y9: =IF(VLOOKUP(Y$6+$BO$47,$D$48:$BO$77,62,FALSE)="","",VLOOKUP(Y$6+$BO$47,$D$48:$BO$77,62,FALSE)) -> 0.02802875593 | AA9: =IF(VLOOKUP(AA$6+$BO$47,$D$48:$BO$77,62,FALSE)="","",VLOOKUP(AA$6+$BO$47,$D$48:$BO$77,62,FALSE)) -> 0.0293672942 | AC9: =IF(VLOOKUP(AC$6+$BO$47,$D$48:$BO$77,62,FALSE)="","",VLOOKUP(AC$6+$BO$47,$D$48:$BO$77,62,FALSE)) -> 0.02972105803 | AE9: =IF(VLOOKUP(AE$6+$BO$47,$D$48:$BO$77,62,FALSE)="","",VLOOKUP(AE$6+$BO$47,$D$48:$BO$77,62,FALSE)) -> 0.02825373084 | AG9: =IF(VLOOKUP(AG$6+$BO$47,$D$48:$BO$77,62,FALSE)="","",VLOOKUP(AG$6+$BO$47,$D$48:$BO$77,62,FALSE)) -> 0.0862750139 | AI9: =IF(VLOOKUP(AI$6+$BO$47,$D$48:$BO$77,62,FALSE)="","",VLOOKUP(AI$6+$BO$47,$D$48:$BO$77,62,FALSE)) -> 0.1218308353 | AK9: =IF(VLOOKUP(AK$6+$BO$47,$D$48:$BO$77,62,FALSE)="","",VLOOKUP(AK$6+$BO$47,$D$48:$BO$77,62,FALSE)) -> 0.1308136404 | AM9: =IF(VLOOKUP(AM$6+$BO$47,$D$48:$BO$77,62,FALSE)="","",VLOOKUP(AM$6+$BO$47,$D$48:$BO$77,62,FALSE)) -> 0.05789010139 | AO9: =IF(VLOOKUP(AO$6+$BO$47,$D$48:$BO$77,62,FALSE)="","",VLOOKUP(AO$6+$BO$47,$D$48:$BO$77,62,FALSE)) -> 0.01744896992 | AQ9: =IF(VLOOKUP(AQ$6+$BO$47,$D$48:$BO$77,62,FALSE)="","",VLOOKUP(AQ$6+$BO$47,$D$48:$BO$77,62,FALSE)) -> 0.03254846631 | AS9: =IF(VLOOKUP(AS$6+$BO$47,$D$48:$BO$77,62,FALSE)="","",VLOOKUP(AS$6+$BO$47,$D$48:$BO$77,62,FALSE)) ->  | AU9: =IF(VLOOKUP(AU$6+$BO$47,$D$48:$BO$77,62,FALSE)="","",VLOOKUP(AU$6+$BO$47,$D$48:$BO$77,62,FALSE)) ->  | AW9: =IF(VLOOKUP(AW$6+$BO$47,$D$48:$BO$77,62,FALSE)="","",VLOOKUP(AW$6+$BO$47,$D$48:$BO$77,62,FALSE)) ->  | AY9: =IF(VLOOKUP(AY$6+$BO$47,$D$48:$BO$77,62,FALSE)="","",VLOOKUP(AY$6+$BO$47,$D$48:$BO$77,62,FALSE)) ->  | BA9: =IF(VLOOKUP(BA$6+$BO$47,$D$48:$BO$77,62,FALSE)="","",VLOOKUP(BA$6+$BO$47,$D$48:$BO$77,62,FALSE)) ->  | BC9: =IF(VLOOKUP(BC$6+$BO$47,$D$48:$BO$77,62,FALSE)="","",VLOOKUP(BC$6+$BO$47,$D$48:$BO$77,62,FALSE)) ->  | BE9: =IF(VLOOKUP(BE$6+$BO$47,$D$48:$BO$77,62,FALSE)="","",VLOOKUP(BE$6+$BO$47,$D$48:$BO$77,62,FALSE)) ->  | BG9: =IF(VLOOKUP(BG$6+$BO$47,$D$48:$BO$77,62,FALSE)="","",VLOOKUP(BG$6+$BO$47,$D$48:$BO$77,62,FALSE)) ->  | BI9: =IF(VLOOKUP(BI$6+$BO$47,$D$48:$BO$77,62,FALSE)="","",VLOOKUP(BI$6+$BO$47,$D$48:$BO$77,62,FALSE)) ->  | BK9: =IF(VLOOKUP(BK$6+$BO$47,$D$48:$BO$77,62,FALSE)="","",VLOOKUP(BK$6+$BO$47,$D$48:$BO$77,62,FALSE)) -> 
C10: States | D10: Scaling | E10: Magnitude (rad) | F10: Phase (deg) | G10: Magnitude (rad) | H10: Phase (deg) | I10: Magnitude (rad) | J10: Phase (deg) | K10: Magnitude (rad) | L10: Phase (deg) | M10: Magnitude (rad) | N10: Phase (deg) | O10: Magnitude (rad) | P10: Phase (deg) | Q10: Magnitude (rad) | R10: Phase (deg) | S10: Magnitude (rad) | T10: Phase (deg) | U10: Magnitude (rad) | V10: Phase (deg) | W10: Magnitude (rad) | X10: Phase (deg) | Y10: Magnitude (rad) | Z10: Phase (deg) | AA10: Magnitude (rad) | AB10: Phase (deg) | AC10: Magnitude (rad) | AD10: Phase (deg) | AE10: Magnitude (rad) | AF10: Phase (deg) | AG10: Magnitude (rad) | AH10: Phase (deg) | AI10: Magnitude (rad) | AJ10: Phase (deg) | AK10: Magnitude (rad) | AL10: Phase (deg) | AM10: Magnitude (rad) | AN10: Phase (deg) | AO10: Magnitude (rad) | AP10: Phase (deg) | AQ10: Magnitude (rad) | AR10: Phase (deg) | AS10: Magnitude (rad) | AT10: Phase (deg) | AU10: Magnitude (rad) | AV10: Phase (deg) | AW10: Magnitude (rad) | AX10: Phase (deg) | AY10: Magnitude (rad) | AZ10: Phase (deg) | BA10: Magnitude (rad) | BB10: Phase (deg) | BC10: Magnitude (rad) | BD10: Phase (deg) | BE10: Magnitude (rad) | BF10: Phase (deg) | BG10: Magnitude (rad) | BH10: Phase (deg) | BI10: Magnitude (rad) | BJ10: Phase (deg) | BK10: Magnitude (rad) | BL10: Phase (deg)
B11: 1 | C11: ED Platform horizontal surge translation DOF (internal DOF index = DOF_Sg), m | D11: 1 | E11: =IF(HLOOKUP(E$6+$BO$47,$E$47:$AH$77,$B11+1,FALSE)="","",HLOOKUP(E$6+$BO$47,$E$47:$AH$77,$B11+1,FALSE)*$D11) -> 0.9988164345 | F11: =IF(HLOOKUP(E$6+$BO$47,$AI$47:$BL$77,$B11+1,FALSE)="","",HLOOKUP(E$6+$BO$47,$AI$47:$BL$77,$B11+1,FALSE)) -> 0 | G11: =IF(HLOOKUP(G$6+$BO$47,$E$47:$AH$77,$B11+1,FALSE)="","",HLOOKUP(G$6+$BO$47,$E$47:$AH$77,$B11+1,FALSE)*$D11) -> 1.110728395e-05 | H11: =IF(HLOOKUP(G$6+$BO$47,$AI$47:$BL$77,$B11+1,FALSE)="","",HLOOKUP(G$6+$BO$47,$AI$47:$BL$77,$B11+1,FALSE)) -> 80.98209429 | I11: =IF(HLOOKUP(I$6+$BO$47,$E$47:$AH$77,$B11+1,FALSE)="","",HLOOKUP(I$6+$BO$47,$E$47:$AH$77,$B11+1,FALSE)*$D11) -> 0.009231031447 | J11: =IF(HLOOKUP(I$6+$BO$47,$AI$47:$BL$77,$B11+1,FALSE)="","",HLOOKUP(I$6+$BO$47,$AI$47:$BL$77,$B11+1,FALSE)) -> 142.370479 | K11: =IF(HLOOKUP(K$6+$BO$47,$E$47:$AH$77,$B11+1,FALSE)="","",HLOOKUP(K$6+$BO$47,$E$47:$AH$77,$B11+1,FALSE)*$D11) -> 0.5745651917 | L11: =IF(HLOOKUP(K$6+$BO$47,$AI$47:$BL$77,$B11+1,FALSE)="","",HLOOKUP(K$6+$BO$47,$AI$47:$BL$77,$B11+1,FALSE)) -> 0 | M11: =IF(HLOOKUP(M$6+$BO$47,$E$47:$AH$77,$B11+1,FALSE)="","",HLOOKUP(M$6+$BO$47,$E$47:$AH$77,$B11+1,FALSE)*$D11) -> 0.04824951625 | N11: =IF(HLOOKUP(M$6+$BO$47,$AI$47:$BL$77,$B11+1,FALSE)="","",HLOOKUP(M$6+$BO$47,$AI$47:$BL$77,$B11+1,FALSE)) -> 35.20706278 | O11: =IF(HLOOKUP(O$6+$BO$47,$E$47:$AH$77,$B11+1,FALSE)="","",HLOOKUP(O$6+$BO$47,$E$47:$AH$77,$B11+1,FALSE)*$D11) -> 0.001780368029 | P11: =IF(HLOOKUP(O$6+$BO$47,$AI$47:$BL$77,$B11+1,FALSE)="","",HLOOKUP(O$6+$BO$47,$AI$47:$BL$77,$B11+1,FALSE)) -> 2.959227165 | Q11: =IF(HLOOKUP(Q$6+$BO$47,$E$47:$AH$77,$B11+1,FALSE)="","",HLOOKUP(Q$6+$BO$47,$E$47:$AH$77,$B11+1,FALSE)*$D11) -> 0.001200634083 | R11: =IF(HLOOKUP(Q$6+$BO$47,$AI$47:$BL$77,$B11+1,FALSE)="","",HLOOKUP(Q$6+$BO$47,$AI$47:$BL$77,$B11+1,FALSE)) -> -106.86832 | S11: =IF(HLOOKUP(S$6+$BO$47,$E$47:$AH$77,$B11+1,FALSE)="","",HLOOKUP(S$6+$BO$47,$E$47:$AH$77,$B11+1,FALSE)*$D11) -> 0.003727257546 | T11: =IF(HLOOKUP(S$6+$BO$47,$AI$47:$BL$77,$B11+1,FALSE)="","",HLOOKUP(S$6+$BO$47,$AI$47:$BL$77,$B11+1,FALSE)) -> -86.86328907 | U11: =IF(HLOOKUP(U$6+$BO$47,$E$47:$AH$77,$B11+1,FALSE)="","",HLOOKUP(U$6+$BO$47,$E$47:$AH$77,$B11+1,FALSE)*$D11) -> 8.613703978e-06 | V11: =IF(HLOOKUP(U$6+$BO$47,$AI$47:$BL$77,$B11+1,FALSE)="","",HLOOKUP(U$6+$BO$47,$AI$47:$BL$77,$B11+1,FALSE)) -> -99.7736537 | W11: =IF(HLOOKUP(W$6+$BO$47,$E$47:$AH$77,$B11+1,FALSE)="","",HLOOKUP(W$6+$BO$47,$E$47:$AH$77,$B11+1,FALSE)*$D11) -> 0.0002565566726 | X11: =IF(HLOOKUP(W$6+$BO$47,$AI$47:$BL$77,$B11+1,FALSE)="","",HLOOKUP(W$6+$BO$47,$AI$47:$BL$77,$B11+1,FALSE)) -> -91.95611226 | Y11: =IF(HLOOKUP(Y$6+$BO$47,$E$47:$AH$77,$B11+1,FALSE)="","",HLOOKUP(Y$6+$BO$47,$E$47:$AH$77,$B11+1,FALSE)*$D11) -> 0.000587455797 | Z11: =IF(HLOOKUP(Y$6+$BO$47,$AI$47:$BL$77,$B11+1,FALSE)="","",HLOOKUP(Y$6+$BO$47,$AI$47:$BL$77,$B11+1,FALSE)) -> -95.03705155 | AA11: =IF(HLOOKUP(AA$6+$BO$47,$E$47:$AH$77,$B11+1,FALSE)="","",HLOOKUP(AA$6+$BO$47,$E$47:$AH$77,$B11+1,FALSE)*$D11) -> 2.375686301e-05 | AB11: =IF(HLOOKUP(AA$6+$BO$47,$AI$47:$BL$77,$B11+1,FALSE)="","",HLOOKUP(AA$6+$BO$47,$AI$47:$BL$77,$B11+1,FALSE)) -> -93.26606996 | AC11: =IF(HLOOKUP(AC$6+$BO$47,$E$47:$AH$77,$B11+1,FALSE)="","",HLOOKUP(AC$6+$BO$47,$E$47:$AH$77,$B11+1,FALSE)*$D11) -> 0.0001424643569 | AD11: =IF(HLOOKUP(AC$6+$BO$47,$AI$47:$BL$77,$B11+1,FALSE)="","",HLOOKUP(AC$6+$BO$47,$AI$47:$BL$77,$B11+1,FALSE)) -> -95.06492567 | AE11: =IF(HLOOKUP(AE$6+$BO$47,$E$47:$AH$77,$B11+1,FALSE)="","",HLOOKUP(AE$6+$BO$47,$E$47:$AH$77,$B11+1,FALSE)*$D11) -> 3.294360692e-05 | AF11: =IF(HLOOKUP(AE$6+$BO$47,$AI$47:$BL$77,$B11+1,FALSE)="","",HLOOKUP(AE$6+$BO$47,$AI$47:$BL$77,$B11+1,FALSE)) -> 87.61165357 | AG11: =IF(HLOOKUP(AG$6+$BO$47,$E$47:$AH$77,$B11+1,FALSE)="","",HLOOKUP(AG$6+$BO$47,$E$47:$AH$77,$B11+1,FALSE)*$D11) -> 2.087825654e-06 | AH11: =IF(HLOOKUP(AG$6+$BO$47,$AI$47:$BL$77,$B11+1,FALSE)="","",HLOOKUP(AG$6+$BO$47,$AI$47:$BL$77,$B11+1,FALSE)) -> 143.6433039 | AI11: =IF(HLOOKUP(AI$6+$BO$47,$E$47:$AH$77,$B11+1,FALSE)="","",HLOOKUP(AI$6+$BO$47,$E$47:$AH$77,$B11+1,FALSE)*$D11) -> 1.790893756e-08 | AJ11: =IF(HLOOKUP(AI$6+$BO$47,$AI$47:$BL$77,$B11+1,FALSE)="","",HLOOKUP(AI$6+$BO$47,$AI$47:$BL$77,$B11+1,FALSE)) -> -125.0547994 | AK11: =IF(HLOOKUP(AK$6+$BO$47,$E$47:$AH$77,$B11+1,FALSE)="","",HLOOKUP(AK$6+$BO$47,$E$47:$AH$77,$B11+1,FALSE)*$D11) -> 1.834201045e-08 | AL11: =IF(HLOOKUP(AK$6+$BO$47,$AI$47:$BL$77,$B11+1,FALSE)="","",HLOOKUP(AK$6+$BO$47,$AI$47:$BL$77,$B11+1,FALSE)) -> -26.88488033 | AM11: =IF(HLOOKUP(AM$6+$BO$47,$E$47:$AH$77,$B11+1,FALSE)="","",HLOOKUP(AM$6+$BO$47,$E$47:$AH$77,$B11+1,FALSE)*$D11) -> 3.162223857e-06 | AN11: =IF(HLOOKUP(AM$6+$BO$47,$AI$47:$BL$77,$B11+1,FALSE)="","",HLOOKUP(AM$6+$BO$47,$AI$47:$BL$77,$B11+1,FALSE)) -> 27.65047982 | AO11: =IF(HLOOKUP(AO$6+$BO$47,$E$47:$AH$77,$B11+1,FALSE)="","",HLOOKUP(AO$6+$BO$47,$E$47:$AH$77,$B11+1,FALSE)*$D11) -> 1.325396444e-07 | AP11: =IF(HLOOKUP(AO$6+$BO$47,$AI$47:$BL$77,$B11+1,FALSE)="","",HLOOKUP(AO$6+$BO$47,$AI$47:$BL$77,$B11+1,FALSE)) -> 116.6428943 | AQ11: =IF(HLOOKUP(AQ$6+$BO$47,$E$47:$AH$77,$B11+1,FALSE)="","",HLOOKUP(AQ$6+$BO$47,$E$47:$AH$77,$B11+1,FALSE)*$D11) -> 2.309494133e-09 | AR11: =IF(HLOOKUP(AQ$6+$BO$47,$AI$47:$BL$77,$B11+1,FALSE)="","",HLOOKUP(AQ$6+$BO$47,$AI$47:$BL$77,$B11+1,FALSE)) -> -90.11390603 | AS11: =IF(HLOOKUP(AS$6+$BO$47,$E$47:$AH$77,$B11+1,FALSE)="","",HLOOKUP(AS$6+$BO$47,$E$47:$AH$77,$B11+1,FALSE)*$D11) ->  | AT11: =IF(HLOOKUP(AS$6+$BO$47,$AI$47:$BL$77,$B11+1,FALSE)="","",HLOOKUP(AS$6+$BO$47,$AI$47:$BL$77,$B11+1,FALSE)) ->  | AU11: =IF(HLOOKUP(AU$6+$BO$47,$E$47:$AH$77,$B11+1,FALSE)="","",HLOOKUP(AU$6+$BO$47,$E$47:$AH$77,$B11+1,FALSE)*$D11) ->  | AV11: =IF(HLOOKUP(AU$6+$BO$47,$AI$47:$BL$77,$B11+1,FALSE)="","",HLOOKUP(AU$6+$BO$47,$AI$47:$BL$77,$B11+1,FALSE)) ->  | AW11: =IF(HLOOKUP(AW$6+$BO$47,$E$47:$AH$77,$B11+1,FALSE)="","",HLOOKUP(AW$6+$BO$47,$E$47:$AH$77,$B11+1,FALSE)*$D11) ->  | AX11: =IF(HLOOKUP(AW$6+$BO$47,$AI$47:$BL$77,$B11+1,FALSE)="","",HLOOKUP(AW$6+$BO$47,$AI$47:$BL$77,$B11+1,FALSE)) ->  | AY11: =IF(HLOOKUP(AY$6+$BO$47,$E$47:$AH$77,$B11+1,FALSE)="","",HLOOKUP(AY$6+$BO$47,$E$47:$AH$77,$B11+1,FALSE)*$D11) ->  | AZ11: =IF(HLOOKUP(AY$6+$BO$47,$AI$47:$BL$77,$B11+1,FALSE)="","",HLOOKUP(AY$6+$BO$47,$AI$47:$BL$77,$B11+1,FALSE)) ->  | BA11: =IF(HLOOKUP(BA$6+$BO$47,$E$47:$AH$77,$B11+1,FALSE)="","",HLOOKUP(BA$6+$BO$47,$E$47:$AH$77,$B11+1,FALSE)*$D11) ->  | BB11: =IF(HLOOKUP(BA$6+$BO$47,$AI$47:$BL$77,$B11+1,FALSE)="","",HLOOKUP(BA$6+$BO$47,$AI$47:$BL$77,$B11+1,FALSE)) ->  | BC11: =IF(HLOOKUP(BC$6+$BO$47,$E$47:$AH$77,$B11+1,FALSE)="","",HLOOKUP(BC$6+$BO$47,$E$47:$AH$77,$B11+1,FALSE)*$D11) ->  | BD11: =IF(HLOOKUP(BC$6+$BO$47,$AI$47:$BL$77,$B11+1,FALSE)="","",HLOOKUP(BC$6+$BO$47,$AI$47:$BL$77,$B11+1,FALSE)) ->  | BE11: =IF(HLOOKUP(BE$6+$BO$47,$E$47:$AH$77,$B11+1,FALSE)="","",HLOOKUP(BE$6+$BO$47,$E$47:$AH$77,$B11+1,FALSE)*$D11) ->  | BF11: =IF(HLOOKUP(BE$6+$BO$47,$AI$47:$BL$77,$B11+1,FALSE)="","",HLOOKUP(BE$6+$BO$47,$AI$47:$BL$77,$B11+1,FALSE)) ->  | BG11: =IF(HLOOKUP(BG$6+$BO$47,$E$47:$AH$77,$B11+1,FALSE)="","",HLOOKUP(BG$6+$BO$47,$E$47:$AH$77,$B11+1,FALSE)*$D11) ->  | BH11: =IF(HLOOKUP(BG$6+$BO$47,$AI$47:$BL$77,$B11+1,FALSE)="","",HLOOKUP(BG$6+$BO$47,$AI$47:$BL$77,$B11+1,FALSE)) ->  | BI11: =IF(HLOOKUP(BI$6+$BO$47,$E$47:$AH$77,$B11+1,FALSE)="","",HLOOKUP(BI$6+$BO$47,$E$47:$AH$77,$B11+1,FALSE)*$D11) ->  | BJ11: =IF(HLOOKUP(BI$6+$BO$47,$AI$47:$BL$77,$B11+1,FALSE)="","",HLOOKUP(BI$6+$BO$47,$AI$47:$BL$77,$B11+1,FALSE)) ->  | BK11: =IF(HLOOKUP(BK$6+$BO$47,$E$47:$AH$77,$B11+1,FALSE)="","",HLOOKUP(BK$6+$BO$47,$E$47:$AH$77,$B11+1,FALSE)*$D11) ->  | BL11: =IF(HLOOKUP(BK$6+$BO$47,$AI$47:$BL$77,$B11+1,FALSE)="","",HLOOKUP(BK$6+$BO$47,$AI$47:$BL$77,$B11+1,FALSE)) ->  | BM11: =MAX(E11,G11,I11,K11,M11,O11,Q11,S11,U11,W11,Y11,AA11,AC11,AE11,AG11,AI11,AK11,AM11,AO11,AQ11,AS11,AU11,AW11,AY11,BA11,BC11,BE11,BG11,BI11,BK11) -> 0.9988164345 | BN11: =MATCH($BM11,E11:BK11,0)+4 -> 5 | BO11: =INDIRECT(SUBSTITUTE(ADDRESS(1,$BN11,4),"1","7")) -> 0.00774681223
B12: =B11+1 -> 2 | C12: ED Platform horizontal sway translation DOF (internal DOF index = DOF_Sw), m | D12: 1 | E12: 2.992057182e-06 | F12: 166.897825 | G12: 0.9987951546 | H12: 0 | I12: 0.2857078272 | J12: -167.9722245 | K12: 0.03971759879 | L12: -144.8566674 | M12: 0.6943652237 | N12: 0 | O12: 2.935939009e-07 | P12: 5.897227015 | Q12: 0.007321484623 | R12: 92.05491978 | S12: 0.0006522508772 | T12: -106.5390457 | U12: 4.578592571e-05 | V12: 73.87198584 | W12: 4.096193409e-05 | X12: -97.21420498 | Y12: 5.000514634e-05 | Z12: 85.88960949 | AA12: 0.000194838342 | AB12: 92.07178993 | AC12: 1.976764598e-05 | AD12: 87.07352129 | AE12: 0.0005863682241 | AF12: 87.35956345 | AG12: 8.367295284e-09 | AH12: 106.7888379 | AI12: 2.805822718e-07 | AJ12: -45.81160748 | AK12: 7.479577995e-08 | AL12: -52.53701242 | AM12: 2.654044925e-08 | AN12: -56.96566521 | AO12: 2.03160598e-05 | AP12: 41.13079881 | AQ12: 1.248106502e-07 | AR12: -100.4607581 | BM12: 0.9987951546 | BN12: 7 | BO12: =INDIRECT(SUBSTITUTE(ADDRESS(1,$BN12,4),"1","7")) -> 0.007817762466
B13: 3 | C13: ED Platform vertical heave translation DOF (internal DOF index = DOF_Hv), m | D13: 1 | E13: 0.0001337639249 | F13: 1.837364772 | G13: 1.130577648e-07 | H13: 179.6164181 | I13: 8.8675022e-06 | J13: 177.3324358 | K13: 0.02138759424 | L13: -13.34031738 | M13: 0.001846952829 | N13: 21.39473027 | O13: 0.9529116909 | P13: 180 | Q13: 4.523698462e-05 | R13: -101.5920581 | S13: 0.000145338169 | T13: -81.40847283 | U13: 3.750180296e-06 | V13: -90.34009023 | W13: 8.724174715e-06 | X13: 77.13772656 | Y13: 3.373669026e-05 | Z13: -92.23904641 | AA13: 2.786966602e-06 | AB13: -97.36807265 | AC13: 4.046790391e-05 | AD13: 88.16886858 | AE13: 1.766708153e-06 | AF13: 90.61439193 | AG13: 4.040536455e-07 | AH13: -30.64862823 | AI13: 6.704404919e-09 | AJ13: -87.15923947 | AK13: 2.293821045e-08 | AL13: -105.6957477 | AM13: 6.706801299e-07 | AN13: -149.1492414 | AO13: 4.444904796e-08 | AP13: -81.53838337 | AQ13: 1.968816e-09 | AR13: -84.28957702 | BM13: 0.9529116909 | BN13: 15 | BO13: =INDIRECT(SUBSTITUTE(ADDRESS(1,$BN13,4),"1","7")) -> 0.05057703655
B14: 4 | C14: ED Platform roll tilt rotation DOF (internal DOF index = DOF_R), rad | D14: 1 | E14: 6.835701476e-08 | F14: -175.0292369 | G14: 0.0005437364551 | H14: -1.096735381 | I14: 0.02660868189 | J14: 15.96336316 | K14: 0.006818707211 | L14: 35.46607571 | M14: 0.1192464219 | N14: -179.6903142 | O14: 7.392298751e-08 | P14: -175.5110628 | Q14: 0.0004364408279 | R14: -87.85733161 | S14: 3.882027951e-05 | T14: 73.52932505 | U14: 2.630602771e-06 | V14: -105.4311991 | W14: 2.177614323e-06 | X14: 82.48773939 | Y14: 2.734150681e-06 | Z14: -94.38515448 | AA14: 9.707731151e-06 | AB14: -87.85360706 | AC14: 1.016557518e-06 | AD14: -92.98541756 | AE14: 3.054006906e-05 | AF14: -92.80427 | AG14: 3.582145289e-10 | AH14: -74.20400411 | AI14: 1.192943778e-08 | AJ14: 132.8636068 | AK14: 3.150679237e-09 | AL14: 126.3717448 | AM14: 1.111830048e-09 | AN14: 122.5050589 | AO14: 8.442314536e-07 | AP14: -138.9089474 | AQ14: 4.49986345e-09 | AR14: 79.0933388 | BM14: 0.1192464219 | BN14: 13 | BO14: =INDIRECT(SUBSTITUTE(ADDRESS(1,$BN14,4),"1","7")) -> 0.03617386749
B15: 5 | C15: ED Platform pitch tilt rotation DOF (internal DOF index = DOF_P), rad | D15: 1 | E15: 0.0005396883734 | F15: 178.7907132 | G15: 8.586675481e-08 | H15: -3.156974271 | I15: 0.0002060439327 | J15: -176.84768 | K15: 0.09907561924 | L15: 0.07473505183 | M15: 0.008323321817 | N15: 35.26561867 | O15: 0.0002818045265 | P15: 3.34635686 | Q15: 7.127026853e-05 | R15: -106.7717979 | S15: 0.0002209755507 | T15: -86.78480762 | U15: 4.256726411e-07 | V15: -99.83336558 | W15: 1.309744469e-05 | X15: -91.96821883 | Y15: 3.212670073e-05 | Z15: -95.22083246 | AA15: 1.206927437e-06 | AB15: -93.55135582 | AC15: 7.547686728e-06 | AD15: -95.21822799 | AE15: 1.761865451e-06 | AF15: 87.39564954 | AG15: 8.827729487e-08 | AH15: 142.9637785 | AI15: 7.556369581e-10 | AJ15: -126.1006134 | AK15: 7.854133199e-10 | AL15: -32.58546841 | AM15: 1.321259334e-07 | AN15: 27.23673663 | AO15: 5.496569752e-09 | AP15: 116.8385292 | AQ15: 8.696578444e-11 | AR15: -90.18436848 | BM15: 0.09907561924 | BN15: 11 | BO15: =INDIRECT(SUBSTITUTE(ADDRESS(1,$BN15,4),"1","7")) -> 0.03614023808
B16: 6 | C16: ED Platform yaw rotation DOF (internal DOF index = DOF_Y), rad | D16: 1 | E16: 8.592866133e-07 | F16: -29.47049992 | G16: 2.345092928e-05 | H16: -44.8572707 | I16: 0.9300855832 | J16: 0 | K16: 0.0002832092245 | L16: -133.3071977 | M16: 0.005125422035 | N16: 9.883435564 | O16: 1.090089496e-08 | P16: 12.23544067 | Q16: 1.003609743e-05 | R16: -86.82653001 | S16: 9.200822557e-07 | T16: 74.83298509 | U16: 3.908030894e-06 | V16: 89.51014856 | W16: 1.538536086e-07 | X16: -92.70490737 | Y16: 1.337804836e-07 | Z16: -95.49925222 | AA16: 9.387169623e-07 | AB16: -88.03642365 | AC16: 2.15522708e-07 | AD16: 87.36608096 | AE16: 8.849043791e-07 | AF16: -92.88524392 | AG16: 1.079761219e-10 | AH16: -111.5391026 | AI16: 4.692328427e-09 | AJ16: -89.35448364 | AK16: 5.032029621e-11 | AL16: 104.4615365 | AM16: 6.59338167e-11 | AN16: 72.03729485 | AO16: 1.418911647e-08 | AP16: 30.34102894 | AQ16: 1.179589836e-08 | AR16: 77.72046465 | BM16: 0.9300855832 | BN16: 9 | BO16: =INDIRECT(SUBSTITUTE(ADDRESS(1,$BN16,4),"1","7")) -> 0.01194648387
B17: 7 | C17: ED 1st tower fore-aft bending mode DOF (internal DOF index = DOF_TFA1), m | D17: 0.006920654694 | E17: 5.744644355e-06 | F17: 175.6529561 | G17: 1.611173047e-09 | H17: -1.715484384 | I17: 3.427968501e-06 | J17: -172.9776779 | K17: 0.003256446158 | L17: 1.421018714 | M17: 0.0002737989733 | N17: 36.57989759 | O17: 4.602199645e-06 | P17: 171.2314797 | Q17: 0.0001358602732 | R17: 73.07571495 | S17: 0.0004255000974 | T17: 93.1742291 | U17: 2.580237583e-07 | V17: 78.85345457 | W17: 1.50568349e-05 | X17: 89.2941864 | Y17: 8.193792125e-05 | Z17: 85.49874836 | AA17: 1.908884655e-06 | AB17: 84.15644574 | AC17: 1.900066168e-05 | AD17: 85.57094783 | AE17: 5.399482274e-06 | AF17: -92.24505143 | AG17: 7.037022002e-08 | AH17: -52.16844774 | AI17: 4.651209942e-10 | AJ17: 19.71669465 | AK17: 2.69849377e-08 | AL17: 84.39999477 | AM17: 7.743569602e-08 | AN17: -165.9751613 | AO17: 1.194314986e-08 | AP17: 42.80600047 | AQ17: 1.288756449e-09 | AR17: -96.93433536 | BM17: 0.003256446158 | BN17: 11 | BO17: =INDIRECT(SUBSTITUTE(ADDRESS(1,$BN17,4),"1","7")) -> 0.03614023808
B18: 8 | C18: ED 1st tower side-to-side bending mode DOF (internal DOF index = DOF_TSS1), m | D18: 0.006920654694 | E18: 9.050986852e-10 | F18: -167.0225072 | G18: 5.730041657e-06 | H18: -3.83607214 | I18: 0.0009473497092 | J18: 22.44783719 | K18: 0.000224449826 | L18: 36.59724948 | M18: 0.003928030072 | N18: -178.5898171 | O18: 3.9194626e-09 | P18: -175.093586 | Q18: 0.0008465506905 | R18: 91.98748068 | S18: 7.596301411e-05 | T18: -106.5198666 | U18: 7.707262099e-06 | V18: 80.00784252 | W18: 3.924233775e-06 | X18: -98.17610649 | Y18: 6.958299732e-06 | Z18: 85.75003438 | AA18: 1.098072828e-05 | AB18: 95.06394192 | AC18: 1.918726071e-06 | AD18: 88.18932204 | AE18: 7.415438969e-05 | AF18: 87.48101625 | AG18: 2.094066229e-09 | AH18: 89.67565247 | AI18: 5.14657235e-08 | AJ18: -74.92886737 | AK18: 1.948487469e-09 | AL18: -79.91355873 | AM18: 2.446886297e-09 | AN18: -84.09056304 | AO18: 5.541489538e-07 | AP18: 36.56759015 | AQ18: 4.221139576e-07 | AR18: 79.95222826 | BM18: 0.003928030072 | BN18: 13 | BO18: =INDIRECT(SUBSTITUTE(ADDRESS(1,$BN18,4),"1","7")) -> 0.03617386749
B19: 9 | C19: ED 2nd tower fore-aft bending mode DOF (internal DOF index = DOF_TFA2), m | D19: 0.006920654694 | E19: 1.574965465e-08 | F19: 174.3696389 | G19: 4.547065066e-12 | H19: -1.764121015 | I19: 1.080604039e-08 | J19: 177.6411355 | K19: 6.600398106e-06 | L19: -1.297757007 | M19: 5.5505122e-07 | N19: 33.85872626 | O19: 3.691789851e-07 | P19: 0.6734995025 | Q19: 5.663273962e-07 | R19: -106.9240197 | S19: 1.722541452e-06 | T19: -87.27074327 | U19: 3.016266255e-08 | V19: 83.76340399 | W19: 7.259376535e-07 | X19: 91.47649107 | Y19: 6.743839889e-07 | Z19: 93.10663735 | AA19: 8.832526324e-08 | AB19: 92.33742389 | AC19: 3.345282164e-07 | AD19: 90.30304562 | AE19: 6.85327762e-08 | AF19: -85.53528316 | AG19: 9.691263947e-08 | AH19: -31.12042521 | AI19: 8.432442706e-10 | AJ19: 62.61373315 | AK19: 1.05757111e-09 | AL19: -148.0171613 | AM19: 1.592575519e-07 | AN19: -149.3281027 | AO19: 7.110783265e-09 | AP19: -65.94761607 | AQ19: 2.295120168e-10 | AR19: 88.96552255 | BM19: 6.600398106e-06 | BN19: 11 | BO19: =INDIRECT(SUBSTITUTE(ADDRESS(1,$BN19,4),"1","7")) -> 0.03614023808
B20: 10 | C20: ED 2nd tower side-to-side bending mode DOF (internal DOF index = DOF_TSS2), m | D20: 0.006920654694 | E20: 3.099721736e-12 | F20: -173.6702988 | G20: 1.56789846e-08 | H20: -3.999317365 | I20: 1.775351328e-06 | J20: 21.09970375 | K20: 4.382450363e-07 | L20: 35.98500874 | M20: 7.671809911e-06 | N20: -179.2085643 | O20: 1.580003561e-11 | P20: 178.4111654 | Q20: 3.940738709e-06 | R20: -88.19300421 | S20: 3.419652421e-07 | T20: 72.86574543 | U20: 1.817211065e-08 | V20: -55.75694445 | W20: 7.480542537e-08 | X20: -89.53965503 | Y20: 5.822288886e-08 | Z20: 96.25166657 | AA20: 8.502801974e-07 | AB20: 94.56146549 | AC20: 6.610119782e-08 | AD20: 90.85120619 | AE20: 1.822013742e-06 | AF20: 92.20868557 | AG20: 3.353584283e-10 | AH20: 115.5828903 | AI20: 1.207822702e-08 | AJ20: -34.41602912 | AK20: 3.583445733e-09 | AL20: -44.52947638 | AM20: 1.288354073e-09 | AN20: -52.48826531 | AO20: 1.053769079e-06 | AP20: 41.60641443 | AQ20: 2.476222053e-08 | AR20: -99.71035257 | BM20: 7.671809911e-06 | BN20: 13 | BO20: =INDIRECT(SUBSTITUTE(ADDRESS(1,$BN20,4),"1","7")) -> 0.03617386749
B21: 11 | C21: ED Nacelle yaw DOF (internal DOF index = DOF_Yaw), rad | D21: 1 | E21: 7.90408799e-11 | F21: -148.6231997 | G21: 4.998218538e-07 | H21: -3.78103908 | I21: 0.0001045847455 | J21: 24.06667623 | K21: 1.962832544e-05 | L21: 36.75430697 | M21: 0.0003431836492 | N21: -178.4600281 | O21: 4.175056886e-10 | P21: -0.5526985972 | Q21: 7.174715912e-05 | R21: 93.01295835 | S21: 6.656858281e-06 | T21: -105.1755969 | U21: 4.414934129e-05 | V21: -88.01059271 | W21: 1.753138656e-06 | X21: 89.96800038 | Y21: 1.797510446e-06 | Z21: 86.98319358 | AA21: 1.493776751e-05 | AB21: 94.60344402 | AC21: 3.41528577e-06 | AD21: -89.95846277 | AE21: 1.630936522e-05 | AF21: 89.65143604 | AG21: 2.337024877e-08 | AH21: 77.4767953 | AI21: 1.014525499e-06 | AJ21: 103.627658 | AK21: 1.221959168e-08 | AL21: -59.58617064 | AM21: 1.681618678e-08 | AN21: -101.4971324 | AO21: 3.46410299e-06 | AP21: -149.6262806 | AQ21: 1.020082644e-05 | AR21: -100.0823149 | BM21: 0.0003431836492 | BN21: 13 | BO21: =INDIRECT(SUBSTITUTE(ADDRESS(1,$BN21,4),"1","7")) -> 0.03617386749
B22: 12 | C22: ED 1st flapwise bending-mode DOF of blade 1 (internal DOF index = DOF_BF(1,1)), m | D22: 0.008547008547 | E22: 8.554283116e-06 | F22: 175.2942483 | G22: 2.961978981e-08 | H22: 0.3891608234 | I22: 1.287373042e-05 | J22: -9.126093911 | K22: 0.004907311845 | L22: 0.7994726742 | M22: 0.0003138713133 | N22: 48.56062106 | O22: 4.407592026e-05 | P22: 1.647223425 | Q22: 0.0008791426262 | R22: 79.8956224 | S22: 0.001151297976 | T22: 89.76854718 | U22: 7.931518215e-05 | V22: 82.95409491 | W22: 0.001478297543 | X22: 86.2537973 | Y22: 0.001195142245 | Z22: -90.86140818 | AA22: 6.526604192e-05 | AB22: -90.49062977 | AC22: 0.0001099307028 | AD22: -82.41150065 | AE22: 0.0001506009105 | AF22: -92.34658293 | AG22: 8.023355568e-06 | AH22: 70.02247527 | AI22: 2.389517169e-06 | AJ22: -34.10117124 | AK22: 0.0003804456773 | AL22: -97.50794075 | AM22: 6.936437363e-06 | AN22: -95.45682094 | AO22: 4.276278884e-05 | AP22: -75.66639128 | AQ22: 8.382756138e-07 | AR22: 97.4679615 | BM22: 0.004907311845 | BN22: 11 | BO22: =INDIRECT(SUBSTITUTE(ADDRESS(1,$BN22,4),"1","7")) -> 0.03614023808
B23: 13 | C23: ED 1st flapwise bending-mode DOF of blade 2 (internal DOF index = DOF_BF(2,1)), m | D23: 0.008547008547 | E23: 4.224423372e-07 | F23: -178.2951879 | G23: 3.832597254e-07 | H23: -3.87132187 | I23: 7.782150396e-05 | J23: 31.73248885 | K23: 0.001214538156 | L23: 3.677080085 | M23: 0.0001990035363 | N23: 163.3424915 | O23: 1.158786538e-05 | P23: 178.3397077 | Q23: 0.001039484682 | R23: 72.9128724 | S23: 0.002624072802 | T23: 89.49779248 | U23: 0.0001147452142 | V23: -94.48908321 | W23: 0.001808404018 | X23: -91.68880699 | Y23: 0.00182494777 | Z23: -91.60613977 | AA23: 0.0001626403421 | AB23: 88.04709294 | AC23: 0.0001352086401 | AD23: -100.7168844 | AE23: 0.0001417815763 | AF23: -89.69905511 | AG23: 0.0003861368529 | AH23: 84.38754158 | AI23: 1.384964752e-05 | AJ23: -117.9103028 | AK23: 1.207660189e-05 | AL23: 64.40657795 | AM23: 0.0003626190095 | AN23: -94.37759691 | AO23: 2.465431759e-05 | AP23: -60.54276057 | AQ23: 2.268266281e-06 | AR23: -90.22190939 | BM23: 0.002624072802 | BN23: 19 | BO23: =INDIRECT(SUBSTITUTE(ADDRESS(1,$BN23,4),"1","7")) -> 0.428484042
B24: 14 | C24: ED 1st flapwise bending-mode DOF of blade 3 (internal DOF index = DOF_BF(3,1)), m | D24: 0.008547008547 | E24: 3.997540705e-08 | F24: -1.307577401 | G24: 4.653638324e-07 | H24: 0.5042246127 | I24: 0.00114581692 | J24: 26.86759372 | K24: 2.090051605e-05 | L24: 134.8511178 | M24: 0.0004574996489 | N24: -172.4069632 | O24: 1.067588494e-05 | P24: 0.2183665926 | Q24: 0.0007938138854 | R24: 92.63569889 | S24: 0.0001282152735 | T24: -100.0644001 | U24: 0.002367237048 | V24: -91.63278194 | W24: 0.0001745987881 | X24: 83.25513265 | Y24: 4.059634433e-06 | Z24: -46.03136277 | AA24: 8.754404608e-05 | AB24: -104.9379515 | AC24: 0.0002025066264 | AD24: 89.85423052 | AE24: 0.0001181911109 | AF24: -93.95334665 | AG24: 1.497601505e-05 | AH24: 73.34735055 | AI24: 0.0003856033014 | AJ24: 82.90335699 | AK24: 5.497791115e-06 | AL24: -25.81232599 | AM24: 1.133943898e-05 | AN24: -96.08020702 | AO24: 0.0003471465077 | AP24: 87.47885702 | AQ24: 0.0002029337116 | AR24: 88.13478082 | BM24: 0.002367237048 | BN24: 21 | BO24: =INDIRECT(SUBSTITUTE(ADDRESS(1,$BN24,4),"1","7")) -> 0.5502457647
B25: 15 | C25: ED 1st edgewise bending-mode DOF of blade 1 (internal DOF index = DOF_BE(1,1)), m | D25: 0.008547008547 | E25: 5.615641206e-07 | F25: 175.3011756 | G25: 1.376074061e-07 | H25: -179.5426152 | I25: 9.077692688e-05 | J25: 174.995661 | K25: 0.0002935675395 | L25: -3.539674141 | M25: 0.000662692229 | N25: 4.178421152 | O25: 2.894096629e-06 | P25: 1.723643381 | Q25: 0.002054590721 | R25: -90.41604427 | S25: 0.0002639136187 | T25: 76.45574129 | U25: 8.296902841e-05 | V25: -83.78167419 | W25: 6.457589116e-05 | X25: 86.3842315 | Y25: 5.400627384e-05 | Z25: -92.70459864 | AA25: 0.000711114198 | AB25: 91.1569495 | AC25: 3.65219894e-05 | AD25: 84.61608646 | AE25: 0.001454964747 | AF25: 88.38096501 | AG25: 1.630110231e-08 | AH25: -16.53092639 | AI25: 3.975108296e-07 | AJ25: -174.1899569 | AK25: 1.547292835e-07 | AL25: -163.215431 | AM25: 5.623584169e-08 | AN25: 152.2235157 | AO25: 4.878250063e-05 | AP25: -137.2494159 | AQ25: 4.547479196e-06 | AR25: 80.42605896 | BM25: 0.002054590721 | BN25: 17 | BO25: =INDIRECT(SUBSTITUTE(ADDRESS(1,$BN25,4),"1","7")) -> 0.4254473667
B26: 16 | C26: ED 1st edgewise bending-mode DOF of blade 2 (internal DOF index = DOF_BE(2,1)), m | D26: 0.008547008547 | E26: 2.701517442e-08 | F26: -173.3731366 | G26: 4.173354484e-06 | H26: 176.1220423 | I26: 0.0007792988078 | J26: -151.7872157 | K26: 0.000108860576 | L26: -122.4389331 | M26: 0.002908940438 | N26: 1.30888861 | O26: 9.061744425e-07 | P26: 178.3251525 | Q26: 0.001043851917 | R26: -89.7891355 | S26: 0.000256134596 | T26: 83.17005019 | U26: 2.695013225e-05 | V26: -146.8687057 | W26: 3.153348033e-05 | X26: -80.64575664 | Y26: 1.79562323e-05 | Z26: -64.11970179 | AA26: 0.001892894612 | AB26: -91.68286397 | AC26: 0.0001166777687 | AD26: -97.65853541 | AE26: 0.001237067977 | AF26: 91.20336483 | AG26: 4.952319236e-07 | AH26: -11.28118377 | AI26: 2.343783509e-07 | AJ26: 109.4947444 | AK26: 1.509572971e-08 | AL26: -130.4539391 | AM26: 9.933643774e-07 | AN26: -141.0108517 | AO26: 3.172648082e-06 | AP26: -138.5731641 | AQ26: 2.084481677e-06 | AR26: -99.69359081 | BM26: 0.002908940438 | BN26: 13 | BO26: =INDIRECT(SUBSTITUTE(ADDRESS(1,$BN26,4),"1","7")) -> 0.03617386749
B27: 17 | C27: ED 1st edgewise bending-mode DOF of blade 3 (internal DOF index = DOF_BE(3,1)), m | D27: 0.008547008547 | E27: 4.477325527e-07 | F27: -175.2609422 | G27: 2.716423783e-08 | H27: 0.1629113588 | I27: 6.894064577e-05 | J27: 21.88316661 | K27: 0.0003608902171 | L27: 11.38963507 | M27: 1.932010364e-05 | N27: 107.0025965 | O27: 0.0001197876937 | P27: -179.778522 | Q27: 0.0001309907756 | R27: 78.73560244 | S27: 0.0002710757054 | T27: 91.04790264 | U27: 7.57553026e-05 | V27: -91.71992152 | W27: 3.456569054e-05 | X27: 162.8569391 | Y27: 0.0003170951945 | Z27: 84.47736853 | AA27: 0.000134318334 | AB27: 84.7382212 | AC27: 0.001997554615 | AD27: -91.70314199 | AE27: 9.842177793e-06 | AF27: -82.76123415 | AG27: 9.876267655e-07 | AH27: -29.35574041 | AI27: 8.265204828e-08 | AJ27: -22.99858007 | AK27: 4.038352805e-08 | AL27: -106.4320279 | AM27: 1.639045208e-06 | AN27: -148.0138859 | AO27: 1.311218836e-06 | AP27: 37.82161804 | AQ27: 1.962217703e-06 | AR27: 80.6262661 | BM27: 0.001997554615 | BN27: 29 | BO27: =INDIRECT(SUBSTITUTE(ADDRESS(1,$BN27,4),"1","7")) -> 0.653546827
B28: 18 | C28: ED 2nd flapwise bending-mode DOF of blade 1 (internal DOF index = DOF_BF(1,2)), m | D28: 0.008547008547 | E28: 2.679788746e-06 | F28: -4.704902695 | G28: 4.336821476e-09 | H28: -179.742384 | I28: 8.417281714e-07 | J28: 154.5593644 | K28: 0.001530963012 | L28: -179.2342076 | M28: 0.0001150444699 | N28: -139.5798016 | O28: 1.377231103e-05 | P28: -178.3953243 | Q28: 0.0001175856245 | R28: -98.66753257 | S28: 0.0001591349724 | T28: -87.39885477 | U28: 1.260000963e-06 | V28: -41.20103755 | W28: 5.271107668e-05 | X28: 85.56621305 | Y28: 0.0001450128613 | Z28: -93.54191593 | AA28: 3.367001586e-05 | AB28: 91.31664397 | AC28: 3.015712828e-05 | AD28: -91.54096305 | AE28: 8.642926005e-05 | AF28: 87.46087951 | AG28: 8.462244527e-06 | AH28: -109.5666464 | AI28: 2.491984109e-06 | AJ28: 145.0166296 | AK28: 0.0004034558212 | AL28: 82.483388 | AM28: 7.214377602e-06 | AN28: 85.29168529 | AO28: 4.905501263e-05 | AP28: 97.11488145 | AQ28: 1.529520238e-06 | AR28: -89.78646787 | BM28: 0.001530963012 | BN28: 11 | BO28: =INDIRECT(SUBSTITUTE(ADDRESS(1,$BN28,4),"1","7")) -> 0.03614023808
B29: 19 | C29: ED 2nd flapwise bending-mode DOF of blade 2 (internal DOF index = DOF_BF(2,2)), m | D29: 0.008547008547 | E29: 1.005967949e-07 | F29: 3.327984941 | G29: 4.155149846e-07 | H29: -3.903569414 | I29: 7.137813572e-05 | J29: 21.99896584 | K29: 0.0003193501805 | L29: -178.1515274 | M29: 0.0003090888083 | N29: -175.6553434 | O29: 3.93350416e-06 | P29: -1.462851774 | Q29: 6.608185498e-05 | R29: -119.5868032 | S29: 0.0003299905389 | T29: -88.08279265 | U29: 3.663401365e-06 | V29: -110.3471772 | W29: 6.768554262e-05 | X29: -91.76178899 | Y29: 0.0002069300136 | Z29: -94.30680505 | AA29: 9.559465842e-05 | AB29: -92.7885458 | AC29: 4.62282498e-05 | AD29: -98.04003871 | AE29: 0.000100053085 | AF29: 88.92073622 | AG29: 0.0004117925114 | AH29: -94.94934715 | AI29: 1.47143106e-05 | AJ29: 61.98889917 | AK29: 1.298307201e-05 | AL29: -115.544283 | AM29: 0.0003795924691 | AN29: 86.6812861 | AO29: 2.583275244e-05 | AP29: 118.5963606 | AQ29: 2.741087839e-06 | AR29: 88.65427565 | BM29: 0.0004117925114 | BN29: 33 | BO29: =INDIRECT(SUBSTITUTE(ADDRESS(1,$BN29,4),"1","7")) -> 2.40209992
B30: 20 | C30: ED 2nd flapwise bending-mode DOF of blade 3 (internal DOF index = DOF_BF(3,2)), m | D30: 0.008547008547 | E30: 4.512698727e-08 | F30: 9.142114107 | G30: 1.526532626e-07 | H30: -179.9699469 | I30: 0.0003374644188 | J30: -153.2203441 | K30: 4.05595296e-05 | L30: -157.674681 | M30: 0.0001422413535 | N30: 6.120909067 | O30: 1.210511135e-05 | P30: 0.1411380046 | Q30: 0.0001132397528 | R30: -86.84897421 | S30: 4.844021327e-06 | T30: 47.64636991 | U30: 5.519287288e-05 | V30: -93.91895249 | W30: 5.851798628e-06 | X30: 100.7783815 | Y30: 6.367625485e-06 | Z30: 79.32553585 | AA30: 1.140187585e-05 | AB30: -90.45421228 | AC30: 9.785511675e-05 | AD30: -92.65007815 | AE30: 4.554003624e-05 | AF30: -93.17762144 | AG30: 1.590029053e-05 | AH30: -107.1648628 | AI30: 0.0004108901282 | AJ30: -96.99777708 | AK30: 5.833445803e-06 | AL30: 154.0521212 | AM30: 1.220950845e-05 | AN30: 82.97718091 | AO30: 0.0003606279909 | AP30: -90.99980307 | AQ30: 0.0001967984976 | AR30: -91.12426296 | BM30: 0.0004108901282 | BN30: 35 | BO30: =INDIRECT(SUBSTITUTE(ADDRESS(1,$BN30,4),"1","7")) -> 2.407209019
B31: 21 | D31: =1 -> 1 | BM31: 0 | BO31: =INDIRECT(SUBSTITUTE(ADDRESS(1,$BN31,4),"1","7")) -> 
B32: 22 | D32: =1 -> 1 | BM32: 0 | BO32: =INDIRECT(SUBSTITUTE(ADDRESS(1,$BN32,4),"1","7")) -> 
B33: 23 | D33: =1 -> 1 | BM33: 0 | BO33: =INDIRECT(SUBSTITUTE(ADDRESS(1,$BN33,4),"1","7")) -> 
B34: 24 | D34: =1 -> 1 | BM34: 0 | BO34: =INDIRECT(SUBSTITUTE(ADDRESS(1,$BN34,4),"1","7")) -> 
B35: 25 | D35: =1 -> 1 | BM35: 0 | BO35: =INDIRECT(SUBSTITUTE(ADDRESS(1,$BN35,4),"1","7")) -> 
B36: 26 | D36: =1 -> 1 | BM36: 0 | BO36: =INDIRECT(SUBSTITUTE(ADDRESS(1,$BN36,4),"1","7")) -> 
B37: 27 | D37: =1 -> 1 | BM37: 0 | BO37: =INDIRECT(SUBSTITUTE(ADDRESS(1,$BN37,4),"1","7")) -> 
B38: 28 | D38: =1 -> 1 | BM38: 0 | BO38: =INDIRECT(SUBSTITUTE(ADDRESS(1,$BN38,4),"1","7")) -> 
B39: 29 | D39: =1 -> 1 | BM39: 0 | BO39: =INDIRECT(SUBSTITUTE(ADDRESS(1,$BN39,4),"1","7")) -> 
B40: 30 | D40: =1 -> 1 | BM40: 0 | BO40: =INDIRECT(SUBSTITUTE(ADDRESS(1,$BN40,4),"1","7")) -> 
E41: =MAX(E11:E40) -> 0.9988164345 | G41: =MAX(G11:G40) -> 0.9987951546 | I41: =MAX(I11:I40) -> 0.9300855832 | K41: =MAX(K11:K40) -> 0.5745651917 | M41: =MAX(M11:M40) -> 0.6943652237 | O41: =MAX(O11:O40) -> 0.9529116909 | Q41: =MAX(Q11:Q40) -> 0.007321484623 | S41: =MAX(S11:S40) -> 0.003727257546 | U41: =MAX(U11:U40) -> 0.002367237048 | W41: =MAX(W11:W40) -> 0.001808404018 | Y41: =MAX(Y11:Y40) -> 0.00182494777 | AA41: =MAX(AA11:AA40) -> 0.001892894612 | AC41: =MAX(AC11:AC40) -> 0.001997554615 | AE41: =MAX(AE11:AE40) -> 0.001454964747 | AG41: =MAX(AG11:AG40) -> 0.0004117925114 | AI41: =MAX(AI11:AI40) -> 0.0004108901282 | AK41: =MAX(AK11:AK40) -> 0.0004034558212 | AM41: =MAX(AM11:AM40) -> 0.0003795924691 | AO41: =MAX(AO11:AO40) -> 0.0003606279909 | AQ41: =MAX(AQ11:AQ40) -> 0.0002029337116 | AS41: =MAX(AS11:AS40) -> 0 | AU41: =MAX(AU11:AU40) -> 0 | AW41: =MAX(AW11:AW40) -> 0 | AY41: =MAX(AY11:AY40) -> 0 | BA41: =MAX(BA11:BA40) -> 0 | BC41: =MAX(BC11:BC40) -> 0 | BE41: =MAX(BE11:BE40) -> 0 | BG41: =MAX(BG11:BG40) -> 0 | BI41: =MAX(BI11:BI40) -> 0 | BK41: =MAX(BK11:BK40) -> 0
C42: Green Background = Maximum value of the mode shape magnitude within a row
C43: Red Bold Text = Maximum value of the mode shape magnitude within a column
E47: =D48 -> 56 | F47: =D49 -> 54 | G47: =D50 -> 55 | H47: =D51 -> 51 | I47: =D52 -> 53 | J47: =D53 -> 52 | K47: =D54 -> 50 | L47: =D55 -> 49 | M47: =D56 -> 48 | N47: =D57 -> 47 | O47: =D58 -> 44 | P47: =D59 -> 43 | Q47: =D60 -> 46 | R47: =D61 -> 45 | S47: =D62 -> 42 | T47: =D63 -> 40 | U47: =D64 -> 41 | V47: =D65 -> 37 | W47: =D66 -> 39 | X47: =D67 -> 38 | Y47: =D68 -> 57 | Z47: =D69 -> 58 | AA47: =D70 -> 59 | AB47: =D71 -> 60 | AC47: =D72 -> 61 | AD47: =D73 -> 62 | AE47: =D74 -> 63 | AF47: =D75 -> 64 | AG47: =D76 -> 65 | AH47: =D77 -> 66 | AI47: =E47 -> 56 | AJ47: 54 | AK47: 55 | AL47: 51 | AM47: 53 | AN47: 52 | AO47: 50 | AP47: 49 | AQ47: 48 | AR47: 47 | AS47: 44 | AT47: 43 | AU47: 46 | AV47: 45 | AW47: 42 | AX47: 40 | AY47: 41 | AZ47: 37 | BA47: 39 | BB47: 38 | BC47: 57 | BD47: 58 | BE47: 59 | BF47: 60 | BG47: 61 | BH47: 62 | BI47: 63 | BJ47: 64 | BK47: 65 | BL47: 66 | BO47: =CT77+1 -> 36 | BP47: =BO47+1 -> 37 | BQ47: 38 | BR47: 39 | BS47: 40 | BT47: 41 | BU47: 42 | BV47: 43 | BW47: 44 | BX47: 45 | BY47: 46 | BZ47: 47 | CA47: 48 | CB47: 49 | CC47: 50 | CD47: 51 | CE47: 52 | CF47: 53 | CG47: 54 | CH47: 55 | CI47: 56 | CJ47: 57 | CK47: 58 | CL47: 59 | CM47: 60 | CN47: 61 | CO47: 62 | CP47: 63 | CQ47: 64 | CR47: 65 | CS47: 66
D48: =CS48 -> 56 | E48: 2.309494133e-09 | F48: 3.162223857e-06 | G48: 1.325396444e-07 | H48: 2.087825654e-06 | I48: 1.834201045e-08 | J48: 1.790893756e-08 | K48: 3.294360692e-05 | L48: 0.0001424643569 | M48: 2.375686301e-05 | N48: 0.000587455797 | O48: 0.003727257546 | P48: 0.001200634083 | Q48: 0.0002565566726 | R48: 8.613703978e-06 | S48: 0.001780368029 | T48: 0.5745651917 | U48: 0.04824951625 | V48: 0.9988164345 | W48: 0.009231031447 | X48: 1.110728395e-05 | AI48: -90.11390603 | AJ48: 27.65047982 | AK48: 116.6428943 | AL48: 143.6433039 | AM48: -26.88488033 | AN48: -125.0547994 | AO48: 87.61165357 | AP48: -95.06492567 | AQ48: -93.26606996 | AR48: -95.03705155 | AS48: -86.86328907 | AT48: -106.86832 | AU48: -91.95611226 | AV48: -99.7736537 | AW48: 2.959227165 | AX48: 0 | AY48: 35.20706278 | AZ48: 0 | BA48: 142.370479 | BB48: 80.98209429 | BM48: 0.03254846631 | BN48: 4.805506289 | BO48: 4.808053797 | BP48: =IF(MIN(BO$48:BO$77)=$BP$47,BO48,IF(BO48=MIN(BO$48:BO$77),BP$47,IF(BO48="",$CT48,BO48))) -> 4.808053797 | BQ48: 4.808053797 | BR48: 4.808053797 | BS48: 4.808053797 | BT48: 4.808053797 | BU48: 4.808053797 | BV48: 4.808053797 | BW48: 4.808053797 | BX48: 4.808053797 | BY48: 4.808053797 | BZ48: 4.808053797 | CA48: 4.808053797 | CB48: 4.808053797 | CC48: 4.808053797 | CD48: 4.808053797 | CE48: 4.808053797 | CF48: 4.808053797 | CG48: 4.808053797 | CH48: 4.808053797 | CI48: 56 | CJ48: 56 | CK48: 56 | CL48: 56 | CM48: 56 | CN48: 56 | CO48: 56 | CP48: 56 | CQ48: 56 | CR48: 56 | CS48: 56 | CT48: =CEILING(MAX(BO48:BO77),1)+1 -> 6
D49: 54 | E49: 1.248106502e-07 | F49: 2.654044925e-08 | G49: 2.03160598e-05 | H49: 8.367295284e-09 | I49: 7.479577995e-08 | J49: 2.805822718e-07 | K49: 0.0005863682241 | L49: 1.976764598e-05 | M49: 0.000194838342 | N49: 5.000514634e-05 | O49: 0.0006522508772 | P49: 0.007321484623 | Q49: 4.096193409e-05 | R49: 4.578592571e-05 | S49: 2.935939009e-07 | T49: 0.03971759879 | U49: 0.6943652237 | V49: 2.992057182e-06 | W49: 0.2857078272 | X49: 0.9987951546 | AI49: -100.4607581 | AJ49: -56.96566521 | AK49: 41.13079881 | AL49: 106.7888379 | AM49: -52.53701242 | AN49: -45.81160748 | AO49: 87.35956345 | AP49: 87.07352129 | AQ49: 92.07178993 | AR49: 85.88960949 | AS49: -106.5390457 | AT49: 92.05491978 | AU49: -97.21420498 | AV49: 73.87198584 | AW49: 5.897227015 | AX49: -144.8566674 | AY49: 0 | AZ49: 166.897825 | BA49: -167.9722245 | BB49: 0 | BM49: 0.05789010139 | BN49: 2.580220561 | BO49: 2.584554958 | BP49: =IF(MIN(BO$48:BO$77)=$BP$47,BO49,IF(BO49=MIN(BO$48:BO$77),BP$47,IF(BO49="",$CT49,BO49))) -> 2.584554958 | BQ49: 2.584554958 | BR49: 2.584554958 | BS49: 2.584554958 | BT49: 2.584554958 | BU49: 2.584554958 | BV49: 2.584554958 | BW49: 2.584554958 | BX49: 2.584554958 | BY49: 2.584554958 | BZ49: 2.584554958 | CA49: 2.584554958 | CB49: 2.584554958 | CC49: 2.584554958 | CD49: 2.584554958 | CE49: 2.584554958 | CF49: 2.584554958 | CG49: 54 | CH49: 54 | CI49: 54 | CJ49: 54 | CK49: 54 | CL49: 54 | CM49: 54 | CN49: 54 | CO49: 54 | CP49: 54 | CQ49: 54 | CR49: 54 | CS49: 54 | CT49: =CT48+1 -> 7
D50: 55 | E50: 1.968816e-09 | F50: 6.706801299e-07 | G50: 4.444904796e-08 | H50: 4.040536455e-07 | I50: 2.293821045e-08 | J50: 6.704404919e-09 | K50: 1.766708153e-06 | L50: 4.046790391e-05 | M50: 2.786966602e-06 | N50: 3.373669026e-05 | O50: 0.000145338169 | P50: 4.523698462e-05 | Q50: 8.724174715e-06 | R50: 3.750180296e-06 | S50: 0.9529116909 | T50: 0.02138759424 | U50: 0.001846952829 | V50: 0.0001337639249 | W50: 8.8675022e-06 | X50: 1.130577648e-07 | AI50: -84.28957702 | AJ50: -149.1492414 | AK50: -81.53838337 | AL50: -30.64862823 | AM50: -105.6957477 | AN50: -87.15923947 | AO50: 90.61439193 | AP50: 88.16886858 | AQ50: -97.36807265 | AR50: -92.23904641 | AS50: -81.40847283 | AT50: -101.5920581 | AU50: 77.13772656 | AV50: -90.34009023 | AW50: 180 | AX50: -13.34031738 | AY50: 21.39473027 | AZ50: 1.837364772 | BA50: 177.3324358 | BB50: 179.6164181 | BM50: 0.01744896992 | BN50: 2.670519698 | BO50: 2.670926333 | BP50: =IF(MIN(BO$48:BO$77)=$BP$47,BO50,IF(BO50=MIN(BO$48:BO$77),BP$47,IF(BO50="",$CT50,BO50))) -> 2.670926333 | BQ50: 2.670926333 | BR50: 2.670926333 | BS50: 2.670926333 | BT50: 2.670926333 | BU50: 2.670926333 | BV50: 2.670926333 | BW50: 2.670926333 | BX50: 2.670926333 | BY50: 2.670926333 | BZ50: 2.670926333 | CA50: 2.670926333 | CB50: 2.670926333 | CC50: 2.670926333 | CD50: 2.670926333 | CE50: 2.670926333 | CF50: 2.670926333 | CG50: 2.670926333 | CH50: 55 | CI50: 55 | CJ50: 55 | CK50: 55 | CL50: 55 | CM50: 55 | CN50: 55 | CO50: 55 | CP50: 55 | CQ50: 55 | CR50: 55 | CS50: 55 | CT50: 8
D51: 51 | E51: 4.49986345e-09 | F51: 1.111830048e-09 | G51: 8.442314536e-07 | H51: 3.582145289e-10 | I51: 3.150679237e-09 | J51: 1.192943778e-08 | K51: 3.054006906e-05 | L51: 1.016557518e-06 | M51: 9.707731151e-06 | N51: 2.734150681e-06 | O51: 3.882027951e-05 | P51: 0.0004364408279 | Q51: 2.177614323e-06 | R51: 2.630602771e-06 | S51: 7.392298751e-08 | T51: 0.006818707211 | U51: 0.1192464219 | V51: 6.835701476e-08 | W51: 0.02660868189 | X51: 0.0005437364551 | AI51: 79.0933388 | AJ51: 122.5050589 | AK51: -138.9089474 | AL51: -74.20400411 | AM51: 126.3717448 | AN51: 132.8636068 | AO51: -92.80427 | AP51: -92.98541756 | AQ51: -87.85360706 | AR51: -94.38515448 | AS51: 73.52932505 | AT51: -87.85733161 | AU51: 82.48773939 | AV51: -105.4311991 | AW51: -175.5110628 | AX51: 35.46607571 | AY51: -179.6903142 | AZ51: -175.0292369 | BA51: 15.96336316 | BB51: -1.096735381 | BM51: 0.0862750139 | BN51: 2.393143353 | BO51: 2.40209992 | BP51: =IF(MIN(BO$48:BO$77)=$BP$47,BO51,IF(BO51=MIN(BO$48:BO$77),BP$47,IF(BO51="",$CT51,BO51))) -> 2.40209992 | BQ51: 2.40209992 | BR51: 2.40209992 | BS51: 2.40209992 | BT51: 2.40209992 | BU51: 2.40209992 | BV51: 2.40209992 | BW51: 2.40209992 | BX51: 2.40209992 | BY51: 2.40209992 | BZ51: 2.40209992 | CA51: 2.40209992 | CB51: 2.40209992 | CC51: 2.40209992 | CD51: 51 | CE51: 51 | CF51: 51 | CG51: 51 | CH51: 51 | CI51: 51 | CJ51: 51 | CK51: 51 | CL51: 51 | CM51: 51 | CN51: 51 | CO51: 51 | CP51: 51 | CQ51: 51 | CR51: 51 | CS51: 51 | CT51: 9
D52: 53 | E52: 8.696578444e-11 | F52: 1.321259334e-07 | G52: 5.496569752e-09 | H52: 8.827729487e-08 | I52: 7.854133199e-10 | J52: 7.556369581e-10 | K52: 1.761865451e-06 | L52: 7.547686728e-06 | M52: 1.206927437e-06 | N52: 3.212670073e-05 | O52: 0.0002209755507 | P52: 7.127026853e-05 | Q52: 1.309744469e-05 | R52: 4.256726411e-07 | S52: 0.0002818045265 | T52: 0.09907561924 | U52: 0.008323321817 | V52: 0.0005396883734 | W52: 0.0002060439327 | X52: 8.586675481e-08 | AI52: -90.18436848 | AJ52: 27.23673663 | AK52: 116.8385292 | AL52: 142.9637785 | AM52: -32.58546841 | AN52: -126.1006134 | AO52: 87.39564954 | AP52: -95.21822799 | AQ52: -93.55135582 | AR52: -95.22083246 | AS52: -86.78480762 | AT52: -106.7717979 | AU52: -91.96821883 | AV52: -99.83336558 | AW52: 3.34635686 | AX52: 0.07473505183 | AY52: 35.26561867 | AZ52: 178.7907132 | BA52: -176.84768 | BB52: -3.156974271 | BM52: 0.1308136404 | BN52: 2.42531598 | BO52: 2.446337417 | BP52: =IF(MIN(BO$48:BO$77)=$BP$47,BO52,IF(BO52=MIN(BO$48:BO$77),BP$47,IF(BO52="",$CT52,BO52))) -> 2.446337417 | BQ52: 2.446337417 | BR52: 2.446337417 | BS52: 2.446337417 | BT52: 2.446337417 | BU52: 2.446337417 | BV52: 2.446337417 | BW52: 2.446337417 | BX52: 2.446337417 | BY52: 2.446337417 | BZ52: 2.446337417 | CA52: 2.446337417 | CB52: 2.446337417 | CC52: 2.446337417 | CD52: 2.446337417 | CE52: 2.446337417 | CF52: 53 | CG52: 53 | CH52: 53 | CI52: 53 | CJ52: 53 | CK52: 53 | CL52: 53 | CM52: 53 | CN52: 53 | CO52: 53 | CP52: 53 | CQ52: 53 | CR52: 53 | CS52: 53 | CT52: 10
D53: 52 | E53: 1.179589836e-08 | F53: 6.59338167e-11 | G53: 1.418911647e-08 | H53: 1.079761219e-10 | I53: 5.032029621e-11 | J53: 4.692328427e-09 | K53: 8.849043791e-07 | L53: 2.15522708e-07 | M53: 9.387169623e-07 | N53: 1.337804836e-07 | O53: 9.200822557e-07 | P53: 1.003609743e-05 | Q53: 1.538536086e-07 | R53: 3.908030894e-06 | S53: 1.090089496e-08 | T53: 0.0002832092245 | U53: 0.005125422035 | V53: 8.592866133e-07 | W53: 0.9300855832 | X53: 2.345092928e-05 | AI53: 77.72046465 | AJ53: 72.03729485 | AK53: 30.34102894 | AL53: -111.5391026 | AM53: 104.4615365 | AN53: -89.35448364 | AO53: -92.88524392 | AP53: 87.36608096 | AQ53: -88.03642365 | AR53: -95.49925222 | AS53: 74.83298509 | AT53: -86.82653001 | AU53: -92.70490737 | AV53: 89.51014856 | AW53: 12.23544067 | AX53: -133.3071977 | AY53: 9.883435564 | AZ53: -29.47049992 | BA53: 0 | BB53: -44.8572707 | BM53: 0.1218308353 | BN53: 2.389277428 | BO53: 2.407209019 | BP53: =IF(MIN(BO$48:BO$77)=$BP$47,BO53,IF(BO53=MIN(BO$48:BO$77),BP$47,IF(BO53="",$CT53,BO53))) -> 2.407209019 | BQ53: 2.407209019 | BR53: 2.407209019 | BS53: 2.407209019 | BT53: 2.407209019 | BU53: 2.407209019 | BV53: 2.407209019 | BW53: 2.407209019 | BX53: 2.407209019 | BY53: 2.407209019 | BZ53: 2.407209019 | CA53: 2.407209019 | CB53: 2.407209019 | CC53: 2.407209019 | CD53: 2.407209019 | CE53: 52 | CF53: 52 | CG53: 52 | CH53: 52 | CI53: 52 | CJ53: 52 | CK53: 52 | CL53: 52 | CM53: 52 | CN53: 52 | CO53: 52 | CP53: 52 | CQ53: 52 | CR53: 52 | CS53: 52 | CT53: 11
D54: 50 | E54: 1.862188631e-07 | F54: 1.11890709e-05 | G54: 1.725725439e-06 | H54: 1.016814494e-05 | I54: 3.899188573e-06 | J54: 6.720765806e-08 | K54: 0.0007801981911 | L54: 0.002745500609 | M54: 0.0002758242883 | N54: 0.01183961993 | O54: 0.06148263657 | P54: 0.01963113017 | Q54: 0.002175637359 | R54: 3.728314295e-05 | S54: 0.0006649948377 | T54: 0.4705401877 | U54: 0.03956258264 | V54: 0.0008300723861 | W54: 0.0004953243085 | X54: 2.328064494e-07 | AI54: -96.93433536 | AJ54: -165.9751613 | AK54: 42.80600047 | AL54: -52.16844774 | AM54: 84.39999477 | AN54: 19.71669465 | AO54: -92.24505143 | AP54: 85.57094783 | AQ54: 84.15644574 | AR54: 85.49874836 | AS54: 93.1742291 | AT54: 73.07571495 | AU54: 89.2941864 | AV54: 78.85345457 | AW54: 171.2314797 | AX54: 1.421018714 | AY54: 36.57989759 | AZ54: 175.6529561 | BA54: -172.9776779 | BB54: -1.715484384 | BM54: 0.02825373084 | BN54: 0.685639007 | BO54: 0.6859128346 | BP54: =IF(MIN(BO$48:BO$77)=$BP$47,BO54,IF(BO54=MIN(BO$48:BO$77),BP$47,IF(BO54="",$CT54,BO54))) -> 0.6859128346 | BQ54: 0.6859128346 | BR54: 0.6859128346 | BS54: 0.6859128346 | BT54: 0.6859128346 | BU54: 0.6859128346 | BV54: 0.6859128346 | BW54: 0.6859128346 | BX54: 0.6859128346 | BY54: 0.6859128346 | BZ54: 0.6859128346 | CA54: 0.6859128346 | CB54: 0.6859128346 | CC54: 50 | CD54: 50 | CE54: 50 | CF54: 50 | CG54: 50 | CH54: 50 | CI54: 50 | CJ54: 50 | CK54: 50 | CL54: 50 | CM54: 50 | CN54: 50 | CO54: 50 | CP54: 50 | CQ54: 50 | CR54: 50 | CS54: 50 | CT54: 12
D55: 49 | E55: 6.09933563e-05 | F55: 3.535628355e-07 | G55: 8.007175308e-05 | H55: 3.025820998e-07 | I55: 2.815466968e-07 | J55: 7.436539718e-06 | K55: 0.01071493854 | L55: 0.0002772463237 | M55: 0.001586660333 | N55: 0.00100543952 | O55: 0.01097627572 | P55: 0.122322342 | Q55: 0.0005670321593 | R55: 0.001113660837 | S55: 5.663427485e-07 | T55: 0.03243187761 | U55: 0.5675807053 | V55: 1.307822345e-07 | W55: 0.1368872962 | X55: 0.0008279623692 | AI55: 79.95222826 | AJ55: -84.09056304 | AK55: 36.56759015 | AL55: 89.67565247 | AM55: -79.91355873 | AN55: -74.92886737 | AO55: 87.48101625 | AP55: 88.18932204 | AQ55: 95.06394192 | AR55: 85.75003438 | AS55: -106.5198666 | AT55: 91.98748068 | AU55: -98.17610649 | AV55: 80.00784252 | AW55: -175.093586 | AX55: 36.59724948 | AY55: -178.5898171 | AZ55: -167.0225072 | BA55: 22.44783719 | BB55: -3.83607214 | BM55: 0.02972105803 | BN55: 0.6532581107 | BO55: 0.653546827 | BP55: =IF(MIN(BO$48:BO$77)=$BP$47,BO55,IF(BO55=MIN(BO$48:BO$77),BP$47,IF(BO55="",$CT55,BO55))) -> 0.653546827 | BQ55: 0.653546827 | BR55: 0.653546827 | BS55: 0.653546827 | BT55: 0.653546827 | BU55: 0.653546827 | BV55: 0.653546827 | BW55: 0.653546827 | BX55: 0.653546827 | BY55: 0.653546827 | BZ55: 0.653546827 | CA55: 0.653546827 | CB55: 49 | CC55: 49 | CD55: 49 | CE55: 49 | CF55: 49 | CG55: 49 | CH55: 49 | CI55: 49 | CJ55: 49 | CK55: 49 | CL55: 49 | CM55: 49 | CN55: 49 | CO55: 49 | CP55: 49 | CQ55: 49 | CR55: 49 | CS55: 49 | CT55: 13
D56: 48 | E56: 3.316333886e-08 | F56: 2.301191996e-05 | G56: 1.027472628e-06 | H56: 1.400339184e-05 | I56: 1.528137376e-07 | J56: 1.218445809e-07 | K56: 9.902643498e-06 | L56: 4.833765463e-05 | M56: 1.276255891e-05 | N56: 9.744511447e-05 | O56: 0.0002488986271 | P56: 8.183147711e-05 | Q56: 0.0001048943612 | R56: 4.358353925e-06 | S56: 5.334451745e-05 | T56: 0.0009537245243 | U56: 8.020212604e-05 | V56: 2.275746348e-06 | W56: 1.561418806e-06 | X56: 6.570281667e-10 | AI56: 88.96552255 | AJ56: -149.3281027 | AK56: -65.94761607 | AL56: -31.12042521 | AM56: -148.0171613 | AN56: 62.61373315 | AO56: -85.53528316 | AP56: 90.30304562 | AQ56: 92.33742389 | AR56: 93.10663735 | AS56: -87.27074327 | AT56: -106.9240197 | AU56: 91.47649107 | AV56: 83.76340399 | AW56: 0.6734995025 | AX56: -1.297757007 | AY56: 33.85872626 | AZ56: 174.3696389 | BA56: 177.6411355 | BB56: -1.764121015 | BM56: 0.0293672942 | BN56: 0.6477449902 | BO56: 0.6480244909 | BP56: =IF(MIN(BO$48:BO$77)=$BP$47,BO56,IF(BO56=MIN(BO$48:BO$77),BP$47,IF(BO56="",$CT56,BO56))) -> 0.6480244909 | BQ56: 0.6480244909 | BR56: 0.6480244909 | BS56: 0.6480244909 | BT56: 0.6480244909 | BU56: 0.6480244909 | BV56: 0.6480244909 | BW56: 0.6480244909 | BX56: 0.6480244909 | BY56: 0.6480244909 | BZ56: 0.6480244909 | CA56: 48 | CB56: 48 | CC56: 48 | CD56: 48 | CE56: 48 | CF56: 48 | CG56: 48 | CH56: 48 | CI56: 48 | CJ56: 48 | CK56: 48 | CL56: 48 | CM56: 48 | CN56: 48 | CO56: 48 | CP56: 48 | CQ56: 48 | CR56: 48 | CS56: 48 | CT56: 14
D57: 47 | E57: 3.578017056e-06 | F57: 1.861607217e-07 | G57: 0.0001522643631 | H57: 4.845761609e-08 | I57: 5.177899912e-07 | J57: 1.745243414e-06 | K57: 0.0002632718756 | L57: 9.551292579e-06 | M57: 0.0001228612371 | N57: 8.412916326e-06 | O57: 4.941226766e-05 | P57: 0.0005694170397 | Q57: 1.080900994e-05 | R57: 2.625779129e-06 | S57: 2.283026146e-09 | T57: 6.332421652e-05 | U57: 0.001108538173 | V57: 4.478942922e-10 | W57: 0.0002565293901 | X57: 2.26553488e-06 | AI57: -99.71035257 | AJ57: -52.48826531 | AK57: 41.60641443 | AL57: 115.5828903 | AM57: -44.52947638 | AN57: -34.41602912 | AO57: 92.20868557 | AP57: 90.85120619 | AQ57: 94.56146549 | AR57: 96.25166657 | AS57: 72.86574543 | AT57: -88.19300421 | AU57: -89.53965503 | AV57: -55.75694445 | AW57: 178.4111654 | AX57: 35.98500874 | AY57: -179.2085643 | AZ57: -173.6702988 | BA57: 21.09970375 | BB57: -3.999317365 | BM57: 0.02802875593 | BN57: 0.5909422925 | BO57: 0.5911745548 | BP57: =IF(MIN(BO$48:BO$77)=$BP$47,BO57,IF(BO57=MIN(BO$48:BO$77),BP$47,IF(BO57="",$CT57,BO57))) -> 0.5911745548 | BQ57: 0.5911745548 | BR57: 0.5911745548 | BS57: 0.5911745548 | BT57: 0.5911745548 | BU57: 0.5911745548 | BV57: 0.5911745548 | BW57: 0.5911745548 | BX57: 0.5911745548 | BY57: 0.5911745548 | BZ57: 47 | CA57: 47 | CB57: 47 | CC57: 47 | CD57: 47 | CE57: 47 | CF57: 47 | CG57: 47 | CH57: 47 | CI57: 47 | CJ57: 47 | CK57: 47 | CL57: 47 | CM57: 47 | CN57: 47 | CO57: 47 | CP57: 47 | CQ57: 47 | CR57: 47 | CS57: 47 | CT57: 15
D58: 44 | E58: 1.020082644e-05 | F58: 1.681618678e-08 | G58: 3.46410299e-06 | H58: 2.337024877e-08 | I58: 1.221959168e-08 | J58: 1.014525499e-06 | K58: 1.630936522e-05 | L58: 3.41528577e-06 | M58: 1.493776751e-05 | N58: 1.797510446e-06 | O58: 6.656858281e-06 | P58: 7.174715912e-05 | Q58: 1.753138656e-06 | R58: 4.414934129e-05 | S58: 4.175056886e-10 | T58: 1.962832544e-05 | U58: 0.0003431836492 | V58: 7.90408799e-11 | W58: 0.0001045847455 | X58: 4.998218538e-07 | AI58: -100.0823149 | AJ58: -101.4971324 | AK58: -149.6262806 | AL58: 77.4767953 | AM58: -59.58617064 | AN58: 103.627658 | AO58: 89.65143604 | AP58: -89.95846277 | AQ58: 94.60344402 | AR58: 86.98319358 | AS58: -105.1755969 | AT58: 93.01295835 | AU58: 89.96800038 | AV58: -88.01059271 | AW58: -0.5526985972 | AX58: 36.75430697 | AY58: -178.4600281 | AZ58: -148.6231997 | BA58: 24.06667623 | BB58: -3.78103908 | BM58: 0.008765062542 | BN58: 0.4284675822 | BO58: 0.428484042 | BP58: =IF(MIN(BO$48:BO$77)=$BP$47,BO58,IF(BO58=MIN(BO$48:BO$77),BP$47,IF(BO58="",$CT58,BO58))) -> 0.428484042 | BQ58: 0.428484042 | BR58: 0.428484042 | BS58: 0.428484042 | BT58: 0.428484042 | BU58: 0.428484042 | BV58: 0.428484042 | BW58: 44 | BX58: 44 | BY58: 44 | BZ58: 44 | CA58: 44 | CB58: 44 | CC58: 44 | CD58: 44 | CE58: 44 | CF58: 44 | CG58: 44 | CH58: 44 | CI58: 44 | CJ58: 44 | CK58: 44 | CL58: 44 | CM58: 44 | CN58: 44 | CO58: 44 | CP58: 44 | CQ58: 44 | CR58: 44 | CS58: 44 | CT58: 16
D59: 43 | E59: 9.807824681e-05 | F59: 0.0008115631715 | G59: 0.005003246294 | H59: 0.0009387326014 | I59: 0.04451214425 | J59: 0.0002795735087 | K59: 0.01762030653 | L59: 0.01286189222 | M59: 0.007636126905 | N59: 0.1398316427 | O59: 0.1347018631 | P59: 0.1028596873 | Q59: 0.1729608126 | R59: 0.009279876312 | S59: 0.00515688267 | T59: 0.5741554858 | U59: 0.03672294366 | V59: 0.001000851125 | W59: 0.001506226459 | X59: 3.465515408e-06 | AI59: 97.4679615 | AJ59: -95.45682094 | AK59: -75.66639128 | AL59: 70.02247527 | AM59: -97.50794075 | AN59: -34.10117124 | AO59: -92.34658293 | AP59: -82.41150065 | AQ59: -90.49062977 | AR59: -90.86140818 | AS59: 89.76854718 | AT59: 79.8956224 | AU59: 86.2537973 | AV59: 82.95409491 | AW59: 1.647223425 | AX59: 0.7994726742 | AY59: 48.56062106 | AZ59: 175.2942483 | BA59: -9.126093911 | BB59: 0.3891608234 | BM59: 0.007261278564 | BN59: 0.4254361504 | BO59: 0.4254473667 | BP59: =IF(MIN(BO$48:BO$77)=$BP$47,BO59,IF(BO59=MIN(BO$48:BO$77),BP$47,IF(BO59="",$CT59,BO59))) -> 0.4254473667 | BQ59: 0.4254473667 | BR59: 0.4254473667 | BS59: 0.4254473667 | BT59: 0.4254473667 | BU59: 0.4254473667 | BV59: 43 | BW59: 43 | BX59: 43 | BY59: 43 | BZ59: 43 | CA59: 43 | CB59: 43 | CC59: 43 | CD59: 43 | CE59: 43 | CF59: 43 | CG59: 43 | CH59: 43 | CI59: 43 | CJ59: 43 | CK59: 43 | CL59: 43 | CM59: 43 | CN59: 43 | CO59: 43 | CP59: 43 | CQ59: 43 | CR59: 43 | CS59: 43 | CT59: 17
D60: 46 | E60: 0.0002653871549 | F60: 0.04242642411 | G60: 0.002884555159 | H60: 0.04517801179 | I60: 0.001412962421 | J60: 0.001620408759 | K60: 0.01658844442 | L60: 0.0158194109 | M60: 0.01902892002 | N60: 0.2135188891 | O60: 0.3070165178 | P60: 0.1216197077 | Q60: 0.2115832701 | R60: 0.01342519006 | S60: 0.00135578025 | T60: 0.1421009642 | U60: 0.02328341375 | V60: 4.942575345e-05 | W60: 0.009105115963 | X60: 4.484138787e-05 | AI60: -90.22190939 | AJ60: -94.37759691 | AK60: -60.54276057 | AL60: 84.38754158 | AM60: 64.40657795 | AN60: -117.9103028 | AO60: -89.69905511 | AP60: -100.7168844 | AQ60: 88.04709294 | AR60: -91.60613977 | AS60: 89.49779248 | AT60: 72.9128724 | AU60: -91.68880699 | AV60: -94.48908321 | AW60: 178.3397077 | AX60: 3.677080085 | AY60: 163.3424915 | AZ60: -178.2951879 | BA60: 31.73248885 | BB60: -3.87132187 | BM60: 0.02947097471 | BN60: 0.5575120459 | BO60: 0.557754314 | BP60: =IF(MIN(BO$48:BO$77)=$BP$47,BO60,IF(BO60=MIN(BO$48:BO$77),BP$47,IF(BO60="",$CT60,BO60))) -> 0.557754314 | BQ60: 0.557754314 | BR60: 0.557754314 | BS60: 0.557754314 | BT60: 0.557754314 | BU60: 0.557754314 | BV60: 0.557754314 | BW60: 0.557754314 | BX60: 0.557754314 | BY60: 46 | BZ60: 46 | CA60: 46 | CB60: 46 | CC60: 46 | CD60: 46 | CE60: 46 | CF60: 46 | CG60: 46 | CH60: 46 | CI60: 46 | CJ60: 46 | CK60: 46 | CL60: 46 | CM60: 46 | CN60: 46 | CO60: 46 | CP60: 46 | CQ60: 46 | CR60: 46 | CS60: 46 | CT60: 18
D61: 45 | E61: 0.02374324426 | F61: 0.001326714361 | G61: 0.04061614141 | H61: 0.001752193761 | I61: 0.0006432415604 | J61: 0.04511558627 | K61: 0.01382835997 | L61: 0.02369327529 | M61: 0.01024265339 | N61: 0.0004749772287 | O61: 0.015001187 | P61: 0.09287622459 | Q61: 0.0204280582 | R61: 0.2769667347 | S61: 0.001249078538 | T61: 0.002445360378 | U61: 0.05352745892 | V61: 4.677122625e-06 | W61: 0.1340605796 | X61: 5.444756839e-05 | AI61: 88.13478082 | AJ61: -96.08020702 | AK61: 87.47885702 | AL61: 73.34735055 | AM61: -25.81232599 | AN61: 82.90335699 | AO61: -93.95334665 | AP61: 89.85423052 | AQ61: -104.9379515 | AR61: -46.03136277 | AS61: -100.0644001 | AT61: 92.63569889 | AU61: 83.25513265 | AV61: -91.63278194 | AW61: 0.2183665926 | AX61: 134.8511178 | AY61: -172.4069632 | AZ61: -1.307577401 | BA61: 26.86759372 | BB61: 0.5042246127 | BM61: 0.02849356379 | BN61: 0.5500223517 | BO61: 0.5502457647 | BP61: =IF(MIN(BO$48:BO$77)=$BP$47,BO61,IF(BO61=MIN(BO$48:BO$77),BP$47,IF(BO61="",$CT61,BO61))) -> 0.5502457647 | BQ61: 0.5502457647 | BR61: 0.5502457647 | BS61: 0.5502457647 | BT61: 0.5502457647 | BU61: 0.5502457647 | BV61: 0.5502457647 | BW61: 0.5502457647 | BX61: 45 | BY61: 45 | BZ61: 45 | CA61: 45 | CB61: 45 | CC61: 45 | CD61: 45 | CE61: 45 | CF61: 45 | CG61: 45 | CH61: 45 | CI61: 45 | CJ61: 45 | CK61: 45 | CL61: 45 | CM61: 45 | CN61: 45 | CO61: 45 | CP61: 45 | CQ61: 45 | CR61: 45 | CS61: 45 | CT61: 19
D62: 42 | E62: 0.000532055066 | F62: 6.579593478e-06 | G62: 0.005707552574 | H62: 1.90722897e-06 | I62: 1.810332617e-05 | J62: 4.650876707e-05 | K62: 0.1702308754 | L62: 0.004273072759 | M62: 0.08320036117 | N62: 0.006318734039 | O62: 0.03087789338 | P62: 0.2403871143 | Q62: 0.007555379266 | R62: 0.009707376324 | S62: 0.0003386093056 | T62: 0.03434740212 | U62: 0.07753499079 | V62: 6.570300211e-05 | W62: 0.01062090044 | X62: 1.610006651e-05 | AI62: 80.42605896 | AJ62: 152.2235157 | AK62: -137.2494159 | AL62: -16.53092639 | AM62: -163.215431 | AN62: -174.1899569 | AO62: 88.38096501 | AP62: 84.61608646 | AQ62: 91.1569495 | AR62: -92.70459864 | AS62: 76.45574129 | AT62: -90.41604427 | AU62: 86.3842315 | AV62: -83.78167419 | AW62: 1.723643381 | AX62: -3.539674141 | AY62: 4.178421152 | AZ62: 175.3011756 | BA62: 174.995661 | BB62: -179.5426152 | BM62: 0.005631158033 | BN62: 0.05057623464 | BO62: 0.05057703655 | BP62: =IF(MIN(BO$48:BO$77)=$BP$47,BO62,IF(BO62=MIN(BO$48:BO$77),BP$47,IF(BO62="",$CT62,BO62))) -> 0.05057703655 | BQ62: 0.05057703655 | BR62: 0.05057703655 | BS62: 0.05057703655 | BT62: 0.05057703655 | BU62: 42 | BV62: 42 | BW62: 42 | BX62: 42 | BY62: 42 | BZ62: 42 | CA62: 42 | CB62: 42 | CC62: 42 | CD62: 42 | CE62: 42 | CF62: 42 | CG62: 42 | CH62: 42 | CI62: 42 | CJ62: 42 | CK62: 42 | CL62: 42 | CM62: 42 | CN62: 42 | CO62: 42 | CP62: 42 | CQ62: 42 | CR62: 42 | CS62: 42 | CT62: 20
D63: 40 | E63: 0.0002438843563 | F63: 0.0001162236322 | G63: 0.0003711998256 | H63: 5.794213506e-05 | I63: 1.766200376e-06 | J63: 2.742226706e-05 | K63: 0.1447369533 | L63: 0.01365129894 | M63: 0.2214686696 | N63: 0.002100879179 | O63: 0.02996774773 | P63: 0.1221306743 | Q63: 0.003689417198 | R63: 0.003153165473 | S63: 0.0001060224098 | T63: 0.0127366874 | U63: 0.3403460313 | V63: 3.160775407e-06 | W63: 0.09117796051 | X63: 0.0004882824746 | AI63: -99.69359081 | AJ63: -141.0108517 | AK63: -138.5731641 | AL63: -11.28118377 | AM63: -130.4539391 | AN63: 109.4947444 | AO63: 91.20336483 | AP63: -97.65853541 | AQ63: -91.68286397 | AR63: -64.11970179 | AS63: 83.17005019 | AT63: -89.7891355 | AU63: -80.64575664 | AV63: -146.8687057 | AW63: 178.3251525 | AX63: -122.4389331 | AY63: 1.30888861 | AZ63: -173.3731366 | BA63: -151.7872157 | BB63: 176.1220423 | BM63: 0.02419249691 | BN63: 0.03612966051 | BO63: 0.03614023808 | BP63: =IF(MIN(BO$48:BO$77)=$BP$47,BO63,IF(BO63=MIN(BO$48:BO$77),BP$47,IF(BO63="",$CT63,BO63))) -> 0.03614023808 | BQ63: 0.03614023808 | BR63: 0.03614023808 | BS63: 40 | BT63: 40 | BU63: 40 | BV63: 40 | BW63: 40 | BX63: 40 | BY63: 40 | BZ63: 40 | CA63: 40 | CB63: 40 | CC63: 40 | CD63: 40 | CE63: 40 | CF63: 40 | CG63: 40 | CH63: 40 | CI63: 40 | CJ63: 40 | CK63: 40 | CL63: 40 | CM63: 40 | CN63: 40 | CO63: 40 | CP63: 40 | CQ63: 40 | CR63: 40 | CS63: 40 | CT63: 21
D64: 41 | E64: 0.0002295794713 | F64: 0.0001917682894 | G64: 0.0001534126039 | H64: 0.0001155523316 | I64: 4.724872782e-06 | J64: 9.670289648e-06 | K64: 0.001151534802 | L64: 0.2337138899 | M64: 0.01571524508 | N64: 0.03710013775 | O64: 0.03171585753 | P64: 0.01532592074 | Q64: 0.004044185794 | R64: 0.008863370404 | S64: 0.01401516016 | T64: 0.0422241554 | U64: 0.002260452125 | V64: 5.238470867e-05 | W64: 0.008066055555 | X64: 3.178215826e-06 | AI64: 80.6262661 | AJ64: -148.0138859 | AK64: 37.82161804 | AL64: -29.35574041 | AM64: -106.4320279 | AN64: -22.99858007 | AO64: -82.76123415 | AP64: -91.70314199 | AQ64: 84.7382212 | AR64: 84.47736853 | AS64: 91.04790264 | AT64: 78.73560244 | AU64: 162.8569391 | AV64: -91.71992152 | AW64: -179.778522 | AX64: 11.38963507 | AY64: 107.0025965 | AZ64: -175.2609422 | BA64: 21.88316661 | BB64: 0.1629113588 | BM64: 0.02352995589 | BN64: 0.03616385211 | BO64: 0.03617386749 | BP64: =IF(MIN(BO$48:BO$77)=$BP$47,BO64,IF(BO64=MIN(BO$48:BO$77),BP$47,IF(BO64="",$CT64,BO64))) -> 0.03617386749 | BQ64: 0.03617386749 | BR64: 0.03617386749 | BS64: 0.03617386749 | BT64: 41 | BU64: 41 | BV64: 41 | BW64: 41 | BX64: 41 | BY64: 41 | BZ64: 41 | CA64: 41 | CB64: 41 | CC64: 41 | CD64: 41 | CE64: 41 | CF64: 41 | CG64: 41 | CH64: 41 | CI64: 41 | CJ64: 41 | CK64: 41 | CL64: 41 | CM64: 41 | CN64: 41 | CO64: 41 | CP64: 41 | CQ64: 41 | CR64: 41 | CS64: 41 | CT64: 22
D65: 37 | E65: 0.0001789538678 | F65: 0.0008440821795 | G65: 0.005739436477 | H65: 0.0009900826097 | I65: 0.04720433108 | J65: 0.0002915621407 | K65: 0.01011222343 | L65: 0.003528384009 | M65: 0.003939391856 | N65: 0.01696650477 | O65: 0.01861879177 | P65: 0.01375751807 | Q65: 0.006167195971 | R65: 0.0001474201127 | S65: 0.001611360391 | T65: 0.1791226724 | U65: 0.01346020298 | V65: 0.0003135352833 | W65: 9.848219605e-05 | X65: 5.074081126e-07 | AI65: -89.78646787 | AJ65: 85.29168529 | AK65: 97.11488145 | AL65: -109.5666464 | AM65: 82.483388 | AN65: 145.0166296 | AO65: 87.46087951 | AP65: -91.54096305 | AQ65: 91.31664397 | AR65: -93.54191593 | AS65: -87.39885477 | AT65: -98.66753257 | AU65: 85.56621305 | AV65: -41.20103755 | AW65: -178.3953243 | AX65: -179.2342076 | AY65: -139.5798016 | AZ65: -4.704902695 | BA65: 154.5593644 | BB65: -179.742384 | BM65: 0.02864261269 | BN65: 0.007743633839 | BO65: 0.00774681223 | BP65: =IF(MIN(BO$48:BO$77)=$BP$47,BO65,IF(BO65=MIN(BO$48:BO$77),BP$47,IF(BO65="",$CT65,BO65))) -> 37 | BQ65: 37 | BR65: 37 | BS65: 37 | BT65: 37 | BU65: 37 | BV65: 37 | BW65: 37 | BX65: 37 | BY65: 37 | BZ65: 37 | CA65: 37 | CB65: 37 | CC65: 37 | CD65: 37 | CE65: 37 | CF65: 37 | CG65: 37 | CH65: 37 | CI65: 37 | CJ65: 37 | CK65: 37 | CL65: 37 | CM65: 37 | CN65: 37 | CO65: 37 | CP65: 37 | CQ65: 37 | CR65: 37 | CS65: 37 | CT65: 23
D66: 39 | E66: 0.0003207072772 | F66: 0.04441231889 | G66: 0.003022432035 | H66: 0.04817972383 | I66: 0.001519019425 | J66: 0.001721574341 | K66: 0.01170621095 | L66: 0.005408705227 | M66: 0.01118457504 | N66: 0.02421081159 | O66: 0.03860889305 | P66: 0.007731577032 | Q66: 0.007919208487 | R66: 0.0004286179598 | S66: 0.0004602199867 | T66: 0.03736397112 | U66: 0.03616339057 | V66: 1.1769825e-05 | W66: 0.00835124188 | X66: 4.86152532e-05 | AI66: 88.65427565 | AJ66: 86.6812861 | AK66: 118.5963606 | AL66: -94.94934715 | AM66: -115.544283 | AN66: 61.98889917 | AO66: 88.92073622 | AP66: -98.04003871 | AQ66: -92.7885458 | AR66: -94.30680505 | AS66: -88.08279265 | AT66: -119.5868032 | AU66: -91.76178899 | AV66: -110.3471772 | AW66: -1.462851774 | AX66: -178.1515274 | AY66: -175.6553434 | AZ66: 3.327984941 | BA66: 21.99896584 | BB66: -3.903569414 | BM66: 0.2511540141 | BN66: 0.01156356487 | BO66: 0.01194648387 | BP66: =IF(MIN(BO$48:BO$77)=$BP$47,BO66,IF(BO66=MIN(BO$48:BO$77),BP$47,IF(BO66="",$CT66,BO66))) -> 0.01194648387 | BQ66: 0.01194648387 | BR66: 39 | BS66: 39 | BT66: 39 | BU66: 39 | BV66: 39 | BW66: 39 | BX66: 39 | BY66: 39 | BZ66: 39 | CA66: 39 | CB66: 39 | CC66: 39 | CD66: 39 | CE66: 39 | CF66: 39 | CG66: 39 | CH66: 39 | CI66: 39 | CJ66: 39 | CK66: 39 | CL66: 39 | CM66: 39 | CN66: 39 | CO66: 39 | CP66: 39 | CQ66: 39 | CR66: 39 | CS66: 39 | CT66: 24
D67: 38 | E67: 0.02302542422 | F67: 0.001428512489 | G67: 0.04219347494 | H67: 0.001860333991 | I67: 0.000682513159 | J67: 0.048074145 | K67: 0.00532818424 | L67: 0.01144904866 | M67: 0.001334019474 | N67: 0.0007450121817 | O67: 0.0005667504953 | P67: 0.01324905108 | Q67: 0.0006846604395 | R67: 0.006457566127 | S67: 0.001416298027 | T67: 0.004745464963 | U67: 0.01664223836 | V67: 5.27985751e-06 | W67: 0.039483337 | X67: 1.786043172e-05 | AI67: -91.12426296 | AJ67: 82.97718091 | AK67: -90.99980307 | AL67: -107.1648628 | AM67: 154.0521212 | AN67: -96.99777708 | AO67: -93.17762144 | AP67: -92.65007815 | AQ67: -90.45421228 | AR67: 79.32553585 | AS67: 47.64636991 | AT67: -86.84897421 | AU67: 100.7783815 | AV67: -93.91895249 | AW67: 0.1411380046 | AX67: -157.674681 | AY67: 6.120909067 | AZ67: 9.142114107 | BA67: -153.2203441 | BB67: -179.9699469 | BM67: 0.02214613857 | BN67: 0.007815845115 | BO67: 0.007817762466 | BP67: =IF(MIN(BO$48:BO$77)=$BP$47,BO67,IF(BO67=MIN(BO$48:BO$77),BP$47,IF(BO67="",$CT67,BO67))) -> 0.007817762466 | BQ67: 38 | BR67: 38 | BS67: 38 | BT67: 38 | BU67: 38 | BV67: 38 | BW67: 38 | BX67: 38 | BY67: 38 | BZ67: 38 | CA67: 38 | CB67: 38 | CC67: 38 | CD67: 38 | CE67: 38 | CF67: 38 | CG67: 38 | CH67: 38 | CI67: 38 | CJ67: 38 | CK67: 38 | CL67: 38 | CM67: 38 | CN67: 38 | CO67: 38 | CP67: 38 | CQ67: 38 | CR67: 38 | CS67: 38 | CT67: 25
D68: 57 | BP68: =IF(MIN(BO$48:BO$77)=$BP$47,BO68,IF(BO68=MIN(BO$48:BO$77),BP$47,IF(BO68="",$CT68,BO68))) -> 26 | BQ68: 26 | BR68: 26 | BS68: 26 | BT68: 26 | BU68: 26 | BV68: 26 | BW68: 26 | BX68: 26 | BY68: 26 | BZ68: 26 | CA68: 26 | CB68: 26 | CC68: 26 | CD68: 26 | CE68: 26 | CF68: 26 | CG68: 26 | CH68: 26 | CI68: 26 | CJ68: 57 | CK68: 57 | CL68: 57 | CM68: 57 | CN68: 57 | CO68: 57 | CP68: 57 | CQ68: 57 | CR68: 57 | CS68: 57 | CT68: 26
D69: 58 | BP69: =IF(MIN(BO$48:BO$77)=$BP$47,BO69,IF(BO69=MIN(BO$48:BO$77),BP$47,IF(BO69="",$CT69,BO69))) -> 27 | BQ69: 27 | BR69: 27 | BS69: 27 | BT69: 27 | BU69: 27 | BV69: 27 | BW69: 27 | BX69: 27 | BY69: 27 | BZ69: 27 | CA69: 27 | CB69: 27 | CC69: 27 | CD69: 27 | CE69: 27 | CF69: 27 | CG69: 27 | CH69: 27 | CI69: 27 | CJ69: 27 | CK69: 58 | CL69: 58 | CM69: 58 | CN69: 58 | CO69: 58 | CP69: 58 | CQ69: 58 | CR69: 58 | CS69: 58 | CT69: 27
D70: 59 | BP70: =IF(MIN(BO$48:BO$77)=$BP$47,BO70,IF(BO70=MIN(BO$48:BO$77),BP$47,IF(BO70="",$CT70,BO70))) -> 28 | BQ70: 28 | BR70: 28 | BS70: 28 | BT70: 28 | BU70: 28 | BV70: 28 | BW70: 28 | BX70: 28 | BY70: 28 | BZ70: 28 | CA70: 28 | CB70: 28 | CC70: 28 | CD70: 28 | CE70: 28 | CF70: 28 | CG70: 28 | CH70: 28 | CI70: 28 | CJ70: 28 | CK70: 28 | CL70: 59 | CM70: 59 | CN70: 59 | CO70: 59 | CP70: 59 | CQ70: 59 | CR70: 59 | CS70: 59 | CT70: 28
D71: 60 | BP71: =IF(MIN(BO$48:BO$77)=$BP$47,BO71,IF(BO71=MIN(BO$48:BO$77),BP$47,IF(BO71="",$CT71,BO71))) -> 29 | BQ71: 29 | BR71: 29 | BS71: 29 | BT71: 29 | BU71: 29 | BV71: 29 | BW71: 29 | BX71: 29 | BY71: 29 | BZ71: 29 | CA71: 29 | CB71: 29 | CC71: 29 | CD71: 29 | CE71: 29 | CF71: 29 | CG71: 29 | CH71: 29 | CI71: 29 | CJ71: 29 | CK71: 29 | CL71: 29 | CM71: 60 | CN71: 60 | CO71: 60 | CP71: 60 | CQ71: 60 | CR71: 60 | CS71: 60 | CT71: 29
D72: 61 | BP72: =IF(MIN(BO$48:BO$77)=$BP$47,BO72,IF(BO72=MIN(BO$48:BO$77),BP$47,IF(BO72="",$CT72,BO72))) -> 30 | BQ72: 30 | BR72: 30 | BS72: 30 | BT72: 30 | BU72: 30 | BV72: 30 | BW72: 30 | BX72: 30 | BY72: 30 | BZ72: 30 | CA72: 30 | CB72: 30 | CC72: 30 | CD72: 30 | CE72: 30 | CF72: 30 | CG72: 30 | CH72: 30 | CI72: 30 | CJ72: 30 | CK72: 30 | CL72: 30 | CM72: 30 | CN72: 61 | CO72: 61 | CP72: 61 | CQ72: 61 | CR72: 61 | CS72: 61 | CT72: 30
D73: 62 | BP73: =IF(MIN(BO$48:BO$77)=$BP$47,BO73,IF(BO73=MIN(BO$48:BO$77),BP$47,IF(BO73="",$CT73,BO73))) -> 31 | BQ73: 31 | BR73: 31 | BS73: 31 | BT73: 31 | BU73: 31 | BV73: 31 | BW73: 31 | BX73: 31 | BY73: 31 | BZ73: 31 | CA73: 31 | CB73: 31 | CC73: 31 | CD73: 31 | CE73: 31 | CF73: 31 | CG73: 31 | CH73: 31 | CI73: 31 | CJ73: 31 | CK73: 31 | CL73: 31 | CM73: 31 | CN73: 31 | CO73: 62 | CP73: 62 | CQ73: 62 | CR73: 62 | CS73: 62 | CT73: 31
D74: 63 | BP74: =IF(MIN(BO$48:BO$77)=$BP$47,BO74,IF(BO74=MIN(BO$48:BO$77),BP$47,IF(BO74="",$CT74,BO74))) -> 32 | BQ74: 32 | BR74: 32 | BS74: 32 | BT74: 32 | BU74: 32 | BV74: 32 | BW74: 32 | BX74: 32 | BY74: 32 | BZ74: 32 | CA74: 32 | CB74: 32 | CC74: 32 | CD74: 32 | CE74: 32 | CF74: 32 | CG74: 32 | CH74: 32 | CI74: 32 | CJ74: 32 | CK74: 32 | CL74: 32 | CM74: 32 | CN74: 32 | CO74: 32 | CP74: 63 | CQ74: 63 | CR74: 63 | CS74: 63 | CT74: 32
D75: 64 | BP75: =IF(MIN(BO$48:BO$77)=$BP$47,BO75,IF(BO75=MIN(BO$48:BO$77),BP$47,IF(BO75="",$CT75,BO75))) -> 33 | BQ75: 33 | BR75: 33 | BS75: 33 | BT75: 33 | BU75: 33 | BV75: 33 | BW75: 33 | BX75: 33 | BY75: 33 | BZ75: 33 | CA75: 33 | CB75: 33 | CC75: 33 | CD75: 33 | CE75: 33 | CF75: 33 | CG75: 33 | CH75: 33 | CI75: 33 | CJ75: 33 | CK75: 33 | CL75: 33 | CM75: 33 | CN75: 33 | CO75: 33 | CP75: 33 | CQ75: 64 | CR75: 64 | CS75: 64 | CT75: 33
D76: 65 | BP76: =IF(MIN(BO$48:BO$77)=$BP$47,BO76,IF(BO76=MIN(BO$48:BO$77),BP$47,IF(BO76="",$CT76,BO76))) -> 34 | BQ76: 34 | BR76: 34 | BS76: 34 | BT76: 34 | BU76: 34 | BV76: 34 | BW76: 34 | BX76: 34 | BY76: 34 | BZ76: 34 | CA76: 34 | CB76: 34 | CC76: 34 | CD76: 34 | CE76: 34 | CF76: 34 | CG76: 34 | CH76: 34 | CI76: 34 | CJ76: 34 | CK76: 34 | CL76: 34 | CM76: 34 | CN76: 34 | CO76: 34 | CP76: 34 | CQ76: 34 | CR76: 65 | CS76: 65 | CT76: 34
D77: 66 | BP77: =IF(MIN(BO$48:BO$77)=$BP$47,BO77,IF(BO77=MIN(BO$48:BO$77),BP$47,IF(BO77="",$CT77,BO77))) -> 35 | BQ77: 35 | BR77: 35 | BS77: 35 | BT77: 35 | BU77: 35 | BV77: 35 | BW77: 35 | BX77: 35 | BY77: 35 | BZ77: 35 | CA77: 35 | CB77: 35 | CC77: 35 | CD77: 35 | CE77: 35 | CF77: 35 | CG77: 35 | CH77: 35 | CI77: 35 | CJ77: 35 | CK77: 35 | CL77: 35 | CM77: 35 | CN77: 35 | CO77: 35 | CP77: 35 | CQ77: 35 | CR77: 35 | CS77: 66 | CT77: 35

Sheet 2 RPM
A1: This worksheet is used to sort the mode shapes and frequencies and to help you determine which modes are which for up to 30 modes (up to 30 DOFs).
A2: To use this spreadsheet, paste the appropriate data output from MBC3 into the six gray cells marked with comments (DescStates, MBC_ModeShapeMagnitude, MBC_ModeShapePhaseDeg_MBC_DampingRatio, MBC_DampedFrequencyHz, MBC_NaturalFrequencyHz). The Scaling should be calculated according to the comment, but is not output by MBC3. Do not change any other cell!
A3: NOTE: This spreadsheet doesn't work if any natural (undamped) frequency is 0.0 or if any natural (undamped) frequency is in duplicate--to avoid the resulting error, in the cells where the frequencies are pasted-in, change the error-causing frequency (or frequencies) by a very small amount!
D4: BladeLength | E4: 117 | F4: TowerHt | G4: 144.495
C5: Mode Shapes and Frequencies
C6: Mode Number | E6: 1 | G6: =E6+1 -> 2 | I6: =G6+1 -> 3 | K6: =I6+1 -> 4 | M6: =K6+1 -> 5 | O6: =M6+1 -> 6 | Q6: =O6+1 -> 7 | S6: =Q6+1 -> 8 | U6: =S6+1 -> 9 | W6: =U6+1 -> 10 | Y6: =W6+1 -> 11 | AA6: =Y6+1 -> 12 | AC6: =AA6+1 -> 13 | AE6: =AC6+1 -> 14 | AG6: =AE6+1 -> 15 | AI6: =AG6+1 -> 16 | AK6: =AI6+1 -> 17 | AM6: =AK6+1 -> 18 | AO6: =AM6+1 -> 19 | AQ6: =AO6+1 -> 20 | AS6: =AQ6+1 -> 21 | AU6: =AS6+1 -> 22 | AW6: =AU6+1 -> 23 | AY6: =AW6+1 -> 24 | BA6: =AY6+1 -> 25 | BC6: =BA6+1 -> 26 | BE6: =BC6+1 -> 27 | BG6: =BE6+1 -> 28 | BI6: =BG6+1 -> 29 | BK6: =BI6+1 -> 30
C7: Natural (Undamped) Frequencies (Hz) | E7: =IF(VLOOKUP(E$6+$BO$47,$D$48:$BO$77,64,FALSE)="","",VLOOKUP(E$6+$BO$47,$D$48:$BO$77,64,FALSE)) -> 0.007683687109 | G7: =IF(VLOOKUP(G$6+$BO$47,$D$48:$BO$77,64,FALSE)="","",VLOOKUP(G$6+$BO$47,$D$48:$BO$77,64,FALSE)) -> 0.007895367508 | I7: =IF(VLOOKUP(I$6+$BO$47,$D$48:$BO$77,64,FALSE)="","",VLOOKUP(I$6+$BO$47,$D$48:$BO$77,64,FALSE)) -> 0.01191542339 | K7: =IF(VLOOKUP(K$6+$BO$47,$D$48:$BO$77,64,FALSE)="","",VLOOKUP(K$6+$BO$47,$D$48:$BO$77,64,FALSE)) -> 0.0361224066 | M7: =IF(VLOOKUP(M$6+$BO$47,$D$48:$BO$77,64,FALSE)="","",VLOOKUP(M$6+$BO$47,$D$48:$BO$77,64,FALSE)) -> 0.03622713231 | O7: =IF(VLOOKUP(O$6+$BO$47,$D$48:$BO$77,64,FALSE)="","",VLOOKUP(O$6+$BO$47,$D$48:$BO$77,64,FALSE)) -> 0.05057963696 | Q7: =IF(VLOOKUP(Q$6+$BO$47,$D$48:$BO$77,64,FALSE)="","",VLOOKUP(Q$6+$BO$47,$D$48:$BO$77,64,FALSE)) -> 0.425104438 | S7: =IF(VLOOKUP(S$6+$BO$47,$D$48:$BO$77,64,FALSE)="","",VLOOKUP(S$6+$BO$47,$D$48:$BO$77,64,FALSE)) -> 0.4276856276 | U7: =IF(VLOOKUP(U$6+$BO$47,$D$48:$BO$77,64,FALSE)="","",VLOOKUP(U$6+$BO$47,$D$48:$BO$77,64,FALSE)) -> 0.529952443 | W7: =IF(VLOOKUP(W$6+$BO$47,$D$48:$BO$77,64,FALSE)="","",VLOOKUP(W$6+$BO$47,$D$48:$BO$77,64,FALSE)) -> 0.5710708133 | Y7: =IF(VLOOKUP(Y$6+$BO$47,$D$48:$BO$77,64,FALSE)="","",VLOOKUP(Y$6+$BO$47,$D$48:$BO$77,64,FALSE)) -> 0.6030431799 | AA7: =IF(VLOOKUP(AA$6+$BO$47,$D$48:$BO$77,64,FALSE)="","",VLOOKUP(AA$6+$BO$47,$D$48:$BO$77,64,FALSE)) -> 0.62141159 | AC7: =IF(VLOOKUP(AC$6+$BO$47,$D$48:$BO$77,64,FALSE)="","",VLOOKUP(AC$6+$BO$47,$D$48:$BO$77,64,FALSE)) -> 0.6714310144 | AE7: =IF(VLOOKUP(AE$6+$BO$47,$D$48:$BO$77,64,FALSE)="","",VLOOKUP(AE$6+$BO$47,$D$48:$BO$77,64,FALSE)) -> 0.6972221012 | AG7: =IF(VLOOKUP(AG$6+$BO$47,$D$48:$BO$77,64,FALSE)="","",VLOOKUP(AG$6+$BO$47,$D$48:$BO$77,64,FALSE)) -> 2.395013473 | AI7: =IF(VLOOKUP(AI$6+$BO$47,$D$48:$BO$77,64,FALSE)="","",VLOOKUP(AI$6+$BO$47,$D$48:$BO$77,64,FALSE)) -> 2.418971028 | AK7: =IF(VLOOKUP(AK$6+$BO$47,$D$48:$BO$77,64,FALSE)="","",VLOOKUP(AK$6+$BO$47,$D$48:$BO$77,64,FALSE)) -> 2.44812793 | AM7: =IF(VLOOKUP(AM$6+$BO$47,$D$48:$BO$77,64,FALSE)="","",VLOOKUP(AM$6+$BO$47,$D$48:$BO$77,64,FALSE)) -> 2.581983232 | AO7: =IF(VLOOKUP(AO$6+$BO$47,$D$48:$BO$77,64,FALSE)="","",VLOOKUP(AO$6+$BO$47,$D$48:$BO$77,64,FALSE)) -> 2.671297392 | AQ7: =IF(VLOOKUP(AQ$6+$BO$47,$D$48:$BO$77,64,FALSE)="","",VLOOKUP(AQ$6+$BO$47,$D$48:$BO$77,64,FALSE)) -> 4.806504825 | AS7: =IF(VLOOKUP(AS$6+$BO$47,$D$48:$BO$77,64,FALSE)="","",VLOOKUP(AS$6+$BO$47,$D$48:$BO$77,64,FALSE)) ->  | AU7: =IF(VLOOKUP(AU$6+$BO$47,$D$48:$BO$77,64,FALSE)="","",VLOOKUP(AU$6+$BO$47,$D$48:$BO$77,64,FALSE)) ->  | AW7: =IF(VLOOKUP(AW$6+$BO$47,$D$48:$BO$77,64,FALSE)="","",VLOOKUP(AW$6+$BO$47,$D$48:$BO$77,64,FALSE)) ->  | AY7: =IF(VLOOKUP(AY$6+$BO$47,$D$48:$BO$77,64,FALSE)="","",VLOOKUP(AY$6+$BO$47,$D$48:$BO$77,64,FALSE)) ->  | BA7: =IF(VLOOKUP(BA$6+$BO$47,$D$48:$BO$77,64,FALSE)="","",VLOOKUP(BA$6+$BO$47,$D$48:$BO$77,64,FALSE)) ->  | BC7: =IF(VLOOKUP(BC$6+$BO$47,$D$48:$BO$77,64,FALSE)="","",VLOOKUP(BC$6+$BO$47,$D$48:$BO$77,64,FALSE)) ->  | BE7: =IF(VLOOKUP(BE$6+$BO$47,$D$48:$BO$77,64,FALSE)="","",VLOOKUP(BE$6+$BO$47,$D$48:$BO$77,64,FALSE)) ->  | BG7: =IF(VLOOKUP(BG$6+$BO$47,$D$48:$BO$77,64,FALSE)="","",VLOOKUP(BG$6+$BO$47,$D$48:$BO$77,64,FALSE)) ->  | BI7: =IF(VLOOKUP(BI$6+$BO$47,$D$48:$BO$77,64,FALSE)="","",VLOOKUP(BI$6+$BO$47,$D$48:$BO$77,64,FALSE)) ->  | BK7: =IF(VLOOKUP(BK$6+$BO$47,$D$48:$BO$77,64,FALSE)="","",VLOOKUP(BK$6+$BO$47,$D$48:$BO$77,64,FALSE)) -> 
C8: Damped Frequencies (Hz) | E8: =IF(VLOOKUP(E$6+$BO$47,$D$48:$BO$77,63,FALSE)="","",VLOOKUP(E$6+$BO$47,$D$48:$BO$77,63,FALSE)) -> 0.007675001036 | G8: =IF(VLOOKUP(G$6+$BO$47,$D$48:$BO$77,63,FALSE)="","",VLOOKUP(G$6+$BO$47,$D$48:$BO$77,63,FALSE)) -> 0.007893465618 | I8: =IF(VLOOKUP(I$6+$BO$47,$D$48:$BO$77,63,FALSE)="","",VLOOKUP(I$6+$BO$47,$D$48:$BO$77,63,FALSE)) -> 0.01152678704 | K8: =IF(VLOOKUP(K$6+$BO$47,$D$48:$BO$77,63,FALSE)="","",VLOOKUP(K$6+$BO$47,$D$48:$BO$77,63,FALSE)) -> 0.03611230888 | M8: =IF(VLOOKUP(M$6+$BO$47,$D$48:$BO$77,63,FALSE)="","",VLOOKUP(M$6+$BO$47,$D$48:$BO$77,63,FALSE)) -> 0.03621768827 | O8: =IF(VLOOKUP(O$6+$BO$47,$D$48:$BO$77,63,FALSE)="","",VLOOKUP(O$6+$BO$47,$D$48:$BO$77,63,FALSE)) -> 0.05057883383 | Q8: =IF(VLOOKUP(Q$6+$BO$47,$D$48:$BO$77,63,FALSE)="","",VLOOKUP(Q$6+$BO$47,$D$48:$BO$77,63,FALSE)) -> 0.4250917574 | S8: =IF(VLOOKUP(S$6+$BO$47,$D$48:$BO$77,63,FALSE)="","",VLOOKUP(S$6+$BO$47,$D$48:$BO$77,63,FALSE)) -> 0.4276687242 | U8: =IF(VLOOKUP(U$6+$BO$47,$D$48:$BO$77,63,FALSE)="","",VLOOKUP(U$6+$BO$47,$D$48:$BO$77,63,FALSE)) -> 0.5297260149 | W8: =IF(VLOOKUP(W$6+$BO$47,$D$48:$BO$77,63,FALSE)="","",VLOOKUP(W$6+$BO$47,$D$48:$BO$77,63,FALSE)) -> 0.5708321875 | Y8: =IF(VLOOKUP(Y$6+$BO$47,$D$48:$BO$77,63,FALSE)="","",VLOOKUP(Y$6+$BO$47,$D$48:$BO$77,63,FALSE)) -> 0.6028137383 | AA8: =IF(VLOOKUP(AA$6+$BO$47,$D$48:$BO$77,63,FALSE)="","",VLOOKUP(AA$6+$BO$47,$D$48:$BO$77,63,FALSE)) -> 0.6211151256 | AC8: =IF(VLOOKUP(AC$6+$BO$47,$D$48:$BO$77,63,FALSE)="","",VLOOKUP(AC$6+$BO$47,$D$48:$BO$77,63,FALSE)) -> 0.6711722513 | AE8: =IF(VLOOKUP(AE$6+$BO$47,$D$48:$BO$77,63,FALSE)="","",VLOOKUP(AE$6+$BO$47,$D$48:$BO$77,63,FALSE)) -> 0.6969409798 | AG8: =IF(VLOOKUP(AG$6+$BO$47,$D$48:$BO$77,63,FALSE)="","",VLOOKUP(AG$6+$BO$47,$D$48:$BO$77,63,FALSE)) -> 2.378776356 | AI8: =IF(VLOOKUP(AI$6+$BO$47,$D$48:$BO$77,63,FALSE)="","",VLOOKUP(AI$6+$BO$47,$D$48:$BO$77,63,FALSE)) -> 2.409200113 | AK8: =IF(VLOOKUP(AK$6+$BO$47,$D$48:$BO$77,63,FALSE)="","",VLOOKUP(AK$6+$BO$47,$D$48:$BO$77,63,FALSE)) -> 2.427123878 | AM8: =IF(VLOOKUP(AM$6+$BO$47,$D$48:$BO$77,63,FALSE)="","",VLOOKUP(AM$6+$BO$47,$D$48:$BO$77,63,FALSE)) -> 2.57735589 | AO8: =IF(VLOOKUP(AO$6+$BO$47,$D$48:$BO$77,63,FALSE)="","",VLOOKUP(AO$6+$BO$47,$D$48:$BO$77,63,FALSE)) -> 2.670891916 | AQ8: =IF(VLOOKUP(AQ$6+$BO$47,$D$48:$BO$77,63,FALSE)="","",VLOOKUP(AQ$6+$BO$47,$D$48:$BO$77,63,FALSE)) -> 4.803946544 | AS8: =IF(VLOOKUP(AS$6+$BO$47,$D$48:$BO$77,63,FALSE)="","",VLOOKUP(AS$6+$BO$47,$D$48:$BO$77,63,FALSE)) ->  | AU8: =IF(VLOOKUP(AU$6+$BO$47,$D$48:$BO$77,63,FALSE)="","",VLOOKUP(AU$6+$BO$47,$D$48:$BO$77,63,FALSE)) ->  | AW8: =IF(VLOOKUP(AW$6+$BO$47,$D$48:$BO$77,63,FALSE)="","",VLOOKUP(AW$6+$BO$47,$D$48:$BO$77,63,FALSE)) ->  | AY8: =IF(VLOOKUP(AY$6+$BO$47,$D$48:$BO$77,63,FALSE)="","",VLOOKUP(AY$6+$BO$47,$D$48:$BO$77,63,FALSE)) ->  | BA8: =IF(VLOOKUP(BA$6+$BO$47,$D$48:$BO$77,63,FALSE)="","",VLOOKUP(BA$6+$BO$47,$D$48:$BO$77,63,FALSE)) ->  | BC8: =IF(VLOOKUP(BC$6+$BO$47,$D$48:$BO$77,63,FALSE)="","",VLOOKUP(BC$6+$BO$47,$D$48:$BO$77,63,FALSE)) ->  | BE8: =IF(VLOOKUP(BE$6+$BO$47,$D$48:$BO$77,63,FALSE)="","",VLOOKUP(BE$6+$BO$47,$D$48:$BO$77,63,FALSE)) ->  | BG8: =IF(VLOOKUP(BG$6+$BO$47,$D$48:$BO$77,63,FALSE)="","",VLOOKUP(BG$6+$BO$47,$D$48:$BO$77,63,FALSE)) ->  | BI8: =IF(VLOOKUP(BI$6+$BO$47,$D$48:$BO$77,63,FALSE)="","",VLOOKUP(BI$6+$BO$47,$D$48:$BO$77,63,FALSE)) ->  | BK8: =IF(VLOOKUP(BK$6+$BO$47,$D$48:$BO$77,63,FALSE)="","",VLOOKUP(BK$6+$BO$47,$D$48:$BO$77,63,FALSE)) -> 
C9: Damping Ratio (-) | E9: =IF(VLOOKUP(E$6+$BO$47,$D$48:$BO$77,62,FALSE)="","",VLOOKUP(E$6+$BO$47,$D$48:$BO$77,62,FALSE)) -> 0.04753561606 | G9: =IF(VLOOKUP(G$6+$BO$47,$D$48:$BO$77,62,FALSE)="","",VLOOKUP(G$6+$BO$47,$D$48:$BO$77,62,FALSE)) -> 0.02194801994 | I9: =IF(VLOOKUP(I$6+$BO$47,$D$48:$BO$77,62,FALSE)="","",VLOOKUP(I$6+$BO$47,$D$48:$BO$77,62,FALSE)) -> 0.2533153516 | K9: =IF(VLOOKUP(K$6+$BO$47,$D$48:$BO$77,62,FALSE)="","",VLOOKUP(K$6+$BO$47,$D$48:$BO$77,62,FALSE)) -> 0.02364328845 | M9: =IF(VLOOKUP(M$6+$BO$47,$D$48:$BO$77,62,FALSE)="","",VLOOKUP(M$6+$BO$47,$D$48:$BO$77,62,FALSE)) -> 0.02283224253 | O9: =IF(VLOOKUP(O$6+$BO$47,$D$48:$BO$77,62,FALSE)="","",VLOOKUP(O$6+$BO$47,$D$48:$BO$77,62,FALSE)) -> 0.005635320415 | Q9: =IF(VLOOKUP(Q$6+$BO$47,$D$48:$BO$77,62,FALSE)="","",VLOOKUP(Q$6+$BO$47,$D$48:$BO$77,62,FALSE)) -> 0.007723845279 | S9: =IF(VLOOKUP(S$6+$BO$47,$D$48:$BO$77,62,FALSE)="","",VLOOKUP(S$6+$BO$47,$D$48:$BO$77,62,FALSE)) -> 0.008890689374 | U9: =IF(VLOOKUP(U$6+$BO$47,$D$48:$BO$77,62,FALSE)="","",VLOOKUP(U$6+$BO$47,$D$48:$BO$77,62,FALSE)) -> 0.02922908891 | W9: =IF(VLOOKUP(W$6+$BO$47,$D$48:$BO$77,62,FALSE)="","",VLOOKUP(W$6+$BO$47,$D$48:$BO$77,62,FALSE)) -> 0.02890569117 | Y9: =IF(VLOOKUP(Y$6+$BO$47,$D$48:$BO$77,62,FALSE)="","",VLOOKUP(Y$6+$BO$47,$D$48:$BO$77,62,FALSE)) -> 0.02758262361 | AA9: =IF(VLOOKUP(AA$6+$BO$47,$D$48:$BO$77,62,FALSE)="","",VLOOKUP(AA$6+$BO$47,$D$48:$BO$77,62,FALSE)) -> 0.03088586247 | AC9: =IF(VLOOKUP(AC$6+$BO$47,$D$48:$BO$77,62,FALSE)="","",VLOOKUP(AC$6+$BO$47,$D$48:$BO$77,62,FALSE)) -> 0.02776026798 | AE9: =IF(VLOOKUP(AE$6+$BO$47,$D$48:$BO$77,62,FALSE)="","",VLOOKUP(AE$6+$BO$47,$D$48:$BO$77,62,FALSE)) -> 0.02839438878 | AG9: =IF(VLOOKUP(AG$6+$BO$47,$D$48:$BO$77,62,FALSE)="","",VLOOKUP(AG$6+$BO$47,$D$48:$BO$77,62,FALSE)) -> 0.1162460344 | AI9: =IF(VLOOKUP(AI$6+$BO$47,$D$48:$BO$77,62,FALSE)="","",VLOOKUP(AI$6+$BO$47,$D$48:$BO$77,62,FALSE)) -> 0.08979006407 | AK9: =IF(VLOOKUP(AK$6+$BO$47,$D$48:$BO$77,62,FALSE)="","",VLOOKUP(AK$6+$BO$47,$D$48:$BO$77,62,FALSE)) -> 0.1307121508 | AM9: =IF(VLOOKUP(AM$6+$BO$47,$D$48:$BO$77,62,FALSE)="","",VLOOKUP(AM$6+$BO$47,$D$48:$BO$77,62,FALSE)) -> 0.05984245889 | AO9: =IF(VLOOKUP(AO$6+$BO$47,$D$48:$BO$77,62,FALSE)="","",VLOOKUP(AO$6+$BO$47,$D$48:$BO$77,62,FALSE)) -> 0.01742287569 | AQ9: =IF(VLOOKUP(AQ$6+$BO$47,$D$48:$BO$77,62,FALSE)="","",VLOOKUP(AQ$6+$BO$47,$D$48:$BO$77,62,FALSE)) -> 0.03262245356 | AS9: =IF(VLOOKUP(AS$6+$BO$47,$D$48:$BO$77,62,FALSE)="","",VLOOKUP(AS$6+$BO$47,$D$48:$BO$77,62,FALSE)) ->  | AU9: =IF(VLOOKUP(AU$6+$BO$47,$D$48:$BO$77,62,FALSE)="","",VLOOKUP(AU$6+$BO$47,$D$48:$BO$77,62,FALSE)) ->  | AW9: =IF(VLOOKUP(AW$6+$BO$47,$D$48:$BO$77,62,FALSE)="","",VLOOKUP(AW$6+$BO$47,$D$48:$BO$77,62,FALSE)) ->  | AY9: =IF(VLOOKUP(AY$6+$BO$47,$D$48:$BO$77,62,FALSE)="","",VLOOKUP(AY$6+$BO$47,$D$48:$BO$77,62,FALSE)) ->  | BA9: =IF(VLOOKUP(BA$6+$BO$47,$D$48:$BO$77,62,FALSE)="","",VLOOKUP(BA$6+$BO$47,$D$48:$BO$77,62,FALSE)) ->  | BC9: =IF(VLOOKUP(BC$6+$BO$47,$D$48:$BO$77,62,FALSE)="","",VLOOKUP(BC$6+$BO$47,$D$48:$BO$77,62,FALSE)) ->  | BE9: =IF(VLOOKUP(BE$6+$BO$47,$D$48:$BO$77,62,FALSE)="","",VLOOKUP(BE$6+$BO$47,$D$48:$BO$77,62,FALSE)) ->  | BG9: =IF(VLOOKUP(BG$6+$BO$47,$D$48:$BO$77,62,FALSE)="","",VLOOKUP(BG$6+$BO$47,$D$48:$BO$77,62,FALSE)) ->  | BI9: =IF(VLOOKUP(BI$6+$BO$47,$D$48:$BO$77,62,FALSE)="","",VLOOKUP(BI$6+$BO$47,$D$48:$BO$77,62,FALSE)) ->  | BK9: =IF(VLOOKUP(BK$6+$BO$47,$D$48:$BO$77,62,FALSE)="","",VLOOKUP(BK$6+$BO$47,$D$48:$BO$77,62,FALSE)) -> 
C10: States | D10: Scaling | E10: Magnitude (rad) | F10: Phase (deg) | G10: Magnitude (rad) | H10: Phase (deg) | I10: Magnitude (rad) | J10: Phase (deg) | K10: Magnitude (rad) | L10: Phase (deg) | M10: Magnitude (rad) | N10: Phase (deg) | O10: Magnitude (rad) | P10: Phase (deg) | Q10: Magnitude (rad) | R10: Phase (deg) | S10: Magnitude (rad) | T10: Phase (deg) | U10: Magnitude (rad) | V10: Phase (deg) | W10: Magnitude (rad) | X10: Phase (deg) | Y10: Magnitude (rad) | Z10: Phase (deg) | AA10: Magnitude (rad) | AB10: Phase (deg) | AC10: Magnitude (rad) | AD10: Phase (deg) | AE10: Magnitude (rad) | AF10: Phase (deg) | AG10: Magnitude (rad) | AH10: Phase (deg) | AI10: Magnitude (rad) | AJ10: Phase (deg) | AK10: Magnitude (rad) | AL10: Phase (deg) | AM10: Magnitude (rad) | AN10: Phase (deg) | AO10: Magnitude (rad) | AP10: Phase (deg) | AQ10: Magnitude (rad) | AR10: Phase (deg) | AS10: Magnitude (rad) | AT10: Phase (deg) | AU10: Magnitude (rad) | AV10: Phase (deg) | AW10: Magnitude (rad) | AX10: Phase (deg) | AY10: Magnitude (rad) | AZ10: Phase (deg) | BA10: Magnitude (rad) | BB10: Phase (deg) | BC10: Magnitude (rad) | BD10: Phase (deg) | BE10: Magnitude (rad) | BF10: Phase (deg) | BG10: Magnitude (rad) | BH10: Phase (deg) | BI10: Magnitude (rad) | BJ10: Phase (deg) | BK10: Magnitude (rad) | BL10: Phase (deg)
B11: 1 | C11: ED Platform horizontal surge translation DOF (internal DOF index = DOF_Sg), m | D11: 1 | E11: =IF(HLOOKUP(E$6+$BO$47,$E$47:$AH$77,$B11+1,FALSE)="","",HLOOKUP(E$6+$BO$47,$E$47:$AH$77,$B11+1,FALSE)*$D11) -> 0.9988355875 | F11: =IF(HLOOKUP(E$6+$BO$47,$AI$47:$BL$77,$B11+1,FALSE)="","",HLOOKUP(E$6+$BO$47,$AI$47:$BL$77,$B11+1,FALSE)) -> 0 | G11: =IF(HLOOKUP(G$6+$BO$47,$E$47:$AH$77,$B11+1,FALSE)="","",HLOOKUP(G$6+$BO$47,$E$47:$AH$77,$B11+1,FALSE)*$D11) -> 3.417990774e-05 | H11: =IF(HLOOKUP(G$6+$BO$47,$AI$47:$BL$77,$B11+1,FALSE)="","",HLOOKUP(G$6+$BO$47,$AI$47:$BL$77,$B11+1,FALSE)) -> -52.8364979 | I11: =IF(HLOOKUP(I$6+$BO$47,$E$47:$AH$77,$B11+1,FALSE)="","",HLOOKUP(I$6+$BO$47,$E$47:$AH$77,$B11+1,FALSE)*$D11) -> 0.02454405151 | J11: =IF(HLOOKUP(I$6+$BO$47,$AI$47:$BL$77,$B11+1,FALSE)="","",HLOOKUP(I$6+$BO$47,$AI$47:$BL$77,$B11+1,FALSE)) -> -123.0006392 | K11: =IF(HLOOKUP(K$6+$BO$47,$E$47:$AH$77,$B11+1,FALSE)="","",HLOOKUP(K$6+$BO$47,$E$47:$AH$77,$B11+1,FALSE)*$D11) -> 0.5577477452 | L11: =IF(HLOOKUP(K$6+$BO$47,$AI$47:$BL$77,$B11+1,FALSE)="","",HLOOKUP(K$6+$BO$47,$AI$47:$BL$77,$B11+1,FALSE)) -> 0 | M11: =IF(HLOOKUP(M$6+$BO$47,$E$47:$AH$77,$B11+1,FALSE)="","",HLOOKUP(M$6+$BO$47,$E$47:$AH$77,$B11+1,FALSE)*$D11) -> 0.02825435812 | N11: =IF(HLOOKUP(M$6+$BO$47,$AI$47:$BL$77,$B11+1,FALSE)="","",HLOOKUP(M$6+$BO$47,$AI$47:$BL$77,$B11+1,FALSE)) -> -40.98877203 | O11: =IF(HLOOKUP(O$6+$BO$47,$E$47:$AH$77,$B11+1,FALSE)="","",HLOOKUP(O$6+$BO$47,$E$47:$AH$77,$B11+1,FALSE)*$D11) -> 0.002175502812 | P11: =IF(HLOOKUP(O$6+$BO$47,$AI$47:$BL$77,$B11+1,FALSE)="","",HLOOKUP(O$6+$BO$47,$AI$47:$BL$77,$B11+1,FALSE)) -> 2.569184315 | Q11: =IF(HLOOKUP(Q$6+$BO$47,$E$47:$AH$77,$B11+1,FALSE)="","",HLOOKUP(Q$6+$BO$47,$E$47:$AH$77,$B11+1,FALSE)*$D11) -> 0.002262905378 | R11: =IF(HLOOKUP(Q$6+$BO$47,$AI$47:$BL$77,$B11+1,FALSE)="","",HLOOKUP(Q$6+$BO$47,$AI$47:$BL$77,$B11+1,FALSE)) -> 90.39764257 | S11: =IF(HLOOKUP(S$6+$BO$47,$E$47:$AH$77,$B11+1,FALSE)="","",HLOOKUP(S$6+$BO$47,$E$47:$AH$77,$B11+1,FALSE)*$D11) -> 0.00347076324 | T11: =IF(HLOOKUP(S$6+$BO$47,$AI$47:$BL$77,$B11+1,FALSE)="","",HLOOKUP(S$6+$BO$47,$AI$47:$BL$77,$B11+1,FALSE)) -> 93.41754278 | U11: =IF(HLOOKUP(U$6+$BO$47,$E$47:$AH$77,$B11+1,FALSE)="","",HLOOKUP(U$6+$BO$47,$E$47:$AH$77,$B11+1,FALSE)*$D11) -> 0.0004031367418 | V11: =IF(HLOOKUP(U$6+$BO$47,$AI$47:$BL$77,$B11+1,FALSE)="","",HLOOKUP(U$6+$BO$47,$AI$47:$BL$77,$B11+1,FALSE)) -> 173.542725 | W11: =IF(HLOOKUP(W$6+$BO$47,$E$47:$AH$77,$B11+1,FALSE)="","",HLOOKUP(W$6+$BO$47,$E$47:$AH$77,$B11+1,FALSE)*$D11) -> 0.0001071389494 | X11: =IF(HLOOKUP(W$6+$BO$47,$AI$47:$BL$77,$B11+1,FALSE)="","",HLOOKUP(W$6+$BO$47,$AI$47:$BL$77,$B11+1,FALSE)) -> -109.7747854 | Y11: =IF(HLOOKUP(Y$6+$BO$47,$E$47:$AH$77,$B11+1,FALSE)="","",HLOOKUP(Y$6+$BO$47,$E$47:$AH$77,$B11+1,FALSE)*$D11) -> 0.0004070014783 | Z11: =IF(HLOOKUP(Y$6+$BO$47,$AI$47:$BL$77,$B11+1,FALSE)="","",HLOOKUP(Y$6+$BO$47,$AI$47:$BL$77,$B11+1,FALSE)) -> -91.16673369 | AA11: =IF(HLOOKUP(AA$6+$BO$47,$E$47:$AH$77,$B11+1,FALSE)="","",HLOOKUP(AA$6+$BO$47,$E$47:$AH$77,$B11+1,FALSE)*$D11) -> 0.0002165410017 | AB11: =IF(HLOOKUP(AA$6+$BO$47,$AI$47:$BL$77,$B11+1,FALSE)="","",HLOOKUP(AA$6+$BO$47,$AI$47:$BL$77,$B11+1,FALSE)) -> -112.7254541 | AC11: =IF(HLOOKUP(AC$6+$BO$47,$E$47:$AH$77,$B11+1,FALSE)="","",HLOOKUP(AC$6+$BO$47,$E$47:$AH$77,$B11+1,FALSE)*$D11) -> 7.212467831e-05 | AD11: =IF(HLOOKUP(AC$6+$BO$47,$AI$47:$BL$77,$B11+1,FALSE)="","",HLOOKUP(AC$6+$BO$47,$AI$47:$BL$77,$B11+1,FALSE)) -> -2.315343782 | AE11: =IF(HLOOKUP(AE$6+$BO$47,$E$47:$AH$77,$B11+1,FALSE)="","",HLOOKUP(AE$6+$BO$47,$E$47:$AH$77,$B11+1,FALSE)*$D11) -> 5.93489764e-05 | AF11: =IF(HLOOKUP(AE$6+$BO$47,$AI$47:$BL$77,$B11+1,FALSE)="","",HLOOKUP(AE$6+$BO$47,$AI$47:$BL$77,$B11+1,FALSE)) -> -156.2627793 | AG11: =IF(HLOOKUP(AG$6+$BO$47,$E$47:$AH$77,$B11+1,FALSE)="","",HLOOKUP(AG$6+$BO$47,$E$47:$AH$77,$B11+1,FALSE)*$D11) -> 7.950178982e-07 | AH11: =IF(HLOOKUP(AG$6+$BO$47,$AI$47:$BL$77,$B11+1,FALSE)="","",HLOOKUP(AG$6+$BO$47,$AI$47:$BL$77,$B11+1,FALSE)) -> 110.4439311 | AI11: =IF(HLOOKUP(AI$6+$BO$47,$E$47:$AH$77,$B11+1,FALSE)="","",HLOOKUP(AI$6+$BO$47,$E$47:$AH$77,$B11+1,FALSE)*$D11) -> 1.922059591e-06 | AJ11: =IF(HLOOKUP(AI$6+$BO$47,$AI$47:$BL$77,$B11+1,FALSE)="","",HLOOKUP(AI$6+$BO$47,$AI$47:$BL$77,$B11+1,FALSE)) -> 147.7242992 | AK11: =IF(HLOOKUP(AK$6+$BO$47,$E$47:$AH$77,$B11+1,FALSE)="","",HLOOKUP(AK$6+$BO$47,$E$47:$AH$77,$B11+1,FALSE)*$D11) -> 3.494669728e-08 | AL11: =IF(HLOOKUP(AK$6+$BO$47,$AI$47:$BL$77,$B11+1,FALSE)="","",HLOOKUP(AK$6+$BO$47,$AI$47:$BL$77,$B11+1,FALSE)) -> 172.7997033 | AM11: =IF(HLOOKUP(AM$6+$BO$47,$E$47:$AH$77,$B11+1,FALSE)="","",HLOOKUP(AM$6+$BO$47,$E$47:$AH$77,$B11+1,FALSE)*$D11) -> 3.072024243e-06 | AN11: =IF(HLOOKUP(AM$6+$BO$47,$AI$47:$BL$77,$B11+1,FALSE)="","",HLOOKUP(AM$6+$BO$47,$AI$47:$BL$77,$B11+1,FALSE)) -> -154.4628861 | AO11: =IF(HLOOKUP(AO$6+$BO$47,$E$47:$AH$77,$B11+1,FALSE)="","",HLOOKUP(AO$6+$BO$47,$E$47:$AH$77,$B11+1,FALSE)*$D11) -> 2.634840304e-07 | AP11: =IF(HLOOKUP(AO$6+$BO$47,$AI$47:$BL$77,$B11+1,FALSE)="","",HLOOKUP(AO$6+$BO$47,$AI$47:$BL$77,$B11+1,FALSE)) -> -92.39909528 | AQ11: =IF(HLOOKUP(AQ$6+$BO$47,$E$47:$AH$77,$B11+1,FALSE)="","",HLOOKUP(AQ$6+$BO$47,$E$47:$AH$77,$B11+1,FALSE)*$D11) -> 1.076347419e-08 | AR11: =IF(HLOOKUP(AQ$6+$BO$47,$AI$47:$BL$77,$B11+1,FALSE)="","",HLOOKUP(AQ$6+$BO$47,$AI$47:$BL$77,$B11+1,FALSE)) -> -23.76433627 | AS11: =IF(HLOOKUP(AS$6+$BO$47,$E$47:$AH$77,$B11+1,FALSE)="","",HLOOKUP(AS$6+$BO$47,$E$47:$AH$77,$B11+1,FALSE)*$D11) ->  | AT11: =IF(HLOOKUP(AS$6+$BO$47,$AI$47:$BL$77,$B11+1,FALSE)="","",HLOOKUP(AS$6+$BO$47,$AI$47:$BL$77,$B11+1,FALSE)) ->  | AU11: =IF(HLOOKUP(AU$6+$BO$47,$E$47:$AH$77,$B11+1,FALSE)="","",HLOOKUP(AU$6+$BO$47,$E$47:$AH$77,$B11+1,FALSE)*$D11) ->  | AV11: =IF(HLOOKUP(AU$6+$BO$47,$AI$47:$BL$77,$B11+1,FALSE)="","",HLOOKUP(AU$6+$BO$47,$AI$47:$BL$77,$B11+1,FALSE)) ->  | AW11: =IF(HLOOKUP(AW$6+$BO$47,$E$47:$AH$77,$B11+1,FALSE)="","",HLOOKUP(AW$6+$BO$47,$E$47:$AH$77,$B11+1,FALSE)*$D11) ->  | AX11: =IF(HLOOKUP(AW$6+$BO$47,$AI$47:$BL$77,$B11+1,FALSE)="","",HLOOKUP(AW$6+$BO$47,$AI$47:$BL$77,$B11+1,FALSE)) ->  | AY11: =IF(HLOOKUP(AY$6+$BO$47,$E$47:$AH$77,$B11+1,FALSE)="","",HLOOKUP(AY$6+$BO$47,$E$47:$AH$77,$B11+1,FALSE)*$D11) ->  | AZ11: =IF(HLOOKUP(AY$6+$BO$47,$AI$47:$BL$77,$B11+1,FALSE)="","",HLOOKUP(AY$6+$BO$47,$AI$47:$BL$77,$B11+1,FALSE)) ->  | BA11: =IF(HLOOKUP(BA$6+$BO$47,$E$47:$AH$77,$B11+1,FALSE)="","",HLOOKUP(BA$6+$BO$47,$E$47:$AH$77,$B11+1,FALSE)*$D11) ->  | BB11: =IF(HLOOKUP(BA$6+$BO$47,$AI$47:$BL$77,$B11+1,FALSE)="","",HLOOKUP(BA$6+$BO$47,$AI$47:$BL$77,$B11+1,FALSE)) ->  | BC11: =IF(HLOOKUP(BC$6+$BO$47,$E$47:$AH$77,$B11+1,FALSE)="","",HLOOKUP(BC$6+$BO$47,$E$47:$AH$77,$B11+1,FALSE)*$D11) ->  | BD11: =IF(HLOOKUP(BC$6+$BO$47,$AI$47:$BL$77,$B11+1,FALSE)="","",HLOOKUP(BC$6+$BO$47,$AI$47:$BL$77,$B11+1,FALSE)) ->  | BE11: =IF(HLOOKUP(BE$6+$BO$47,$E$47:$AH$77,$B11+1,FALSE)="","",HLOOKUP(BE$6+$BO$47,$E$47:$AH$77,$B11+1,FALSE)*$D11) ->  | BF11: =IF(HLOOKUP(BE$6+$BO$47,$AI$47:$BL$77,$B11+1,FALSE)="","",HLOOKUP(BE$6+$BO$47,$AI$47:$BL$77,$B11+1,FALSE)) ->  | BG11: =IF(HLOOKUP(BG$6+$BO$47,$E$47:$AH$77,$B11+1,FALSE)="","",HLOOKUP(BG$6+$BO$47,$E$47:$AH$77,$B11+1,FALSE)*$D11) ->  | BH11: =IF(HLOOKUP(BG$6+$BO$47,$AI$47:$BL$77,$B11+1,FALSE)="","",HLOOKUP(BG$6+$BO$47,$AI$47:$BL$77,$B11+1,FALSE)) ->  | BI11: =IF(HLOOKUP(BI$6+$BO$47,$E$47:$AH$77,$B11+1,FALSE)="","",HLOOKUP(BI$6+$BO$47,$E$47:$AH$77,$B11+1,FALSE)*$D11) ->  | BJ11: =IF(HLOOKUP(BI$6+$BO$47,$AI$47:$BL$77,$B11+1,FALSE)="","",HLOOKUP(BI$6+$BO$47,$AI$47:$BL$77,$B11+1,FALSE)) ->  | BK11: =IF(HLOOKUP(BK$6+$BO$47,$E$47:$AH$77,$B11+1,FALSE)="","",HLOOKUP(BK$6+$BO$47,$E$47:$AH$77,$B11+1,FALSE)*$D11) ->  | BL11: =IF(HLOOKUP(BK$6+$BO$47,$AI$47:$BL$77,$B11+1,FALSE)="","",HLOOKUP(BK$6+$BO$47,$AI$47:$BL$77,$B11+1,FALSE)) ->  | BM11: =MAX(E11,G11,I11,K11,M11,O11,Q11,S11,U11,W11,Y11,AA11,AC11,AE11,AG11,AI11,AK11,AM11,AO11,AQ11,AS11,AU11,AW11,AY11,BA11,BC11,BE11,BG11,BI11,BK11) -> 0.9988355875 | BN11: =MATCH($BM11,E11:BK11,0)+4 -> 5 | BO11: =INDIRECT(SUBSTITUTE(ADDRESS(1,$BN11,4),"1","7")) -> 0.007683687109
B12: =B11+1 -> 2 | C12: ED Platform horizontal sway translation DOF (internal DOF index = DOF_Sw), m | D12: 1 | E12: 0.0001013358866 | F12: 42.04485759 | G12: 0.9987710809 | H12: 180 | I12: 0.04076190099 | J12: -44.02588914 | K12: 0.02184507263 | L12: -154.1726623 | M12: 0.6989543577 | N12: 0 | O12: 1.573812774e-07 | P12: -4.626733484 | Q12: 0.005248842901 | R12: -6.098973579 | S12: 0.001609672264 | T12: 128.6258867 | U12: 5.835674833e-05 | V12: 89.34786399 | W12: 5.685798524e-05 | X12: 80.95658869 | Y12: 2.594141081e-05 | Z12: 68.1016063 | AA12: 4.693869311e-05 | AB12: 18.68412035 | AC12: 0.0004782899161 | AD12: -93.03164274 | AE12: 0.0003227444466 | AF12: -93.30633002 | AG12: 2.438996675e-07 | AH12: -45.77365798 | AI12: 1.12294273e-07 | AJ12: -60.37004593 | AK12: 7.055670416e-08 | AL12: 128.4302923 | AM12: 5.607817212e-08 | AN12: -111.4211196 | AO12: 2.053493265e-05 | AP12: -139.0386032 | AQ12: 1.202138772e-07 | AR12: -100.2077978 | BM12: 0.9987710809 | BN12: 7 | BO12: =INDIRECT(SUBSTITUTE(ADDRESS(1,$BN12,4),"1","7")) -> 0.007895367508
B13: 3 | C13: ED Platform vertical heave translation DOF (internal DOF index = DOF_Hv), m | D13: 1 | E13: 0.0003927923788 | F13: 0.183471738 | G13: 1.763845224e-07 | H13: 126.64787 | I13: 0.001248463605 | J13: -176.1122379 | K13: 0.02012387104 | L13: 2.764870007 | M13: 0.001024518478 | N13: -37.94318749 | O13: 0.9529066297 | P13: 180 | Q13: 0.0001205279158 | R13: 89.14391009 | S13: 0.0001809455728 | T13: 93.58666287 | U13: 1.500728362e-05 | V13: -173.797664 | W13: 2.623245536e-05 | X13: -90.4260535 | Y13: 3.166537826e-05 | Z13: -94.41503294 | AA13: 2.32135694e-05 | AB13: 97.34656567 | AC13: 2.422289236e-05 | AD13: -178.113856 | AE13: 2.12530521e-05 | AF13: -4.956369066 | AG13: 1.497234718e-07 | AH13: -62.7403888 | AI13: 3.490062921e-07 | AJ13: -26.39368521 | AK13: 2.479487063e-08 | AL13: 68.08493317 | AM13: 6.054112592e-07 | AN13: 29.20924193 | AO13: 7.789760666e-08 | AP13: 81.1170354 | AQ13: 3.21326679e-09 | AR13: -156.7042535 | BM13: 0.9529066297 | BN13: 15 | BO13: =INDIRECT(SUBSTITUTE(ADDRESS(1,$BN13,4),"1","7")) -> 0.05057963696
B14: 4 | C14: ED Platform roll tilt rotation DOF (internal DOF index = DOF_R), rad | D14: 1 | E14: 1.185185535e-06 | F14: -14.05017574 | G14: 0.0005646708505 | H14: 179.1964343 | I14: 0.02121534586 | J14: 6.727965956 | K14: 0.00367662225 | L14: 26.16485821 | M14: 0.1190058739 | N14: -179.5977277 | O14: 2.707122286e-07 | P14: -171.4970111 | Q14: 0.0003125696793 | R14: 173.9866076 | S14: 9.577771383e-05 | T14: -51.28065606 | U14: 3.401964633e-06 | V14: -91.74144204 | W14: 3.027596533e-06 | X14: -97.52348123 | Y14: 1.499777546e-06 | Z14: -118.6866392 | AA14: 2.144486512e-06 | AB14: -156.993814 | AC14: 2.459017871e-05 | AD14: 86.79597673 | AE14: 1.688198831e-05 | AF14: 86.53887573 | AG14: 1.045444933e-08 | AH14: 132.5968293 | AI14: 4.80332379e-09 | AJ14: 118.4031821 | AK14: 2.965087589e-09 | AL14: -52.62489156 | AM14: 2.356105538e-09 | AN14: 67.90640063 | AO14: 8.531219853e-07 | AP14: 40.91733162 | AQ14: 4.020939944e-09 | AR14: 79.48010467 | BM14: 0.1190058739 | BN14: 13 | BO14: =INDIRECT(SUBSTITUTE(ADDRESS(1,$BN14,4),"1","7")) -> 0.03622713231
B15: 5 | C15: ED Platform pitch tilt rotation DOF (internal DOF index = DOF_P), rad | D15: 1 | E15: 0.0005199924653 | F15: 178.3978639 | G15: 1.512367771e-06 | H15: -175.3474601 | I15: 0.00152164627 | J15: -78.71133419 | K15: 0.0965809128 | L15: -0.215974718 | M15: 0.00486182561 | N15: -41.53752539 | O15: 0.0002826580862 | P15: 3.210160495 | Q15: 0.0001349097141 | R15: 90.40975081 | S15: 0.0002063654442 | T15: 93.45088849 | U15: 2.19795353e-05 | V15: 173.2185136 | W15: 6.812405956e-06 | X15: -107.5725206 | Y15: 2.205793067e-05 | Z15: -91.41979452 | AA15: 1.156641431e-05 | AB15: -112.9268568 | AC15: 3.768948863e-06 | AD15: -3.44946377 | AE15: 3.066130317e-06 | AF15: -155.9163356 | AG15: 3.342622977e-08 | AH15: 109.4324538 | AI15: 8.069328439e-08 | AJ15: 146.9681386 | AK15: 1.455274959e-09 | AL15: 167.9002533 | AM15: 1.275460038e-07 | AN15: -154.9260237 | AO15: 1.082224411e-08 | AP15: -92.29638429 | AQ15: 4.078164939e-10 | AR15: -24.29763436 | BM15: 0.0965809128 | BN15: 11 | BO15: =INDIRECT(SUBSTITUTE(ADDRESS(1,$BN15,4),"1","7")) -> 0.0361224066
B16: 6 | C16: ED Platform yaw rotation DOF (internal DOF index = DOF_Y), rad | D16: 1 | E16: 1.162054316e-05 | F16: -95.88110574 | G16: 0.0002022975138 | H16: -28.50761772 | I16: 0.789105136 | J16: 0 | K16: 0.0008587483484 | L16: -90.35927619 | M16: 0.005140647713 | N16: 10.30977146 | O16: 1.897204971e-06 | P16: -132.7110165 | Q16: 1.452119388e-05 | R16: 174.4529029 | S16: 3.014028227e-06 | T16: -88.39499325 | U16: 3.476221834e-06 | V16: 88.98244103 | W16: 1.920002387e-06 | X16: -175.2567663 | Y16: 1.56489588e-06 | Z16: -5.260632273 | AA16: 3.217724829e-07 | AB16: 164.3797094 | AC16: 1.592930885e-06 | AD16: 93.03416629 | AE16: 6.489532953e-07 | AF16: 74.60808047 | AG16: 4.052150002e-09 | AH16: -89.90292838 | AI16: 1.771960886e-09 | AJ16: -98.55054043 | AK16: 1.896466063e-10 | AL16: -69.04885706 | AM16: 5.027348273e-10 | AN16: -137.9082793 | AO16: 2.90906259e-09 | AP16: 107.6077221 | AQ16: 1.185448447e-08 | AR16: 77.68913986 | BM16: 0.789105136 | BN16: 9 | BO16: =INDIRECT(SUBSTITUTE(ADDRESS(1,$BN16,4),"1","7")) -> 0.01191542339
B17: 7 | C17: ED 1st tower fore-aft bending mode DOF (internal DOF index = DOF_TFA1), m | D17: 0.006920654694 | E17: 5.44099167e-06 | F17: 173.195191 | G17: 3.872514511e-08 | H17: -158.4850885 | I17: 0.0001287983156 | J17: -75.6082733 | K17: 0.003162591036 | L17: 0.9991938666 | M17: 0.0001614882502 | N17: -38.87778118 | O17: 9.0132289e-06 | P17: 176.1939684 | Q17: 0.0002591545113 | R17: -90.03362005 | S17: 0.0003975517393 | T17: -86.55274758 | U17: 4.242820002e-05 | V17: -6.984579785 | W17: 3.07295359e-05 | X17: 81.17105118 | Y17: 5.41895669e-05 | Z17: 88.88288966 | AA17: 2.842259112e-05 | AB17: 68.78254082 | AC17: 1.006081008e-05 | AD17: 168.8957863 | AE17: 7.920714813e-06 | AF17: 26.95627736 | AG17: 2.812656722e-08 | AH17: -90.54037159 | AI17: 6.312758605e-08 | AJ17: -49.19278838 | AK17: 2.706505292e-08 | AL17: -94.34043242 | AM17: 7.515006002e-08 | AN17: 11.53937866 | AO17: 8.642204079e-09 | AP17: -143.8467372 | AQ17: 1.37961087e-09 | AR17: -79.50101305 | BM17: 0.003162591036 | BN17: 11 | BO17: =INDIRECT(SUBSTITUTE(ADDRESS(1,$BN17,4),"1","7")) -> 0.0361224066
B18: 8 | C18: ED 1st tower side-to-side bending mode DOF (internal DOF index = DOF_TSS1), m | D18: 0.006920654694 | E18: 2.268785531e-08 | F18: -19.52686208 | G18: 6.067476075e-06 | H18: 176.7494078 | I18: 0.0003592620473 | J18: 18.01287913 | K18: 0.0001253992483 | L18: 28.04282063 | M18: 0.00392409681 | N18: -178.4517542 | O18: 9.669064724e-09 | P18: 66.58342089 | Q18: 0.0006066734212 | R18: -6.161932937 | S18: 0.0001867474544 | T18: 128.76617 | U18: 8.513969203e-06 | V18: 84.35117073 | W18: 6.080538302e-06 | X18: 89.62948638 | Y18: 5.90333023e-06 | Z18: 40.48819797 | AA18: 3.857753757e-06 | AB18: 139.7680361 | AC18: 5.029461209e-05 | AD18: -93.36637484 | AE18: 4.497016021e-05 | AF18: -93.02434882 | AG18: 4.481550988e-08 | AH18: -72.74952013 | AI18: 1.774347486e-08 | AJ18: -84.04470459 | AK18: 1.06974961e-09 | AL18: 87.77499968 | AM18: 4.9580513e-09 | AN18: -147.3795588 | AO18: 5.567294694e-07 | AP18: -143.6168409 | AQ18: 4.218361441e-07 | AR18: 79.92354523 | BM18: 0.00392409681 | BN18: 13 | BO18: =INDIRECT(SUBSTITUTE(ADDRESS(1,$BN18,4),"1","7")) -> 0.03622713231
B19: 9 | C19: ED 2nd tower fore-aft bending mode DOF (internal DOF index = DOF_TFA2), m | D19: 0.006920654694 | E19: 1.52218886e-08 | F19: 172.7251433 | G19: 2.283724367e-10 | H19: 68.12210007 | I19: 1.86627078e-06 | J19: 104.8012966 | K19: 6.520967509e-06 | L19: 0.2806381843 | M19: 3.592412608e-07 | N19: -45.42173267 | O19: 3.588523921e-07 | P19: 0.7998381326 | Q19: 1.1480602e-06 | R19: 88.98472944 | S19: 1.645673929e-06 | T19: 92.9631858 | U19: 4.682779442e-07 | V19: 3.477197983 | W19: 3.521772479e-07 | X19: -86.3053468 | Y19: 6.231019589e-07 | Z19: 96.24929363 | AA19: 3.982639348e-07 | AB19: 71.65576672 | AC19: 1.842572452e-07 | AD19: -164.979518 | AE19: 1.811858424e-07 | AF19: 26.75694471 | AG19: 3.659735301e-08 | AH19: -62.31529213 | AI19: 8.932664621e-08 | AJ19: -26.89011495 | AK19: 1.91161804e-09 | AL19: 25.25484748 | AM19: 1.533352391e-07 | AN19: 28.64839371 | AO19: 1.506502391e-08 | AP19: 82.83476155 | AQ19: 8.855607401e-10 | AR19: 152.6546062 | BM19: 6.520967509e-06 | BN19: 11 | BO19: =INDIRECT(SUBSTITUTE(ADDRESS(1,$BN19,4),"1","7")) -> 0.0361224066
B20: 10 | C20: ED 2nd tower side-to-side bending mode DOF (internal DOF index = DOF_TSS2), m | D20: 0.006920654694 | E20: 9.610228027e-11 | F20: 53.41108101 | G20: 1.661848539e-08 | H20: 176.4783551 | I20: 7.112042342e-07 | J20: 13.6623797 | K20: 2.201448944e-07 | L20: 7.677648125 | M20: 7.677807046e-06 | N20: -179.0775611 | O20: 2.466603483e-10 | P20: -82.82797953 | Q20: 2.829311874e-06 | R20: 173.5875489 | S20: 8.48786009e-07 | T20: -51.78613079 | U20: 2.773121324e-08 | V20: 179.9575066 | W20: 1.016715765e-07 | X20: 72.30926365 | Y20: 8.292381868e-08 | Z20: 163.552107 | AA20: 3.216129435e-07 | AB20: 5.038757037 | AC20: 1.646113466e-06 | AD20: -88.44924391 | AE20: 9.551732898e-07 | AF20: -88.27503055 | AG20: 1.041625479e-08 | AH20: -34.91836457 | AI20: 4.987096412e-09 | AJ20: -51.56994445 | AK20: 3.408849479e-09 | AL20: 136.2607211 | AM20: 2.57735756e-09 | AN20: -102.772987 | AO20: 1.065548853e-06 | AP20: -138.5643978 | AQ20: 2.456468406e-08 | AR20: -99.63451926 | BM20: 7.677807046e-06 | BN20: 13 | BO20: =INDIRECT(SUBSTITUTE(ADDRESS(1,$BN20,4),"1","7")) -> 0.03622713231
B21: 11 | C21: ED Nacelle yaw DOF (internal DOF index = DOF_Yaw), rad | D21: 1 | E21: 3.744797434e-08 | F21: -86.15587146 | G21: 5.30517633e-07 | H21: 176.8591144 | I21: 5.037669977e-05 | J21: 21.95812035 | K21: 3.984380249e-05 | L21: 76.98382223 | M21: 0.000341767342 | N21: -178.6790229 | O21: 1.127129906e-07 | P21: 94.04053854 | Q21: 6.264135316e-05 | R21: -5.588153949 | S21: 1.371033197e-05 | T21: 62.44273589 | U21: 3.707512451e-05 | V21: -88.5077689 | W21: 2.327829264e-05 | X21: 5.783160123 | Y21: 2.140430374e-05 | Z21: 178.0141701 | AA21: 4.259586127e-06 | AB21: -17.27537887 | AC21: 2.000161961e-05 | AD21: -82.45513176 | AE21: 6.8894737e-06 | AF21: -111.8878846 | AG21: 8.978643037e-07 | AH21: 104.1740353 | AI21: 4.022785371e-07 | AJ21: 92.45453151 | AK21: 3.224420056e-08 | AL21: 119.6333241 | AM21: 1.328044497e-07 | AN21: 50.02266801 | AO21: 3.494335222e-06 | AP21: 30.25965378 | AQ21: 1.018886882e-05 | AR21: -100.1150002 | BM21: 0.000341767342 | BN21: 13 | BO21: =INDIRECT(SUBSTITUTE(ADDRESS(1,$BN21,4),"1","7")) -> 0.03622713231
B22: 12 | C22: ED 1st flapwise bending-mode DOF of blade 1 (internal DOF index = DOF_BF(1,1)), m | D22: 0.008547008547 | E22: 8.119974786e-06 | F22: 173.1514231 | G22: 1.899895047e-07 | H22: -112.5672049 | I22: 9.790727072e-05 | J22: -76.42681644 | K22: 0.004764544998 | L22: 0.875937379 | M22: 0.0003351833682 | N22: -78.37626742 | O22: 3.714659659e-05 | P22: 1.939167379 | Q22: 0.0007742676559 | R22: -65.22738378 | S22: 0.001019103955 | T22: -95.23093871 | U22: 0.0005279092909 | V22: -3.530820855 | W22: 0.001768505113 | X22: -91.65640483 | Y22: 0.0005863106826 | Z22: -87.59091668 | AA22: 0.0002229716483 | AB22: -110.9080412 | AC22: 0.0001565870557 | AD22: 58.12061988 | AE22: 7.942864299e-05 | AF22: 96.61282614 | AG22: 4.836054317e-06 | AH22: 54.45028441 | AI22: 7.700611869e-06 | AJ22: 69.20337729 | AK22: 0.0003800900716 | AL22: 82.49788734 | AM22: 6.889369516e-06 | AN22: 84.45892909 | AO22: 4.334311329e-05 | AP22: 101.8340739 | AQ22: 8.370047334e-07 | AR22: 96.88846519 | BM22: 0.004764544998 | BN22: 11 | BO22: =INDIRECT(SUBSTITUTE(ADDRESS(1,$BN22,4),"1","7")) -> 0.0361224066
B23: 13 | C23: ED 1st flapwise bending-mode DOF of blade 2 (internal DOF index = DOF_BF(2,1)), m | D23: 0.008547008547 | E23: 4.292186367e-07 | F23: 178.7519626 | G23: 9.590475396e-07 | H23: -146.685426 | I23: 0.004848901724 | J23: -75.0482483 | K23: 0.001159727553 | L23: 1.863114709 | M23: 0.0002131347658 | N23: 165.5816159 | O23: 1.182019458e-05 | P23: 179.7732531 | Q23: 0.001840785042 | R23: -90.44254814 | S23: 0.002517732049 | T23: -90.50940569 | U23: 0.00127275977 | V23: 179.821649 | W23: 0.000774348387 | X23: 91.0679359 | Y23: 0.001698563314 | Z23: -91.58056838 | AA23: 0.0004876127193 | AB23: -95.88594846 | AC23: 4.596043487e-05 | AD23: -88.04285271 | AE23: 0.0001504098185 | AF23: 96.25637606 | AG23: 0.0001764226522 | AH23: 45.43931952 | AI23: 0.0003482691342 | AJ23: 84.14933462 | AK23: 9.964827936e-06 | AL23: -136.9127854 | AM23: 0.0003590538116 | AN23: 85.51978007 | AO23: 5.802301172e-05 | AP23: 92.95100337 | AQ23: 2.876408595e-06 | AR23: -119.3448681 | BM23: 0.004848901724 | BN23: 9 | BO23: =INDIRECT(SUBSTITUTE(ADDRESS(1,$BN23,4),"1","7")) -> 0.01191542339
B24: 14 | C24: ED 1st flapwise bending-mode DOF of blade 3 (internal DOF index = DOF_BF(3,1)), m | D24: 0.008547008547 | E24: 2.122655813e-06 | F24: -88.24106793 | G24: 5.575132114e-07 | H24: -177.7174667 | I24: 0.0009575045981 | J24: 26.82005397 | K24: 0.001951028982 | L24: 91.40048021 | M24: 0.0004006584442 | N24: 170.081742 | O24: 1.248939395e-05 | P24: 31.98518978 | Q24: 0.001188097655 | R24: -5.991107965 | S24: 0.0007842653289 | T24: 9.602994539 | U24: 0.002026217008 | V24: -91.67494199 | W24: 0.001217197408 | X24: -3.272304725 | Y24: 0.001047595788 | Z24: -179.6100446 | AA24: 0.000308513742 | AB24: 127.916917 | AC24: 0.0001881768157 | AD24: 131.1008644 | AE24: 0.0001127777489 | AF24: 22.44206618 | AG24: 0.000345427642 | AH24: 83.23159415 | AI24: 0.000161561796 | AJ24: 72.98435336 | AK24: 1.16516128e-05 | AL24: 121.5829898 | AM24: 5.254353804e-05 | AN24: 47.58502577 | AO24: 0.0003429639898 | AP24: -92.55018399 | AQ24: 0.0002030140358 | AR24: 88.13053941 | BM24: 0.002026217008 | BN24: 21 | BO24: =INDIRECT(SUBSTITUTE(ADDRESS(1,$BN24,4),"1","7")) -> 0.529952443
B25: 15 | C25: ED 1st edgewise bending-mode DOF of blade 1 (internal DOF index = DOF_BE(1,1)), m | D25: 0.008547008547 | E25: 5.323421777e-07 | F25: 173.2001154 | G25: 1.394414138e-07 | H25: -3.064788559 | I25: 1.070470746e-05 | J25: 11.32670334 | K25: 0.0002940072681 | L25: -0.7544661587 | M25: 0.0006509173272 | N25: 1.09886666 | O25: 2.436822067e-06 | P25: 2.386282773 | Q25: 0.001471108788 | R25: 172.9324758 | S25: 0.0005287436973 | T25: -57.3160852 | U25: 6.464442861e-05 | V25: -72.11367074 | W25: 9.718812475e-05 | X25: -45.32680211 | Y25: 0.0001013836244 | Z25: -164.6028146 | AA25: 0.0002619215684 | AB25: -2.875839806 | AC25: 0.00133781296 | AD25: -91.59075055 | AE25: 0.0007486786726 | AF25: -92.65148419 | AG25: 3.265842018e-07 | AH25: -174.2457714 | AI25: 1.452742514e-07 | AJ25: 157.6275521 | AK25: 1.550688575e-07 | AL25: 17.03747991 | AM25: 1.106026986e-07 | AN25: 86.03781822 | AO25: 4.935854257e-05 | AP25: 42.57698234 | AQ25: 4.534825975e-06 | AR25: 80.42602383 | BM25: 0.001471108788 | BN25: 17 | BO25: =INDIRECT(SUBSTITUTE(ADDRESS(1,$BN25,4),"1","7")) -> 0.425104438
B26: 16 | C26: ED 1st edgewise bending-mode DOF of blade 2 (internal DOF index = DOF_BE(2,1)), m | D26: 0.008547008547 | E26: 4.168241509e-08 | F26: 176.57602 | G26: 4.3616291e-06 | H26: -3.710314498 | I26: 0.0004564490376 | J26: -119.2244786 | K26: 3.931470152e-05 | L26: -105.6817941 | M26: 0.002877719719 | N26: 1.46711931 | O26: 1.086143491e-06 | P26: 112.9171583 | Q26: 0.0007861538334 | R26: 178.7292439 | S26: 0.0003724188973 | T26: -69.12146052 | U26: 7.215102435e-05 | V26: -109.9856127 | W26: 3.765105835e-05 | X26: 6.975388076 | Y26: 0.0003785677751 | Z26: -4.227310067 | AA26: 0.001408686784 | AB26: 177.6254931 | AC26: 0.0007232268871 | AD26: 84.70299879 | AE26: 0.001392033423 | AF26: -91.62709733 | AG26: 1.188087653e-07 | AH26: 39.51911322 | AI26: 4.627776233e-07 | AJ26: 5.76247695 | AK26: 2.173180701e-08 | AL26: 62.95291791 | AM26: 9.874015617e-07 | AN26: 39.78237089 | AO26: 3.240016679e-06 | AP26: 41.76078199 | AQ26: 2.078823095e-06 | AR26: -99.89329734 | BM26: 0.002877719719 | BN26: 13 | BO26: =INDIRECT(SUBSTITUTE(ADDRESS(1,$BN26,4),"1","7")) -> 0.03622713231
B27: 17 | C27: ED 1st edgewise bending-mode DOF of blade 3 (internal DOF index = DOF_BE(3,1)), m | D27: 0.008547008547 | E27: 3.366772876e-07 | F27: -162.5088505 | G27: 2.523646859e-08 | H27: -175.6633911 | I27: 5.793826054e-05 | J27: 23.398062 | K27: 0.0003372732038 | L27: 23.31730442 | M27: 7.735840021e-06 | N27: 129.2442531 | O27: 0.0001215964296 | P27: -179.8624963 | Q27: 0.0002582732016 | R27: -81.518513 | S27: 0.000243913835 | T27: -73.0191945 | U27: 0.0001281721748 | V27: -30.13628933 | W27: 0.0001738027751 | X27: 71.00540827 | Y27: 0.000492201729 | Z27: 94.48676946 | AA27: 0.001428348841 | AB27: -91.76991104 | AC27: 0.001222869622 | AD27: -0.9086667306 | AE27: 0.00102995885 | AF27: 178.2091165 | AG27: 4.417057158e-07 | AH27: -54.77205097 | AI27: 9.507328446e-07 | AJ27: -25.58457741 | AK27: 4.649616261e-08 | AL27: 62.67514105 | AM27: 1.584964835e-06 | AN27: 29.66799983 | AO27: 1.222624177e-06 | AP27: -141.0687925 | AQ27: 1.972342254e-06 | AR27: 81.24039846 | BM27: 0.001428348841 | BN27: 27 | BO27: =INDIRECT(SUBSTITUTE(ADDRESS(1,$BN27,4),"1","7")) -> 0.62141159
B28: 18 | C28: ED 2nd flapwise bending-mode DOF of blade 1 (internal DOF index = DOF_BF(1,2)), m | D28: 0.008547008547 | E28: 2.564671986e-06 | F28: -6.851531313 | G28: 5.520922205e-08 | H28: 71.71128998 | I28: 2.325990225e-05 | J28: 104.2085796 | K28: 0.001499218162 | L28: -179.1497098 | M28: 0.0001094408027 | N28: 113.6879923 | O28: 1.171165013e-05 | P28: -178.0664318 | Q28: 0.0001128007543 | R28: 113.8448242 | S28: 0.0001455524464 | T28: 88.00011795 | U28: 1.379817098e-05 | V28: 178.6904689 | W28: 0.0001050004643 | X28: -91.48405297 | Y28: 8.727688915e-05 | Z28: -93.67668741 | AA28: 4.180202671e-05 | AB28: -92.56534557 | AC28: 7.498835718e-05 | AD28: -76.7167679 | AE28: 4.867843582e-05 | AF28: -107.4282054 | AG28: 5.079671287e-06 | AH28: -124.7978594 | AI28: 8.118002833e-06 | AJ28: -110.231838 | AK28: 0.0004030786523 | AL28: -97.51074671 | AM28: 7.190852631e-06 | AN28: -94.73455951 | AO28: 4.9928826e-05 | AP28: -85.17559904 | AQ28: 1.527313674e-06 | AR28: -90.21918849 | BM28: 0.001499218162 | BN28: 11 | BO28: =INDIRECT(SUBSTITUTE(ADDRESS(1,$BN28,4),"1","7")) -> 0.0361224066
B29: 19 | C29: ED 2nd flapwise bending-mode DOF of blade 2 (internal DOF index = DOF_BF(2,2)), m | D29: 0.008547008547 | E29: 1.066193724e-07 | F29: -0.3788523714 | G29: 3.680660538e-07 | H29: 150.1163481 | I29: 0.001416901648 | J29: 103.4245235 | K29: 0.0003123713769 | L29: -178.9643069 | M29: 0.0003015461325 | N29: -175.0447734 | O29: 3.98070229e-06 | P29: -0.7335836429 | Q29: 0.0002051960282 | R29: 80.65144927 | S29: 0.0003132478566 | T29: 93.67917184 | U29: 8.967602368e-05 | V29: 176.6582485 | W29: 4.174092016e-05 | X29: -98.98200734 | Y29: 0.0001491066389 | Z29: -84.2888909 | AA29: 0.0001133836204 | AB29: -148.6563431 | AC29: 2.799056394e-05 | AD29: 30.55910453 | AE29: 9.49474488e-05 | AF29: -98.90069653 | AG29: 0.0001877213275 | AH29: -133.9760399 | AI29: 0.0003711150548 | AJ29: -95.15152975 | AK29: 1.076913753e-05 | AL29: 43.36517073 | AM29: 0.0003762535606 | AN29: -93.43077008 | AO29: 6.09893346e-05 | AP29: -87.23976388 | AQ29: 3.35051573e-06 | AR29: 63.38670074 | BM29: 0.001416901648 | BN29: 9 | BO29: =INDIRECT(SUBSTITUTE(ADDRESS(1,$BN29,4),"1","7")) -> 0.01191542339
B30: 20 | C30: ED 2nd flapwise bending-mode DOF of blade 3 (internal DOF index = DOF_BF(3,2)), m | D30: 0.008547008547 | E30: 6.153831203e-07 | F30: 88.03776382 | G30: 1.789681029e-07 | H30: 2.268141565 | I30: 0.0002777167742 | J30: -153.3476451 | K30: 0.000567518612 | L30: -92.27424579 | M30: 0.0001249322939 | N30: -8.03834406 | O30: 1.234952954e-05 | P30: -8.58716262 | Q30: 0.000105660262 | R30: 174.188074 | S30: 2.675070825e-05 | T30: -146.0016026 | U30: 4.971811021e-05 | V30: -90.47951069 | W30: 3.027274036e-05 | X30: -1.943609648 | Y30: 1.912238722e-05 | Z30: 111.7983337 | AA30: 7.23318088e-05 | AB30: -93.28168201 | AC30: 7.41853978e-05 | AD30: 33.07683368 | AE30: 5.161065455e-05 | AF30: 153.7228647 | AG30: 0.000368020344 | AH30: -96.67549962 | AI30: 0.0001721151386 | AJ30: -106.9730823 | AK30: 1.240808545e-05 | AL30: -58.48420022 | AM30: 5.623643894e-05 | AN30: -132.4633802 | AO30: 0.0003561782585 | AP30: 89.00169224 | AQ30: 0.0001968293537 | AR30: -91.12248108 | BM30: 0.000567518612 | BN30: 11 | BO30: =INDIRECT(SUBSTITUTE(ADDRESS(1,$BN30,4),"1","7")) -> 0.0361224066
B31: 21 | D31: =1 -> 1 | BM31: 0 | BO31: =INDIRECT(SUBSTITUTE(ADDRESS(1,$BN31,4),"1","7")) -> 
B32: 22 | D32: =1 -> 1 | BM32: 0 | BO32: =INDIRECT(SUBSTITUTE(ADDRESS(1,$BN32,4),"1","7")) -> 
B33: 23 | D33: =1 -> 1 | BM33: 0 | BO33: =INDIRECT(SUBSTITUTE(ADDRESS(1,$BN33,4),"1","7")) -> 
B34: 24 | D34: =1 -> 1 | BM34: 0 | BO34: =INDIRECT(SUBSTITUTE(ADDRESS(1,$BN34,4),"1","7")) -> 
B35: 25 | D35: =1 -> 1 | BM35: 0 | BO35: =INDIRECT(SUBSTITUTE(ADDRESS(1,$BN35,4),"1","7")) -> 
B36: 26 | D36: =1 -> 1 | BM36: 0 | BO36: =INDIRECT(SUBSTITUTE(ADDRESS(1,$BN36,4),"1","7")) -> 
B37: 27 | D37: =1 -> 1 | BM37: 0 | BO37: =INDIRECT(SUBSTITUTE(ADDRESS(1,$BN37,4),"1","7")) -> 
B38: 28 | D38: =1 -> 1 | BM38: 0 | BO38: =INDIRECT(SUBSTITUTE(ADDRESS(1,$BN38,4),"1","7")) -> 
B39: 29 | D39: =1 -> 1 | BM39: 0 | BO39: =INDIRECT(SUBSTITUTE(ADDRESS(1,$BN39,4),"1","7")) -> 
B40: 30 | D40: =1 -> 1 | BM40: 0 | BO40: =INDIRECT(SUBSTITUTE(ADDRESS(1,$BN40,4),"1","7")) -> 
E41: =MAX(E11:E40) -> 0.9988355875 | G41: =MAX(G11:G40) -> 0.9987710809 | I41: =MAX(I11:I40) -> 0.789105136 | K41: =MAX(K11:K40) -> 0.5577477452 | M41: =MAX(M11:M40) -> 0.6989543577 | O41: =MAX(O11:O40) -> 0.9529066297 | Q41: =MAX(Q11:Q40) -> 0.005248842901 | S41: =MAX(S11:S40) -> 0.00347076324 | U41: =MAX(U11:U40) -> 0.002026217008 | W41: =MAX(W11:W40) -> 0.001768505113 | Y41: =MAX(Y11:Y40) -> 0.001698563314 | AA41: =MAX(AA11:AA40) -> 0.001428348841 | AC41: =MAX(AC11:AC40) -> 0.00133781296 | AE41: =MAX(AE11:AE40) -> 0.001392033423 | AG41: =MAX(AG11:AG40) -> 0.000368020344 | AI41: =MAX(AI11:AI40) -> 0.0003711150548 | AK41: =MAX(AK11:AK40) -> 0.0004030786523 | AM41: =MAX(AM11:AM40) -> 0.0003762535606 | AO41: =MAX(AO11:AO40) -> 0.0003561782585 | AQ41: =MAX(AQ11:AQ40) -> 0.0002030140358 | AS41: =MAX(AS11:AS40) -> 0 | AU41: =MAX(AU11:AU40) -> 0 | AW41: =MAX(AW11:AW40) -> 0 | AY41: =MAX(AY11:AY40) -> 0 | BA41: =MAX(BA11:BA40) -> 0 | BC41: =MAX(BC11:BC40) -> 0 | BE41: =MAX(BE11:BE40) -> 0 | BG41: =MAX(BG11:BG40) -> 0 | BI41: =MAX(BI11:BI40) -> 0 | BK41: =MAX(BK11:BK40) -> 0
C42: Green Background = Maximum value of the mode shape magnitude within a row
C43: Red Bold Text = Maximum value of the mode shape magnitude within a column
E47: =D48 -> 56 | F47: =D49 -> 55 | G47: =D50 -> 54 | H47: =D51 -> 52 | I47: =D52 -> 51 | J47: =D53 -> 53 | K47: =D54 -> 50 | L47: =D55 -> 49 | M47: =D56 -> 48 | N47: =D57 -> 47 | O47: =D58 -> 46 | P47: =D59 -> 45 | Q47: =D60 -> 44 | R47: =D61 -> 43 | S47: =D62 -> 42 | T47: =D63 -> 40 | U47: =D64 -> 41 | V47: =D65 -> 37 | W47: =D66 -> 39 | X47: =D67 -> 38 | Y47: =D68 -> 57 | Z47: =D69 -> 58 | AA47: =D70 -> 59 | AB47: =D71 -> 60 | AC47: =D72 -> 61 | AD47: =D73 -> 62 | AE47: =D74 -> 63 | AF47: =D75 -> 64 | AG47: =D76 -> 65 | AH47: =D77 -> 66 | AI47: =E47 -> 56 | AJ47: 55 | AK47: 54 | AL47: 52 | AM47: 51 | AN47: 53 | AO47: 50 | AP47: 49 | AQ47: 48 | AR47: 47 | AS47: 46 | AT47: 45 | AU47: 44 | AV47: 43 | AW47: 42 | AX47: 40 | AY47: 41 | AZ47: 37 | BA47: 39 | BB47: 38 | BC47: 57 | BD47: 58 | BE47: 59 | BF47: 60 | BG47: 61 | BH47: 62 | BI47: 63 | BJ47: 64 | BK47: 65 | BL47: 66 | BO47: =CT77+1 -> 36 | BP47: =BO47+1 -> 37 | BQ47: 38 | BR47: 39 | BS47: 40 | BT47: 41 | BU47: 42 | BV47: 43 | BW47: 44 | BX47: 45 | BY47: 46 | BZ47: 47 | CA47: 48 | CB47: 49 | CC47: 50 | CD47: 51 | CE47: 52 | CF47: 53 | CG47: 54 | CH47: 55 | CI47: 56 | CJ47: 57 | CK47: 58 | CL47: 59 | CM47: 60 | CN47: 61 | CO47: 62 | CP47: 63 | CQ47: 64 | CR47: 65 | CS47: 66
D48: =CS48 -> 56 | E48: 1.076347419e-08 | F48: 2.634840304e-07 | G48: 3.072024243e-06 | H48: 1.922059591e-06 | I48: 7.950178982e-07 | J48: 3.494669728e-08 | K48: 5.93489764e-05 | L48: 7.212467831e-05 | M48: 0.0002165410017 | N48: 0.0004070014783 | O48: 0.0001071389494 | P48: 0.0004031367418 | Q48: 0.00347076324 | R48: 0.002262905378 | S48: 0.002175502812 | T48: 0.5577477452 | U48: 0.02825435812 | V48: 0.9988355875 | W48: 0.02454405151 | X48: 3.417990774e-05 | AI48: -23.76433627 | AJ48: -92.39909528 | AK48: -154.4628861 | AL48: 147.7242992 | AM48: 110.4439311 | AN48: 172.7997033 | AO48: -156.2627793 | AP48: -2.315343782 | AQ48: -112.7254541 | AR48: -91.16673369 | AS48: -109.7747854 | AT48: 173.542725 | AU48: 93.41754278 | AV48: 90.39764257 | AW48: 2.569184315 | AX48: 0 | AY48: -40.98877203 | AZ48: 0 | BA48: -123.0006392 | BB48: -52.8364979 | BM48: 0.03262245356 | BN48: 4.803946544 | BO48: 4.806504825 | BP48: =IF(MIN(BO$48:BO$77)=$BP$47,BO48,IF(BO48=MIN(BO$48:BO$77),BP$47,IF(BO48="",$CT48,BO48))) -> 4.806504825 | BQ48: 4.806504825 | BR48: 4.806504825 | BS48: 4.806504825 | BT48: 4.806504825 | BU48: 4.806504825 | BV48: 4.806504825 | BW48: 4.806504825 | BX48: 4.806504825 | BY48: 4.806504825 | BZ48: 4.806504825 | CA48: 4.806504825 | CB48: 4.806504825 | CC48: 4.806504825 | CD48: 4.806504825 | CE48: 4.806504825 | CF48: 4.806504825 | CG48: 4.806504825 | CH48: 4.806504825 | CI48: 56 | CJ48: 56 | CK48: 56 | CL48: 56 | CM48: 56 | CN48: 56 | CO48: 56 | CP48: 56 | CQ48: 56 | CR48: 56 | CS48: 56 | CT48: =CEILING(MAX(BO48:BO77),1)+1 -> 6
D49: 55 | E49: 1.202138772e-07 | F49: 2.053493265e-05 | G49: 5.607817212e-08 | H49: 1.12294273e-07 | I49: 2.438996675e-07 | J49: 7.055670416e-08 | K49: 0.0003227444466 | L49: 0.0004782899161 | M49: 4.693869311e-05 | N49: 2.594141081e-05 | O49: 5.685798524e-05 | P49: 5.835674833e-05 | Q49: 0.001609672264 | R49: 0.005248842901 | S49: 1.573812774e-07 | T49: 0.02184507263 | U49: 0.6989543577 | V49: 0.0001013358866 | W49: 0.04076190099 | X49: 0.9987710809 | AI49: -100.2077978 | AJ49: -139.0386032 | AK49: -111.4211196 | AL49: -60.37004593 | AM49: -45.77365798 | AN49: 128.4302923 | AO49: -93.30633002 | AP49: -93.03164274 | AQ49: 18.68412035 | AR49: 68.1016063 | AS49: 80.95658869 | AT49: 89.34786399 | AU49: 128.6258867 | AV49: -6.098973579 | AW49: -4.626733484 | AX49: -154.1726623 | AY49: 0 | AZ49: 42.04485759 | BA49: -44.02588914 | BB49: 180 | BM49: 0.01742287569 | BN49: 2.670891916 | BO49: 2.671297392 | BP49: =IF(MIN(BO$48:BO$77)=$BP$47,BO49,IF(BO49=MIN(BO$48:BO$77),BP$47,IF(BO49="",$CT49,BO49))) -> 2.671297392 | BQ49: 2.671297392 | BR49: 2.671297392 | BS49: 2.671297392 | BT49: 2.671297392 | BU49: 2.671297392 | BV49: 2.671297392 | BW49: 2.671297392 | BX49: 2.671297392 | BY49: 2.671297392 | BZ49: 2.671297392 | CA49: 2.671297392 | CB49: 2.671297392 | CC49: 2.671297392 | CD49: 2.671297392 | CE49: 2.671297392 | CF49: 2.671297392 | CG49: 2.671297392 | CH49: 55 | CI49: 55 | CJ49: 55 | CK49: 55 | CL49: 55 | CM49: 55 | CN49: 55 | CO49: 55 | CP49: 55 | CQ49: 55 | CR49: 55 | CS49: 55 | CT49: =CT48+1 -> 7
D50: 54 | E50: 3.21326679e-09 | F50: 7.789760666e-08 | G50: 6.054112592e-07 | H50: 3.490062921e-07 | I50: 1.497234718e-07 | J50: 2.479487063e-08 | K50: 2.12530521e-05 | L50: 2.422289236e-05 | M50: 2.32135694e-05 | N50: 3.166537826e-05 | O50: 2.623245536e-05 | P50: 1.500728362e-05 | Q50: 0.0001809455728 | R50: 0.0001205279158 | S50: 0.9529066297 | T50: 0.02012387104 | U50: 0.001024518478 | V50: 0.0003927923788 | W50: 0.001248463605 | X50: 1.763845224e-07 | AI50: -156.7042535 | AJ50: 81.1170354 | AK50: 29.20924193 | AL50: -26.39368521 | AM50: -62.7403888 | AN50: 68.08493317 | AO50: -4.956369066 | AP50: -178.113856 | AQ50: 97.34656567 | AR50: -94.41503294 | AS50: -90.4260535 | AT50: -173.797664 | AU50: 93.58666287 | AV50: 89.14391009 | AW50: 180 | AX50: 2.764870007 | AY50: -37.94318749 | AZ50: 0.183471738 | BA50: -176.1122379 | BB50: 126.64787 | BM50: 0.05984245889 | BN50: 2.57735589 | BO50: 2.581983232 | BP50: =IF(MIN(BO$48:BO$77)=$BP$47,BO50,IF(BO50=MIN(BO$48:BO$77),BP$47,IF(BO50="",$CT50,BO50))) -> 2.581983232 | BQ50: 2.581983232 | BR50: 2.581983232 | BS50: 2.581983232 | BT50: 2.581983232 | BU50: 2.581983232 | BV50: 2.581983232 | BW50: 2.581983232 | BX50: 2.581983232 | BY50: 2.581983232 | BZ50: 2.581983232 | CA50: 2.581983232 | CB50: 2.581983232 | CC50: 2.581983232 | CD50: 2.581983232 | CE50: 2.581983232 | CF50: 2.581983232 | CG50: 54 | CH50: 54 | CI50: 54 | CJ50: 54 | CK50: 54 | CL50: 54 | CM50: 54 | CN50: 54 | CO50: 54 | CP50: 54 | CQ50: 54 | CR50: 54 | CS50: 54 | CT50: 8
D51: 52 | E51: 4.020939944e-09 | F51: 8.531219853e-07 | G51: 2.356105538e-09 | H51: 4.80332379e-09 | I51: 1.045444933e-08 | J51: 2.965087589e-09 | K51: 1.688198831e-05 | L51: 2.459017871e-05 | M51: 2.144486512e-06 | N51: 1.499777546e-06 | O51: 3.027596533e-06 | P51: 3.401964633e-06 | Q51: 9.577771383e-05 | R51: 0.0003125696793 | S51: 2.707122286e-07 | T51: 0.00367662225 | U51: 0.1190058739 | V51: 1.185185535e-06 | W51: 0.02121534586 | X51: 0.0005646708505 | AI51: 79.48010467 | AJ51: 40.91733162 | AK51: 67.90640063 | AL51: 118.4031821 | AM51: 132.5968293 | AN51: -52.62489156 | AO51: 86.53887573 | AP51: 86.79597673 | AQ51: -156.993814 | AR51: -118.6866392 | AS51: -97.52348123 | AT51: -91.74144204 | AU51: -51.28065606 | AV51: 173.9866076 | AW51: -171.4970111 | AX51: 26.16485821 | AY51: -179.5977277 | AZ51: -14.05017574 | BA51: 6.727965956 | BB51: 179.1964343 | BM51: 0.08979006407 | BN51: 2.409200113 | BO51: 2.418971028 | BP51: =IF(MIN(BO$48:BO$77)=$BP$47,BO51,IF(BO51=MIN(BO$48:BO$77),BP$47,IF(BO51="",$CT51,BO51))) -> 2.418971028 | BQ51: 2.418971028 | BR51: 2.418971028 | BS51: 2.418971028 | BT51: 2.418971028 | BU51: 2.418971028 | BV51: 2.418971028 | BW51: 2.418971028 | BX51: 2.418971028 | BY51: 2.418971028 | BZ51: 2.418971028 | CA51: 2.418971028 | CB51: 2.418971028 | CC51: 2.418971028 | CD51: 2.418971028 | CE51: 52 | CF51: 52 | CG51: 52 | CH51: 52 | CI51: 52 | CJ51: 52 | CK51: 52 | CL51: 52 | CM51: 52 | CN51: 52 | CO51: 52 | CP51: 52 | CQ51: 52 | CR51: 52 | CS51: 52 | CT51: 9
D52: 51 | E52: 4.078164939e-10 | F52: 1.082224411e-08 | G52: 1.275460038e-07 | H52: 8.069328439e-08 | I52: 3.342622977e-08 | J52: 1.455274959e-09 | K52: 3.066130317e-06 | L52: 3.768948863e-06 | M52: 1.156641431e-05 | N52: 2.205793067e-05 | O52: 6.812405956e-06 | P52: 2.19795353e-05 | Q52: 0.0002063654442 | R52: 0.0001349097141 | S52: 0.0002826580862 | T52: 0.0965809128 | U52: 0.00486182561 | V52: 0.0005199924653 | W52: 0.00152164627 | X52: 1.512367771e-06 | AI52: -24.29763436 | AJ52: -92.29638429 | AK52: -154.9260237 | AL52: 146.9681386 | AM52: 109.4324538 | AN52: 167.9002533 | AO52: -155.9163356 | AP52: -3.44946377 | AQ52: -112.9268568 | AR52: -91.41979452 | AS52: -107.5725206 | AT52: 173.2185136 | AU52: 93.45088849 | AV52: 90.40975081 | AW52: 3.210160495 | AX52: -0.215974718 | AY52: -41.53752539 | AZ52: 178.3978639 | BA52: -78.71133419 | BB52: -175.3474601 | BM52: 0.1162460344 | BN52: 2.378776356 | BO52: 2.395013473 | BP52: =IF(MIN(BO$48:BO$77)=$BP$47,BO52,IF(BO52=MIN(BO$48:BO$77),BP$47,IF(BO52="",$CT52,BO52))) -> 2.395013473 | BQ52: 2.395013473 | BR52: 2.395013473 | BS52: 2.395013473 | BT52: 2.395013473 | BU52: 2.395013473 | BV52: 2.395013473 | BW52: 2.395013473 | BX52: 2.395013473 | BY52: 2.395013473 | BZ52: 2.395013473 | CA52: 2.395013473 | CB52: 2.395013473 | CC52: 2.395013473 | CD52: 51 | CE52: 51 | CF52: 51 | CG52: 51 | CH52: 51 | CI52: 51 | CJ52: 51 | CK52: 51 | CL52: 51 | CM52: 51 | CN52: 51 | CO52: 51 | CP52: 51 | CQ52: 51 | CR52: 51 | CS52: 51 | CT52: 10
D53: 53 | E53: 1.185448447e-08 | F53: 2.90906259e-09 | G53: 5.027348273e-10 | H53: 1.771960886e-09 | I53: 4.052150002e-09 | J53: 1.896466063e-10 | K53: 6.489532953e-07 | L53: 1.592930885e-06 | M53: 3.217724829e-07 | N53: 1.56489588e-06 | O53: 1.920002387e-06 | P53: 3.476221834e-06 | Q53: 3.014028227e-06 | R53: 1.452119388e-05 | S53: 1.897204971e-06 | T53: 0.0008587483484 | U53: 0.005140647713 | V53: 1.162054316e-05 | W53: 0.789105136 | X53: 0.0002022975138 | AI53: 77.68913986 | AJ53: 107.6077221 | AK53: -137.9082793 | AL53: -98.55054043 | AM53: -89.90292838 | AN53: -69.04885706 | AO53: 74.60808047 | AP53: 93.03416629 | AQ53: 164.3797094 | AR53: -5.260632273 | AS53: -175.2567663 | AT53: 88.98244103 | AU53: -88.39499325 | AV53: 174.4529029 | AW53: -132.7110165 | AX53: -90.35927619 | AY53: 10.30977146 | AZ53: -95.88110574 | BA53: 0 | BB53: -28.50761772 | BM53: 0.1307121508 | BN53: 2.427123878 | BO53: 2.44812793 | BP53: =IF(MIN(BO$48:BO$77)=$BP$47,BO53,IF(BO53=MIN(BO$48:BO$77),BP$47,IF(BO53="",$CT53,BO53))) -> 2.44812793 | BQ53: 2.44812793 | BR53: 2.44812793 | BS53: 2.44812793 | BT53: 2.44812793 | BU53: 2.44812793 | BV53: 2.44812793 | BW53: 2.44812793 | BX53: 2.44812793 | BY53: 2.44812793 | BZ53: 2.44812793 | CA53: 2.44812793 | CB53: 2.44812793 | CC53: 2.44812793 | CD53: 2.44812793 | CE53: 2.44812793 | CF53: 53 | CG53: 53 | CH53: 53 | CI53: 53 | CJ53: 53 | CK53: 53 | CL53: 53 | CM53: 53 | CN53: 53 | CO53: 53 | CP53: 53 | CQ53: 53 | CR53: 53 | CS53: 53 | CT53: 11
D54: 50 | E54: 1.993468727e-07 | F54: 1.248755278e-06 | G54: 1.085880792e-05 | H54: 9.121620547e-06 | I54: 4.06414833e-06 | J54: 3.910764822e-06 | K54: 0.001144503687 | L54: 0.001453736753 | M54: 0.004106922304 | N54: 0.007830121469 | O54: 0.00444026429 | P54: 0.006130662762 | Q54: 0.05744423856 | R54: 0.0374465311 | S54: 0.00130236651 | T54: 0.4569785918 | U54: 0.02333424471 | V54: 0.0007861960914 | W54: 0.01861071262 | X54: 5.595589843e-06 | AI54: -79.50101305 | AJ54: -143.8467372 | AK54: 11.53937866 | AL54: -49.19278838 | AM54: -90.54037159 | AN54: -94.34043242 | AO54: 26.95627736 | AP54: 168.8957863 | AQ54: 68.78254082 | AR54: 88.88288966 | AS54: 81.17105118 | AT54: -6.984579785 | AU54: -86.55274758 | AV54: -90.03362005 | AW54: 176.1939684 | AX54: 0.9991938666 | AY54: -38.87778118 | AZ54: 173.195191 | BA54: -75.6082733 | BB54: -158.4850885 | BM54: 0.02839438878 | BN54: 0.6969409798 | BO54: 0.6972221012 | BP54: =IF(MIN(BO$48:BO$77)=$BP$47,BO54,IF(BO54=MIN(BO$48:BO$77),BP$47,IF(BO54="",$CT54,BO54))) -> 0.6972221012 | BQ54: 0.6972221012 | BR54: 0.6972221012 | BS54: 0.6972221012 | BT54: 0.6972221012 | BU54: 0.6972221012 | BV54: 0.6972221012 | BW54: 0.6972221012 | BX54: 0.6972221012 | BY54: 0.6972221012 | BZ54: 0.6972221012 | CA54: 0.6972221012 | CB54: 0.6972221012 | CC54: 50 | CD54: 50 | CE54: 50 | CF54: 50 | CG54: 50 | CH54: 50 | CI54: 50 | CJ54: 50 | CK54: 50 | CL54: 50 | CM54: 50 | CN54: 50 | CO54: 50 | CP54: 50 | CQ54: 50 | CR54: 50 | CS54: 50 | CT54: 12
D55: 49 | E55: 6.095321364e-05 | F55: 8.044462468e-05 | G55: 7.164136226e-07 | H55: 2.5638434e-06 | I55: 6.4756171e-06 | J55: 1.545734699e-07 | K55: 0.0064979633 | L55: 0.007267319973 | M55: 0.0005574261292 | N55: 0.0008530017015 | O55: 0.0008786073819 | P55: 0.00123022598 | Q55: 0.02698407342 | R55: 0.087661276 | S55: 1.397131507e-06 | T55: 0.01811956439 | U55: 0.5670123686 | V55: 3.278281654e-06 | W55: 0.05191156953 | X55: 0.0008767199554 | AI55: 79.92354523 | AJ55: -143.6168409 | AK55: -147.3795588 | AL55: -84.04470459 | AM55: -72.74952013 | AN55: 87.77499968 | AO55: -93.02434882 | AP55: -93.36637484 | AQ55: 139.7680361 | AR55: 40.48819797 | AS55: 89.62948638 | AT55: 84.35117073 | AU55: 128.76617 | AV55: -6.161932937 | AW55: 66.58342089 | AX55: 28.04282063 | AY55: -178.4517542 | AZ55: -19.52686208 | BA55: 18.01287913 | BB55: 176.7494078 | BM55: 0.02776026798 | BN55: 0.6711722513 | BO55: 0.6714310144 | BP55: =IF(MIN(BO$48:BO$77)=$BP$47,BO55,IF(BO55=MIN(BO$48:BO$77),BP$47,IF(BO55="",$CT55,BO55))) -> 0.6714310144 | BQ55: 0.6714310144 | BR55: 0.6714310144 | BS55: 0.6714310144 | BT55: 0.6714310144 | BU55: 0.6714310144 | BV55: 0.6714310144 | BW55: 0.6714310144 | BX55: 0.6714310144 | BY55: 0.6714310144 | BZ55: 0.6714310144 | CA55: 0.6714310144 | CB55: 49 | CC55: 49 | CD55: 49 | CE55: 49 | CF55: 49 | CG55: 49 | CH55: 49 | CI55: 49 | CJ55: 49 | CK55: 49 | CL55: 49 | CM55: 49 | CN55: 49 | CO55: 49 | CP55: 49 | CQ55: 49 | CR55: 49 | CS55: 49 | CT55: 13
D56: 48 | E56: 1.279590991e-07 | F56: 2.17682063e-06 | G56: 2.215617537e-05 | H56: 1.290725374e-05 | I56: 5.288134524e-06 | J56: 2.762192487e-07 | K56: 2.61804483e-05 | L56: 2.662425065e-05 | M56: 5.754714726e-05 | N56: 9.003511755e-05 | O56: 5.088785143e-05 | P56: 6.766382155e-05 | Q56: 0.0002377916543 | R56: 0.0001658889585 | S56: 5.18523764e-05 | T56: 0.0009422472002 | U56: 5.190856598e-05 | V56: 2.199486793e-06 | W56: 0.0002696667964 | X56: 3.299867524e-08 | AI56: 152.6546062 | AJ56: 82.83476155 | AK56: 28.64839371 | AL56: -26.89011495 | AM56: -62.31529213 | AN56: 25.25484748 | AO56: 26.75694471 | AP56: -164.979518 | AQ56: 71.65576672 | AR56: 96.24929363 | AS56: -86.3053468 | AT56: 3.477197983 | AU56: 92.9631858 | AV56: 88.98472944 | AW56: 0.7998381326 | AX56: 0.2806381843 | AY56: -45.42173267 | AZ56: 172.7251433 | BA56: 104.8012966 | BB56: 68.12210007 | BM56: 0.03088586247 | BN56: 0.6211151256 | BO56: 0.62141159 | BP56: =IF(MIN(BO$48:BO$77)=$BP$47,BO56,IF(BO56=MIN(BO$48:BO$77),BP$47,IF(BO56="",$CT56,BO56))) -> 0.62141159 | BQ56: 0.62141159 | BR56: 0.62141159 | BS56: 0.62141159 | BT56: 0.62141159 | BU56: 0.62141159 | BV56: 0.62141159 | BW56: 0.62141159 | BX56: 0.62141159 | BY56: 0.62141159 | BZ56: 0.62141159 | CA56: 48 | CB56: 48 | CC56: 48 | CD56: 48 | CE56: 48 | CF56: 48 | CG56: 48 | CH56: 48 | CI56: 48 | CJ56: 48 | CK56: 48 | CL56: 48 | CM56: 48 | CN56: 48 | CO56: 48 | CP56: 48 | CQ56: 48 | CR56: 48 | CS56: 48 | CT56: 14
D57: 47 | E57: 3.549474024e-06 | F57: 0.0001539664815 | G57: 3.724152806e-07 | H57: 7.20610496e-07 | I57: 1.505096736e-06 | J57: 4.925617055e-07 | K57: 0.0001380177645 | L57: 0.0002378551653 | M57: 4.647146228e-05 | N57: 1.198207718e-05 | O57: 1.469103444e-05 | P57: 4.007021657e-06 | Q57: 0.0001226453344 | R57: 0.0004088214193 | S57: 3.564118703e-08 | T57: 3.180983651e-05 | U57: 0.001109404729 | V57: 1.388629899e-08 | W57: 0.0001027654558 | X57: 2.401288046e-06 | AI57: -99.63451926 | AJ57: -138.5643978 | AK57: -102.772987 | AL57: -51.56994445 | AM57: -34.91836457 | AN57: 136.2607211 | AO57: -88.27503055 | AP57: -88.44924391 | AQ57: 5.038757037 | AR57: 163.552107 | AS57: 72.30926365 | AT57: 179.9575066 | AU57: -51.78613079 | AV57: 173.5875489 | AW57: -82.82797953 | AX57: 7.677648125 | AY57: -179.0775611 | AZ57: 53.41108101 | BA57: 13.6623797 | BB57: 176.4783551 | BM57: 0.02758262361 | BN57: 0.6028137383 | BO57: 0.6030431799 | BP57: =IF(MIN(BO$48:BO$77)=$BP$47,BO57,IF(BO57=MIN(BO$48:BO$77),BP$47,IF(BO57="",$CT57,BO57))) -> 0.6030431799 | BQ57: 0.6030431799 | BR57: 0.6030431799 | BS57: 0.6030431799 | BT57: 0.6030431799 | BU57: 0.6030431799 | BV57: 0.6030431799 | BW57: 0.6030431799 | BX57: 0.6030431799 | BY57: 0.6030431799 | BZ57: 47 | CA57: 47 | CB57: 47 | CC57: 47 | CD57: 47 | CE57: 47 | CF57: 47 | CG57: 47 | CH57: 47 | CI57: 47 | CJ57: 47 | CK57: 47 | CL57: 47 | CM57: 47 | CN57: 47 | CO57: 47 | CP57: 47 | CQ57: 47 | CR57: 47 | CS57: 47 | CT57: 15
D58: 46 | E58: 1.018886882e-05 | F58: 3.494335222e-06 | G58: 1.328044497e-07 | H58: 4.022785371e-07 | I58: 8.978643037e-07 | J58: 3.224420056e-08 | K58: 6.8894737e-06 | L58: 2.000161961e-05 | M58: 4.259586127e-06 | N58: 2.140430374e-05 | O58: 2.327829264e-05 | P58: 3.707512451e-05 | Q58: 1.371033197e-05 | R58: 6.264135316e-05 | S58: 1.127129906e-07 | T58: 3.984380249e-05 | U58: 0.000341767342 | V58: 3.744797434e-08 | W58: 5.037669977e-05 | X58: 5.30517633e-07 | AI58: -100.1150002 | AJ58: 30.25965378 | AK58: 50.02266801 | AL58: 92.45453151 | AM58: 104.1740353 | AN58: 119.6333241 | AO58: -111.8878846 | AP58: -82.45513176 | AQ58: -17.27537887 | AR58: 178.0141701 | AS58: 5.783160123 | AT58: -88.5077689 | AU58: 62.44273589 | AV58: -5.588153949 | AW58: 94.04053854 | AX58: 76.98382223 | AY58: -178.6790229 | AZ58: -86.15587146 | BA58: 21.95812035 | BB58: 176.8591144 | BM58: 0.02890569117 | BN58: 0.5708321875 | BO58: 0.5710708133 | BP58: =IF(MIN(BO$48:BO$77)=$BP$47,BO58,IF(BO58=MIN(BO$48:BO$77),BP$47,IF(BO58="",$CT58,BO58))) -> 0.5710708133 | BQ58: 0.5710708133 | BR58: 0.5710708133 | BS58: 0.5710708133 | BT58: 0.5710708133 | BU58: 0.5710708133 | BV58: 0.5710708133 | BW58: 0.5710708133 | BX58: 0.5710708133 | BY58: 46 | BZ58: 46 | CA58: 46 | CB58: 46 | CC58: 46 | CD58: 46 | CE58: 46 | CF58: 46 | CG58: 46 | CH58: 46 | CI58: 46 | CJ58: 46 | CK58: 46 | CL58: 46 | CM58: 46 | CN58: 46 | CO58: 46 | CP58: 46 | CQ58: 46 | CR58: 46 | CS58: 46 | CT58: 16
D59: 45 | E59: 9.792955381e-05 | F59: 0.005071144255 | G59: 0.0008060562334 | H59: 0.0009009715886 | I59: 0.0005658183551 | J59: 0.04447053838 | K59: 0.00929315123 | L59: 0.01832068551 | M59: 0.02608768285 | N59: 0.06859834986 | O59: 0.2069150982 | P59: 0.06176538704 | Q59: 0.1192351628 | R59: 0.09058931574 | S59: 0.004346151801 | T59: 0.5574517648 | U59: 0.03921645407 | V59: 0.00095003705 | W59: 0.01145515067 | X59: 2.222877205e-05 | AI59: 96.88846519 | AJ59: 101.8340739 | AK59: 84.45892909 | AL59: 69.20337729 | AM59: 54.45028441 | AN59: 82.49788734 | AO59: 96.61282614 | AP59: 58.12061988 | AQ59: -110.9080412 | AR59: -87.59091668 | AS59: -91.65640483 | AT59: -3.530820855 | AU59: -95.23093871 | AV59: -65.22738378 | AW59: 1.939167379 | AX59: 0.875937379 | AY59: -78.37626742 | AZ59: 173.1514231 | BA59: -76.42681644 | BB59: -112.5672049 | BM59: 0.02922908891 | BN59: 0.5297260149 | BO59: 0.529952443 | BP59: =IF(MIN(BO$48:BO$77)=$BP$47,BO59,IF(BO59=MIN(BO$48:BO$77),BP$47,IF(BO59="",$CT59,BO59))) -> 0.529952443 | BQ59: 0.529952443 | BR59: 0.529952443 | BS59: 0.529952443 | BT59: 0.529952443 | BU59: 0.529952443 | BV59: 0.529952443 | BW59: 0.529952443 | BX59: 45 | BY59: 45 | BZ59: 45 | CA59: 45 | CB59: 45 | CC59: 45 | CD59: 45 | CE59: 45 | CF59: 45 | CG59: 45 | CH59: 45 | CI59: 45 | CJ59: 45 | CK59: 45 | CL59: 45 | CM59: 45 | CN59: 45 | CO59: 45 | CP59: 45 | CQ59: 45 | CR59: 45 | CS59: 45 | CT59: 17
D60: 44 | E60: 0.0003365398057 | F60: 0.006788692371 | G60: 0.04200929595 | H60: 0.0407474887 | I60: 0.02064145031 | J60: 0.001165884869 | K60: 0.01759794876 | L60: 0.00537737088 | M60: 0.05705068816 | N60: 0.1987319078 | O60: 0.09059876128 | P60: 0.1489128931 | Q60: 0.2945746498 | R60: 0.2153718499 | S60: 0.001382962766 | T60: 0.1356881237 | U60: 0.0249367676 | V60: 5.021858049e-05 | W60: 0.5673215017 | X60: 0.0001122085621 | AI60: -119.3448681 | AJ60: 92.95100337 | AK60: 85.51978007 | AL60: 84.14933462 | AM60: 45.43931952 | AN60: -136.9127854 | AO60: 96.25637606 | AP60: -88.04285271 | AQ60: -95.88594846 | AR60: -91.58056838 | AS60: 91.0679359 | AT60: 179.821649 | AU60: -90.50940569 | AV60: -90.44254814 | AW60: 179.7732531 | AX60: 1.863114709 | AY60: 165.5816159 | AZ60: 178.7519626 | BA60: -75.0482483 | BB60: -146.685426 | BM60: 0.008890689374 | BN60: 0.4276687242 | BO60: 0.4276856276 | BP60: =IF(MIN(BO$48:BO$77)=$BP$47,BO60,IF(BO60=MIN(BO$48:BO$77),BP$47,IF(BO60="",$CT60,BO60))) -> 0.4276856276 | BQ60: 0.4276856276 | BR60: 0.4276856276 | BS60: 0.4276856276 | BT60: 0.4276856276 | BU60: 0.4276856276 | BV60: 0.4276856276 | BW60: 44 | BX60: 44 | BY60: 44 | BZ60: 44 | CA60: 44 | CB60: 44 | CC60: 44 | CD60: 44 | CE60: 44 | CF60: 44 | CG60: 44 | CH60: 44 | CI60: 44 | CJ60: 44 | CK60: 44 | CL60: 44 | CM60: 44 | CN60: 44 | CO60: 44 | CP60: 44 | CQ60: 44 | CR60: 44 | CS60: 44 | CT60: 18
D61: 43 | E61: 0.02375264218 | F61: 0.04012678681 | G61: 0.00614759395 | H61: 0.01890273013 | I61: 0.04041503412 | J61: 0.001363238697 | K61: 0.01319499662 | L61: 0.02201668744 | M61: 0.03609610782 | N61: 0.1225687071 | O61: 0.1424120968 | P61: 0.23706739 | Q61: 0.09175904348 | R61: 0.1390074256 | S61: 0.001461259092 | T61: 0.2282703908 | U61: 0.04687703797 | V61: 0.0002483507301 | W61: 0.112028038 | X61: 6.522904574e-05 | AI61: 88.13053941 | AJ61: -92.55018399 | AK61: 47.58502577 | AL61: 72.98435336 | AM61: 83.23159415 | AN61: 121.5829898 | AO61: 22.44206618 | AP61: 131.1008644 | AQ61: 127.916917 | AR61: -179.6100446 | AS61: -3.272304725 | AT61: -91.67494199 | AU61: 9.602994539 | AV61: -5.991107965 | AW61: 31.98518978 | AX61: 91.40048021 | AY61: 170.081742 | AZ61: -88.24106793 | BA61: 26.82005397 | BB61: -177.7174667 | BM61: 0.007723845279 | BN61: 0.4250917574 | BO61: 0.425104438 | BP61: =IF(MIN(BO$48:BO$77)=$BP$47,BO61,IF(BO61=MIN(BO$48:BO$77),BP$47,IF(BO61="",$CT61,BO61))) -> 0.425104438 | BQ61: 0.425104438 | BR61: 0.425104438 | BS61: 0.425104438 | BT61: 0.425104438 | BU61: 0.425104438 | BV61: 43 | BW61: 43 | BX61: 43 | BY61: 43 | BZ61: 43 | CA61: 43 | CB61: 43 | CC61: 43 | CD61: 43 | CE61: 43 | CF61: 43 | CG61: 43 | CH61: 43 | CI61: 43 | CJ61: 43 | CK61: 43 | CL61: 43 | CM61: 43 | CN61: 43 | CO61: 43 | CP61: 43 | CQ61: 43 | CR61: 43 | CS61: 43 | CT61: 19
D62: 42 | E62: 0.000530574639 | F62: 0.005774949481 | G62: 1.294051573e-05 | H62: 1.699708741e-05 | I62: 3.821035161e-05 | J62: 1.814305633e-05 | K62: 0.08759540469 | L62: 0.1565241163 | M62: 0.03064482351 | N62: 0.01186188406 | O62: 0.0113710106 | P62: 0.007563398147 | Q62: 0.06186301258 | R62: 0.1721197282 | S62: 0.0002851081819 | T62: 0.03439885037 | U62: 0.07615732728 | V62: 6.228403479e-05 | W62: 0.001252450773 | X62: 1.631464542e-05 | AI62: 80.42602383 | AJ62: 42.57698234 | AK62: 86.03781822 | AL62: 157.6275521 | AM62: -174.2457714 | AN62: 17.03747991 | AO62: -92.65148419 | AP62: -91.59075055 | AQ62: -2.875839806 | AR62: -164.6028146 | AS62: -45.32680211 | AT62: -72.11367074 | AU62: -57.3160852 | AV62: 172.9324758 | AW62: 2.386282773 | AX62: -0.7544661587 | AY62: 1.09886666 | AZ62: 173.2001154 | BA62: 11.32670334 | BB62: -3.064788559 | BM62: 0.005635320415 | BN62: 0.05057883383 | BO62: 0.05057963696 | BP62: =IF(MIN(BO$48:BO$77)=$BP$47,BO62,IF(BO62=MIN(BO$48:BO$77),BP$47,IF(BO62="",$CT62,BO62))) -> 0.05057963696 | BQ62: 0.05057963696 | BR62: 0.05057963696 | BS62: 0.05057963696 | BT62: 0.05057963696 | BU62: 42 | BV62: 42 | BW62: 42 | BX62: 42 | BY62: 42 | BZ62: 42 | CA62: 42 | CB62: 42 | CC62: 42 | CD62: 42 | CE62: 42 | CF62: 42 | CG62: 42 | CH62: 42 | CI62: 42 | CJ62: 42 | CK62: 42 | CL62: 42 | CM62: 42 | CN62: 42 | CO62: 42 | CP62: 42 | CQ62: 42 | CR62: 42 | CS62: 42 | CT62: 20
D63: 40 | E63: 0.0002432223022 | F63: 0.0003790819514 | G63: 0.0001155259827 | H63: 5.414498192e-05 | I63: 1.390062554e-05 | J63: 2.54262142e-06 | K63: 0.1628679105 | L63: 0.08461754579 | M63: 0.1648163537 | N63: 0.04429242968 | O63: 0.004405173827 | P63: 0.008441669849 | Q63: 0.04357301099 | R63: 0.0919799985 | S63: 0.0001270787884 | T63: 0.004599820077 | U63: 0.3366932071 | V63: 4.876842565e-06 | W63: 0.05340453739 | X63: 0.0005103106047 | AI63: -99.89329734 | AJ63: 41.76078199 | AK63: 39.78237089 | AL63: 5.76247695 | AM63: 39.51911322 | AN63: 62.95291791 | AO63: -91.62709733 | AP63: 84.70299879 | AQ63: 177.6254931 | AR63: -4.227310067 | AS63: 6.975388076 | AT63: -109.9856127 | AU63: -69.12146052 | AV63: 178.7292439 | AW63: 112.9171583 | AX63: -105.6817941 | AY63: 1.46711931 | AZ63: 176.57602 | BA63: -119.2244786 | BB63: -3.710314498 | BM63: 0.02364328845 | BN63: 0.03611230888 | BO63: 0.0361224066 | BP63: =IF(MIN(BO$48:BO$77)=$BP$47,BO63,IF(BO63=MIN(BO$48:BO$77),BP$47,IF(BO63="",$CT63,BO63))) -> 0.0361224066 | BQ63: 0.0361224066 | BR63: 0.0361224066 | BS63: 40 | BT63: 40 | BU63: 40 | BV63: 40 | BW63: 40 | BX63: 40 | BY63: 40 | BZ63: 40 | CA63: 40 | CB63: 40 | CC63: 40 | CD63: 40 | CE63: 40 | CF63: 40 | CG63: 40 | CH63: 40 | CI63: 40 | CJ63: 40 | CK63: 40 | CL63: 40 | CM63: 40 | CN63: 40 | CO63: 40 | CP63: 40 | CQ63: 40 | CR63: 40 | CS63: 40 | CT63: 21
D64: 41 | E64: 0.0002307640437 | F64: 0.0001430470287 | G64: 0.0001854408857 | H64: 0.0001112357428 | I64: 5.167956875e-05 | J64: 5.440051025e-06 | K64: 0.1205051855 | L64: 0.1430757458 | M64: 0.1671168144 | N64: 0.0575876023 | O64: 0.02033492469 | P64: 0.01499614445 | Q64: 0.02853791869 | R64: 0.03021796459 | S64: 0.01422678226 | T64: 0.03946096485 | U64: 0.0009050932824 | V64: 3.939124265e-05 | W64: 0.006778776483 | X64: 2.952666826e-06 | AI64: 81.24039846 | AJ64: -141.0687925 | AK64: 29.66799983 | AL64: -25.58457741 | AM64: -54.77205097 | AN64: 62.67514105 | AO64: 178.2091165 | AP64: -0.9086667306 | AQ64: -91.76991104 | AR64: 94.48676946 | AS64: 71.00540827 | AT64: -30.13628933 | AU64: -73.0191945 | AV64: -81.518513 | AW64: -179.8624963 | AX64: 23.31730442 | AY64: 129.2442531 | AZ64: -162.5088505 | BA64: 23.398062 | BB64: -175.6633911 | BM64: 0.02283224253 | BN64: 0.03621768827 | BO64: 0.03622713231 | BP64: =IF(MIN(BO$48:BO$77)=$BP$47,BO64,IF(BO64=MIN(BO$48:BO$77),BP$47,IF(BO64="",$CT64,BO64))) -> 0.03622713231 | BQ64: 0.03622713231 | BR64: 0.03622713231 | BS64: 0.03622713231 | BT64: 41 | BU64: 41 | BV64: 41 | BW64: 41 | BX64: 41 | BY64: 41 | BZ64: 41 | CA64: 41 | CB64: 41 | CC64: 41 | CD64: 41 | CE64: 41 | CF64: 41 | CG64: 41 | CH64: 41 | CI64: 41 | CJ64: 41 | CK64: 41 | CL64: 41 | CM64: 41 | CN64: 41 | CO64: 41 | CP64: 41 | CQ64: 41 | CR64: 41 | CS64: 41 | CT64: 22
D65: 37 | E65: 0.0001786956999 | F65: 0.005841672643 | G65: 0.0008413297578 | H65: 0.0009498063315 | I65: 0.0005943215406 | J65: 0.04716020232 | K65: 0.005695376991 | L65: 0.00877363779 | M65: 0.004890837125 | N65: 0.01021139603 | O65: 0.01228505432 | P65: 0.001614386005 | Q65: 0.01702963622 | R65: 0.01319768825 | S65: 0.001370263065 | T65: 0.1754085249 | U65: 0.01280457391 | V65: 0.0003000666224 | W65: 0.002721408563 | X65: 6.45947898e-06 | AI65: -90.21918849 | AJ65: -85.17559904 | AK65: -94.73455951 | AL65: -110.231838 | AM65: -124.7978594 | AN65: -97.51074671 | AO65: -107.4282054 | AP65: -76.7167679 | AQ65: -92.56534557 | AR65: -93.67668741 | AS65: -91.48405297 | AT65: 178.6904689 | AU65: 88.00011795 | AV65: 113.8448242 | AW65: -178.0664318 | AX65: -179.1497098 | AY65: 113.6879923 | AZ65: -6.851531313 | BA65: 104.2085796 | BB65: 71.71128998 | BM65: 0.04753561606 | BN65: 0.007675001036 | BO65: 0.007683687109 | BP65: =IF(MIN(BO$48:BO$77)=$BP$47,BO65,IF(BO65=MIN(BO$48:BO$77),BP$47,IF(BO65="",$CT65,BO65))) -> 37 | BQ65: 37 | BR65: 37 | BS65: 37 | BT65: 37 | BU65: 37 | BV65: 37 | BW65: 37 | BX65: 37 | BY65: 37 | BZ65: 37 | CA65: 37 | CB65: 37 | CC65: 37 | CD65: 37 | CE65: 37 | CF65: 37 | CG65: 37 | CH65: 37 | CI65: 37 | CJ65: 37 | CK65: 37 | CL65: 37 | CM65: 37 | CN65: 37 | CO65: 37 | CP65: 37 | CQ65: 37 | CR65: 37 | CS65: 37 | CT65: 23
D66: 39 | E66: 0.0003920103404 | F66: 0.007135752148 | G66: 0.04402166659 | H66: 0.04342046142 | I66: 0.02196339531 | J66: 0.001259989091 | K66: 0.01110885151 | L66: 0.003274895981 | M66: 0.01326588358 | N66: 0.01744547676 | O66: 0.004883687659 | P66: 0.01049209477 | Q66: 0.03664999922 | R66: 0.0240079353 | S66: 0.000465742168 | T66: 0.0365474511 | U66: 0.0352808975 | V66: 1.247446656e-05 | W66: 0.1657774928 | X66: 4.30637283e-05 | AI66: 63.38670074 | AJ66: -87.23976388 | AK66: -93.43077008 | AL66: -95.15152975 | AM66: -133.9760399 | AN66: 43.36517073 | AO66: -98.90069653 | AP66: 30.55910453 | AQ66: -148.6563431 | AR66: -84.2888909 | AS66: -98.98200734 | AT66: 176.6582485 | AU66: 93.67917184 | AV66: 80.65144927 | AW66: -0.7335836429 | AX66: -178.9643069 | AY66: -175.0447734 | AZ66: -0.3788523714 | BA66: 103.4245235 | BB66: 150.1163481 | BM66: 0.2533153516 | BN66: 0.01152678704 | BO66: 0.01191542339 | BP66: =IF(MIN(BO$48:BO$77)=$BP$47,BO66,IF(BO66=MIN(BO$48:BO$77),BP$47,IF(BO66="",$CT66,BO66))) -> 0.01191542339 | BQ66: 0.01191542339 | BR66: 39 | BS66: 39 | BT66: 39 | BU66: 39 | BV66: 39 | BW66: 39 | BX66: 39 | BY66: 39 | BZ66: 39 | CA66: 39 | CB66: 39 | CC66: 39 | CD66: 39 | CE66: 39 | CF66: 39 | CG66: 39 | CH66: 39 | CI66: 39 | CJ66: 39 | CK66: 39 | CL66: 39 | CM66: 39 | CN66: 39 | CO66: 39 | CP66: 39 | CQ66: 39 | CR66: 39 | CS66: 39 | CT66: 24
D67: 38 | E67: 0.02302903439 | F67: 0.04167285624 | G67: 0.006579663356 | H67: 0.02013747122 | I67: 0.04305838024 | J67: 0.001451745998 | K67: 0.006038446583 | L67: 0.008679691542 | M67: 0.00846282163 | N67: 0.002237319305 | O67: 0.003541910622 | P67: 0.005817018894 | Q67: 0.003129832865 | R67: 0.01236225065 | S67: 0.001444894957 | T67: 0.0663996776 | U67: 0.01461707839 | V67: 7.199982508e-05 | W67: 0.03249286258 | X67: 2.093926804e-05 | AI67: -91.12248108 | AJ67: 89.00169224 | AK67: -132.4633802 | AL67: -106.9730823 | AM67: -96.67549962 | AN67: -58.48420022 | AO67: 153.7228647 | AP67: 33.07683368 | AQ67: -93.28168201 | AR67: 111.7983337 | AS67: -1.943609648 | AT67: -90.47951069 | AU67: -146.0016026 | AV67: 174.188074 | AW67: -8.58716262 | AX67: -92.27424579 | AY67: -8.03834406 | AZ67: 88.03776382 | BA67: -153.3476451 | BB67: 2.268141565 | BM67: 0.02194801994 | BN67: 0.007893465618 | BO67: 0.007895367508 | BP67: =IF(MIN(BO$48:BO$77)=$BP$47,BO67,IF(BO67=MIN(BO$48:BO$77),BP$47,IF(BO67="",$CT67,BO67))) -> 0.007895367508 | BQ67: 38 | BR67: 38 | BS67: 38 | BT67: 38 | BU67: 38 | BV67: 38 | BW67: 38 | BX67: 38 | BY67: 38 | BZ67: 38 | CA67: 38 | CB67: 38 | CC67: 38 | CD67: 38 | CE67: 38 | CF67: 38 | CG67: 38 | CH67: 38 | CI67: 38 | CJ67: 38 | CK67: 38 | CL67: 38 | CM67: 38 | CN67: 38 | CO67: 38 | CP67: 38 | CQ67: 38 | CR67: 38 | CS67: 38 | CT67: 25
D68: 57 | BP68: =IF(MIN(BO$48:BO$77)=$BP$47,BO68,IF(BO68=MIN(BO$48:BO$77),BP$47,IF(BO68="",$CT68,BO68))) -> 26 | BQ68: 26 | BR68: 26 | BS68: 26 | BT68: 26 | BU68: 26 | BV68: 26 | BW68: 26 | BX68: 26 | BY68: 26 | BZ68: 26 | CA68: 26 | CB68: 26 | CC68: 26 | CD68: 26 | CE68: 26 | CF68: 26 | CG68: 26 | CH68: 26 | CI68: 26 | CJ68: 57 | CK68: 57 | CL68: 57 | CM68: 57 | CN68: 57 | CO68: 57 | CP68: 57 | CQ68: 57 | CR68: 57 | CS68: 57 | CT68: 26
D69: 58 | BP69: =IF(MIN(BO$48:BO$77)=$BP$47,BO69,IF(BO69=MIN(BO$48:BO$77),BP$47,IF(BO69="",$CT69,BO69))) -> 27 | BQ69: 27 | BR69: 27 | BS69: 27 | BT69: 27 | BU69: 27 | BV69: 27 | BW69: 27 | BX69: 27 | BY69: 27 | BZ69: 27 | CA69: 27 | CB69: 27 | CC69: 27 | CD69: 27 | CE69: 27 | CF69: 27 | CG69: 27 | CH69: 27 | CI69: 27 | CJ69: 27 | CK69: 58 | CL69: 58 | CM69: 58 | CN69: 58 | CO69: 58 | CP69: 58 | CQ69: 58 | CR69: 58 | CS69: 58 | CT69: 27
D70: 59 | BP70: =IF(MIN(BO$48:BO$77)=$BP$47,BO70,IF(BO70=MIN(BO$48:BO$77),BP$47,IF(BO70="",$CT70,BO70))) -> 28 | BQ70: 28 | BR70: 28 | BS70: 28 | BT70: 28 | BU70: 28 | BV70: 28 | BW70: 28 | BX70: 28 | BY70: 28 | BZ70: 28 | CA70: 28 | CB70: 28 | CC70: 28 | CD70: 28 | CE70: 28 | CF70: 28 | CG70: 28 | CH70: 28 | CI70: 28 | CJ70: 28 | CK70: 28 | CL70: 59 | CM70: 59 | CN70: 59 | CO70: 59 | CP70: 59 | CQ70: 59 | CR70: 59 | CS70: 59 | CT70: 28
D71: 60 | BP71: =IF(MIN(BO$48:BO$77)=$BP$47,BO71,IF(BO71=MIN(BO$48:BO$77),BP$47,IF(BO71="",$CT71,BO71))) -> 29 | BQ71: 29 | BR71: 29 | BS71: 29 | BT71: 29 | BU71: 29 | BV71: 29 | BW71: 29 | BX71: 29 | BY71: 29 | BZ71: 29 | CA71: 29 | CB71: 29 | CC71: 29 | CD71: 29 | CE71: 29 | CF71: 29 | CG71: 29 | CH71: 29 | CI71: 29 | CJ71: 29 | CK71: 29 | CL71: 29 | CM71: 60 | CN71: 60 | CO71: 60 | CP71: 60 | CQ71: 60 | CR71: 60 | CS71: 60 | CT71: 29
D72: 61 | BP72: =IF(MIN(BO$48:BO$77)=$BP$47,BO72,IF(BO72=MIN(BO$48:BO$77),BP$47,IF(BO72="",$CT72,BO72))) -> 30 | BQ72: 30 | BR72: 30 | BS72: 30 | BT72: 30 | BU72: 30 | BV72: 30 | BW72: 30 | BX72: 30 | BY72: 30 | BZ72: 30 | CA72: 30 | CB72: 30 | CC72: 30 | CD72: 30 | CE72: 30 | CF72: 30 | CG72: 30 | CH72: 30 | CI72: 30 | CJ72: 30 | CK72: 30 | CL72: 30 | CM72: 30 | CN72: 61 | CO72: 61 | CP72: 61 | CQ72: 61 | CR72: 61 | CS72: 61 | CT72: 30
D73: 62 | BP73: =IF(MIN(BO$48:BO$77)=$BP$47,BO73,IF(BO73=MIN(BO$48:BO$77),BP$47,IF(BO73="",$CT73,BO73))) -> 31 | BQ73: 31 | BR73: 31 | BS73: 31 | BT73: 31 | BU73: 31 | BV73: 31 | BW73: 31 | BX73: 31 | BY73: 31 | BZ73: 31 | CA73: 31 | CB73: 31 | CC73: 31 | CD73: 31 | CE73: 31 | CF73: 31 | CG73: 31 | CH73: 31 | CI73: 31 | CJ73: 31 | CK73: 31 | CL73: 31 | CM73: 31 | CN73: 31 | CO73: 62 | CP73: 62 | CQ73: 62 | CR73: 62 | CS73: 62 | CT73: 31
D74: 63 | BP74: =IF(MIN(BO$48:BO$77)=$BP$47,BO74,IF(BO74=MIN(BO$48:BO$77),BP$47,IF(BO74="",$CT74,BO74))) -> 32 | BQ74: 32 | BR74: 32 | BS74: 32 | BT74: 32 | BU74: 32 | BV74: 32 | BW74: 32 | BX74: 32 | BY74: 32 | BZ74: 32 | CA74: 32 | CB74: 32 | CC74: 32 | CD74: 32 | CE74: 32 | CF74: 32 | CG74: 32 | CH74: 32 | CI74: 32 | CJ74: 32 | CK74: 32 | CL74: 32 | CM74: 32 | CN74: 32 | CO74: 32 | CP74: 63 | CQ74: 63 | CR74: 63 | CS74: 63 | CT74: 32
D75: 64 | BP75: =IF(MIN(BO$48:BO$77)=$BP$47,BO75,IF(BO75=MIN(BO$48:BO$77),BP$47,IF(BO75="",$CT75,BO75))) -> 33 | BQ75: 33 | BR75: 33 | BS75: 33 | BT75: 33 | BU75: 33 | BV75: 33 | BW75: 33 | BX75: 33 | BY75: 33 | BZ75: 33 | CA75: 33 | CB75: 33 | CC75: 33 | CD75: 33 | CE75: 33 | CF75: 33 | CG75: 33 | CH75: 33 | CI75: 33 | CJ75: 33 | CK75: 33 | CL75: 33 | CM75: 33 | CN75: 33 | CO75: 33 | CP75: 33 | CQ75: 64 | CR75: 64 | CS75: 64 | CT75: 33
D76: 65 | BP76: =IF(MIN(BO$48:BO$77)=$BP$47,BO76,IF(BO76=MIN(BO$48:BO$77),BP$47,IF(BO76="",$CT76,BO76))) -> 34 | BQ76: 34 | BR76: 34 | BS76: 34 | BT76: 34 | BU76: 34 | BV76: 34 | BW76: 34 | BX76: 34 | BY76: 34 | BZ76: 34 | CA76: 34 | CB76: 34 | CC76: 34 | CD76: 34 | CE76: 34 | CF76: 34 | CG76: 34 | CH76: 34 | CI76: 34 | CJ76: 34 | CK76: 34 | CL76: 34 | CM76: 34 | CN76: 34 | CO76: 34 | CP76: 34 | CQ76: 34 | CR76: 65 | CS76: 65 | CT76: 34
D77: 66 | BP77: =IF(MIN(BO$48:BO$77)=$BP$47,BO77,IF(BO77=MIN(BO$48:BO$77),BP$47,IF(BO77="",$CT77,BO77))) -> 35 | BQ77: 35 | BR77: 35 | BS77: 35 | BT77: 35 | BU77: 35 | BV77: 35 | BW77: 35 | BX77: 35 | BY77: 35 | BZ77: 35 | CA77: 35 | CB77: 35 | CC77: 35 | CD77: 35 | CE77: 35 | CF77: 35 | CG77: 35 | CH77: 35 | CI77: 35 | CJ77: 35 | CK77: 35 | CL77: 35 | CM77: 35 | CN77: 35 | CO77: 35 | CP77: 35 | CQ77: 35 | CR77: 35 | CS77: 66 | CT77: 35

Sheet 4 RPM
A1: This worksheet is used to sort the mode shapes and frequencies and to help you determine which modes are which for up to 30 modes (up to 30 DOFs).
A2: To use this spreadsheet, paste the appropriate data output from MBC3 into the six gray cells marked with comments (DescStates, MBC_ModeShapeMagnitude, MBC_ModeShapePhaseDeg_MBC_DampingRatio, MBC_DampedFrequencyHz, MBC_NaturalFrequencyHz). The Scaling should be calculated according to the comment, but is not output by MBC3. Do not change any other cell!
A3: NOTE: This spreadsheet doesn't work if any natural (undamped) frequency is 0.0 or if any natural (undamped) frequency is in duplicate--to avoid the resulting error, in the cells where the frequencies are pasted-in, change the error-causing frequency (or frequencies) by a very small amount!
D4: BladeLength | E4: 117 | F4: TowerHt | G4: 144.495
C5: Mode Shapes and Frequencies
C6: Mode Number | E6: 1 | G6: =E6+1 -> 2 | I6: =G6+1 -> 3 | K6: =I6+1 -> 4 | M6: =K6+1 -> 5 | O6: =M6+1 -> 6 | Q6: =O6+1 -> 7 | S6: =Q6+1 -> 8 | U6: =S6+1 -> 9 | W6: =U6+1 -> 10 | Y6: =W6+1 -> 11 | AA6: =Y6+1 -> 12 | AC6: =AA6+1 -> 13 | AE6: =AC6+1 -> 14 | AG6: =AE6+1 -> 15 | AI6: =AG6+1 -> 16 | AK6: =AI6+1 -> 17 | AM6: =AK6+1 -> 18 | AO6: =AM6+1 -> 19 | AQ6: =AO6+1 -> 20 | AS6: =AQ6+1 -> 21 | AU6: =AS6+1 -> 22 | AW6: =AU6+1 -> 23 | AY6: =AW6+1 -> 24 | BA6: =AY6+1 -> 25 | BC6: =BA6+1 -> 26 | BE6: =BC6+1 -> 27 | BG6: =BE6+1 -> 28 | BI6: =BG6+1 -> 29 | BK6: =BI6+1 -> 30
C7: Natural (Undamped) Frequencies (Hz) | E7: =IF(VLOOKUP(E$6+$BO$47,$D$48:$BO$77,64,FALSE)="","",VLOOKUP(E$6+$BO$47,$D$48:$BO$77,64,FALSE)) -> 0.007710610101 | G7: =IF(VLOOKUP(G$6+$BO$47,$D$48:$BO$77,64,FALSE)="","",VLOOKUP(G$6+$BO$47,$D$48:$BO$77,64,FALSE)) -> 0.007861845774 | I7: =IF(VLOOKUP(I$6+$BO$47,$D$48:$BO$77,64,FALSE)="","",VLOOKUP(I$6+$BO$47,$D$48:$BO$77,64,FALSE)) -> 0.01191062717 | K7: =IF(VLOOKUP(K$6+$BO$47,$D$48:$BO$77,64,FALSE)="","",VLOOKUP(K$6+$BO$47,$D$48:$BO$77,64,FALSE)) -> 0.03613037747 | M7: =IF(VLOOKUP(M$6+$BO$47,$D$48:$BO$77,64,FALSE)="","",VLOOKUP(M$6+$BO$47,$D$48:$BO$77,64,FALSE)) -> 0.03619026882 | O7: =IF(VLOOKUP(O$6+$BO$47,$D$48:$BO$77,64,FALSE)="","",VLOOKUP(O$6+$BO$47,$D$48:$BO$77,64,FALSE)) -> 0.05057861958 | Q7: =IF(VLOOKUP(Q$6+$BO$47,$D$48:$BO$77,64,FALSE)="","",VLOOKUP(Q$6+$BO$47,$D$48:$BO$77,64,FALSE)) -> 0.422003669 | S7: =IF(VLOOKUP(S$6+$BO$47,$D$48:$BO$77,64,FALSE)="","",VLOOKUP(S$6+$BO$47,$D$48:$BO$77,64,FALSE)) -> 0.4264677766 | U7: =IF(VLOOKUP(U$6+$BO$47,$D$48:$BO$77,64,FALSE)="","",VLOOKUP(U$6+$BO$47,$D$48:$BO$77,64,FALSE)) -> 0.5098784913 | W7: =IF(VLOOKUP(W$6+$BO$47,$D$48:$BO$77,64,FALSE)="","",VLOOKUP(W$6+$BO$47,$D$48:$BO$77,64,FALSE)) -> 0.578576538 | Y7: =IF(VLOOKUP(Y$6+$BO$47,$D$48:$BO$77,64,FALSE)="","",VLOOKUP(Y$6+$BO$47,$D$48:$BO$77,64,FALSE)) -> 0.5899839245 | AA7: =IF(VLOOKUP(AA$6+$BO$47,$D$48:$BO$77,64,FALSE)="","",VLOOKUP(AA$6+$BO$47,$D$48:$BO$77,64,FALSE)) -> 0.6347908445 | AC7: =IF(VLOOKUP(AC$6+$BO$47,$D$48:$BO$77,64,FALSE)="","",VLOOKUP(AC$6+$BO$47,$D$48:$BO$77,64,FALSE)) -> 0.6771896716 | AE7: =IF(VLOOKUP(AE$6+$BO$47,$D$48:$BO$77,64,FALSE)="","",VLOOKUP(AE$6+$BO$47,$D$48:$BO$77,64,FALSE)) -> 0.7272817952 | AG7: =IF(VLOOKUP(AG$6+$BO$47,$D$48:$BO$77,64,FALSE)="","",VLOOKUP(AG$6+$BO$47,$D$48:$BO$77,64,FALSE)) -> 2.356851747 | AI7: =IF(VLOOKUP(AI$6+$BO$47,$D$48:$BO$77,64,FALSE)="","",VLOOKUP(AI$6+$BO$47,$D$48:$BO$77,64,FALSE)) -> 2.453394628 | AK7: =IF(VLOOKUP(AK$6+$BO$47,$D$48:$BO$77,64,FALSE)="","",VLOOKUP(AK$6+$BO$47,$D$48:$BO$77,64,FALSE)) -> 2.473864597 | AM7: =IF(VLOOKUP(AM$6+$BO$47,$D$48:$BO$77,64,FALSE)="","",VLOOKUP(AM$6+$BO$47,$D$48:$BO$77,64,FALSE)) -> 2.576260636 | AO7: =IF(VLOOKUP(AO$6+$BO$47,$D$48:$BO$77,64,FALSE)="","",VLOOKUP(AO$6+$BO$47,$D$48:$BO$77,64,FALSE)) -> 2.671259075 | AQ7: =IF(VLOOKUP(AQ$6+$BO$47,$D$48:$BO$77,64,FALSE)="","",VLOOKUP(AQ$6+$BO$47,$D$48:$BO$77,64,FALSE)) -> 4.808088241 | AS7: =IF(VLOOKUP(AS$6+$BO$47,$D$48:$BO$77,64,FALSE)="","",VLOOKUP(AS$6+$BO$47,$D$48:$BO$77,64,FALSE)) ->  | AU7: =IF(VLOOKUP(AU$6+$BO$47,$D$48:$BO$77,64,FALSE)="","",VLOOKUP(AU$6+$BO$47,$D$48:$BO$77,64,FALSE)) ->  | AW7: =IF(VLOOKUP(AW$6+$BO$47,$D$48:$BO$77,64,FALSE)="","",VLOOKUP(AW$6+$BO$47,$D$48:$BO$77,64,FALSE)) ->  | AY7: =IF(VLOOKUP(AY$6+$BO$47,$D$48:$BO$77,64,FALSE)="","",VLOOKUP(AY$6+$BO$47,$D$48:$BO$77,64,FALSE)) ->  | BA7: =IF(VLOOKUP(BA$6+$BO$47,$D$48:$BO$77,64,FALSE)="","",VLOOKUP(BA$6+$BO$47,$D$48:$BO$77,64,FALSE)) ->  | BC7: =IF(VLOOKUP(BC$6+$BO$47,$D$48:$BO$77,64,FALSE)="","",VLOOKUP(BC$6+$BO$47,$D$48:$BO$77,64,FALSE)) ->  | BE7: =IF(VLOOKUP(BE$6+$BO$47,$D$48:$BO$77,64,FALSE)="","",VLOOKUP(BE$6+$BO$47,$D$48:$BO$77,64,FALSE)) ->  | BG7: =IF(VLOOKUP(BG$6+$BO$47,$D$48:$BO$77,64,FALSE)="","",VLOOKUP(BG$6+$BO$47,$D$48:$BO$77,64,FALSE)) ->  | BI7: =IF(VLOOKUP(BI$6+$BO$47,$D$48:$BO$77,64,FALSE)="","",VLOOKUP(BI$6+$BO$47,$D$48:$BO$77,64,FALSE)) ->  | BK7: =IF(VLOOKUP(BK$6+$BO$47,$D$48:$BO$77,64,FALSE)="","",VLOOKUP(BK$6+$BO$47,$D$48:$BO$77,64,FALSE)) -> 
C8: Damped Frequencies (Hz) | E8: =IF(VLOOKUP(E$6+$BO$47,$D$48:$BO$77,63,FALSE)="","",VLOOKUP(E$6+$BO$47,$D$48:$BO$77,63,FALSE)) -> 0.007698871318 | G8: =IF(VLOOKUP(G$6+$BO$47,$D$48:$BO$77,63,FALSE)="","",VLOOKUP(G$6+$BO$47,$D$48:$BO$77,63,FALSE)) -> 0.007859936356 | I8: =IF(VLOOKUP(I$6+$BO$47,$D$48:$BO$77,63,FALSE)="","",VLOOKUP(I$6+$BO$47,$D$48:$BO$77,63,FALSE)) -> 0.01151856927 | K8: =IF(VLOOKUP(K$6+$BO$47,$D$48:$BO$77,63,FALSE)="","",VLOOKUP(K$6+$BO$47,$D$48:$BO$77,63,FALSE)) -> 0.03612037378 | M8: =IF(VLOOKUP(M$6+$BO$47,$D$48:$BO$77,63,FALSE)="","",VLOOKUP(M$6+$BO$47,$D$48:$BO$77,63,FALSE)) -> 0.03618120235 | O8: =IF(VLOOKUP(O$6+$BO$47,$D$48:$BO$77,63,FALSE)="","",VLOOKUP(O$6+$BO$47,$D$48:$BO$77,63,FALSE)) -> 0.05057781496 | Q8: =IF(VLOOKUP(Q$6+$BO$47,$D$48:$BO$77,63,FALSE)="","",VLOOKUP(Q$6+$BO$47,$D$48:$BO$77,63,FALSE)) -> 0.4219779633 | S8: =IF(VLOOKUP(S$6+$BO$47,$D$48:$BO$77,63,FALSE)="","",VLOOKUP(S$6+$BO$47,$D$48:$BO$77,63,FALSE)) -> 0.4264548822 | U8: =IF(VLOOKUP(U$6+$BO$47,$D$48:$BO$77,63,FALSE)="","",VLOOKUP(U$6+$BO$47,$D$48:$BO$77,63,FALSE)) -> 0.5096700141 | W8: =IF(VLOOKUP(W$6+$BO$47,$D$48:$BO$77,63,FALSE)="","",VLOOKUP(W$6+$BO$47,$D$48:$BO$77,63,FALSE)) -> 0.5783264983 | Y8: =IF(VLOOKUP(Y$6+$BO$47,$D$48:$BO$77,63,FALSE)="","",VLOOKUP(Y$6+$BO$47,$D$48:$BO$77,63,FALSE)) -> 0.5896778886 | AA8: =IF(VLOOKUP(AA$6+$BO$47,$D$48:$BO$77,63,FALSE)="","",VLOOKUP(AA$6+$BO$47,$D$48:$BO$77,63,FALSE)) -> 0.6345793169 | AC8: =IF(VLOOKUP(AC$6+$BO$47,$D$48:$BO$77,63,FALSE)="","",VLOOKUP(AC$6+$BO$47,$D$48:$BO$77,63,FALSE)) -> 0.6769352011 | AE8: =IF(VLOOKUP(AE$6+$BO$47,$D$48:$BO$77,63,FALSE)="","",VLOOKUP(AE$6+$BO$47,$D$48:$BO$77,63,FALSE)) -> 0.7270113506 | AG8: =IF(VLOOKUP(AG$6+$BO$47,$D$48:$BO$77,63,FALSE)="","",VLOOKUP(AG$6+$BO$47,$D$48:$BO$77,63,FALSE)) -> 2.341677715 | AI8: =IF(VLOOKUP(AI$6+$BO$47,$D$48:$BO$77,63,FALSE)="","",VLOOKUP(AI$6+$BO$47,$D$48:$BO$77,63,FALSE)) -> 2.432439945 | AK8: =IF(VLOOKUP(AK$6+$BO$47,$D$48:$BO$77,63,FALSE)="","",VLOOKUP(AK$6+$BO$47,$D$48:$BO$77,63,FALSE)) -> 2.464336994 | AM8: =IF(VLOOKUP(AM$6+$BO$47,$D$48:$BO$77,63,FALSE)="","",VLOOKUP(AM$6+$BO$47,$D$48:$BO$77,63,FALSE)) -> 2.570905829 | AO8: =IF(VLOOKUP(AO$6+$BO$47,$D$48:$BO$77,63,FALSE)="","",VLOOKUP(AO$6+$BO$47,$D$48:$BO$77,63,FALSE)) -> 2.670851194 | AQ8: =IF(VLOOKUP(AQ$6+$BO$47,$D$48:$BO$77,63,FALSE)="","",VLOOKUP(AQ$6+$BO$47,$D$48:$BO$77,63,FALSE)) -> 4.805527738 | AS8: =IF(VLOOKUP(AS$6+$BO$47,$D$48:$BO$77,63,FALSE)="","",VLOOKUP(AS$6+$BO$47,$D$48:$BO$77,63,FALSE)) ->  | AU8: =IF(VLOOKUP(AU$6+$BO$47,$D$48:$BO$77,63,FALSE)="","",VLOOKUP(AU$6+$BO$47,$D$48:$BO$77,63,FALSE)) ->  | AW8: =IF(VLOOKUP(AW$6+$BO$47,$D$48:$BO$77,63,FALSE)="","",VLOOKUP(AW$6+$BO$47,$D$48:$BO$77,63,FALSE)) ->  | AY8: =IF(VLOOKUP(AY$6+$BO$47,$D$48:$BO$77,63,FALSE)="","",VLOOKUP(AY$6+$BO$47,$D$48:$BO$77,63,FALSE)) ->  | BA8: =IF(VLOOKUP(BA$6+$BO$47,$D$48:$BO$77,63,FALSE)="","",VLOOKUP(BA$6+$BO$47,$D$48:$BO$77,63,FALSE)) ->  | BC8: =IF(VLOOKUP(BC$6+$BO$47,$D$48:$BO$77,63,FALSE)="","",VLOOKUP(BC$6+$BO$47,$D$48:$BO$77,63,FALSE)) ->  | BE8: =IF(VLOOKUP(BE$6+$BO$47,$D$48:$BO$77,63,FALSE)="","",VLOOKUP(BE$6+$BO$47,$D$48:$BO$77,63,FALSE)) ->  | BG8: =IF(VLOOKUP(BG$6+$BO$47,$D$48:$BO$77,63,FALSE)="","",VLOOKUP(BG$6+$BO$47,$D$48:$BO$77,63,FALSE)) ->  | BI8: =IF(VLOOKUP(BI$6+$BO$47,$D$48:$BO$77,63,FALSE)="","",VLOOKUP(BI$6+$BO$47,$D$48:$BO$77,63,FALSE)) ->  | BK8: =IF(VLOOKUP(BK$6+$BO$47,$D$48:$BO$77,63,FALSE)="","",VLOOKUP(BK$6+$BO$47,$D$48:$BO$77,63,FALSE)) -> 
C9: Damping Ratio (-) | E9: =IF(VLOOKUP(E$6+$BO$47,$D$48:$BO$77,62,FALSE)="","",VLOOKUP(E$6+$BO$47,$D$48:$BO$77,62,FALSE)) -> 0.05515905435 | G9: =IF(VLOOKUP(G$6+$BO$47,$D$48:$BO$77,62,FALSE)="","",VLOOKUP(G$6+$BO$47,$D$48:$BO$77,62,FALSE)) -> 0.0220382377 | I9: =IF(VLOOKUP(I$6+$BO$47,$D$48:$BO$77,62,FALSE)="","",VLOOKUP(I$6+$BO$47,$D$48:$BO$77,62,FALSE)) -> 0.254459792 | K9: =IF(VLOOKUP(K$6+$BO$47,$D$48:$BO$77,62,FALSE)="","",VLOOKUP(K$6+$BO$47,$D$48:$BO$77,62,FALSE)) -> 0.02353037134 | M9: =IF(VLOOKUP(M$6+$BO$47,$D$48:$BO$77,62,FALSE)="","",VLOOKUP(M$6+$BO$47,$D$48:$BO$77,62,FALSE)) -> 0.02238262441 | O9: =IF(VLOOKUP(O$6+$BO$47,$D$48:$BO$77,62,FALSE)="","",VLOOKUP(O$6+$BO$47,$D$48:$BO$77,62,FALSE)) -> 0.005640620134 | Q9: =IF(VLOOKUP(Q$6+$BO$47,$D$48:$BO$77,62,FALSE)="","",VLOOKUP(Q$6+$BO$47,$D$48:$BO$77,62,FALSE)) -> 0.01103734393 | S9: =IF(VLOOKUP(S$6+$BO$47,$D$48:$BO$77,62,FALSE)="","",VLOOKUP(S$6+$BO$47,$D$48:$BO$77,62,FALSE)) -> 0.007776218701 | U9: =IF(VLOOKUP(U$6+$BO$47,$D$48:$BO$77,62,FALSE)="","",VLOOKUP(U$6+$BO$47,$D$48:$BO$77,62,FALSE)) -> 0.02859344885 | W9: =IF(VLOOKUP(W$6+$BO$47,$D$48:$BO$77,62,FALSE)="","",VLOOKUP(W$6+$BO$47,$D$48:$BO$77,62,FALSE)) -> 0.02939626132 | Y9: =IF(VLOOKUP(Y$6+$BO$47,$D$48:$BO$77,62,FALSE)="","",VLOOKUP(Y$6+$BO$47,$D$48:$BO$77,62,FALSE)) -> 0.03220510686 | AA9: =IF(VLOOKUP(AA$6+$BO$47,$D$48:$BO$77,62,FALSE)="","",VLOOKUP(AA$6+$BO$47,$D$48:$BO$77,62,FALSE)) -> 0.0258135017 | AC9: =IF(VLOOKUP(AC$6+$BO$47,$D$48:$BO$77,62,FALSE)="","",VLOOKUP(AC$6+$BO$47,$D$48:$BO$77,62,FALSE)) -> 0.02741181014 | AE9: =IF(VLOOKUP(AE$6+$BO$47,$D$48:$BO$77,62,FALSE)="","",VLOOKUP(AE$6+$BO$47,$D$48:$BO$77,62,FALSE)) -> 0.02726856915 | AG9: =IF(VLOOKUP(AG$6+$BO$47,$D$48:$BO$77,62,FALSE)="","",VLOOKUP(AG$6+$BO$47,$D$48:$BO$77,62,FALSE)) -> 0.1132919891 | AI9: =IF(VLOOKUP(AI$6+$BO$47,$D$48:$BO$77,62,FALSE)="","",VLOOKUP(AI$6+$BO$47,$D$48:$BO$77,62,FALSE)) -> 0.1304194951 | AK9: =IF(VLOOKUP(AK$6+$BO$47,$D$48:$BO$77,62,FALSE)="","",VLOOKUP(AK$6+$BO$47,$D$48:$BO$77,62,FALSE)) -> 0.08767995209 | AM9: =IF(VLOOKUP(AM$6+$BO$47,$D$48:$BO$77,62,FALSE)="","",VLOOKUP(AM$6+$BO$47,$D$48:$BO$77,62,FALSE)) -> 0.0644415871 | AO9: =IF(VLOOKUP(AO$6+$BO$47,$D$48:$BO$77,62,FALSE)="","",VLOOKUP(AO$6+$BO$47,$D$48:$BO$77,62,FALSE)) -> 0.0174745883 | AQ9: =IF(VLOOKUP(AQ$6+$BO$47,$D$48:$BO$77,62,FALSE)="","",VLOOKUP(AQ$6+$BO$47,$D$48:$BO$77,62,FALSE)) -> 0.03263124691 | AS9: =IF(VLOOKUP(AS$6+$BO$47,$D$48:$BO$77,62,FALSE)="","",VLOOKUP(AS$6+$BO$47,$D$48:$BO$77,62,FALSE)) ->  | AU9: =IF(VLOOKUP(AU$6+$BO$47,$D$48:$BO$77,62,FALSE)="","",VLOOKUP(AU$6+$BO$47,$D$48:$BO$77,62,FALSE)) ->  | AW9: =IF(VLOOKUP(AW$6+$BO$47,$D$48:$BO$77,62,FALSE)="","",VLOOKUP(AW$6+$BO$47,$D$48:$BO$77,62,FALSE)) ->  | AY9: =IF(VLOOKUP(AY$6+$BO$47,$D$48:$BO$77,62,FALSE)="","",VLOOKUP(AY$6+$BO$47,$D$48:$BO$77,62,FALSE)) ->  | BA9: =IF(VLOOKUP(BA$6+$BO$47,$D$48:$BO$77,62,FALSE)="","",VLOOKUP(BA$6+$BO$47,$D$48:$BO$77,62,FALSE)) ->  | BC9: =IF(VLOOKUP(BC$6+$BO$47,$D$48:$BO$77,62,FALSE)="","",VLOOKUP(BC$6+$BO$47,$D$48:$BO$77,62,FALSE)) ->  | BE9: =IF(VLOOKUP(BE$6+$BO$47,$D$48:$BO$77,62,FALSE)="","",VLOOKUP(BE$6+$BO$47,$D$48:$BO$77,62,FALSE)) ->  | BG9: =IF(VLOOKUP(BG$6+$BO$47,$D$48:$BO$77,62,FALSE)="","",VLOOKUP(BG$6+$BO$47,$D$48:$BO$77,62,FALSE)) ->  | BI9: =IF(VLOOKUP(BI$6+$BO$47,$D$48:$BO$77,62,FALSE)="","",VLOOKUP(BI$6+$BO$47,$D$48:$BO$77,62,FALSE)) ->  | BK9: =IF(VLOOKUP(BK$6+$BO$47,$D$48:$BO$77,62,FALSE)="","",VLOOKUP(BK$6+$BO$47,$D$48:$BO$77,62,FALSE)) -> 
C10: States | D10: Scaling | E10: Magnitude (rad) | F10: Phase (deg) | G10: Magnitude (rad) | H10: Phase (deg) | I10: Magnitude (rad) | J10: Phase (deg) | K10: Magnitude (rad) | L10: Phase (deg) | M10: Magnitude (rad) | N10: Phase (deg) | O10: Magnitude (rad) | P10: Phase (deg) | Q10: Magnitude (rad) | R10: Phase (deg) | S10: Magnitude (rad) | T10: Phase (deg) | U10: Magnitude (rad) | V10: Phase (deg) | W10: Magnitude (rad) | X10: Phase (deg) | Y10: Magnitude (rad) | Z10: Phase (deg) | AA10: Magnitude (rad) | AB10: Phase (deg) | AC10: Magnitude (rad) | AD10: Phase (deg) | AE10: Magnitude (rad) | AF10: Phase (deg) | AG10: Magnitude (rad) | AH10: Phase (deg) | AI10: Magnitude (rad) | AJ10: Phase (deg) | AK10: Magnitude (rad) | AL10: Phase (deg) | AM10: Magnitude (rad) | AN10: Phase (deg) | AO10: Magnitude (rad) | AP10: Phase (deg) | AQ10: Magnitude (rad) | AR10: Phase (deg) | AS10: Magnitude (rad) | AT10: Phase (deg) | AU10: Magnitude (rad) | AV10: Phase (deg) | AW10: Magnitude (rad) | AX10: Phase (deg) | AY10: Magnitude (rad) | AZ10: Phase (deg) | BA10: Magnitude (rad) | BB10: Phase (deg) | BC10: Magnitude (rad) | BD10: Phase (deg) | BE10: Magnitude (rad) | BF10: Phase (deg) | BG10: Magnitude (rad) | BH10: Phase (deg) | BI10: Magnitude (rad) | BJ10: Phase (deg) | BK10: Magnitude (rad) | BL10: Phase (deg)
B11: 1 | C11: ED Platform horizontal surge translation DOF (internal DOF index = DOF_Sg), m | D11: 1 | E11: =IF(HLOOKUP(E$6+$BO$47,$E$47:$AH$77,$B11+1,FALSE)="","",HLOOKUP(E$6+$BO$47,$E$47:$AH$77,$B11+1,FALSE)*$D11) -> 0.9988272665 | F11: =IF(HLOOKUP(E$6+$BO$47,$AI$47:$BL$77,$B11+1,FALSE)="","",HLOOKUP(E$6+$BO$47,$AI$47:$BL$77,$B11+1,FALSE)) -> 0 | G11: =IF(HLOOKUP(G$6+$BO$47,$E$47:$AH$77,$B11+1,FALSE)="","",HLOOKUP(G$6+$BO$47,$E$47:$AH$77,$B11+1,FALSE)*$D11) -> 0.0002293393297 | H11: =IF(HLOOKUP(G$6+$BO$47,$AI$47:$BL$77,$B11+1,FALSE)="","",HLOOKUP(G$6+$BO$47,$AI$47:$BL$77,$B11+1,FALSE)) -> -138.3344327 | I11: =IF(HLOOKUP(I$6+$BO$47,$E$47:$AH$77,$B11+1,FALSE)="","",HLOOKUP(I$6+$BO$47,$E$47:$AH$77,$B11+1,FALSE)*$D11) -> 0.0323609242 | J11: =IF(HLOOKUP(I$6+$BO$47,$AI$47:$BL$77,$B11+1,FALSE)="","",HLOOKUP(I$6+$BO$47,$AI$47:$BL$77,$B11+1,FALSE)) -> -47.32897198 | K11: =IF(HLOOKUP(K$6+$BO$47,$E$47:$AH$77,$B11+1,FALSE)="","",HLOOKUP(K$6+$BO$47,$E$47:$AH$77,$B11+1,FALSE)*$D11) -> 0.5101477668 | L11: =IF(HLOOKUP(K$6+$BO$47,$AI$47:$BL$77,$B11+1,FALSE)="","",HLOOKUP(K$6+$BO$47,$AI$47:$BL$77,$B11+1,FALSE)) -> 180 | M11: =IF(HLOOKUP(M$6+$BO$47,$E$47:$AH$77,$B11+1,FALSE)="","",HLOOKUP(M$6+$BO$47,$E$47:$AH$77,$B11+1,FALSE)*$D11) -> 0.1688786283 | N11: =IF(HLOOKUP(M$6+$BO$47,$AI$47:$BL$77,$B11+1,FALSE)="","",HLOOKUP(M$6+$BO$47,$AI$47:$BL$77,$B11+1,FALSE)) -> 140.7270345 | O11: =IF(HLOOKUP(O$6+$BO$47,$E$47:$AH$77,$B11+1,FALSE)="","",HLOOKUP(O$6+$BO$47,$E$47:$AH$77,$B11+1,FALSE)*$D11) -> 0.00200226557 | P11: =IF(HLOOKUP(O$6+$BO$47,$AI$47:$BL$77,$B11+1,FALSE)="","",HLOOKUP(O$6+$BO$47,$AI$47:$BL$77,$B11+1,FALSE)) -> -177.0955149 | Q11: =IF(HLOOKUP(Q$6+$BO$47,$E$47:$AH$77,$B11+1,FALSE)="","",HLOOKUP(Q$6+$BO$47,$E$47:$AH$77,$B11+1,FALSE)*$D11) -> 0.002591257001 | R11: =IF(HLOOKUP(Q$6+$BO$47,$AI$47:$BL$77,$B11+1,FALSE)="","",HLOOKUP(Q$6+$BO$47,$AI$47:$BL$77,$B11+1,FALSE)) -> 94.23420238 | S11: =IF(HLOOKUP(S$6+$BO$47,$E$47:$AH$77,$B11+1,FALSE)="","",HLOOKUP(S$6+$BO$47,$E$47:$AH$77,$B11+1,FALSE)*$D11) -> 0.002534259181 | T11: =IF(HLOOKUP(S$6+$BO$47,$AI$47:$BL$77,$B11+1,FALSE)="","",HLOOKUP(S$6+$BO$47,$AI$47:$BL$77,$B11+1,FALSE)) -> 93.48810408 | U11: =IF(HLOOKUP(U$6+$BO$47,$E$47:$AH$77,$B11+1,FALSE)="","",HLOOKUP(U$6+$BO$47,$E$47:$AH$77,$B11+1,FALSE)*$D11) -> 0.0006748690423 | V11: =IF(HLOOKUP(U$6+$BO$47,$AI$47:$BL$77,$B11+1,FALSE)="","",HLOOKUP(U$6+$BO$47,$AI$47:$BL$77,$B11+1,FALSE)) -> 172.310528 | W11: =IF(HLOOKUP(W$6+$BO$47,$E$47:$AH$77,$B11+1,FALSE)="","",HLOOKUP(W$6+$BO$47,$E$47:$AH$77,$B11+1,FALSE)*$D11) -> 0.0002151399855 | X11: =IF(HLOOKUP(W$6+$BO$47,$AI$47:$BL$77,$B11+1,FALSE)="","",HLOOKUP(W$6+$BO$47,$AI$47:$BL$77,$B11+1,FALSE)) -> -95.67200869 | Y11: =IF(HLOOKUP(Y$6+$BO$47,$E$47:$AH$77,$B11+1,FALSE)="","",HLOOKUP(Y$6+$BO$47,$E$47:$AH$77,$B11+1,FALSE)*$D11) -> 0.0001608416454 | Z11: =IF(HLOOKUP(Y$6+$BO$47,$AI$47:$BL$77,$B11+1,FALSE)="","",HLOOKUP(Y$6+$BO$47,$AI$47:$BL$77,$B11+1,FALSE)) -> -121.3788468 | AA11: =IF(HLOOKUP(AA$6+$BO$47,$E$47:$AH$77,$B11+1,FALSE)="","",HLOOKUP(AA$6+$BO$47,$E$47:$AH$77,$B11+1,FALSE)*$D11) -> 0.0003064094633 | AB11: =IF(HLOOKUP(AA$6+$BO$47,$AI$47:$BL$77,$B11+1,FALSE)="","",HLOOKUP(AA$6+$BO$47,$AI$47:$BL$77,$B11+1,FALSE)) -> 87.86927409 | AC11: =IF(HLOOKUP(AC$6+$BO$47,$E$47:$AH$77,$B11+1,FALSE)="","",HLOOKUP(AC$6+$BO$47,$E$47:$AH$77,$B11+1,FALSE)*$D11) -> 2.874523797e-05 | AD11: =IF(HLOOKUP(AC$6+$BO$47,$AI$47:$BL$77,$B11+1,FALSE)="","",HLOOKUP(AC$6+$BO$47,$AI$47:$BL$77,$B11+1,FALSE)) -> 156.1400585 | AE11: =IF(HLOOKUP(AE$6+$BO$47,$E$47:$AH$77,$B11+1,FALSE)="","",HLOOKUP(AE$6+$BO$47,$E$47:$AH$77,$B11+1,FALSE)*$D11) -> 5.417489069e-05 | AF11: =IF(HLOOKUP(AE$6+$BO$47,$AI$47:$BL$77,$B11+1,FALSE)="","",HLOOKUP(AE$6+$BO$47,$AI$47:$BL$77,$B11+1,FALSE)) -> -162.4531022 | AG11: =IF(HLOOKUP(AG$6+$BO$47,$E$47:$AH$77,$B11+1,FALSE)="","",HLOOKUP(AG$6+$BO$47,$E$47:$AH$77,$B11+1,FALSE)*$D11) -> 1.097701343e-06 | AH11: =IF(HLOOKUP(AG$6+$BO$47,$AI$47:$BL$77,$B11+1,FALSE)="","",HLOOKUP(AG$6+$BO$47,$AI$47:$BL$77,$B11+1,FALSE)) -> -104.6033617 | AI11: =IF(HLOOKUP(AI$6+$BO$47,$E$47:$AH$77,$B11+1,FALSE)="","",HLOOKUP(AI$6+$BO$47,$E$47:$AH$77,$B11+1,FALSE)*$D11) -> 5.41850852e-08 | AJ11: =IF(HLOOKUP(AI$6+$BO$47,$AI$47:$BL$77,$B11+1,FALSE)="","",HLOOKUP(AI$6+$BO$47,$AI$47:$BL$77,$B11+1,FALSE)) -> -17.75850545 | AK11: =IF(HLOOKUP(AK$6+$BO$47,$E$47:$AH$77,$B11+1,FALSE)="","",HLOOKUP(AK$6+$BO$47,$E$47:$AH$77,$B11+1,FALSE)*$D11) -> 1.87288503e-06 | AL11: =IF(HLOOKUP(AK$6+$BO$47,$AI$47:$BL$77,$B11+1,FALSE)="","",HLOOKUP(AK$6+$BO$47,$AI$47:$BL$77,$B11+1,FALSE)) -> 160.0024929 | AM11: =IF(HLOOKUP(AM$6+$BO$47,$E$47:$AH$77,$B11+1,FALSE)="","",HLOOKUP(AM$6+$BO$47,$E$47:$AH$77,$B11+1,FALSE)*$D11) -> 2.791242341e-06 | AN11: =IF(HLOOKUP(AM$6+$BO$47,$AI$47:$BL$77,$B11+1,FALSE)="","",HLOOKUP(AM$6+$BO$47,$AI$47:$BL$77,$B11+1,FALSE)) -> -160.0568337 | AO11: =IF(HLOOKUP(AO$6+$BO$47,$E$47:$AH$77,$B11+1,FALSE)="","",HLOOKUP(AO$6+$BO$47,$E$47:$AH$77,$B11+1,FALSE)*$D11) -> 3.901081266e-07 | AP11: =IF(HLOOKUP(AO$6+$BO$47,$AI$47:$BL$77,$B11+1,FALSE)="","",HLOOKUP(AO$6+$BO$47,$AI$47:$BL$77,$B11+1,FALSE)) -> 81.1815442 | AQ11: =IF(HLOOKUP(AQ$6+$BO$47,$E$47:$AH$77,$B11+1,FALSE)="","",HLOOKUP(AQ$6+$BO$47,$E$47:$AH$77,$B11+1,FALSE)*$D11) -> 2.055327004e-08 | AR11: =IF(HLOOKUP(AQ$6+$BO$47,$AI$47:$BL$77,$B11+1,FALSE)="","",HLOOKUP(AQ$6+$BO$47,$AI$47:$BL$77,$B11+1,FALSE)) -> -18.07586032 | AS11: =IF(HLOOKUP(AS$6+$BO$47,$E$47:$AH$77,$B11+1,FALSE)="","",HLOOKUP(AS$6+$BO$47,$E$47:$AH$77,$B11+1,FALSE)*$D11) ->  | AT11: =IF(HLOOKUP(AS$6+$BO$47,$AI$47:$BL$77,$B11+1,FALSE)="","",HLOOKUP(AS$6+$BO$47,$AI$47:$BL$77,$B11+1,FALSE)) ->  | AU11: =IF(HLOOKUP(AU$6+$BO$47,$E$47:$AH$77,$B11+1,FALSE)="","",HLOOKUP(AU$6+$BO$47,$E$47:$AH$77,$B11+1,FALSE)*$D11) ->  | AV11: =IF(HLOOKUP(AU$6+$BO$47,$AI$47:$BL$77,$B11+1,FALSE)="","",HLOOKUP(AU$6+$BO$47,$AI$47:$BL$77,$B11+1,FALSE)) ->  | AW11: =IF(HLOOKUP(AW$6+$BO$47,$E$47:$AH$77,$B11+1,FALSE)="","",HLOOKUP(AW$6+$BO$47,$E$47:$AH$77,$B11+1,FALSE)*$D11) ->  | AX11: =IF(HLOOKUP(AW$6+$BO$47,$AI$47:$BL$77,$B11+1,FALSE)="","",HLOOKUP(AW$6+$BO$47,$AI$47:$BL$77,$B11+1,FALSE)) ->  | AY11: =IF(HLOOKUP(AY$6+$BO$47,$E$47:$AH$77,$B11+1,FALSE)="","",HLOOKUP(AY$6+$BO$47,$E$47:$AH$77,$B11+1,FALSE)*$D11) ->  | AZ11: =IF(HLOOKUP(AY$6+$BO$47,$AI$47:$BL$77,$B11+1,FALSE)="","",HLOOKUP(AY$6+$BO$47,$AI$47:$BL$77,$B11+1,FALSE)) ->  | BA11: =IF(HLOOKUP(BA$6+$BO$47,$E$47:$AH$77,$B11+1,FALSE)="","",HLOOKUP(BA$6+$BO$47,$E$47:$AH$77,$B11+1,FALSE)*$D11) ->  | BB11: =IF(HLOOKUP(BA$6+$BO$47,$AI$47:$BL$77,$B11+1,FALSE)="","",HLOOKUP(BA$6+$BO$47,$AI$47:$BL$77,$B11+1,FALSE)) ->  | BC11: =IF(HLOOKUP(BC$6+$BO$47,$E$47:$AH$77,$B11+1,FALSE)="","",HLOOKUP(BC$6+$BO$47,$E$47:$AH$77,$B11+1,FALSE)*$D11) ->  | BD11: =IF(HLOOKUP(BC$6+$BO$47,$AI$47:$BL$77,$B11+1,FALSE)="","",HLOOKUP(BC$6+$BO$47,$AI$47:$BL$77,$B11+1,FALSE)) ->  | BE11: =IF(HLOOKUP(BE$6+$BO$47,$E$47:$AH$77,$B11+1,FALSE)="","",HLOOKUP(BE$6+$BO$47,$E$47:$AH$77,$B11+1,FALSE)*$D11) ->  | BF11: =IF(HLOOKUP(BE$6+$BO$47,$AI$47:$BL$77,$B11+1,FALSE)="","",HLOOKUP(BE$6+$BO$47,$AI$47:$BL$77,$B11+1,FALSE)) ->  | BG11: =IF(HLOOKUP(BG$6+$BO$47,$E$47:$AH$77,$B11+1,FALSE)="","",HLOOKUP(BG$6+$BO$47,$E$47:$AH$77,$B11+1,FALSE)*$D11) ->  | BH11: =IF(HLOOKUP(BG$6+$BO$47,$AI$47:$BL$77,$B11+1,FALSE)="","",HLOOKUP(BG$6+$BO$47,$AI$47:$BL$77,$B11+1,FALSE)) ->  | BI11: =IF(HLOOKUP(BI$6+$BO$47,$E$47:$AH$77,$B11+1,FALSE)="","",HLOOKUP(BI$6+$BO$47,$E$47:$AH$77,$B11+1,FALSE)*$D11) ->  | BJ11: =IF(HLOOKUP(BI$6+$BO$47,$AI$47:$BL$77,$B11+1,FALSE)="","",HLOOKUP(BI$6+$BO$47,$AI$47:$BL$77,$B11+1,FALSE)) ->  | BK11: =IF(HLOOKUP(BK$6+$BO$47,$E$47:$AH$77,$B11+1,FALSE)="","",HLOOKUP(BK$6+$BO$47,$E$47:$AH$77,$B11+1,FALSE)*$D11) ->  | BL11: =IF(HLOOKUP(BK$6+$BO$47,$AI$47:$BL$77,$B11+1,FALSE)="","",HLOOKUP(BK$6+$BO$47,$AI$47:$BL$77,$B11+1,FALSE)) ->  | BM11: =MAX(E11,G11,I11,K11,M11,O11,Q11,S11,U11,W11,Y11,AA11,AC11,AE11,AG11,AI11,AK11,AM11,AO11,AQ11,AS11,AU11,AW11,AY11,BA11,BC11,BE11,BG11,BI11,BK11) -> 0.9988272665 | BN11: =MATCH($BM11,E11:BK11,0)+4 -> 5 | BO11: =INDIRECT(SUBSTITUTE(ADDRESS(1,$BN11,4),"1","7")) -> 0.007710610101
B12: =B11+1 -> 2 | C12: ED Platform horizontal sway translation DOF (internal DOF index = DOF_Sw), m | D12: 1 | E12: 0.0001823603658 | F12: -23.47340003 | G12: 0.998781515 | H12: 180 | I12: 0.1620771149 | J12: 171.7567249 | K12: 0.0982067533 | L12: 141.0905974 | M12: 0.6596211636 | N12: 180 | O12: 1.152933837e-06 | P12: -51.77182039 | Q12: 0.001419079614 | R12: 8.370927969 | S12: 0.00525313161 | T12: 149.8207571 | U12: 7.562762262e-05 | V12: 87.81086997 | W12: 7.405589759e-05 | X12: 47.48684255 | Y12: 2.232409406e-05 | Z12: 83.00351309 | AA12: 1.809093477e-05 | AB12: -82.00849616 | AC12: 0.0006550329069 | AD12: 87.10154378 | AE12: 0.0001462796849 | AF12: -91.14145892 | AG12: 2.08276889e-07 | AH12: 133.2448005 | AI12: 6.975401476e-08 | AJ12: -46.97957295 | AK12: 1.721008593e-07 | AL12: -85.83005395 | AM12: 1.27545815e-07 | AN12: -100.0658249 | AO12: 2.010761785e-05 | AP12: 39.30402709 | AQ12: 1.237954878e-07 | AR12: -100.1740801 | BM12: 0.998781515 | BN12: 7 | BO12: =INDIRECT(SUBSTITUTE(ADDRESS(1,$BN12,4),"1","7")) -> 0.007861845774
B13: 3 | C13: ED Platform vertical heave translation DOF (internal DOF index = DOF_Hv), m | D13: 1 | E13: 0.0002838727473 | F13: -0.3521076118 | G13: 9.096276038e-08 | H13: -157.0919097 | I13: 0.002120617927 | J13: -102.4221246 | K13: 0.0186419505 | L13: -168.4610208 | M13: 0.006217547418 | N13: 151.8332426 | O13: 0.9529047437 | P13: 0 | Q13: 0.0001100559427 | R13: 90.48215077 | S13: 0.000102828976 | T13: 93.26882607 | U13: 2.335952651e-05 | V13: 178.330782 | W13: 4.256000088e-05 | X13: -93.05665287 | Y13: 2.431546232e-05 | Z13: 96.3028978 | AA13: 7.427892298e-06 | AB13: 55.48275061 | AC13: 1.401495898e-05 | AD13: 7.480075154 | AE13: 2.575361585e-05 | AF13: -2.383894082 | AG13: 2.121935664e-07 | AH13: 83.6992893 | AI13: 2.501454328e-08 | AJ13: -122.0537416 | AK13: 3.688500366e-07 | AL13: -14.73567313 | AM13: 5.793088261e-07 | AN13: 23.83850022 | AO13: 1.162556575e-07 | AP13: -104.1695803 | AQ13: 6.308857116e-09 | AR13: -175.4540903 | BM13: 0.9529047437 | BN13: 15 | BO13: =INDIRECT(SUBSTITUTE(ADDRESS(1,$BN13,4),"1","7")) -> 0.05057861958
B14: 4 | C14: ED Platform roll tilt rotation DOF (internal DOF index = DOF_R), rad | D14: 1 | E14: 3.312518852e-06 | F14: -14.77770555 | G14: 0.0005510828313 | H14: 178.9837872 | I14: 0.01577880625 | J14: 75.54331913 | K14: 0.01682398643 | L14: -38.16709305 | M14: 0.1130177898 | N14: 0.4296161874 | O14: 5.456335719e-07 | P14: 39.83333988 | Q14: 8.470677114e-05 | R14: -171.569041 | S14: 0.000312877986 | T14: -30.09506013 | U14: 4.311349657e-06 | V14: -93.24579793 | W14: 4.046802588e-06 | X14: -134.7534457 | Y14: 1.290978672e-06 | Z14: -75.49558105 | AA14: 9.699811531e-07 | AB14: 95.11344756 | AC14: 3.382893501e-05 | AD14: -93.06492858 | AE14: 7.718709949e-06 | AF14: 88.66491966 | AG14: 8.909840658e-09 | AH14: -48.06167402 | AI14: 2.934290874e-09 | AJ14: 131.9702492 | AK14: 7.281653806e-09 | AL14: 93.23402195 | AM14: 5.342177469e-09 | AN14: 79.33136705 | AO14: 8.354170009e-07 | AP14: -140.7372592 | AQ14: 4.397751408e-09 | AR14: 79.42997237 | BM14: 0.1130177898 | BN14: 13 | BO14: =INDIRECT(SUBSTITUTE(ADDRESS(1,$BN14,4),"1","7")) -> 0.03619026882
B15: 5 | C15: ED Platform pitch tilt rotation DOF (internal DOF index = DOF_P), rad | D15: 1 | E15: 0.000534253762 | F15: 178.2676473 | G15: 3.146754151e-06 | H15: 175.8924893 | I15: 0.002122991035 | J15: 0.7938698193 | K15: 0.08808325815 | L15: 179.6935546 | M15: 0.02911304584 | N15: 140.2493773 | O15: 0.0002834275361 | P15: -176.7429669 | Q15: 0.0001547348511 | R15: 94.17363597 | S15: 0.0001506447987 | T15: 93.55712225 | U15: 3.74170262e-05 | V15: 171.950147 | W15: 1.2656181e-05 | X15: -95.82142199 | Y15: 8.926760501e-06 | Z15: -121.48398 | AA15: 1.626427289e-05 | AB15: 87.66334068 | AC15: 1.569120358e-06 | AD15: 153.9838273 | AE15: 2.791817207e-06 | AF15: -162.6550343 | AG15: 4.650641496e-08 | AH15: -105.5555356 | AI15: 2.282464437e-09 | AJ15: -20.62731508 | AK15: 7.871774677e-08 | AL15: 159.2906864 | AM15: 1.165388253e-07 | AN15: -160.5476628 | AO15: 1.615759833e-08 | AP15: 81.18976002 | AQ15: 7.828482907e-10 | AR15: -18.36631822 | BM15: 0.08808325815 | BN15: 11 | BO15: =INDIRECT(SUBSTITUTE(ADDRESS(1,$BN15,4),"1","7")) -> 0.03613037747
B16: 6 | C16: ED Platform yaw rotation DOF (internal DOF index = DOF_Y), rad | D16: 1 | E16: 2.433424393e-05 | F16: -95.18228351 | G16: 2.315156297e-05 | H16: -14.25436355 | I16: 0.5400367529 | J16: 74.87674929 | K16: 0.001931951198 | L16: 115.8799933 | M16: 0.004498117213 | N16: -174.4650432 | O16: 4.467322177e-06 | P16: 41.70039638 | Q16: 6.242589471e-06 | R16: -178.3769852 | S16: 5.540226434e-06 | T16: -48.96061808 | U16: 3.689581301e-06 | V16: 89.81306983 | W16: 9.534319555e-07 | X16: -160.0519804 | Y16: 1.260426442e-06 | Z16: 157.3847483 | AA16: 1.599871484e-06 | AB16: 178.0877187 | AC16: 1.429248911e-06 | AD16: -89.44607433 | AE16: 1.483037652e-07 | AF16: 18.53929919 | AG16: 3.719902864e-09 | AH16: 92.83900055 | AI16: 1.696123528e-10 | AJ16: 91.23316456 | AK16: 2.296669264e-09 | AL16: -124.7334436 | AM16: 1.066452677e-09 | AN16: -138.1252631 | AO16: 1.116747036e-08 | AP16: 25.2883978 | AQ16: 1.177942474e-08 | AR16: 77.64736676 | BM16: 0.5400367529 | BN16: 9 | BO16: =INDIRECT(SUBSTITUTE(ADDRESS(1,$BN16,4),"1","7")) -> 0.01191062717
B17: 7 | C17: ED 1st tower fore-aft bending mode DOF (internal DOF index = DOF_TFA1), m | D17: 0.006920654694 | E17: 5.720918745e-06 | F17: 172.5451311 | G17: 5.623692901e-08 | H17: 170.8176923 | I17: 0.0001768135095 | J17: 0.01466616918 | K17: 0.002893139172 | L17: -179.1587243 | M17: 0.0009609108192 | N17: 142.0837388 | O17: 5.411788713e-06 | P17: -6.778149354 | Q17: 0.000296543937 | R17: -86.00013379 | S17: 0.0002909301009 | T17: -86.00220218 | U17: 7.455949222e-05 | V17: -8.066348503 | W17: 4.500314892e-05 | X17: 86.08089296 | Y17: 2.491766473e-05 | Z17: 60.77869216 | AA17: 3.892552696e-05 | AB17: -92.1052952 | AC17: 5.7865596e-06 | AD17: -39.06411674 | AE17: 7.204933722e-06 | AF17: 17.55314065 | AG17: 4.052602548e-08 | AH17: 56.38842703 | AI17: 2.755560377e-08 | AJ17: 86.4895259 | AK17: 5.684328361e-08 | AL17: -37.94899124 | AM17: 6.968758152e-08 | AN17: 4.901459797 | AO17: 5.623083637e-09 | AP17: 18.12514668 | AQ17: 1.587170812e-09 | AR17: -65.51065146 | BM17: 0.002893139172 | BN17: 11 | BO17: =INDIRECT(SUBSTITUTE(ADDRESS(1,$BN17,4),"1","7")) -> 0.03613037747
B18: 8 | C18: ED 1st tower side-to-side bending mode DOF (internal DOF index = DOF_TSS1), m | D18: 0.006920654694 | E18: 6.6302729e-08 | F18: -27.5237896 | G18: 5.814811144e-06 | H18: 176.4572065 | I18: 0.0004987565269 | J18: 73.71458934 | K18: 0.0005527449776 | L18: -37.93797071 | M18: 0.003720797544 | N18: 1.602744132 | O18: 3.400154131e-08 | P18: -157.1261677 | Q18: 0.0001626993842 | R18: 8.218749917 | S18: 0.0006082618408 | T18: 149.8723771 | U18: 1.000025295e-05 | V18: 81.72984501 | W18: 1.035243132e-05 | X18: 33.37747636 | Y18: 9.523916183e-06 | Z18: 159.1133529 | AA18: 2.87140025e-06 | AB18: -101.238629 | AC18: 7.319436034e-05 | AD18: 86.81255244 | AE18: 2.442698373e-05 | AF18: -91.06384875 | AG18: 3.971019183e-08 | AH18: 109.4203881 | AI18: 8.018118208e-10 | AJ18: -59.52628232 | AK18: 2.463145065e-08 | AL18: -114.0794938 | AM18: 1.175088577e-08 | AN18: -134.425749 | AO18: 5.490546076e-07 | AP18: 34.62897283 | AQ18: 4.212814662e-07 | AR18: 79.89415301 | BM18: 0.003720797544 | BN18: 13 | BO18: =INDIRECT(SUBSTITUTE(ADDRESS(1,$BN18,4),"1","7")) -> 0.03619026882
B19: 9 | C19: ED 2nd tower fore-aft bending mode DOF (internal DOF index = DOF_TFA2), m | D19: 0.006920654694 | E19: 1.564826665e-08 | F19: 172.4652273 | G19: 3.034217673e-10 | H19: -161.7208142 | I19: 2.555841182e-06 | J19: 179.7764973 | K19: 5.869836701e-06 | L19: -178.9091398 | M19: 2.000742777e-06 | N19: 138.8648349 | O19: 3.669648181e-07 | P19: -179.1396899 | Q19: 1.415995609e-06 | R19: 92.01199064 | S19: 1.243979627e-06 | T19: 95.09358542 | U19: 4.918966278e-07 | V19: 5.970845616 | W19: 2.06974217e-07 | X19: -96.54436483 | Y19: 1.117029123e-07 | Z19: 64.00457789 | AA19: 6.752780449e-07 | AB19: -86.92307663 | AC19: 4.940255228e-08 | AD19: 19.24427974 | AE19: 1.996107668e-07 | AF19: 23.10410922 | AG19: 4.986121122e-08 | AH19: 82.55464815 | AI19: 2.658021549e-09 | AJ19: -171.6869977 | AK19: 8.985850361e-08 | AL19: -14.83681949 | AM19: 1.399371747e-07 | AN19: 23.3821783 | AO19: 2.367366335e-08 | AP19: -105.1513629 | AQ19: 1.683069181e-09 | AR19: 159.6663519 | BM19: 5.869836701e-06 | BN19: 11 | BO19: =INDIRECT(SUBSTITUTE(ADDRESS(1,$BN19,4),"1","7")) -> 0.03613037747
B20: 10 | C20: ED 2nd tower side-to-side bending mode DOF (internal DOF index = DOF_TSS2), m | D20: 0.006920654694 | E20: 2.029114325e-10 | F20: 41.69410428 | G20: 1.591230653e-08 | H20: 176.1912419 | I20: 9.496913064e-07 | J20: 72.28351173 | K20: 9.878956212e-07 | L20: -31.67250862 | M20: 7.300994651e-06 | N20: 1.24651203 | O20: 5.398634806e-10 | P20: 102.7708179 | Q20: 7.861238836e-07 | R20: -172.558468 | S20: 2.7965543e-06 | T20: -30.44856034 | U20: 3.241779194e-08 | V20: 161.6255704 | W20: 1.17818086e-07 | X20: 94.78325736 | Y20: 2.542214867e-07 | Z20: 4.853863638 | AA20: 4.499861498e-08 | AB20: -41.94988675 | AC20: 2.199790534e-06 | AD20: 91.74565228 | AE20: 4.01716079e-07 | AF20: -85.28323688 | AG20: 8.708925198e-09 | AH20: 142.7986318 | AI20: 3.368444998e-09 | AJ20: -39.51033987 | AK20: 7.928932853e-09 | AL20: -75.84318414 | AM20: 5.972482194e-09 | AN20: -90.29757831 | AO20: 1.043106335e-06 | AP20: 39.77995103 | AQ20: 2.469000706e-08 | AR20: -99.6347215 | BM20: 7.300994651e-06 | BN20: 13 | BO20: =INDIRECT(SUBSTITUTE(ADDRESS(1,$BN20,4),"1","7")) -> 0.03619026882
B21: 11 | C21: ED Nacelle yaw DOF (internal DOF index = DOF_Yaw), rad | D21: 1 | E21: 7.870221414e-08 | F21: -85.01544515 | G21: 5.079313333e-07 | H21: 176.4416297 | I21: 5.601404011e-05 | J21: 80.60301713 | K21: 9.927571743e-05 | L21: -66.75184535 | M21: 0.0003124561006 | N21: -1.376864629 | O21: 2.336960601e-07 | P21: -86.27200505 | Q21: 4.015351658e-05 | R21: 1.846522452 | S21: 3.287667867e-05 | T21: 127.8356894 | U21: 3.593036784e-05 | V21: -87.81943784 | W21: 1.180924657e-05 | X21: 22.20925938 | Y21: 1.641616884e-05 | Z21: -19.84670071 | AA21: 2.408738795e-05 | AB21: 0.4518718916 | AC21: 2.313497511e-05 | AD21: 93.17694434 | AE21: 2.838364606e-06 | AF21: -165.8682351 | AG21: 7.776337204e-07 | AH21: -74.84057553 | AI21: 3.711229868e-08 | AJ21: -76.08427133 | AK21: 5.284639939e-07 | AL21: 64.8991754 | AM21: 2.642375652e-07 | AN21: 49.00925362 | AO21: 3.47233371e-06 | AP21: -151.6456306 | AQ21: 1.017728888e-05 | AR21: -100.1480325 | BM21: 0.0003124561006 | BN21: 13 | BO21: =INDIRECT(SUBSTITUTE(ADDRESS(1,$BN21,4),"1","7")) -> 0.03619026882
B22: 12 | C22: ED 1st flapwise bending-mode DOF of blade 1 (internal DOF index = DOF_BF(1,1)), m | D22: 0.008547008547 | E22: 8.433689335e-06 | F22: 172.6429309 | G22: 3.243406138e-07 | H22: -110.8991919 | I22: 0.0001368726039 | J22: -6.383923646 | K22: 0.004271439423 | L22: -179.4509115 | M22: 0.001575192284 | N22: 130.2997829 | O22: 4.235583882e-05 | P22: -178.1833414 | Q22: 0.0007271738594 | R22: -81.87364421 | S22: 0.0007619351592 | T22: -119.4460307 | U22: 0.0005332459106 | V22: -5.381471723 | W22: 0.0019324154 | X22: -91.68452438 | Y22: 0.0005143017496 | Z22: -119.2426879 | AA22: 0.0002610529487 | AB22: 92.70820388 | AC22: 0.0001996314117 | AD22: -121.8126274 | AE22: 4.005255177e-05 | AF22: 110.183998 | AG22: 4.394154801e-06 | AH22: -142.5296029 | AI22: 0.0003793419256 | AJ22: -97.48518956 | AK22: 7.20481956e-06 | AL22: 63.3165242 | AM22: 6.776656062e-06 | AN22: 81.96677305 | AO22: 4.299894933e-05 | AP22: -81.33533535 | AQ22: 8.396522176e-07 | AR22: 96.67433918 | BM22: 0.004271439423 | BN22: 11 | BO22: =INDIRECT(SUBSTITUTE(ADDRESS(1,$BN22,4),"1","7")) -> 0.03613037747
B23: 13 | C23: ED 1st flapwise bending-mode DOF of blade 2 (internal DOF index = DOF_BF(2,1)), m | D23: 0.008547008547 | E23: 6.132424846e-07 | F23: 176.2925168 | G23: 2.846035362e-07 | H23: 104.0236074 | I23: 0.006649949432 | J23: 0 | K23: 0.001055068692 | L23: -177.5211276 | M23: 0.0001310629795 | N23: -158.4920341 | O23: 1.09773477e-05 | P23: 0.8132166167 | Q23: 0.002347440735 | R23: -90.63240607 | S23: 0.001916976566 | T23: -90.445549 | U23: 0.001454576953 | V23: 179.9503564 | W23: 0.0002645566543 | X23: 106.3657377 | Y23: 0.0002430970024 | Z23: 34.90935265 | AA23: 0.001584023648 | AB23: 88.520831 | AC23: 0.0001306130976 | AD23: -1.770467766 | AE23: 0.0001380867113 | AF23: 80.30037224 | AG23: 0.000256614991 | AH23: -162.671843 | AI23: 5.92229271e-06 | AJ23: 16.50712133 | AK23: 0.0003126168435 | AL23: 84.14081325 | AM23: 0.0003484115546 | AN23: 85.2661453 | AO23: 9.342273509e-05 | AP23: -93.17349204 | AQ23: 3.932095519e-06 | AR23: -135.6832179 | BM23: 0.006649949432 | BN23: 9 | BO23: =INDIRECT(SUBSTITUTE(ADDRESS(1,$BN23,4),"1","7")) -> 0.01191062717
B24: 14 | C24: ED 1st flapwise bending-mode DOF of blade 3 (internal DOF index = DOF_BF(3,1)), m | D24: 0.008547008547 | E24: 4.385506488e-06 | F24: -88.23011179 | G24: 5.040760105e-07 | H24: 175.1574496 | I24: 0.0007140357358 | J24: 97.66400728 | K24: 0.003598801784 | L24: -88.01655909 | M24: 0.0009984523208 | N24: -107.306553 | O24: 1.709232427e-05 | P24: -126.7286609 | Q24: 0.001591551453 | R24: -2.224222468 | S24: 0.0008670421238 | T24: 17.28663198 | U24: 0.001995164672 | V24: -91.63850726 | W24: 0.0006336045029 | X24: -5.510101572 | Y24: 0.0004636433174 | Z24: -2.655791377 | AA24: 0.001299112046 | AB24: -3.603439912 | AC24: 0.0002632456935 | AD24: -72.84230035 | AE24: 0.0001171826257 | AF24: -11.03979945 | AG24: 0.0002991411012 | AH24: -96.60502302 | AI24: 1.223372217e-05 | AJ24: -77.5425283 | AK24: 0.0002084493364 | AL24: 47.10352522 | AM24: 0.0001021324506 | AN24: 41.92545374 | AO24: 0.0003350086115 | AP24: 87.38205485 | AQ24: 0.0002029177915 | AR24: 88.13003532 | BM24: 0.003598801784 | BN24: 11 | BO24: =INDIRECT(SUBSTITUTE(ADDRESS(1,$BN24,4),"1","7")) -> 0.03613037747
B25: 15 | C25: ED 1st edgewise bending-mode DOF of blade 1 (internal DOF index = DOF_BE(1,1)), m | D25: 0.008547008547 | E25: 5.513485965e-07 | F25: 172.4756913 | G25: 1.322720616e-07 | H25: -6.299515845 | I25: 3.928495582e-05 | J25: -107.2286784 | K25: 0.0003543427617 | L25: 172.0971874 | M25: 0.000677915783 | N25: 176.2000944 | O25: 2.762074545e-06 | P25: -177.3657212 | Q25: 0.0003808167832 | R25: -166.0096253 | S25: 0.00152968147 | T25: -34.21566188 | U25: 5.430773294e-05 | V25: -70.39680962 | W25: 6.395504924e-05 | X25: -73.65262716 | Y25: 0.0002142593128 | Z25: -11.32145434 | AA25: 6.742264789e-05 | AB25: -2.528805573 | AC25: 0.001767836666 | AD25: 88.42922221 | AE25: 0.0002976155551 | AF25: -90.57535734 | AG25: 2.50502772e-07 | AH25: 6.328659836 | AI25: 1.623845589e-07 | AJ25: -161.2184467 | AK25: 2.671295704e-07 | AL25: 128.7130779 | AM25: 2.432940442e-07 | AN25: 102.0890002 | AO25: 4.830538923e-05 | AP25: -139.0674665 | AQ25: 4.537800842e-06 | AR25: 80.40617 | BM25: 0.001767836666 | BN25: 29 | BO25: =INDIRECT(SUBSTITUTE(ADDRESS(1,$BN25,4),"1","7")) -> 0.6771896716
B26: 16 | C26: ED 1st edgewise bending-mode DOF of blade 2 (internal DOF index = DOF_BE(2,1)), m | D26: 0.008547008547 | E26: 7.901274837e-08 | F26: 170.4153353 | G26: 4.232146028e-06 | H26: -3.322818673 | I26: 0.0004994885835 | J26: -51.07527303 | K26: 0.0004533268995 | L26: 147.9914069 | M26: 0.002758712963 | N26: -178.4030579 | O26: 2.015191668e-06 | P26: -90.00028957 | Q26: 0.0002672422446 | R26: -145.469355 | S26: 0.0008896014037 | T26: -39.58951722 | U26: 0.0001598450052 | V26: -98.00869839 | W26: 0.0005864353339 | X26: -8.134625433 | Y26: 0.001470187688 | Z26: 176.475515 | AA26: 0.0001227261664 | AB26: 40.74918749 | AC26: 0.0002598059325 | AD26: -93.53363663 | AE26: 0.001326712099 | AF26: -91.56256761 | AG26: 8.95169902e-08 | AH26: 116.1842968 | AI26: 2.788414081e-08 | AJ26: -126.5052964 | AK26: 5.795943564e-07 | AL26: 17.20913053 | AM26: 9.393512131e-07 | AN26: 38.19580335 | AO26: 3.242229011e-06 | AP26: -139.3356425 | AQ26: 2.058652281e-06 | AR26: -100.0944831 | BM26: 0.002758712963 | BN26: 13 | BO26: =INDIRECT(SUBSTITUTE(ADDRESS(1,$BN26,4),"1","7")) -> 0.03619026882
B27: 17 | C27: ED 1st edgewise bending-mode DOF of blade 3 (internal DOF index = DOF_BE(3,1)), m | D27: 0.008547008547 | E27: 4.540916939e-07 | F27: -156.9817624 | G27: 1.236524278e-08 | H27: 169.3826043 | I27: 4.055534837e-05 | J27: 94.47470257 | K27: 0.0003642882928 | L27: -147.5166111 | M27: 0.0001077381881 | N27: -175.4729547 | O27: 0.0001217793315 | P27: -0.0006627349397 | Q27: 0.000232731394 | R27: -67.38494628 | S27: 0.000162789428 | T27: -1.745594167 | U27: 0.0002242315817 | V27: -15.2001865 | W27: 0.000749047161 | X27: 82.4431423 | Y27: 0.001479754333 | Z27: -91.84553582 | AA27: 0.0001343431937 | AB27: 91.8213206 | AC27: 0.0006940326935 | AD27: -179.1232176 | AE27: 0.001201659376 | AF27: 178.3896395 | AG27: 5.354208173e-07 | AH27: 91.68605775 | AI27: 4.70729953e-08 | AJ27: -130.5807354 | AK27: 9.531663806e-07 | AL27: -15.37679877 | AM27: 1.437861047e-06 | AN27: 23.92841906 | AO27: 1.128912724e-06 | AP27: 38.50035692 | AQ27: 1.970702757e-06 | AR27: 81.86185799 | BM27: 0.001479754333 | BN27: 25 | BO27: =INDIRECT(SUBSTITUTE(ADDRESS(1,$BN27,4),"1","7")) -> 0.5899839245
B28: 18 | C28: ED 2nd flapwise bending-mode DOF of blade 1 (internal DOF index = DOF_BF(1,2)), m | D28: 0.008547008547 | E28: 2.726967978e-06 | F28: -7.362899846 | G28: 1.032252397e-07 | H28: 71.64054739 | I28: 3.487682019e-05 | J28: 169.9839675 | K28: 0.001379496878 | L28: 0.4536071264 | M28: 0.0005214024433 | N28: -47.79745987 | O28: 1.36602456e-05 | P28: 1.828576791 | Q28: 0.00011685144 | R28: 98.70164404 | S28: 0.0001134425187 | T28: 66.35361178 | U28: 3.969208133e-05 | V28: 173.6338566 | W28: 0.000107618087 | X28: -90.89938681 | Y28: 3.980663785e-05 | Z28: -103.6690872 | AA28: 5.724549638e-05 | AB28: 84.70205117 | AC28: 9.925404426e-05 | AD28: 96.78358345 | AE28: 2.434496478e-05 | AF28: -123.5625389 | AG28: 4.615544219e-06 | AH28: 38.24956887 | AI28: 0.0004022881825 | AJ28: 82.506166 | AK28: 7.592305697e-06 | AL28: -115.9941333 | AM28: 7.101508348e-06 | AN28: -97.1771982 | AO28: 4.960570285e-05 | AP28: 91.87183363 | AQ28: 1.530327419e-06 | AR28: -90.44095694 | BM28: 0.001379496878 | BN28: 11 | BO28: =INDIRECT(SUBSTITUTE(ADDRESS(1,$BN28,4),"1","7")) -> 0.03613037747
B29: 19 | C29: ED 2nd flapwise bending-mode DOF of blade 2 (internal DOF index = DOF_BF(2,2)), m | D29: 0.008547008547 | E29: 1.670411997e-07 | F29: -4.113317819 | G29: 5.088319646e-07 | H29: -174.1300173 | I29: 0.001962539392 | J29: 178.6240975 | K29: 0.0003321748379 | L29: -3.015559295 | M29: 0.0003721649263 | N29: 4.51923473 | O29: 3.897986316e-06 | P29: 179.5368797 | Q29: 0.0002389697466 | R29: 91.25484591 | S29: 0.0002350061138 | T29: 100.3249995 | U29: 0.0001163150633 | V29: 176.7260696 | W29: 8.894517125e-05 | X29: -74.4594778 | Y29: 0.0001024799905 | Z29: -160.5828689 | AA29: 0.0001093355345 | AB29: 84.41763056 | AC29: 2.481728686e-05 | AD29: 122.6778107 | AE29: 8.15700746e-05 | AF29: -96.98678472 | AG29: 0.0002732864045 | AH29: 17.84766672 | AI29: 6.477706628e-06 | AJ29: -162.6127922 | AK29: 0.0003323365319 | AL29: -95.03015041 | AM29: 0.0003659480623 | AN29: -93.69479122 | AO29: 9.811492619e-05 | AP29: 86.79546729 | AQ29: 4.388190792e-06 | AR29: 47.91255878 | BM29: 0.001962539392 | BN29: 9 | BO29: =INDIRECT(SUBSTITUTE(ADDRESS(1,$BN29,4),"1","7")) -> 0.01191062717
B30: 20 | C30: ED 2nd flapwise bending-mode DOF of blade 3 (internal DOF index = DOF_BF(3,2)), m | D30: 0.008547008547 | E30: 1.290642323e-06 | F30: 89.45123881 | G30: 1.667774777e-07 | H30: -3.963089749 | I30: 0.0002062299351 | J30: -83.03737458 | K30: 0.001059419788 | L30: 90.09542613 | M30: 0.0002845575761 | N30: 72.42428388 | O30: 1.276849636e-05 | P30: 161.9464833 | Q30: 8.84482474e-05 | R30: -179.157832 | S30: 3.758863203e-05 | T30: -74.63793373 | U30: 4.822699502e-05 | V30: -89.0665621 | W30: 3.721472851e-05 | X30: 44.28185794 | Y30: 8.156673795e-05 | Z30: -82.53857974 | AA30: 1.670952944e-05 | AB30: 131.0976496 | AC30: 6.680119778e-05 | AD30: -125.7442631 | AE30: 5.573218247e-05 | AF30: 174.6401136 | AG30: 0.0003186648122 | AH30: 83.49488061 | AI30: 1.303961502e-05 | AJ30: 102.3829401 | AK30: 0.0002221925604 | AL30: -132.8412627 | AM30: 0.0001090804081 | AN30: -138.0565597 | AO30: 0.0003480817642 | AP30: -91.00127112 | AQ30: 0.000196756358 | AR30: -91.11965301 | BM30: 0.001059419788 | BN30: 11 | BO30: =INDIRECT(SUBSTITUTE(ADDRESS(1,$BN30,4),"1","7")) -> 0.03613037747
B31: 21 | D31: =1 -> 1 | BM31: 0 | BO31: =INDIRECT(SUBSTITUTE(ADDRESS(1,$BN31,4),"1","7")) -> 
B32: 22 | D32: =1 -> 1 | BM32: 0 | BO32: =INDIRECT(SUBSTITUTE(ADDRESS(1,$BN32,4),"1","7")) -> 
B33: 23 | D33: =1 -> 1 | BM33: 0 | BO33: =INDIRECT(SUBSTITUTE(ADDRESS(1,$BN33,4),"1","7")) -> 
B34: 24 | D34: =1 -> 1 | BM34: 0 | BO34: =INDIRECT(SUBSTITUTE(ADDRESS(1,$BN34,4),"1","7")) -> 
B35: 25 | D35: =1 -> 1 | BM35: 0 | BO35: =INDIRECT(SUBSTITUTE(ADDRESS(1,$BN35,4),"1","7")) -> 
B36: 26 | D36: =1 -> 1 | BM36: 0 | BO36: =INDIRECT(SUBSTITUTE(ADDRESS(1,$BN36,4),"1","7")) -> 
B37: 27 | D37: =1 -> 1 | BM37: 0 | BO37: =INDIRECT(SUBSTITUTE(ADDRESS(1,$BN37,4),"1","7")) -> 
B38: 28 | D38: =1 -> 1 | BM38: 0 | BO38: =INDIRECT(SUBSTITUTE(ADDRESS(1,$BN38,4),"1","7")) -> 
B39: 29 | D39: =1 -> 1 | BM39: 0 | BO39: =INDIRECT(SUBSTITUTE(ADDRESS(1,$BN39,4),"1","7")) -> 
B40: 30 | D40: =1 -> 1 | BM40: 0 | BO40: =INDIRECT(SUBSTITUTE(ADDRESS(1,$BN40,4),"1","7")) -> 
E41: =MAX(E11:E40) -> 0.9988272665 | G41: =MAX(G11:G40) -> 0.998781515 | I41: =MAX(I11:I40) -> 0.5400367529 | K41: =MAX(K11:K40) -> 0.5101477668 | M41: =MAX(M11:M40) -> 0.6596211636 | O41: =MAX(O11:O40) -> 0.9529047437 | Q41: =MAX(Q11:Q40) -> 0.002591257001 | S41: =MAX(S11:S40) -> 0.00525313161 | U41: =MAX(U11:U40) -> 0.001995164672 | W41: =MAX(W11:W40) -> 0.0019324154 | Y41: =MAX(Y11:Y40) -> 0.001479754333 | AA41: =MAX(AA11:AA40) -> 0.001584023648 | AC41: =MAX(AC11:AC40) -> 0.001767836666 | AE41: =MAX(AE11:AE40) -> 0.001326712099 | AG41: =MAX(AG11:AG40) -> 0.0003186648122 | AI41: =MAX(AI11:AI40) -> 0.0004022881825 | AK41: =MAX(AK11:AK40) -> 0.0003323365319 | AM41: =MAX(AM11:AM40) -> 0.0003659480623 | AO41: =MAX(AO11:AO40) -> 0.0003480817642 | AQ41: =MAX(AQ11:AQ40) -> 0.0002029177915 | AS41: =MAX(AS11:AS40) -> 0 | AU41: =MAX(AU11:AU40) -> 0 | AW41: =MAX(AW11:AW40) -> 0 | AY41: =MAX(AY11:AY40) -> 0 | BA41: =MAX(BA11:BA40) -> 0 | BC41: =MAX(BC11:BC40) -> 0 | BE41: =MAX(BE11:BE40) -> 0 | BG41: =MAX(BG11:BG40) -> 0 | BI41: =MAX(BI11:BI40) -> 0 | BK41: =MAX(BK11:BK40) -> 0
C42: Green Background = Maximum value of the mode shape magnitude within a row
C43: Red Bold Text = Maximum value of the mode shape magnitude within a column
E47: =D48 -> 56 | F47: =D49 -> 55 | G47: =D50 -> 54 | H47: =D51 -> 53 | I47: =D52 -> 52 | J47: =D53 -> 51 | K47: =D54 -> 50 | L47: =D55 -> 49 | M47: =D56 -> 48 | N47: =D57 -> 47 | O47: =D58 -> 46 | P47: =D59 -> 45 | Q47: =D60 -> 43 | R47: =D61 -> 44 | S47: =D62 -> 42 | T47: =D63 -> 40 | U47: =D64 -> 41 | V47: =D65 -> 39 | W47: =D66 -> 37 | X47: =D67 -> 38 | Y47: =D68 -> 57 | Z47: =D69 -> 58 | AA47: =D70 -> 59 | AB47: =D71 -> 60 | AC47: =D72 -> 61 | AD47: =D73 -> 62 | AE47: =D74 -> 63 | AF47: =D75 -> 64 | AG47: =D76 -> 65 | AH47: =D77 -> 66 | AI47: =E47 -> 56 | AJ47: 55 | AK47: 54 | AL47: 53 | AM47: 52 | AN47: 51 | AO47: 50 | AP47: 49 | AQ47: 48 | AR47: 47 | AS47: 46 | AT47: 45 | AU47: 43 | AV47: 44 | AW47: 42 | AX47: 40 | AY47: 41 | AZ47: 39 | BA47: 37 | BB47: 38 | BC47: 57 | BD47: 58 | BE47: 59 | BF47: 60 | BG47: 61 | BH47: 62 | BI47: 63 | BJ47: 64 | BK47: 65 | BL47: 66 | BO47: =CT77+1 -> 36 | BP47: =BO47+1 -> 37 | BQ47: 38 | BR47: 39 | BS47: 40 | BT47: 41 | BU47: 42 | BV47: 43 | BW47: 44 | BX47: 45 | BY47: 46 | BZ47: 47 | CA47: 48 | CB47: 49 | CC47: 50 | CD47: 51 | CE47: 52 | CF47: 53 | CG47: 54 | CH47: 55 | CI47: 56 | CJ47: 57 | CK47: 58 | CL47: 59 | CM47: 60 | CN47: 61 | CO47: 62 | CP47: 63 | CQ47: 64 | CR47: 65 | CS47: 66
D48: =CS48 -> 56 | E48: 2.055327004e-08 | F48: 3.901081266e-07 | G48: 2.791242341e-06 | H48: 1.87288503e-06 | I48: 5.41850852e-08 | J48: 1.097701343e-06 | K48: 5.417489069e-05 | L48: 2.874523797e-05 | M48: 0.0003064094633 | N48: 0.0001608416454 | O48: 0.0002151399855 | P48: 0.0006748690423 | Q48: 0.002591257001 | R48: 0.002534259181 | S48: 0.00200226557 | T48: 0.5101477668 | U48: 0.1688786283 | V48: 0.0323609242 | W48: 0.9988272665 | X48: 0.0002293393297 | AI48: -18.07586032 | AJ48: 81.1815442 | AK48: -160.0568337 | AL48: 160.0024929 | AM48: -17.75850545 | AN48: -104.6033617 | AO48: -162.4531022 | AP48: 156.1400585 | AQ48: 87.86927409 | AR48: -121.3788468 | AS48: -95.67200869 | AT48: 172.310528 | AU48: 94.23420238 | AV48: 93.48810408 | AW48: -177.0955149 | AX48: 180 | AY48: 140.7270345 | AZ48: -47.32897198 | BA48: 0 | BB48: -138.3344327 | BM48: 0.03263124691 | BN48: 4.805527738 | BO48: 4.808088241 | BP48: =IF(MIN(BO$48:BO$77)=$BP$47,BO48,IF(BO48=MIN(BO$48:BO$77),BP$47,IF(BO48="",$CT48,BO48))) -> 4.808088241 | BQ48: 4.808088241 | BR48: 4.808088241 | BS48: 4.808088241 | BT48: 4.808088241 | BU48: 4.808088241 | BV48: 4.808088241 | BW48: 4.808088241 | BX48: 4.808088241 | BY48: 4.808088241 | BZ48: 4.808088241 | CA48: 4.808088241 | CB48: 4.808088241 | CC48: 4.808088241 | CD48: 4.808088241 | CE48: 4.808088241 | CF48: 4.808088241 | CG48: 4.808088241 | CH48: 4.808088241 | CI48: 56 | CJ48: 56 | CK48: 56 | CL48: 56 | CM48: 56 | CN48: 56 | CO48: 56 | CP48: 56 | CQ48: 56 | CR48: 56 | CS48: 56 | CT48: =CEILING(MAX(BO48:BO77),1)+1 -> 6
D49: 55 | E49: 1.237954878e-07 | F49: 2.010761785e-05 | G49: 1.27545815e-07 | H49: 1.721008593e-07 | I49: 6.975401476e-08 | J49: 2.08276889e-07 | K49: 0.0001462796849 | L49: 0.0006550329069 | M49: 1.809093477e-05 | N49: 2.232409406e-05 | O49: 7.405589759e-05 | P49: 7.562762262e-05 | Q49: 0.001419079614 | R49: 0.00525313161 | S49: 1.152933837e-06 | T49: 0.0982067533 | U49: 0.6596211636 | V49: 0.1620771149 | W49: 0.0001823603658 | X49: 0.998781515 | AI49: -100.1740801 | AJ49: 39.30402709 | AK49: -100.0658249 | AL49: -85.83005395 | AM49: -46.97957295 | AN49: 133.2448005 | AO49: -91.14145892 | AP49: 87.10154378 | AQ49: -82.00849616 | AR49: 83.00351309 | AS49: 47.48684255 | AT49: 87.81086997 | AU49: 8.370927969 | AV49: 149.8207571 | AW49: -51.77182039 | AX49: 141.0905974 | AY49: 180 | AZ49: 171.7567249 | BA49: -23.47340003 | BB49: 180 | BM49: 0.0174745883 | BN49: 2.670851194 | BO49: 2.671259075 | BP49: =IF(MIN(BO$48:BO$77)=$BP$47,BO49,IF(BO49=MIN(BO$48:BO$77),BP$47,IF(BO49="",$CT49,BO49))) -> 2.671259075 | BQ49: 2.671259075 | BR49: 2.671259075 | BS49: 2.671259075 | BT49: 2.671259075 | BU49: 2.671259075 | BV49: 2.671259075 | BW49: 2.671259075 | BX49: 2.671259075 | BY49: 2.671259075 | BZ49: 2.671259075 | CA49: 2.671259075 | CB49: 2.671259075 | CC49: 2.671259075 | CD49: 2.671259075 | CE49: 2.671259075 | CF49: 2.671259075 | CG49: 2.671259075 | CH49: 55 | CI49: 55 | CJ49: 55 | CK49: 55 | CL49: 55 | CM49: 55 | CN49: 55 | CO49: 55 | CP49: 55 | CQ49: 55 | CR49: 55 | CS49: 55 | CT49: =CT48+1 -> 7
D50: 54 | E50: 6.308857116e-09 | F50: 1.162556575e-07 | G50: 5.793088261e-07 | H50: 3.688500366e-07 | I50: 2.501454328e-08 | J50: 2.121935664e-07 | K50: 2.575361585e-05 | L50: 1.401495898e-05 | M50: 7.427892298e-06 | N50: 2.431546232e-05 | O50: 4.256000088e-05 | P50: 2.335952651e-05 | Q50: 0.0001100559427 | R50: 0.000102828976 | S50: 0.9529047437 | T50: 0.0186419505 | U50: 0.006217547418 | V50: 0.002120617927 | W50: 0.0002838727473 | X50: 9.096276038e-08 | AI50: -175.4540903 | AJ50: -104.1695803 | AK50: 23.83850022 | AL50: -14.73567313 | AM50: -122.0537416 | AN50: 83.6992893 | AO50: -2.383894082 | AP50: 7.480075154 | AQ50: 55.48275061 | AR50: 96.3028978 | AS50: -93.05665287 | AT50: 178.330782 | AU50: 90.48215077 | AV50: 93.26882607 | AW50: 0 | AX50: -168.4610208 | AY50: 151.8332426 | AZ50: -102.4221246 | BA50: -0.3521076118 | BB50: -157.0919097 | BM50: 0.0644415871 | BN50: 2.570905829 | BO50: 2.576260636 | BP50: =IF(MIN(BO$48:BO$77)=$BP$47,BO50,IF(BO50=MIN(BO$48:BO$77),BP$47,IF(BO50="",$CT50,BO50))) -> 2.576260636 | BQ50: 2.576260636 | BR50: 2.576260636 | BS50: 2.576260636 | BT50: 2.576260636 | BU50: 2.576260636 | BV50: 2.576260636 | BW50: 2.576260636 | BX50: 2.576260636 | BY50: 2.576260636 | BZ50: 2.576260636 | CA50: 2.576260636 | CB50: 2.576260636 | CC50: 2.576260636 | CD50: 2.576260636 | CE50: 2.576260636 | CF50: 2.576260636 | CG50: 54 | CH50: 54 | CI50: 54 | CJ50: 54 | CK50: 54 | CL50: 54 | CM50: 54 | CN50: 54 | CO50: 54 | CP50: 54 | CQ50: 54 | CR50: 54 | CS50: 54 | CT50: 8
D51: 53 | E51: 4.397751408e-09 | F51: 8.354170009e-07 | G51: 5.342177469e-09 | H51: 7.281653806e-09 | I51: 2.934290874e-09 | J51: 8.909840658e-09 | K51: 7.718709949e-06 | L51: 3.382893501e-05 | M51: 9.699811531e-07 | N51: 1.290978672e-06 | O51: 4.046802588e-06 | P51: 4.311349657e-06 | Q51: 8.470677114e-05 | R51: 0.000312877986 | S51: 5.456335719e-07 | T51: 0.01682398643 | U51: 0.1130177898 | V51: 0.01577880625 | W51: 3.312518852e-06 | X51: 0.0005510828313 | AI51: 79.42997237 | AJ51: -140.7372592 | AK51: 79.33136705 | AL51: 93.23402195 | AM51: 131.9702492 | AN51: -48.06167402 | AO51: 88.66491966 | AP51: -93.06492858 | AQ51: 95.11344756 | AR51: -75.49558105 | AS51: -134.7534457 | AT51: -93.24579793 | AU51: -171.569041 | AV51: -30.09506013 | AW51: 39.83333988 | AX51: -38.16709305 | AY51: 0.4296161874 | AZ51: 75.54331913 | BA51: -14.77770555 | BB51: 178.9837872 | BM51: 0.08767995209 | BN51: 2.464336994 | BO51: 2.473864597 | BP51: =IF(MIN(BO$48:BO$77)=$BP$47,BO51,IF(BO51=MIN(BO$48:BO$77),BP$47,IF(BO51="",$CT51,BO51))) -> 2.473864597 | BQ51: 2.473864597 | BR51: 2.473864597 | BS51: 2.473864597 | BT51: 2.473864597 | BU51: 2.473864597 | BV51: 2.473864597 | BW51: 2.473864597 | BX51: 2.473864597 | BY51: 2.473864597 | BZ51: 2.473864597 | CA51: 2.473864597 | CB51: 2.473864597 | CC51: 2.473864597 | CD51: 2.473864597 | CE51: 2.473864597 | CF51: 53 | CG51: 53 | CH51: 53 | CI51: 53 | CJ51: 53 | CK51: 53 | CL51: 53 | CM51: 53 | CN51: 53 | CO51: 53 | CP51: 53 | CQ51: 53 | CR51: 53 | CS51: 53 | CT51: 9
D52: 52 | E52: 7.828482907e-10 | F52: 1.615759833e-08 | G52: 1.165388253e-07 | H52: 7.871774677e-08 | I52: 2.282464437e-09 | J52: 4.650641496e-08 | K52: 2.791817207e-06 | L52: 1.569120358e-06 | M52: 1.626427289e-05 | N52: 8.926760501e-06 | O52: 1.2656181e-05 | P52: 3.74170262e-05 | Q52: 0.0001547348511 | R52: 0.0001506447987 | S52: 0.0002834275361 | T52: 0.08808325815 | U52: 0.02911304584 | V52: 0.002122991035 | W52: 0.000534253762 | X52: 3.146754151e-06 | AI52: -18.36631822 | AJ52: 81.18976002 | AK52: -160.5476628 | AL52: 159.2906864 | AM52: -20.62731508 | AN52: -105.5555356 | AO52: -162.6550343 | AP52: 153.9838273 | AQ52: 87.66334068 | AR52: -121.48398 | AS52: -95.82142199 | AT52: 171.950147 | AU52: 94.17363597 | AV52: 93.55712225 | AW52: -176.7429669 | AX52: 179.6935546 | AY52: 140.2493773 | AZ52: 0.7938698193 | BA52: 178.2676473 | BB52: 175.8924893 | BM52: 0.1304194951 | BN52: 2.432439945 | BO52: 2.453394628 | BP52: =IF(MIN(BO$48:BO$77)=$BP$47,BO52,IF(BO52=MIN(BO$48:BO$77),BP$47,IF(BO52="",$CT52,BO52))) -> 2.453394628 | BQ52: 2.453394628 | BR52: 2.453394628 | BS52: 2.453394628 | BT52: 2.453394628 | BU52: 2.453394628 | BV52: 2.453394628 | BW52: 2.453394628 | BX52: 2.453394628 | BY52: 2.453394628 | BZ52: 2.453394628 | CA52: 2.453394628 | CB52: 2.453394628 | CC52: 2.453394628 | CD52: 2.453394628 | CE52: 52 | CF52: 52 | CG52: 52 | CH52: 52 | CI52: 52 | CJ52: 52 | CK52: 52 | CL52: 52 | CM52: 52 | CN52: 52 | CO52: 52 | CP52: 52 | CQ52: 52 | CR52: 52 | CS52: 52 | CT52: 10
D53: 51 | E53: 1.177942474e-08 | F53: 1.116747036e-08 | G53: 1.066452677e-09 | H53: 2.296669264e-09 | I53: 1.696123528e-10 | J53: 3.719902864e-09 | K53: 1.483037652e-07 | L53: 1.429248911e-06 | M53: 1.599871484e-06 | N53: 1.260426442e-06 | O53: 9.534319555e-07 | P53: 3.689581301e-06 | Q53: 6.242589471e-06 | R53: 5.540226434e-06 | S53: 4.467322177e-06 | T53: 0.001931951198 | U53: 0.004498117213 | V53: 0.5400367529 | W53: 2.433424393e-05 | X53: 2.315156297e-05 | AI53: 77.64736676 | AJ53: 25.2883978 | AK53: -138.1252631 | AL53: -124.7334436 | AM53: 91.23316456 | AN53: 92.83900055 | AO53: 18.53929919 | AP53: -89.44607433 | AQ53: 178.0877187 | AR53: 157.3847483 | AS53: -160.0519804 | AT53: 89.81306983 | AU53: -178.3769852 | AV53: -48.96061808 | AW53: 41.70039638 | AX53: 115.8799933 | AY53: -174.4650432 | AZ53: 74.87674929 | BA53: -95.18228351 | BB53: -14.25436355 | BM53: 0.1132919891 | BN53: 2.341677715 | BO53: 2.356851747 | BP53: =IF(MIN(BO$48:BO$77)=$BP$47,BO53,IF(BO53=MIN(BO$48:BO$77),BP$47,IF(BO53="",$CT53,BO53))) -> 2.356851747 | BQ53: 2.356851747 | BR53: 2.356851747 | BS53: 2.356851747 | BT53: 2.356851747 | BU53: 2.356851747 | BV53: 2.356851747 | BW53: 2.356851747 | BX53: 2.356851747 | BY53: 2.356851747 | BZ53: 2.356851747 | CA53: 2.356851747 | CB53: 2.356851747 | CC53: 2.356851747 | CD53: 51 | CE53: 51 | CF53: 51 | CG53: 51 | CH53: 51 | CI53: 51 | CJ53: 51 | CK53: 51 | CL53: 51 | CM53: 51 | CN53: 51 | CO53: 51 | CP53: 51 | CQ53: 51 | CR53: 51 | CS53: 51 | CT53: 11
D54: 50 | E54: 2.293382465e-07 | F54: 8.125074701e-07 | G54: 1.006950709e-05 | H54: 8.213570266e-06 | I54: 3.981646967e-06 | J54: 5.855808052e-06 | K54: 0.001041076898 | L54: 0.0008361289294 | M54: 0.005624544019 | N54: 0.003600477966 | O54: 0.006502730003 | P54: 0.01077347383 | Q54: 0.04284911618 | R54: 0.04203794493 | S54: 0.0007819764101 | T54: 0.4180441447 | U54: 0.1388468088 | V54: 0.02554866805 | W54: 0.000826644154 | X54: 8.125955057e-06 | AI54: -65.51065146 | AJ54: 18.12514668 | AK54: 4.901459797 | AL54: -37.94899124 | AM54: 86.4895259 | AN54: 56.38842703 | AO54: 17.55314065 | AP54: -39.06411674 | AQ54: -92.1052952 | AR54: 60.77869216 | AS54: 86.08089296 | AT54: -8.066348503 | AU54: -86.00013379 | AV54: -86.00220218 | AW54: -6.778149354 | AX54: -179.1587243 | AY54: 142.0837388 | AZ54: 0.01466616918 | BA54: 172.5451311 | BB54: 170.8176923 | BM54: 0.02726856915 | BN54: 0.7270113506 | BO54: 0.7272817952 | BP54: =IF(MIN(BO$48:BO$77)=$BP$47,BO54,IF(BO54=MIN(BO$48:BO$77),BP$47,IF(BO54="",$CT54,BO54))) -> 0.7272817952 | BQ54: 0.7272817952 | BR54: 0.7272817952 | BS54: 0.7272817952 | BT54: 0.7272817952 | BU54: 0.7272817952 | BV54: 0.7272817952 | BW54: 0.7272817952 | BX54: 0.7272817952 | BY54: 0.7272817952 | BZ54: 0.7272817952 | CA54: 0.7272817952 | CB54: 0.7272817952 | CC54: 50 | CD54: 50 | CE54: 50 | CF54: 50 | CG54: 50 | CH54: 50 | CI54: 50 | CJ54: 50 | CK54: 50 | CL54: 50 | CM54: 50 | CN54: 50 | CO54: 50 | CP54: 50 | CQ54: 50 | CR54: 50 | CS54: 50 | CT54: 12
D55: 49 | E55: 6.087306546e-05 | F55: 7.933564553e-05 | G55: 1.697944239e-06 | H55: 3.559121462e-06 | I55: 1.15857799e-07 | J55: 5.737924168e-06 | K55: 0.003529577014 | L55: 0.0105762191 | M55: 0.0004149029791 | N55: 0.001376158269 | O55: 0.001495874564 | P55: 0.00144498655 | Q55: 0.02350924753 | R55: 0.08789079468 | S55: 4.913052711e-06 | T55: 0.07986888554 | U55: 0.5376366412 | V55: 0.07206782436 | W55: 9.580412827e-06 | X55: 0.0008402111362 | AI55: 79.89415301 | AJ55: 34.62897283 | AK55: -134.425749 | AL55: -114.0794938 | AM55: -59.52628232 | AN55: 109.4203881 | AO55: -91.06384875 | AP55: 86.81255244 | AQ55: -101.238629 | AR55: 159.1133529 | AS55: 33.37747636 | AT55: 81.72984501 | AU55: 8.218749917 | AV55: 149.8723771 | AW55: -157.1261677 | AX55: -37.93797071 | AY55: 1.602744132 | AZ55: 73.71458934 | BA55: -27.5237896 | BB55: 176.4572065 | BM55: 0.02741181014 | BN55: 0.6769352011 | BO55: 0.6771896716 | BP55: =IF(MIN(BO$48:BO$77)=$BP$47,BO55,IF(BO55=MIN(BO$48:BO$77),BP$47,IF(BO55="",$CT55,BO55))) -> 0.6771896716 | BQ55: 0.6771896716 | BR55: 0.6771896716 | BS55: 0.6771896716 | BT55: 0.6771896716 | BU55: 0.6771896716 | BV55: 0.6771896716 | BW55: 0.6771896716 | BX55: 0.6771896716 | BY55: 0.6771896716 | BZ55: 0.6771896716 | CA55: 0.6771896716 | CB55: 49 | CC55: 49 | CD55: 49 | CE55: 49 | CF55: 49 | CG55: 49 | CH55: 49 | CI55: 49 | CJ55: 49 | CK55: 49 | CL55: 49 | CM55: 49 | CN55: 49 | CO55: 49 | CP55: 49 | CQ55: 49 | CR55: 49 | CS55: 49 | CT55: 13
D56: 48 | E56: 2.431950813e-07 | F56: 3.420725985e-06 | G56: 2.022022206e-05 | H56: 1.298410448e-05 | I56: 3.840708238e-07 | J56: 7.204695716e-06 | K56: 2.884275775e-05 | L56: 7.138421792e-06 | M56: 9.75743011e-05 | N56: 1.614051232e-05 | O56: 2.990673948e-05 | P56: 7.107660323e-05 | Q56: 0.0002046042855 | R56: 0.0001797488362 | S56: 5.30245814e-05 | T56: 0.0008481620541 | U56: 0.0002890973275 | V56: 0.0003693062715 | W56: 2.26109629e-06 | X56: 4.384292826e-08 | AI56: 159.6663519 | AJ56: -105.1513629 | AK56: 23.3821783 | AL56: -14.83681949 | AM56: -171.6869977 | AN56: 82.55464815 | AO56: 23.10410922 | AP56: 19.24427974 | AQ56: -86.92307663 | AR56: 64.00457789 | AS56: -96.54436483 | AT56: 5.970845616 | AU56: 92.01199064 | AV56: 95.09358542 | AW56: -179.1396899 | AX56: -178.9091398 | AY56: 138.8648349 | AZ56: 179.7764973 | BA56: 172.4652273 | BB56: -161.7208142 | BM56: 0.0258135017 | BN56: 0.6345793169 | BO56: 0.6347908445 | BP56: =IF(MIN(BO$48:BO$77)=$BP$47,BO56,IF(BO56=MIN(BO$48:BO$77),BP$47,IF(BO56="",$CT56,BO56))) -> 0.6347908445 | BQ56: 0.6347908445 | BR56: 0.6347908445 | BS56: 0.6347908445 | BT56: 0.6347908445 | BU56: 0.6347908445 | BV56: 0.6347908445 | BW56: 0.6347908445 | BX56: 0.6347908445 | BY56: 0.6347908445 | BZ56: 0.6347908445 | CA56: 48 | CB56: 48 | CC56: 48 | CD56: 48 | CE56: 48 | CF56: 48 | CG56: 48 | CH56: 48 | CI56: 48 | CJ56: 48 | CK56: 48 | CL56: 48 | CM56: 48 | CN56: 48 | CO56: 48 | CP56: 48 | CQ56: 48 | CR56: 48 | CS56: 48 | CT56: 14
D57: 47 | E57: 3.56758257e-06 | F57: 0.0001507236498 | G57: 8.629938147e-07 | H57: 1.145691153e-06 | I57: 4.8672346e-07 | J57: 1.258396146e-06 | K57: 5.804596484e-05 | L57: 0.0003178587332 | M57: 6.502074872e-06 | N57: 3.673373372e-05 | O57: 1.702412434e-05 | P57: 4.684208846e-06 | Q57: 0.0001135909706 | R57: 0.0004040881135 | S57: 7.800757363e-08 | T57: 0.0001427459778 | U57: 0.001054957222 | V57: 0.0001372256453 | W57: 2.931968744e-08 | X57: 2.299248731e-06 | AI57: -99.6347215 | AJ57: 39.77995103 | AK57: -90.29757831 | AL57: -75.84318414 | AM57: -39.51033987 | AN57: 142.7986318 | AO57: -85.28323688 | AP57: 91.74565228 | AQ57: -41.94988675 | AR57: 4.853863638 | AS57: 94.78325736 | AT57: 161.6255704 | AU57: -172.558468 | AV57: -30.44856034 | AW57: 102.7708179 | AX57: -31.67250862 | AY57: 1.24651203 | AZ57: 72.28351173 | BA57: 41.69410428 | BB57: 176.1912419 | BM57: 0.03220510686 | BN57: 0.5896778886 | BO57: 0.5899839245 | BP57: =IF(MIN(BO$48:BO$77)=$BP$47,BO57,IF(BO57=MIN(BO$48:BO$77),BP$47,IF(BO57="",$CT57,BO57))) -> 0.5899839245 | BQ57: 0.5899839245 | BR57: 0.5899839245 | BS57: 0.5899839245 | BT57: 0.5899839245 | BU57: 0.5899839245 | BV57: 0.5899839245 | BW57: 0.5899839245 | BX57: 0.5899839245 | BY57: 0.5899839245 | BZ57: 47 | CA57: 47 | CB57: 47 | CC57: 47 | CD57: 47 | CE57: 47 | CF57: 47 | CG57: 47 | CH57: 47 | CI57: 47 | CJ57: 47 | CK57: 47 | CL57: 47 | CM57: 47 | CN57: 47 | CO57: 47 | CP57: 47 | CQ57: 47 | CR57: 47 | CS57: 47 | CT57: 15
D58: 46 | E58: 1.017728888e-05 | F58: 3.47233371e-06 | G58: 2.642375652e-07 | H58: 5.284639939e-07 | I58: 3.711229868e-08 | J58: 7.776337204e-07 | K58: 2.838364606e-06 | L58: 2.313497511e-05 | M58: 2.408738795e-05 | N58: 1.641616884e-05 | O58: 1.180924657e-05 | P58: 3.593036784e-05 | Q58: 4.015351658e-05 | R58: 3.287667867e-05 | S58: 2.336960601e-07 | T58: 9.927571743e-05 | U58: 0.0003124561006 | V58: 5.601404011e-05 | W58: 7.870221414e-08 | X58: 5.079313333e-07 | AI58: -100.1480325 | AJ58: -151.6456306 | AK58: 49.00925362 | AL58: 64.8991754 | AM58: -76.08427133 | AN58: -74.84057553 | AO58: -165.8682351 | AP58: 93.17694434 | AQ58: 0.4518718916 | AR58: -19.84670071 | AS58: 22.20925938 | AT58: -87.81943784 | AU58: 1.846522452 | AV58: 127.8356894 | AW58: -86.27200505 | AX58: -66.75184535 | AY58: -1.376864629 | AZ58: 80.60301713 | BA58: -85.01544515 | BB58: 176.4416297 | BM58: 0.02939626132 | BN58: 0.5783264983 | BO58: 0.578576538 | BP58: =IF(MIN(BO$48:BO$77)=$BP$47,BO58,IF(BO58=MIN(BO$48:BO$77),BP$47,IF(BO58="",$CT58,BO58))) -> 0.578576538 | BQ58: 0.578576538 | BR58: 0.578576538 | BS58: 0.578576538 | BT58: 0.578576538 | BU58: 0.578576538 | BV58: 0.578576538 | BW58: 0.578576538 | BX58: 0.578576538 | BY58: 46 | BZ58: 46 | CA58: 46 | CB58: 46 | CC58: 46 | CD58: 46 | CE58: 46 | CF58: 46 | CG58: 46 | CH58: 46 | CI58: 46 | CJ58: 46 | CK58: 46 | CL58: 46 | CM58: 46 | CN58: 46 | CO58: 46 | CP58: 46 | CQ58: 46 | CR58: 46 | CS58: 46 | CT58: 16
D59: 45 | E59: 9.823930945e-05 | F59: 0.005030877072 | G59: 0.0007928687593 | H59: 0.0008429638885 | I59: 0.04438300529 | J59: 0.0005141161117 | K59: 0.004686148557 | L59: 0.02335687517 | M59: 0.030543195 | N59: 0.0601733047 | O59: 0.2260926018 | P59: 0.06238977154 | Q59: 0.08507934156 | R59: 0.08914641363 | S59: 0.004955633142 | T59: 0.4997584125 | U59: 0.1842974972 | V59: 0.01601409465 | W59: 0.0009867416522 | X59: 3.794785182e-05 | AI59: 96.67433918 | AJ59: -81.33533535 | AK59: 81.96677305 | AL59: 63.3165242 | AM59: -97.48518956 | AN59: -142.5296029 | AO59: 110.183998 | AP59: -121.8126274 | AQ59: 92.70820388 | AR59: -119.2426879 | AS59: -91.68452438 | AT59: -5.381471723 | AU59: -81.87364421 | AV59: -119.4460307 | AW59: -178.1833414 | AX59: -179.4509115 | AY59: 130.2997829 | AZ59: -6.383923646 | BA59: 172.6429309 | BB59: -110.8991919 | BM59: 0.02859344885 | BN59: 0.5096700141 | BO59: 0.5098784913 | BP59: =IF(MIN(BO$48:BO$77)=$BP$47,BO59,IF(BO59=MIN(BO$48:BO$77),BP$47,IF(BO59="",$CT59,BO59))) -> 0.5098784913 | BQ59: 0.5098784913 | BR59: 0.5098784913 | BS59: 0.5098784913 | BT59: 0.5098784913 | BU59: 0.5098784913 | BV59: 0.5098784913 | BW59: 0.5098784913 | BX59: 45 | BY59: 45 | BZ59: 45 | CA59: 45 | CB59: 45 | CC59: 45 | CD59: 45 | CE59: 45 | CF59: 45 | CG59: 45 | CH59: 45 | CI59: 45 | CJ59: 45 | CK59: 45 | CL59: 45 | CM59: 45 | CN59: 45 | CO59: 45 | CP59: 45 | CQ59: 45 | CR59: 45 | CS59: 45 | CT59: 17
D60: 43 | E60: 0.0004600551758 | F60: 0.01093046001 | G60: 0.04076415189 | H60: 0.03657617068 | I60: 0.0006929082471 | J60: 0.03002395394 | K60: 0.01615614522 | L60: 0.01528173242 | M60: 0.1853307668 | N60: 0.02844234928 | O60: 0.03095312855 | P60: 0.1701855035 | Q60: 0.274650566 | R60: 0.2242862583 | S60: 0.001284349681 | T60: 0.123443037 | U60: 0.0153343686 | V60: 0.7780440835 | W60: 7.174937069e-05 | X60: 3.329861374e-05 | AI60: -135.6832179 | AJ60: -93.17349204 | AK60: 85.2661453 | AL60: 84.14081325 | AM60: 16.50712133 | AN60: -162.671843 | AO60: 80.30037224 | AP60: -1.770467766 | AQ60: 88.520831 | AR60: 34.90935265 | AS60: 106.3657377 | AT60: 179.9503564 | AU60: -90.63240607 | AV60: -90.445549 | AW60: 0.8132166167 | AX60: -177.5211276 | AY60: -158.4920341 | AZ60: 0 | BA60: 176.2925168 | BB60: 104.0236074 | BM60: 0.01103734393 | BN60: 0.4219779633 | BO60: 0.422003669 | BP60: =IF(MIN(BO$48:BO$77)=$BP$47,BO60,IF(BO60=MIN(BO$48:BO$77),BP$47,IF(BO60="",$CT60,BO60))) -> 0.422003669 | BQ60: 0.422003669 | BR60: 0.422003669 | BS60: 0.422003669 | BT60: 0.422003669 | BU60: 0.422003669 | BV60: 43 | BW60: 43 | BX60: 43 | BY60: 43 | BZ60: 43 | CA60: 43 | CB60: 43 | CC60: 43 | CD60: 43 | CE60: 43 | CF60: 43 | CG60: 43 | CH60: 43 | CI60: 43 | CJ60: 43 | CK60: 43 | CL60: 43 | CM60: 43 | CN60: 43 | CO60: 43 | CP60: 43 | CQ60: 43 | CR60: 43 | CS60: 43 | CT60: 18
D61: 44 | E61: 0.02374138161 | F61: 0.03919600754 | G61: 0.01194949672 | H61: 0.02438857236 | I61: 0.001431345494 | J61: 0.03499950884 | K61: 0.01371036721 | L61: 0.03079974614 | M61: 0.1519961094 | N61: 0.05424626814 | O61: 0.07413172684 | P61: 0.2334342667 | Q61: 0.18621152 | R61: 0.1014439285 | S61: 0.001999801939 | T61: 0.4210598087 | U61: 0.1168189215 | V61: 0.08354218109 | W61: 0.0005131042591 | X61: 5.897689323e-05 | AI61: 88.13003532 | AJ61: 87.38205485 | AK61: 41.92545374 | AL61: 47.10352522 | AM61: -77.5425283 | AN61: -96.60502302 | AO61: -11.03979945 | AP61: -72.84230035 | AQ61: -3.603439912 | AR61: -2.655791377 | AS61: -5.510101572 | AT61: -91.63850726 | AU61: -2.224222468 | AV61: 17.28663198 | AW61: -126.7286609 | AX61: -88.01655909 | AY61: -107.306553 | AZ61: 97.66400728 | BA61: -88.23011179 | BB61: 175.1574496 | BM61: 0.007776218701 | BN61: 0.4264548822 | BO61: 0.4264677766 | BP61: =IF(MIN(BO$48:BO$77)=$BP$47,BO61,IF(BO61=MIN(BO$48:BO$77),BP$47,IF(BO61="",$CT61,BO61))) -> 0.4264677766 | BQ61: 0.4264677766 | BR61: 0.4264677766 | BS61: 0.4264677766 | BT61: 0.4264677766 | BU61: 0.4264677766 | BV61: 0.4264677766 | BW61: 44 | BX61: 44 | BY61: 44 | BZ61: 44 | CA61: 44 | CB61: 44 | CC61: 44 | CD61: 44 | CE61: 44 | CF61: 44 | CG61: 44 | CH61: 44 | CI61: 44 | CJ61: 44 | CK61: 44 | CL61: 44 | CM61: 44 | CN61: 44 | CO61: 44 | CP61: 44 | CQ61: 44 | CR61: 44 | CS61: 44 | CT61: 19
D62: 42 | E62: 0.0005309226985 | F62: 0.005651730539 | G62: 2.846540317e-05 | H62: 3.125415973e-05 | I62: 1.899899339e-05 | J62: 2.930882433e-05 | K62: 0.03482101994 | L62: 0.2068368899 | M62: 0.007888449804 | N62: 0.0250683396 | O62: 0.007482740762 | P62: 0.006354004754 | Q62: 0.04455556363 | R62: 0.178972732 | S62: 0.0003231627217 | T62: 0.04145810312 | U62: 0.07931614661 | V62: 0.004596339831 | W62: 6.450778579e-05 | X62: 1.547583121e-05 | AI62: 80.40617 | AJ62: -139.0674665 | AK62: 102.0890002 | AL62: 128.7130779 | AM62: -161.2184467 | AN62: 6.328659836 | AO62: -90.57535734 | AP62: 88.42922221 | AQ62: -2.528805573 | AR62: -11.32145434 | AS62: -73.65262716 | AT62: -70.39680962 | AU62: -166.0096253 | AV62: -34.21566188 | AW62: -177.3657212 | AX62: 172.0971874 | AY62: 176.2000944 | AZ62: -107.2286784 | BA62: 172.4756913 | BB62: -6.299515845 | BM62: 0.005640620134 | BN62: 0.05057781496 | BO62: 0.05057861958 | BP62: =IF(MIN(BO$48:BO$77)=$BP$47,BO62,IF(BO62=MIN(BO$48:BO$77),BP$47,IF(BO62="",$CT62,BO62))) -> 0.05057861958 | BQ62: 0.05057861958 | BR62: 0.05057861958 | BS62: 0.05057861958 | BT62: 0.05057861958 | BU62: 42 | BV62: 42 | BW62: 42 | BX62: 42 | BY62: 42 | BZ62: 42 | CA62: 42 | CB62: 42 | CC62: 42 | CD62: 42 | CE62: 42 | CF62: 42 | CG62: 42 | CH62: 42 | CI62: 42 | CJ62: 42 | CK62: 42 | CL62: 42 | CM62: 42 | CN62: 42 | CO62: 42 | CP62: 42 | CQ62: 42 | CR62: 42 | CS62: 42 | CT62: 20
D63: 40 | E63: 0.0002408623169 | F63: 0.0003793407943 | G63: 0.0001099040919 | H63: 6.78125397e-05 | I63: 3.262444475e-06 | J63: 1.047348785e-05 | K63: 0.1552253156 | L63: 0.03039729411 | M63: 0.01435896147 | N63: 0.1720119595 | O63: 0.06861293406 | P63: 0.01870186561 | Q63: 0.03126734262 | R63: 0.1040833642 | S63: 0.0002357774251 | T63: 0.05303924724 | U63: 0.3227694166 | V63: 0.05844016427 | W63: 9.244491559e-06 | X63: 0.0004951610853 | AI63: -100.0944831 | AJ63: -139.3356425 | AK63: 38.19580335 | AL63: 17.20913053 | AM63: -126.5052964 | AN63: 116.1842968 | AO63: -91.56256761 | AP63: -93.53363663 | AQ63: 40.74918749 | AR63: 176.475515 | AS63: -8.134625433 | AT63: -98.00869839 | AU63: -145.469355 | AV63: -39.58951722 | AW63: -90.00028957 | AX63: 147.9914069 | AY63: -178.4030579 | AZ63: -51.07527303 | BA63: 170.4153353 | BB63: -3.322818673 | BM63: 0.02353037134 | BN63: 0.03612037378 | BO63: 0.03613037747 | BP63: =IF(MIN(BO$48:BO$77)=$BP$47,BO63,IF(BO63=MIN(BO$48:BO$77),BP$47,IF(BO63="",$CT63,BO63))) -> 0.03613037747 | BQ63: 0.03613037747 | BR63: 0.03613037747 | BS63: 40 | BT63: 40 | BU63: 40 | BV63: 40 | BW63: 40 | BX63: 40 | BY63: 40 | BZ63: 40 | CA63: 40 | CB63: 40 | CC63: 40 | CD63: 40 | CE63: 40 | CF63: 40 | CG63: 40 | CH63: 40 | CI63: 40 | CJ63: 40 | CK63: 40 | CL63: 40 | CM63: 40 | CN63: 40 | CO63: 40 | CP63: 40 | CQ63: 40 | CR63: 40 | CS63: 40 | CT63: 21
D64: 41 | E64: 0.0002305722225 | F64: 0.0001320827887 | G64: 0.0001682297425 | H64: 0.0001115204665 | I64: 5.50754045e-06 | J64: 6.264423562e-05 | K64: 0.140594147 | L64: 0.08120182514 | M64: 0.01571815366 | N64: 0.1731312569 | O64: 0.08763851783 | P64: 0.02623509506 | Q64: 0.0272295731 | R64: 0.01904636308 | S64: 0.01424818179 | T64: 0.04262173026 | U64: 0.01260536801 | V64: 0.00474497576 | W64: 5.312872819e-05 | X64: 1.446733405e-06 | AI64: 81.86185799 | AJ64: 38.50035692 | AK64: 23.92841906 | AL64: -15.37679877 | AM64: -130.5807354 | AN64: 91.68605775 | AO64: 178.3896395 | AP64: -179.1232176 | AQ64: 91.8213206 | AR64: -91.84553582 | AS64: 82.4431423 | AT64: -15.2001865 | AU64: -67.38494628 | AV64: -1.745594167 | AW64: -0.0006627349397 | AX64: -147.5166111 | AY64: -175.4729547 | AZ64: 94.47470257 | BA64: -156.9817624 | BB64: 169.3826043 | BM64: 0.02238262441 | BN64: 0.03618120235 | BO64: 0.03619026882 | BP64: =IF(MIN(BO$48:BO$77)=$BP$47,BO64,IF(BO64=MIN(BO$48:BO$77),BP$47,IF(BO64="",$CT64,BO64))) -> 0.03619026882 | BQ64: 0.03619026882 | BR64: 0.03619026882 | BS64: 0.03619026882 | BT64: 41 | BU64: 41 | BV64: 41 | BW64: 41 | BX64: 41 | BY64: 41 | BZ64: 41 | CA64: 41 | CB64: 41 | CC64: 41 | CD64: 41 | CE64: 41 | CF64: 41 | CG64: 41 | CH64: 41 | CI64: 41 | CJ64: 41 | CK64: 41 | CL64: 41 | CM64: 41 | CN64: 41 | CO64: 41 | CP64: 41 | CQ64: 41 | CR64: 41 | CS64: 41 | CT64: 22
D65: 39 | E65: 0.000179048308 | F65: 0.005803867233 | G65: 0.0008308764767 | H65: 0.0008882997665 | I65: 0.04706771735 | J65: 0.0005400186737 | K65: 0.002848360879 | L65: 0.01161272318 | M65: 0.006697723077 | N65: 0.004657376629 | O65: 0.01259131617 | P65: 0.004643973516 | Q65: 0.01367161848 | R65: 0.01327277469 | S65: 0.001598248736 | T65: 0.1614011347 | U65: 0.06100408587 | V65: 0.004080587962 | W65: 0.0003190552534 | X65: 1.207735305e-05 | AI65: -90.44095694 | AJ65: 91.87183363 | AK65: -97.1771982 | AL65: -115.9941333 | AM65: 82.506166 | AN65: 38.24956887 | AO65: -123.5625389 | AP65: 96.78358345 | AQ65: 84.70205117 | AR65: -103.6690872 | AS65: -90.89938681 | AT65: 173.6338566 | AU65: 98.70164404 | AV65: 66.35361178 | AW65: 1.828576791 | AX65: 0.4536071264 | AY65: -47.79745987 | AZ65: 169.9839675 | BA65: -7.362899846 | BB65: 71.64054739 | BM65: 0.254459792 | BN65: 0.01151856927 | BO65: 0.01191062717 | BP65: =IF(MIN(BO$48:BO$77)=$BP$47,BO65,IF(BO65=MIN(BO$48:BO$77),BP$47,IF(BO65="",$CT65,BO65))) -> 0.01191062717 | BQ65: 0.01191062717 | BR65: 39 | BS65: 39 | BT65: 39 | BU65: 39 | BV65: 39 | BW65: 39 | BX65: 39 | BY65: 39 | BZ65: 39 | CA65: 39 | CB65: 39 | CC65: 39 | CD65: 39 | CE65: 39 | CF65: 39 | CG65: 39 | CH65: 39 | CI65: 39 | CJ65: 39 | CK65: 39 | CL65: 39 | CM65: 39 | CN65: 39 | CO65: 39 | CP65: 39 | CQ65: 39 | CR65: 39 | CS65: 39 | CT65: 23
D66: 37 | E66: 0.0005134183227 | F66: 0.01147944636 | G66: 0.04281592328 | H66: 0.03888337423 | I66: 0.0007578916754 | J66: 0.03197450933 | K66: 0.009543698728 | L66: 0.002903622563 | M66: 0.01279225754 | N66: 0.01199015889 | O66: 0.01040658504 | P66: 0.01360886241 | Q66: 0.02795946035 | R66: 0.02749571531 | S66: 0.000456064399 | T66: 0.03886445603 | U66: 0.04354329638 | V66: 0.2296171089 | W66: 1.954382037e-05 | X66: 5.953333985e-05 | AI66: 47.91255878 | AJ66: 86.79546729 | AK66: -93.69479122 | AL66: -95.03015041 | AM66: -162.6127922 | AN66: 17.84766672 | AO66: -96.98678472 | AP66: 122.6778107 | AQ66: 84.41763056 | AR66: -160.5828689 | AS66: -74.4594778 | AT66: 176.7260696 | AU66: 91.25484591 | AV66: 100.3249995 | AW66: 179.5368797 | AX66: -3.015559295 | AY66: 4.51923473 | AZ66: 178.6240975 | BA66: -4.113317819 | BB66: -174.1300173 | BM66: 0.05515905435 | BN66: 0.007698871318 | BO66: 0.007710610101 | BP66: =IF(MIN(BO$48:BO$77)=$BP$47,BO66,IF(BO66=MIN(BO$48:BO$77),BP$47,IF(BO66="",$CT66,BO66))) -> 37 | BQ66: 37 | BR66: 37 | BS66: 37 | BT66: 37 | BU66: 37 | BV66: 37 | BW66: 37 | BX66: 37 | BY66: 37 | BZ66: 37 | CA66: 37 | CB66: 37 | CC66: 37 | CD66: 37 | CE66: 37 | CF66: 37 | CG66: 37 | CH66: 37 | CI66: 37 | CJ66: 37 | CK66: 37 | CL66: 37 | CM66: 37 | CN66: 37 | CO66: 37 | CP66: 37 | CQ66: 37 | CR66: 37 | CS66: 37 | CT66: 24
D67: 38 | E67: 0.02302049389 | F67: 0.04072556641 | G67: 0.01276240775 | H67: 0.02599652956 | I67: 0.001525634957 | J67: 0.03728378303 | K67: 0.006520665348 | L67: 0.007815740141 | M67: 0.001955014945 | N67: 0.00954330834 | O67: 0.004354123236 | P67: 0.005642558417 | Q67: 0.01034844495 | R67: 0.004397869947 | S67: 0.001493914075 | T67: 0.1239521152 | U67: 0.03329323641 | V67: 0.0241289024 | W67: 0.0001510051518 | X67: 1.951296489e-05 | AI67: -91.11965301 | AJ67: -91.00127112 | AK67: -138.0565597 | AL67: -132.8412627 | AM67: 102.3829401 | AN67: 83.49488061 | AO67: 174.6401136 | AP67: -125.7442631 | AQ67: 131.0976496 | AR67: -82.53857974 | AS67: 44.28185794 | AT67: -89.0665621 | AU67: -179.157832 | AV67: -74.63793373 | AW67: 161.9464833 | AX67: 90.09542613 | AY67: 72.42428388 | AZ67: -83.03737458 | BA67: 89.45123881 | BB67: -3.963089749 | BM67: 0.0220382377 | BN67: 0.007859936356 | BO67: 0.007861845774 | BP67: =IF(MIN(BO$48:BO$77)=$BP$47,BO67,IF(BO67=MIN(BO$48:BO$77),BP$47,IF(BO67="",$CT67,BO67))) -> 0.007861845774 | BQ67: 38 | BR67: 38 | BS67: 38 | BT67: 38 | BU67: 38 | BV67: 38 | BW67: 38 | BX67: 38 | BY67: 38 | BZ67: 38 | CA67: 38 | CB67: 38 | CC67: 38 | CD67: 38 | CE67: 38 | CF67: 38 | CG67: 38 | CH67: 38 | CI67: 38 | CJ67: 38 | CK67: 38 | CL67: 38 | CM67: 38 | CN67: 38 | CO67: 38 | CP67: 38 | CQ67: 38 | CR67: 38 | CS67: 38 | CT67: 25
D68: 57 | BP68: =IF(MIN(BO$48:BO$77)=$BP$47,BO68,IF(BO68=MIN(BO$48:BO$77),BP$47,IF(BO68="",$CT68,BO68))) -> 26 | BQ68: 26 | BR68: 26 | BS68: 26 | BT68: 26 | BU68: 26 | BV68: 26 | BW68: 26 | BX68: 26 | BY68: 26 | BZ68: 26 | CA68: 26 | CB68: 26 | CC68: 26 | CD68: 26 | CE68: 26 | CF68: 26 | CG68: 26 | CH68: 26 | CI68: 26 | CJ68: 57 | CK68: 57 | CL68: 57 | CM68: 57 | CN68: 57 | CO68: 57 | CP68: 57 | CQ68: 57 | CR68: 57 | CS68: 57 | CT68: 26
D69: 58 | BP69: =IF(MIN(BO$48:BO$77)=$BP$47,BO69,IF(BO69=MIN(BO$48:BO$77),BP$47,IF(BO69="",$CT69,BO69))) -> 27 | BQ69: 27 | BR69: 27 | BS69: 27 | BT69: 27 | BU69: 27 | BV69: 27 | BW69: 27 | BX69: 27 | BY69: 27 | BZ69: 27 | CA69: 27 | CB69: 27 | CC69: 27 | CD69: 27 | CE69: 27 | CF69: 27 | CG69: 27 | CH69: 27 | CI69: 27 | CJ69: 27 | CK69: 58 | CL69: 58 | CM69: 58 | CN69: 58 | CO69: 58 | CP69: 58 | CQ69: 58 | CR69: 58 | CS69: 58 | CT69: 27
D70: 59 | BP70: =IF(MIN(BO$48:BO$77)=$BP$47,BO70,IF(BO70=MIN(BO$48:BO$77),BP$47,IF(BO70="",$CT70,BO70))) -> 28 | BQ70: 28 | BR70: 28 | BS70: 28 | BT70: 28 | BU70: 28 | BV70: 28 | BW70: 28 | BX70: 28 | BY70: 28 | BZ70: 28 | CA70: 28 | CB70: 28 | CC70: 28 | CD70: 28 | CE70: 28 | CF70: 28 | CG70: 28 | CH70: 28 | CI70: 28 | CJ70: 28 | CK70: 28 | CL70: 59 | CM70: 59 | CN70: 59 | CO70: 59 | CP70: 59 | CQ70: 59 | CR70: 59 | CS70: 59 | CT70: 28
D71: 60 | BP71: =IF(MIN(BO$48:BO$77)=$BP$47,BO71,IF(BO71=MIN(BO$48:BO$77),BP$47,IF(BO71="",$CT71,BO71))) -> 29 | BQ71: 29 | BR71: 29 | BS71: 29 | BT71: 29 | BU71: 29 | BV71: 29 | BW71: 29 | BX71: 29 | BY71: 29 | BZ71: 29 | CA71: 29 | CB71: 29 | CC71: 29 | CD71: 29 | CE71: 29 | CF71: 29 | CG71: 29 | CH71: 29 | CI71: 29 | CJ71: 29 | CK71: 29 | CL71: 29 | CM71: 60 | CN71: 60 | CO71: 60 | CP71: 60 | CQ71: 60 | CR71: 60 | CS71: 60 | CT71: 29
D72: 61 | BP72: =IF(MIN(BO$48:BO$77)=$BP$47,BO72,IF(BO72=MIN(BO$48:BO$77),BP$47,IF(BO72="",$CT72,BO72))) -> 30 | BQ72: 30 | BR72: 30 | BS72: 30 | BT72: 30 | BU72: 30 | BV72: 30 | BW72: 30 | BX72: 30 | BY72: 30 | BZ72: 30 | CA72: 30 | CB72: 30 | CC72: 30 | CD72: 30 | CE72: 30 | CF72: 30 | CG72: 30 | CH72: 30 | CI72: 30 | CJ72: 30 | CK72: 30 | CL72: 30 | CM72: 30 | CN72: 61 | CO72: 61 | CP72: 61 | CQ72: 61 | CR72: 61 | CS72: 61 | CT72: 30
D73: 62 | BP73: =IF(MIN(BO$48:BO$77)=$BP$47,BO73,IF(BO73=MIN(BO$48:BO$77),BP$47,IF(BO73="",$CT73,BO73))) -> 31 | BQ73: 31 | BR73: 31 | BS73: 31 | BT73: 31 | BU73: 31 | BV73: 31 | BW73: 31 | BX73: 31 | BY73: 31 | BZ73: 31 | CA73: 31 | CB73: 31 | CC73: 31 | CD73: 31 | CE73: 31 | CF73: 31 | CG73: 31 | CH73: 31 | CI73: 31 | CJ73: 31 | CK73: 31 | CL73: 31 | CM73: 31 | CN73: 31 | CO73: 62 | CP73: 62 | CQ73: 62 | CR73: 62 | CS73: 62 | CT73: 31
D74: 63 | BP74: =IF(MIN(BO$48:BO$77)=$BP$47,BO74,IF(BO74=MIN(BO$48:BO$77),BP$47,IF(BO74="",$CT74,BO74))) -> 32 | BQ74: 32 | BR74: 32 | BS74: 32 | BT74: 32 | BU74: 32 | BV74: 32 | BW74: 32 | BX74: 32 | BY74: 32 | BZ74: 32 | CA74: 32 | CB74: 32 | CC74: 32 | CD74: 32 | CE74: 32 | CF74: 32 | CG74: 32 | CH74: 32 | CI74: 32 | CJ74: 32 | CK74: 32 | CL74: 32 | CM74: 32 | CN74: 32 | CO74: 32 | CP74: 63 | CQ74: 63 | CR74: 63 | CS74: 63 | CT74: 32
D75: 64 | BP75: =IF(MIN(BO$48:BO$77)=$BP$47,BO75,IF(BO75=MIN(BO$48:BO$77),BP$47,IF(BO75="",$CT75,BO75))) -> 33 | BQ75: 33 | BR75: 33 | BS75: 33 | BT75: 33 | BU75: 33 | BV75: 33 | BW75: 33 | BX75: 33 | BY75: 33 | BZ75: 33 | CA75: 33 | CB75: 33 | CC75: 33 | CD75: 33 | CE75: 33 | CF75: 33 | CG75: 33 | CH75: 33 | CI75: 33 | CJ75: 33 | CK75: 33 | CL75: 33 | CM75: 33 | CN75: 33 | CO75: 33 | CP75: 33 | CQ75: 64 | CR75: 64 | CS75: 64 | CT75: 33
D76: 65 | BP76: =IF(MIN(BO$48:BO$77)=$BP$47,BO76,IF(BO76=MIN(BO$48:BO$77),BP$47,IF(BO76="",$CT76,BO76))) -> 34 | BQ76: 34 | BR76: 34 | BS76: 34 | BT76: 34 | BU76: 34 | BV76: 34 | BW76: 34 | BX76: 34 | BY76: 34 | BZ76: 34 | CA76: 34 | CB76: 34 | CC76: 34 | CD76: 34 | CE76: 34 | CF76: 34 | CG76: 34 | CH76: 34 | CI76: 34 | CJ76: 34 | CK76: 34 | CL76: 34 | CM76: 34 | CN76: 34 | CO76: 34 | CP76: 34 | CQ76: 34 | CR76: 65 | CS76: 65 | CT76: 34
D77: 66 | BP77: =IF(MIN(BO$48:BO$77)=$BP$47,BO77,IF(BO77=MIN(BO$48:BO$77),BP$47,IF(BO77="",$CT77,BO77))) -> 35 | BQ77: 35 | BR77: 35 | BS77: 35 | BT77: 35 | BU77: 35 | BV77: 35 | BW77: 35 | BX77: 35 | BY77: 35 | BZ77: 35 | CA77: 35 | CB77: 35 | CC77: 35 | CD77: 35 | CE77: 35 | CF77: 35 | CG77: 35 | CH77: 35 | CI77: 35 | CJ77: 35 | CK77: 35 | CL77: 35 | CM77: 35 | CN77: 35 | CO77: 35 | CP77: 35 | CQ77: 35 | CR77: 35 | CS77: 66 | CT77: 35

Sheet 6 RPM
A1: This worksheet is used to sort the mode shapes and frequencies and to help you determine which modes are which for up to 30 modes (up to 30 DOFs).
A2: To use this spreadsheet, paste the appropriate data output from MBC3 into the six gray cells marked with comments (DescStates, MBC_ModeShapeMagnitude, MBC_ModeShapePhaseDeg_MBC_DampingRatio, MBC_DampedFrequencyHz, MBC_NaturalFrequencyHz). The Scaling should be calculated according to the comment, but is not output by MBC3. Do not change any other cell!
A3: NOTE: This spreadsheet doesn't work if any natural (undamped) frequency is 0.0 or if any natural (undamped) frequency is in duplicate--to avoid the resulting error, in the cells where the frequencies are pasted-in, change the error-causing frequency (or frequencies) by a very small amount!
D4: BladeLength | E4: 117 | F4: TowerHt | G4: 144.495
C5: Mode Shapes and Frequencies
C6: Mode Number | E6: 1 | G6: =E6+1 -> 2 | I6: =G6+1 -> 3 | K6: =I6+1 -> 4 | M6: =K6+1 -> 5 | O6: =M6+1 -> 6 | Q6: =O6+1 -> 7 | S6: =Q6+1 -> 8 | U6: =S6+1 -> 9 | W6: =U6+1 -> 10 | Y6: =W6+1 -> 11 | AA6: =Y6+1 -> 12 | AC6: =AA6+1 -> 13 | AE6: =AC6+1 -> 14 | AG6: =AE6+1 -> 15 | AI6: =AG6+1 -> 16 | AK6: =AI6+1 -> 17 | AM6: =AK6+1 -> 18 | AO6: =AM6+1 -> 19 | AQ6: =AO6+1 -> 20 | AS6: =AQ6+1 -> 21 | AU6: =AS6+1 -> 22 | AW6: =AU6+1 -> 23 | AY6: =AW6+1 -> 24 | BA6: =AY6+1 -> 25 | BC6: =BA6+1 -> 26 | BE6: =BC6+1 -> 27 | BG6: =BE6+1 -> 28 | BI6: =BG6+1 -> 29 | BK6: =BI6+1 -> 30
C7: Natural (Undamped) Frequencies (Hz) | E7: =IF(VLOOKUP(E$6+$BO$47,$D$48:$BO$77,64,FALSE)="","",VLOOKUP(E$6+$BO$47,$D$48:$BO$77,64,FALSE)) -> 0.007733141385 | G7: =IF(VLOOKUP(G$6+$BO$47,$D$48:$BO$77,64,FALSE)="","",VLOOKUP(G$6+$BO$47,$D$48:$BO$77,64,FALSE)) -> 0.007835796113 | I7: =IF(VLOOKUP(I$6+$BO$47,$D$48:$BO$77,64,FALSE)="","",VLOOKUP(I$6+$BO$47,$D$48:$BO$77,64,FALSE)) -> 0.01192383174 | K7: =IF(VLOOKUP(K$6+$BO$47,$D$48:$BO$77,64,FALSE)="","",VLOOKUP(K$6+$BO$47,$D$48:$BO$77,64,FALSE)) -> 0.03611158331 | M7: =IF(VLOOKUP(M$6+$BO$47,$D$48:$BO$77,64,FALSE)="","",VLOOKUP(M$6+$BO$47,$D$48:$BO$77,64,FALSE)) -> 0.03617905418 | O7: =IF(VLOOKUP(O$6+$BO$47,$D$48:$BO$77,64,FALSE)="","",VLOOKUP(O$6+$BO$47,$D$48:$BO$77,64,FALSE)) -> 0.05057735665 | Q7: =IF(VLOOKUP(Q$6+$BO$47,$D$48:$BO$77,64,FALSE)="","",VLOOKUP(Q$6+$BO$47,$D$48:$BO$77,64,FALSE)) -> 0.414598127 | S7: =IF(VLOOKUP(S$6+$BO$47,$D$48:$BO$77,64,FALSE)="","",VLOOKUP(S$6+$BO$47,$D$48:$BO$77,64,FALSE)) -> 0.4262766496 | U7: =IF(VLOOKUP(U$6+$BO$47,$D$48:$BO$77,64,FALSE)="","",VLOOKUP(U$6+$BO$47,$D$48:$BO$77,64,FALSE)) -> 0.4944340017 | W7: =IF(VLOOKUP(W$6+$BO$47,$D$48:$BO$77,64,FALSE)="","",VLOOKUP(W$6+$BO$47,$D$48:$BO$77,64,FALSE)) -> 0.5586431164 | Y7: =IF(VLOOKUP(Y$6+$BO$47,$D$48:$BO$77,64,FALSE)="","",VLOOKUP(Y$6+$BO$47,$D$48:$BO$77,64,FALSE)) -> 0.5891767701 | AA7: =IF(VLOOKUP(AA$6+$BO$47,$D$48:$BO$77,64,FALSE)="","",VLOOKUP(AA$6+$BO$47,$D$48:$BO$77,64,FALSE)) -> 0.6708626649 | AC7: =IF(VLOOKUP(AC$6+$BO$47,$D$48:$BO$77,64,FALSE)="","",VLOOKUP(AC$6+$BO$47,$D$48:$BO$77,64,FALSE)) -> 0.6816370999 | AE7: =IF(VLOOKUP(AE$6+$BO$47,$D$48:$BO$77,64,FALSE)="","",VLOOKUP(AE$6+$BO$47,$D$48:$BO$77,64,FALSE)) -> 0.7622735399 | AG7: =IF(VLOOKUP(AG$6+$BO$47,$D$48:$BO$77,64,FALSE)="","",VLOOKUP(AG$6+$BO$47,$D$48:$BO$77,64,FALSE)) -> 2.327552116 | AI7: =IF(VLOOKUP(AI$6+$BO$47,$D$48:$BO$77,64,FALSE)="","",VLOOKUP(AI$6+$BO$47,$D$48:$BO$77,64,FALSE)) -> 2.46213382 | AK7: =IF(VLOOKUP(AK$6+$BO$47,$D$48:$BO$77,64,FALSE)="","",VLOOKUP(AK$6+$BO$47,$D$48:$BO$77,64,FALSE)) -> 2.51933338 | AM7: =IF(VLOOKUP(AM$6+$BO$47,$D$48:$BO$77,64,FALSE)="","",VLOOKUP(AM$6+$BO$47,$D$48:$BO$77,64,FALSE)) -> 2.57859224 | AO7: =IF(VLOOKUP(AO$6+$BO$47,$D$48:$BO$77,64,FALSE)="","",VLOOKUP(AO$6+$BO$47,$D$48:$BO$77,64,FALSE)) -> 2.671372636 | AQ7: =IF(VLOOKUP(AQ$6+$BO$47,$D$48:$BO$77,64,FALSE)="","",VLOOKUP(AQ$6+$BO$47,$D$48:$BO$77,64,FALSE)) -> 4.810043685 | AS7: =IF(VLOOKUP(AS$6+$BO$47,$D$48:$BO$77,64,FALSE)="","",VLOOKUP(AS$6+$BO$47,$D$48:$BO$77,64,FALSE)) ->  | AU7: =IF(VLOOKUP(AU$6+$BO$47,$D$48:$BO$77,64,FALSE)="","",VLOOKUP(AU$6+$BO$47,$D$48:$BO$77,64,FALSE)) ->  | AW7: =IF(VLOOKUP(AW$6+$BO$47,$D$48:$BO$77,64,FALSE)="","",VLOOKUP(AW$6+$BO$47,$D$48:$BO$77,64,FALSE)) ->  | AY7: =IF(VLOOKUP(AY$6+$BO$47,$D$48:$BO$77,64,FALSE)="","",VLOOKUP(AY$6+$BO$47,$D$48:$BO$77,64,FALSE)) ->  | BA7: =IF(VLOOKUP(BA$6+$BO$47,$D$48:$BO$77,64,FALSE)="","",VLOOKUP(BA$6+$BO$47,$D$48:$BO$77,64,FALSE)) ->  | BC7: =IF(VLOOKUP(BC$6+$BO$47,$D$48:$BO$77,64,FALSE)="","",VLOOKUP(BC$6+$BO$47,$D$48:$BO$77,64,FALSE)) ->  | BE7: =IF(VLOOKUP(BE$6+$BO$47,$D$48:$BO$77,64,FALSE)="","",VLOOKUP(BE$6+$BO$47,$D$48:$BO$77,64,FALSE)) ->  | BG7: =IF(VLOOKUP(BG$6+$BO$47,$D$48:$BO$77,64,FALSE)="","",VLOOKUP(BG$6+$BO$47,$D$48:$BO$77,64,FALSE)) ->  | BI7: =IF(VLOOKUP(BI$6+$BO$47,$D$48:$BO$77,64,FALSE)="","",VLOOKUP(BI$6+$BO$47,$D$48:$BO$77,64,FALSE)) ->  | BK7: =IF(VLOOKUP(BK$6+$BO$47,$D$48:$BO$77,64,FALSE)="","",VLOOKUP(BK$6+$BO$47,$D$48:$BO$77,64,FALSE)) -> 
C8: Damped Frequencies (Hz) | E8: =IF(VLOOKUP(E$6+$BO$47,$D$48:$BO$77,63,FALSE)="","",VLOOKUP(E$6+$BO$47,$D$48:$BO$77,63,FALSE)) -> 0.007722854531 | G8: =IF(VLOOKUP(G$6+$BO$47,$D$48:$BO$77,63,FALSE)="","",VLOOKUP(G$6+$BO$47,$D$48:$BO$77,63,FALSE)) -> 0.007833876442 | I8: =IF(VLOOKUP(I$6+$BO$47,$D$48:$BO$77,63,FALSE)="","",VLOOKUP(I$6+$BO$47,$D$48:$BO$77,63,FALSE)) -> 0.01153370736 | K8: =IF(VLOOKUP(K$6+$BO$47,$D$48:$BO$77,63,FALSE)="","",VLOOKUP(K$6+$BO$47,$D$48:$BO$77,63,FALSE)) -> 0.03610202128 | M8: =IF(VLOOKUP(M$6+$BO$47,$D$48:$BO$77,63,FALSE)="","",VLOOKUP(M$6+$BO$47,$D$48:$BO$77,63,FALSE)) -> 0.03616956312 | O8: =IF(VLOOKUP(O$6+$BO$47,$D$48:$BO$77,63,FALSE)="","",VLOOKUP(O$6+$BO$47,$D$48:$BO$77,63,FALSE)) -> 0.05057655375 | Q8: =IF(VLOOKUP(Q$6+$BO$47,$D$48:$BO$77,63,FALSE)="","",VLOOKUP(Q$6+$BO$47,$D$48:$BO$77,63,FALSE)) -> 0.414550638 | S8: =IF(VLOOKUP(S$6+$BO$47,$D$48:$BO$77,63,FALSE)="","",VLOOKUP(S$6+$BO$47,$D$48:$BO$77,63,FALSE)) -> 0.4262647704 | U8: =IF(VLOOKUP(U$6+$BO$47,$D$48:$BO$77,63,FALSE)="","",VLOOKUP(U$6+$BO$47,$D$48:$BO$77,63,FALSE)) -> 0.4942598343 | W8: =IF(VLOOKUP(W$6+$BO$47,$D$48:$BO$77,63,FALSE)="","",VLOOKUP(W$6+$BO$47,$D$48:$BO$77,63,FALSE)) -> 0.5583105479 | Y8: =IF(VLOOKUP(Y$6+$BO$47,$D$48:$BO$77,63,FALSE)="","",VLOOKUP(Y$6+$BO$47,$D$48:$BO$77,63,FALSE)) -> 0.5889383665 | AA8: =IF(VLOOKUP(AA$6+$BO$47,$D$48:$BO$77,63,FALSE)="","",VLOOKUP(AA$6+$BO$47,$D$48:$BO$77,63,FALSE)) -> 0.6706601292 | AC8: =IF(VLOOKUP(AC$6+$BO$47,$D$48:$BO$77,63,FALSE)="","",VLOOKUP(AC$6+$BO$47,$D$48:$BO$77,63,FALSE)) -> 0.6813891902 | AE8: =IF(VLOOKUP(AE$6+$BO$47,$D$48:$BO$77,63,FALSE)="","",VLOOKUP(AE$6+$BO$47,$D$48:$BO$77,63,FALSE)) -> 0.762016172 | AG8: =IF(VLOOKUP(AG$6+$BO$47,$D$48:$BO$77,63,FALSE)="","",VLOOKUP(AG$6+$BO$47,$D$48:$BO$77,63,FALSE)) -> 2.312103991 | AI8: =IF(VLOOKUP(AI$6+$BO$47,$D$48:$BO$77,63,FALSE)="","",VLOOKUP(AI$6+$BO$47,$D$48:$BO$77,63,FALSE)) -> 2.441259108 | AK8: =IF(VLOOKUP(AK$6+$BO$47,$D$48:$BO$77,63,FALSE)="","",VLOOKUP(AK$6+$BO$47,$D$48:$BO$77,63,FALSE)) -> 2.514070037 | AM8: =IF(VLOOKUP(AM$6+$BO$47,$D$48:$BO$77,63,FALSE)="","",VLOOKUP(AM$6+$BO$47,$D$48:$BO$77,63,FALSE)) -> 2.569265201 | AO8: =IF(VLOOKUP(AO$6+$BO$47,$D$48:$BO$77,63,FALSE)="","",VLOOKUP(AO$6+$BO$47,$D$48:$BO$77,63,FALSE)) -> 2.670961956 | AQ8: =IF(VLOOKUP(AQ$6+$BO$47,$D$48:$BO$77,63,FALSE)="","",VLOOKUP(AQ$6+$BO$47,$D$48:$BO$77,63,FALSE)) -> 4.807479527 | AS8: =IF(VLOOKUP(AS$6+$BO$47,$D$48:$BO$77,63,FALSE)="","",VLOOKUP(AS$6+$BO$47,$D$48:$BO$77,63,FALSE)) ->  | AU8: =IF(VLOOKUP(AU$6+$BO$47,$D$48:$BO$77,63,FALSE)="","",VLOOKUP(AU$6+$BO$47,$D$48:$BO$77,63,FALSE)) ->  | AW8: =IF(VLOOKUP(AW$6+$BO$47,$D$48:$BO$77,63,FALSE)="","",VLOOKUP(AW$6+$BO$47,$D$48:$BO$77,63,FALSE)) ->  | AY8: =IF(VLOOKUP(AY$6+$BO$47,$D$48:$BO$77,63,FALSE)="","",VLOOKUP(AY$6+$BO$47,$D$48:$BO$77,63,FALSE)) ->  | BA8: =IF(VLOOKUP(BA$6+$BO$47,$D$48:$BO$77,63,FALSE)="","",VLOOKUP(BA$6+$BO$47,$D$48:$BO$77,63,FALSE)) ->  | BC8: =IF(VLOOKUP(BC$6+$BO$47,$D$48:$BO$77,63,FALSE)="","",VLOOKUP(BC$6+$BO$47,$D$48:$BO$77,63,FALSE)) ->  | BE8: =IF(VLOOKUP(BE$6+$BO$47,$D$48:$BO$77,63,FALSE)="","",VLOOKUP(BE$6+$BO$47,$D$48:$BO$77,63,FALSE)) ->  | BG8: =IF(VLOOKUP(BG$6+$BO$47,$D$48:$BO$77,63,FALSE)="","",VLOOKUP(BG$6+$BO$47,$D$48:$BO$77,63,FALSE)) ->  | BI8: =IF(VLOOKUP(BI$6+$BO$47,$D$48:$BO$77,63,FALSE)="","",VLOOKUP(BI$6+$BO$47,$D$48:$BO$77,63,FALSE)) ->  | BK8: =IF(VLOOKUP(BK$6+$BO$47,$D$48:$BO$77,63,FALSE)="","",VLOOKUP(BK$6+$BO$47,$D$48:$BO$77,63,FALSE)) -> 
C9: Damping Ratio (-) | E9: =IF(VLOOKUP(E$6+$BO$47,$D$48:$BO$77,62,FALSE)="","",VLOOKUP(E$6+$BO$47,$D$48:$BO$77,62,FALSE)) -> 0.05156248275 | G9: =IF(VLOOKUP(G$6+$BO$47,$D$48:$BO$77,62,FALSE)="","",VLOOKUP(G$6+$BO$47,$D$48:$BO$77,62,FALSE)) -> 0.02213401637 | I9: =IF(VLOOKUP(I$6+$BO$47,$D$48:$BO$77,62,FALSE)="","",VLOOKUP(I$6+$BO$47,$D$48:$BO$77,62,FALSE)) -> 0.253703774 | K9: =IF(VLOOKUP(K$6+$BO$47,$D$48:$BO$77,62,FALSE)="","",VLOOKUP(K$6+$BO$47,$D$48:$BO$77,62,FALSE)) -> 0.02301112959 | M9: =IF(VLOOKUP(M$6+$BO$47,$D$48:$BO$77,62,FALSE)="","",VLOOKUP(M$6+$BO$47,$D$48:$BO$77,62,FALSE)) -> 0.02290420222 | O9: =IF(VLOOKUP(O$6+$BO$47,$D$48:$BO$77,62,FALSE)="","",VLOOKUP(O$6+$BO$47,$D$48:$BO$77,62,FALSE)) -> 0.005634639234 | Q9: =IF(VLOOKUP(Q$6+$BO$47,$D$48:$BO$77,62,FALSE)="","",VLOOKUP(Q$6+$BO$47,$D$48:$BO$77,62,FALSE)) -> 0.01513511789 | S9: =IF(VLOOKUP(S$6+$BO$47,$D$48:$BO$77,62,FALSE)="","",VLOOKUP(S$6+$BO$47,$D$48:$BO$77,62,FALSE)) -> 0.007465546058 | U9: =IF(VLOOKUP(U$6+$BO$47,$D$48:$BO$77,62,FALSE)="","",VLOOKUP(U$6+$BO$47,$D$48:$BO$77,62,FALSE)) -> 0.026540307 | W9: =IF(VLOOKUP(W$6+$BO$47,$D$48:$BO$77,62,FALSE)="","",VLOOKUP(W$6+$BO$47,$D$48:$BO$77,62,FALSE)) -> 0.03450036262 | Y9: =IF(VLOOKUP(Y$6+$BO$47,$D$48:$BO$77,62,FALSE)="","",VLOOKUP(Y$6+$BO$47,$D$48:$BO$77,62,FALSE)) -> 0.02844491732 | AA9: =IF(VLOOKUP(AA$6+$BO$47,$D$48:$BO$77,62,FALSE)="","",VLOOKUP(AA$6+$BO$47,$D$48:$BO$77,62,FALSE)) -> 0.02457062053 | AC9: =IF(VLOOKUP(AC$6+$BO$47,$D$48:$BO$77,62,FALSE)="","",VLOOKUP(AC$6+$BO$47,$D$48:$BO$77,62,FALSE)) -> 0.02696780475 | AE9: =IF(VLOOKUP(AE$6+$BO$47,$D$48:$BO$77,62,FALSE)="","",VLOOKUP(AE$6+$BO$47,$D$48:$BO$77,62,FALSE)) -> 0.02598364931 | AG9: =IF(VLOOKUP(AG$6+$BO$47,$D$48:$BO$77,62,FALSE)="","",VLOOKUP(AG$6+$BO$47,$D$48:$BO$77,62,FALSE)) -> 0.1150221184 | AI9: =IF(VLOOKUP(AI$6+$BO$47,$D$48:$BO$77,62,FALSE)="","",VLOOKUP(AI$6+$BO$47,$D$48:$BO$77,62,FALSE)) -> 0.1299412191 | AK9: =IF(VLOOKUP(AK$6+$BO$47,$D$48:$BO$77,62,FALSE)="","",VLOOKUP(AK$6+$BO$47,$D$48:$BO$77,62,FALSE)) -> 0.06460647598 | AM9: =IF(VLOOKUP(AM$6+$BO$47,$D$48:$BO$77,62,FALSE)="","",VLOOKUP(AM$6+$BO$47,$D$48:$BO$77,62,FALSE)) -> 0.08497721331 | AO9: =IF(VLOOKUP(AO$6+$BO$47,$D$48:$BO$77,62,FALSE)="","",VLOOKUP(AO$6+$BO$47,$D$48:$BO$77,62,FALSE)) -> 0.01753407808 | AQ9: =IF(VLOOKUP(AQ$6+$BO$47,$D$48:$BO$77,62,FALSE)="","",VLOOKUP(AQ$6+$BO$47,$D$48:$BO$77,62,FALSE)) -> 0.03264788013 | AS9: =IF(VLOOKUP(AS$6+$BO$47,$D$48:$BO$77,62,FALSE)="","",VLOOKUP(AS$6+$BO$47,$D$48:$BO$77,62,FALSE)) ->  | AU9: =IF(VLOOKUP(AU$6+$BO$47,$D$48:$BO$77,62,FALSE)="","",VLOOKUP(AU$6+$BO$47,$D$48:$BO$77,62,FALSE)) ->  | AW9: =IF(VLOOKUP(AW$6+$BO$47,$D$48:$BO$77,62,FALSE)="","",VLOOKUP(AW$6+$BO$47,$D$48:$BO$77,62,FALSE)) ->  | AY9: =IF(VLOOKUP(AY$6+$BO$47,$D$48:$BO$77,62,FALSE)="","",VLOOKUP(AY$6+$BO$47,$D$48:$BO$77,62,FALSE)) ->  | BA9: =IF(VLOOKUP(BA$6+$BO$47,$D$48:$BO$77,62,FALSE)="","",VLOOKUP(BA$6+$BO$47,$D$48:$BO$77,62,FALSE)) ->  | BC9: =IF(VLOOKUP(BC$6+$BO$47,$D$48:$BO$77,62,FALSE)="","",VLOOKUP(BC$6+$BO$47,$D$48:$BO$77,62,FALSE)) ->  | BE9: =IF(VLOOKUP(BE$6+$BO$47,$D$48:$BO$77,62,FALSE)="","",VLOOKUP(BE$6+$BO$47,$D$48:$BO$77,62,FALSE)) ->  | BG9: =IF(VLOOKUP(BG$6+$BO$47,$D$48:$BO$77,62,FALSE)="","",VLOOKUP(BG$6+$BO$47,$D$48:$BO$77,62,FALSE)) ->  | BI9: =IF(VLOOKUP(BI$6+$BO$47,$D$48:$BO$77,62,FALSE)="","",VLOOKUP(BI$6+$BO$47,$D$48:$BO$77,62,FALSE)) ->  | BK9: =IF(VLOOKUP(BK$6+$BO$47,$D$48:$BO$77,62,FALSE)="","",VLOOKUP(BK$6+$BO$47,$D$48:$BO$77,62,FALSE)) -> 
C10: States | D10: Scaling | E10: Magnitude (rad) | F10: Phase (deg) | G10: Magnitude (rad) | H10: Phase (deg) | I10: Magnitude (rad) | J10: Phase (deg) | K10: Magnitude (rad) | L10: Phase (deg) | M10: Magnitude (rad) | N10: Phase (deg) | O10: Magnitude (rad) | P10: Phase (deg) | Q10: Magnitude (rad) | R10: Phase (deg) | S10: Magnitude (rad) | T10: Phase (deg) | U10: Magnitude (rad) | V10: Phase (deg) | W10: Magnitude (rad) | X10: Phase (deg) | Y10: Magnitude (rad) | Z10: Phase (deg) | AA10: Magnitude (rad) | AB10: Phase (deg) | AC10: Magnitude (rad) | AD10: Phase (deg) | AE10: Magnitude (rad) | AF10: Phase (deg) | AG10: Magnitude (rad) | AH10: Phase (deg) | AI10: Magnitude (rad) | AJ10: Phase (deg) | AK10: Magnitude (rad) | AL10: Phase (deg) | AM10: Magnitude (rad) | AN10: Phase (deg) | AO10: Magnitude (rad) | AP10: Phase (deg) | AQ10: Magnitude (rad) | AR10: Phase (deg) | AS10: Magnitude (rad) | AT10: Phase (deg) | AU10: Magnitude (rad) | AV10: Phase (deg) | AW10: Magnitude (rad) | AX10: Phase (deg) | AY10: Magnitude (rad) | AZ10: Phase (deg) | BA10: Magnitude (rad) | BB10: Phase (deg) | BC10: Magnitude (rad) | BD10: Phase (deg) | BE10: Magnitude (rad) | BF10: Phase (deg) | BG10: Magnitude (rad) | BH10: Phase (deg) | BI10: Magnitude (rad) | BJ10: Phase (deg) | BK10: Magnitude (rad) | BL10: Phase (deg)
B11: 1 | C11: ED Platform horizontal surge translation DOF (internal DOF index = DOF_Sg), m | D11: 1 | E11: =IF(HLOOKUP(E$6+$BO$47,$E$47:$AH$77,$B11+1,FALSE)="","",HLOOKUP(E$6+$BO$47,$E$47:$AH$77,$B11+1,FALSE)*$D11) -> 0.998819704 | F11: =IF(HLOOKUP(E$6+$BO$47,$AI$47:$BL$77,$B11+1,FALSE)="","",HLOOKUP(E$6+$BO$47,$AI$47:$BL$77,$B11+1,FALSE)) -> 180 | G11: =IF(HLOOKUP(G$6+$BO$47,$E$47:$AH$77,$B11+1,FALSE)="","",HLOOKUP(G$6+$BO$47,$E$47:$AH$77,$B11+1,FALSE)*$D11) -> 0.00090230301 | H11: =IF(HLOOKUP(G$6+$BO$47,$AI$47:$BL$77,$B11+1,FALSE)="","",HLOOKUP(G$6+$BO$47,$AI$47:$BL$77,$B11+1,FALSE)) -> 46.4801888 | I11: =IF(HLOOKUP(I$6+$BO$47,$E$47:$AH$77,$B11+1,FALSE)="","",HLOOKUP(I$6+$BO$47,$E$47:$AH$77,$B11+1,FALSE)*$D11) -> 0.03647947193 | J11: =IF(HLOOKUP(I$6+$BO$47,$AI$47:$BL$77,$B11+1,FALSE)="","",HLOOKUP(I$6+$BO$47,$AI$47:$BL$77,$B11+1,FALSE)) -> -40.27984985 | K11: =IF(HLOOKUP(K$6+$BO$47,$E$47:$AH$77,$B11+1,FALSE)="","",HLOOKUP(K$6+$BO$47,$E$47:$AH$77,$B11+1,FALSE)*$D11) -> 0.4098864348 | L11: =IF(HLOOKUP(K$6+$BO$47,$AI$47:$BL$77,$B11+1,FALSE)="","",HLOOKUP(K$6+$BO$47,$AI$47:$BL$77,$B11+1,FALSE)) -> -91.65057258 | M11: =IF(HLOOKUP(M$6+$BO$47,$E$47:$AH$77,$B11+1,FALSE)="","",HLOOKUP(M$6+$BO$47,$E$47:$AH$77,$B11+1,FALSE)*$D11) -> 0.3717662298 | N11: =IF(HLOOKUP(M$6+$BO$47,$AI$47:$BL$77,$B11+1,FALSE)="","",HLOOKUP(M$6+$BO$47,$AI$47:$BL$77,$B11+1,FALSE)) -> 86.87580042 | O11: =IF(HLOOKUP(O$6+$BO$47,$E$47:$AH$77,$B11+1,FALSE)="","",HLOOKUP(O$6+$BO$47,$E$47:$AH$77,$B11+1,FALSE)*$D11) -> 0.001865019959 | P11: =IF(HLOOKUP(O$6+$BO$47,$AI$47:$BL$77,$B11+1,FALSE)="","",HLOOKUP(O$6+$BO$47,$AI$47:$BL$77,$B11+1,FALSE)) -> -176.9740142 | Q11: =IF(HLOOKUP(Q$6+$BO$47,$E$47:$AH$77,$B11+1,FALSE)="","",HLOOKUP(Q$6+$BO$47,$E$47:$AH$77,$B11+1,FALSE)*$D11) -> 0.002028109033 | R11: =IF(HLOOKUP(Q$6+$BO$47,$AI$47:$BL$77,$B11+1,FALSE)="","",HLOOKUP(Q$6+$BO$47,$AI$47:$BL$77,$B11+1,FALSE)) -> -83.75224435 | S11: =IF(HLOOKUP(S$6+$BO$47,$E$47:$AH$77,$B11+1,FALSE)="","",HLOOKUP(S$6+$BO$47,$E$47:$AH$77,$B11+1,FALSE)*$D11) -> 0.001694470158 | T11: =IF(HLOOKUP(S$6+$BO$47,$AI$47:$BL$77,$B11+1,FALSE)="","",HLOOKUP(S$6+$BO$47,$AI$47:$BL$77,$B11+1,FALSE)) -> 25.4843478 | U11: =IF(HLOOKUP(U$6+$BO$47,$E$47:$AH$77,$B11+1,FALSE)="","",HLOOKUP(U$6+$BO$47,$E$47:$AH$77,$B11+1,FALSE)*$D11) -> 0.0009971951756 | V11: =IF(HLOOKUP(U$6+$BO$47,$AI$47:$BL$77,$B11+1,FALSE)="","",HLOOKUP(U$6+$BO$47,$AI$47:$BL$77,$B11+1,FALSE)) -> 171.5303458 | W11: =IF(HLOOKUP(W$6+$BO$47,$E$47:$AH$77,$B11+1,FALSE)="","",HLOOKUP(W$6+$BO$47,$E$47:$AH$77,$B11+1,FALSE)*$D11) -> 0.0001411776046 | X11: =IF(HLOOKUP(W$6+$BO$47,$AI$47:$BL$77,$B11+1,FALSE)="","",HLOOKUP(W$6+$BO$47,$AI$47:$BL$77,$B11+1,FALSE)) -> 58.59156188 | Y11: =IF(HLOOKUP(Y$6+$BO$47,$E$47:$AH$77,$B11+1,FALSE)="","",HLOOKUP(Y$6+$BO$47,$E$47:$AH$77,$B11+1,FALSE)*$D11) -> 0.0003248836398 | Z11: =IF(HLOOKUP(Y$6+$BO$47,$AI$47:$BL$77,$B11+1,FALSE)="","",HLOOKUP(Y$6+$BO$47,$AI$47:$BL$77,$B11+1,FALSE)) -> -98.17169261 | AA11: =IF(HLOOKUP(AA$6+$BO$47,$E$47:$AH$77,$B11+1,FALSE)="","",HLOOKUP(AA$6+$BO$47,$E$47:$AH$77,$B11+1,FALSE)*$D11) -> 0.0002176387369 | AB11: =IF(HLOOKUP(AA$6+$BO$47,$AI$47:$BL$77,$B11+1,FALSE)="","",HLOOKUP(AA$6+$BO$47,$AI$47:$BL$77,$B11+1,FALSE)) -> -91.67399498 | AC11: =IF(HLOOKUP(AC$6+$BO$47,$E$47:$AH$77,$B11+1,FALSE)="","",HLOOKUP(AC$6+$BO$47,$E$47:$AH$77,$B11+1,FALSE)*$D11) -> 7.421454177e-05 | AD11: =IF(HLOOKUP(AC$6+$BO$47,$AI$47:$BL$77,$B11+1,FALSE)="","",HLOOKUP(AC$6+$BO$47,$AI$47:$BL$77,$B11+1,FALSE)) -> 170.4943648 | AE11: =IF(HLOOKUP(AE$6+$BO$47,$E$47:$AH$77,$B11+1,FALSE)="","",HLOOKUP(AE$6+$BO$47,$E$47:$AH$77,$B11+1,FALSE)*$D11) -> 4.43696122e-05 | AF11: =IF(HLOOKUP(AE$6+$BO$47,$AI$47:$BL$77,$B11+1,FALSE)="","",HLOOKUP(AE$6+$BO$47,$AI$47:$BL$77,$B11+1,FALSE)) -> -162.8441748 | AG11: =IF(HLOOKUP(AG$6+$BO$47,$E$47:$AH$77,$B11+1,FALSE)="","",HLOOKUP(AG$6+$BO$47,$E$47:$AH$77,$B11+1,FALSE)*$D11) -> 1.10657382e-06 | AH11: =IF(HLOOKUP(AG$6+$BO$47,$AI$47:$BL$77,$B11+1,FALSE)="","",HLOOKUP(AG$6+$BO$47,$AI$47:$BL$77,$B11+1,FALSE)) -> 60.45392354 | AI11: =IF(HLOOKUP(AI$6+$BO$47,$E$47:$AH$77,$B11+1,FALSE)="","",HLOOKUP(AI$6+$BO$47,$E$47:$AH$77,$B11+1,FALSE)*$D11) -> 6.263792039e-08 | AJ11: =IF(HLOOKUP(AI$6+$BO$47,$AI$47:$BL$77,$B11+1,FALSE)="","",HLOOKUP(AI$6+$BO$47,$AI$47:$BL$77,$B11+1,FALSE)) -> 154.7897959 | AK11: =IF(HLOOKUP(AK$6+$BO$47,$E$47:$AH$77,$B11+1,FALSE)="","",HLOOKUP(AK$6+$BO$47,$E$47:$AH$77,$B11+1,FALSE)*$D11) -> 2.765818996e-06 | AL11: =IF(HLOOKUP(AK$6+$BO$47,$AI$47:$BL$77,$B11+1,FALSE)="","",HLOOKUP(AK$6+$BO$47,$AI$47:$BL$77,$B11+1,FALSE)) -> 174.2095002 | AM11: =IF(HLOOKUP(AM$6+$BO$47,$E$47:$AH$77,$B11+1,FALSE)="","",HLOOKUP(AM$6+$BO$47,$E$47:$AH$77,$B11+1,FALSE)*$D11) -> 1.854547544e-06 | AN11: =IF(HLOOKUP(AM$6+$BO$47,$AI$47:$BL$77,$B11+1,FALSE)="","",HLOOKUP(AM$6+$BO$47,$AI$47:$BL$77,$B11+1,FALSE)) -> -168.444185 | AO11: =IF(HLOOKUP(AO$6+$BO$47,$E$47:$AH$77,$B11+1,FALSE)="","",HLOOKUP(AO$6+$BO$47,$E$47:$AH$77,$B11+1,FALSE)*$D11) -> 5.043366139e-07 | AP11: =IF(HLOOKUP(AO$6+$BO$47,$AI$47:$BL$77,$B11+1,FALSE)="","",HLOOKUP(AO$6+$BO$47,$AI$47:$BL$77,$B11+1,FALSE)) -> 79.26632235 | AQ11: =IF(HLOOKUP(AQ$6+$BO$47,$E$47:$AH$77,$B11+1,FALSE)="","",HLOOKUP(AQ$6+$BO$47,$E$47:$AH$77,$B11+1,FALSE)*$D11) -> 3.021339043e-08 | AR11: =IF(HLOOKUP(AQ$6+$BO$47,$AI$47:$BL$77,$B11+1,FALSE)="","",HLOOKUP(AQ$6+$BO$47,$AI$47:$BL$77,$B11+1,FALSE)) -> 163.6670559 | AS11: =IF(HLOOKUP(AS$6+$BO$47,$E$47:$AH$77,$B11+1,FALSE)="","",HLOOKUP(AS$6+$BO$47,$E$47:$AH$77,$B11+1,FALSE)*$D11) ->  | AT11: =IF(HLOOKUP(AS$6+$BO$47,$AI$47:$BL$77,$B11+1,FALSE)="","",HLOOKUP(AS$6+$BO$47,$AI$47:$BL$77,$B11+1,FALSE)) ->  | AU11: =IF(HLOOKUP(AU$6+$BO$47,$E$47:$AH$77,$B11+1,FALSE)="","",HLOOKUP(AU$6+$BO$47,$E$47:$AH$77,$B11+1,FALSE)*$D11) ->  | AV11: =IF(HLOOKUP(AU$6+$BO$47,$AI$47:$BL$77,$B11+1,FALSE)="","",HLOOKUP(AU$6+$BO$47,$AI$47:$BL$77,$B11+1,FALSE)) ->  | AW11: =IF(HLOOKUP(AW$6+$BO$47,$E$47:$AH$77,$B11+1,FALSE)="","",HLOOKUP(AW$6+$BO$47,$E$47:$AH$77,$B11+1,FALSE)*$D11) ->  | AX11: =IF(HLOOKUP(AW$6+$BO$47,$AI$47:$BL$77,$B11+1,FALSE)="","",HLOOKUP(AW$6+$BO$47,$AI$47:$BL$77,$B11+1,FALSE)) ->  | AY11: =IF(HLOOKUP(AY$6+$BO$47,$E$47:$AH$77,$B11+1,FALSE)="","",HLOOKUP(AY$6+$BO$47,$E$47:$AH$77,$B11+1,FALSE)*$D11) ->  | AZ11: =IF(HLOOKUP(AY$6+$BO$47,$AI$47:$BL$77,$B11+1,FALSE)="","",HLOOKUP(AY$6+$BO$47,$AI$47:$BL$77,$B11+1,FALSE)) ->  | BA11: =IF(HLOOKUP(BA$6+$BO$47,$E$47:$AH$77,$B11+1,FALSE)="","",HLOOKUP(BA$6+$BO$47,$E$47:$AH$77,$B11+1,FALSE)*$D11) ->  | BB11: =IF(HLOOKUP(BA$6+$BO$47,$AI$47:$BL$77,$B11+1,FALSE)="","",HLOOKUP(BA$6+$BO$47,$AI$47:$BL$77,$B11+1,FALSE)) ->  | BC11: =IF(HLOOKUP(BC$6+$BO$47,$E$47:$AH$77,$B11+1,FALSE)="","",HLOOKUP(BC$6+$BO$47,$E$47:$AH$77,$B11+1,FALSE)*$D11) ->  | BD11: =IF(HLOOKUP(BC$6+$BO$47,$AI$47:$BL$77,$B11+1,FALSE)="","",HLOOKUP(BC$6+$BO$47,$AI$47:$BL$77,$B11+1,FALSE)) ->  | BE11: =IF(HLOOKUP(BE$6+$BO$47,$E$47:$AH$77,$B11+1,FALSE)="","",HLOOKUP(BE$6+$BO$47,$E$47:$AH$77,$B11+1,FALSE)*$D11) ->  | BF11: =IF(HLOOKUP(BE$6+$BO$47,$AI$47:$BL$77,$B11+1,FALSE)="","",HLOOKUP(BE$6+$BO$47,$AI$47:$BL$77,$B11+1,FALSE)) ->  | BG11: =IF(HLOOKUP(BG$6+$BO$47,$E$47:$AH$77,$B11+1,FALSE)="","",HLOOKUP(BG$6+$BO$47,$E$47:$AH$77,$B11+1,FALSE)*$D11) ->  | BH11: =IF(HLOOKUP(BG$6+$BO$47,$AI$47:$BL$77,$B11+1,FALSE)="","",HLOOKUP(BG$6+$BO$47,$AI$47:$BL$77,$B11+1,FALSE)) ->  | BI11: =IF(HLOOKUP(BI$6+$BO$47,$E$47:$AH$77,$B11+1,FALSE)="","",HLOOKUP(BI$6+$BO$47,$E$47:$AH$77,$B11+1,FALSE)*$D11) ->  | BJ11: =IF(HLOOKUP(BI$6+$BO$47,$AI$47:$BL$77,$B11+1,FALSE)="","",HLOOKUP(BI$6+$BO$47,$AI$47:$BL$77,$B11+1,FALSE)) ->  | BK11: =IF(HLOOKUP(BK$6+$BO$47,$E$47:$AH$77,$B11+1,FALSE)="","",HLOOKUP(BK$6+$BO$47,$E$47:$AH$77,$B11+1,FALSE)*$D11) ->  | BL11: =IF(HLOOKUP(BK$6+$BO$47,$AI$47:$BL$77,$B11+1,FALSE)="","",HLOOKUP(BK$6+$BO$47,$AI$47:$BL$77,$B11+1,FALSE)) ->  | BM11: =MAX(E11,G11,I11,K11,M11,O11,Q11,S11,U11,W11,Y11,AA11,AC11,AE11,AG11,AI11,AK11,AM11,AO11,AQ11,AS11,AU11,AW11,AY11,BA11,BC11,BE11,BG11,BI11,BK11) -> 0.998819704 | BN11: =MATCH($BM11,E11:BK11,0)+4 -> 5 | BO11: =INDIRECT(SUBSTITUTE(ADDRESS(1,$BN11,4),"1","7")) -> 0.007733141385
B12: =B11+1 -> 2 | C12: ED Platform horizontal sway translation DOF (internal DOF index = DOF_Sw), m | D12: 1 | E12: 0.0009932066141 | F12: 98.54898693 | G12: 0.9987891484 | H12: 0 | I12: 0.1688075612 | J12: -164.6954501 | K12: 0.3123127288 | L12: -165.3689922 | M12: 0.4178349975 | N12: 152.1266109 | O12: 4.746719051e-06 | P12: -148.0521508 | Q12: 0.0006197946937 | R12: -174.4849234 | S12: 0.006805915202 | T12: 93.21934834 | U12: 8.566975033e-05 | V12: 84.02742157 | W12: 7.215477695e-05 | X12: -12.02440458 | Y12: 9.279971564e-05 | Z12: 47.02823095 | AA12: 0.0001409221649 | AB12: 163.8621249 | AC12: 0.000582569379 | AD12: -92.76394082 | AE12: 9.257590687e-05 | AF12: -90.5446541 | AG12: 2.010523206e-07 | AH12: -48.20356473 | AI12: 7.247131393e-08 | AJ12: 136.9523838 | AK12: 1.853317378e-07 | AL12: -85.19307925 | AM12: 1.923129632e-07 | AN12: -98.38531163 | AO12: 1.963564911e-05 | AP12: 36.36032406 | AQ12: 1.267319121e-07 | AR12: 79.69727925 | BM12: 0.9987891484 | BN12: 7 | BO12: =INDIRECT(SUBSTITUTE(ADDRESS(1,$BN12,4),"1","7")) -> 0.007835796113
B13: 3 | C13: ED Platform vertical heave translation DOF (internal DOF index = DOF_Hv), m | D13: 1 | E13: 0.0001962696054 | F13: 179.8760607 | G13: 5.011435834e-07 | H13: 87.01449367 | I13: 0.00204510666 | J13: -102.6199593 | K13: 0.01481184643 | L13: -85.50408167 | M13: 0.01358622083 | N13: 93.08229577 | O13: 0.9529016832 | P13: 0 | Q13: 6.810262739e-05 | R13: -87.26024172 | S13: 4.770548676e-05 | T13: 33.57343578 | U13: 3.065715385e-05 | V13: 178.3395775 | W13: 3.714808974e-05 | X13: -91.06340134 | Y13: 2.36156678e-05 | Z13: -94.05865729 | AA13: 3.231427188e-06 | AB13: 167.1485657 | AC13: 7.113210873e-06 | AD13: -177.8605493 | AE13: 2.605747506e-05 | AF13: -1.846726289 | AG13: 2.205330479e-07 | AH13: -110.9050582 | AI13: 2.445150029e-08 | AJ13: 51.80056132 | AK13: 5.843737149e-07 | AL13: -2.254678857 | AM13: 4.017563082e-07 | AN13: 16.71083517 | AO13: 1.492022879e-07 | AP13: -105.4349658 | AQ13: 9.754832905e-09 | AR13: -1.730988815 | BM13: 0.9529016832 | BN13: 15 | BO13: =INDIRECT(SUBSTITUTE(ADDRESS(1,$BN13,4),"1","7")) -> 0.05057735665
B14: 4 | C14: ED Platform roll tilt rotation DOF (internal DOF index = DOF_R), rad | D14: 1 | E14: 4.53028309e-06 | F14: 155.883948 | G14: 0.0005404911359 | H14: -1.258767939 | I14: 0.01188820317 | J14: 78.42793587 | K14: 0.05368066711 | L14: 15.13643594 | M14: 0.07204664394 | N14: -27.48628767 | O14: 1.260739676e-06 | P14: 38.40956504 | Q14: 3.725019212e-05 | R14: 5.534087797 | S14: 0.0004054954399 | T14: -86.69409053 | U14: 4.805270564e-06 | V14: -97.07588929 | W14: 4.460109999e-06 | X14: 168.2366329 | Y14: 4.881856334e-06 | Z14: -132.373969 | AA14: 7.273769698e-06 | AB14: -16.55118235 | AC14: 3.011567464e-05 | AD14: 87.09107601 | AE14: 4.900874096e-06 | AF14: 89.22627595 | AG14: 8.575746841e-09 | AH14: 130.7148979 | AI14: 3.049803269e-09 | AJ14: -44.1331867 | AK14: 7.783265986e-09 | AL14: 94.34307665 | AM14: 8.037694296e-09 | AN14: 80.89992973 | AO14: 8.157198932e-07 | AP14: -143.6784251 | AQ14: 4.713514625e-09 | AR14: -100.7726503 | BM14: 0.07204664394 | BN14: 13 | BO14: =INDIRECT(SUBSTITUTE(ADDRESS(1,$BN14,4),"1","7")) -> 0.03617905418
B15: 5 | C15: ED Platform pitch tilt rotation DOF (internal DOF index = DOF_P), rad | D15: 1 | E15: 0.0005463790949 | F15: -1.631381409 | G15: 3.563938101e-06 | H15: -17.98934752 | I15: 0.002339531275 | J15: 1.608103229 | K15: 0.07057820155 | L15: -91.89171049 | M15: 0.06406956303 | N15: 86.50085195 | O15: 0.0002839726584 | P15: -176.7771584 | Q15: 0.0001219001768 | R15: -83.90330947 | S15: 0.0001006191097 | T15: 25.59664996 | U15: 5.592209388e-05 | V15: 171.1977848 | W15: 7.580911971e-06 | X15: 58.15829019 | Y15: 1.851473699e-05 | Z15: -98.1278869 | AA15: 1.137941198e-05 | AB15: -91.92423832 | AC15: 3.794814672e-06 | AD15: 171.1743561 | AE15: 2.292842726e-06 | AF15: -163.3417583 | AG15: 4.717557108e-08 | AH15: 59.52617116 | AI15: 2.649684762e-09 | AJ15: 152.6919274 | AK15: 1.164217021e-07 | AL15: 173.7333317 | AM15: 7.777277003e-08 | AN15: -169.1035032 | AO15: 2.102904587e-08 | AP15: 79.22845963 | AQ15: 1.158268269e-09 | AR15: 163.4629797 | BM15: 0.07057820155 | BN15: 11 | BO15: =INDIRECT(SUBSTITUTE(ADDRESS(1,$BN15,4),"1","7")) -> 0.03611158331
B16: 6 | C16: ED Platform yaw rotation DOF (internal DOF index = DOF_Y), rad | D16: 1 | E16: 3.647606159e-05 | F16: 80.07933792 | G16: 0.0001293217462 | H16: -32.6147985 | I16: 0.3943494277 | J16: 75.03913602 | K16: 0.003899932346 | L16: -163.1370135 | M16: 0.001716218044 | N16: 140.0954559 | O16: 6.224398742e-06 | P16: 46.26592788 | Q16: 5.800236823e-06 | R16: -0.6606887051 | S16: 2.688876919e-06 | T16: -111.8524431 | U16: 3.882255577e-06 | V16: 91.38435996 | W16: 9.444621979e-07 | X16: -29.91046149 | Y16: 1.053968051e-06 | Z16: -174.7612014 | AA16: 1.685721038e-06 | AB16: -1.518972242 | AC16: 3.107180103e-07 | AD16: 122.6349686 | AE16: 1.4768349e-07 | AF16: -32.21577496 | AG16: 3.838688278e-09 | AH16: -86.09520628 | AI16: 1.303124196e-10 | AJ16: -110.1141094 | AK16: 1.971789951e-09 | AL16: -117.3623712 | AM16: 1.889889489e-09 | AN16: -148.9472133 | AO16: 2.083777625e-08 | AP16: 28.8662623 | AQ16: 1.169539948e-08 | AR16: -102.399279 | BM16: 0.3943494277 | BN16: 9 | BO16: =INDIRECT(SUBSTITUTE(ADDRESS(1,$BN16,4),"1","7")) -> 0.01192383174
B17: 7 | C17: ED 1st tower fore-aft bending mode DOF (internal DOF index = DOF_TFA1), m | D17: 0.006920654694 | E17: 5.935373214e-06 | F17: -6.820737561 | G17: 7.729847734e-08 | H17: -52.60452357 | I17: 0.0001939722674 | J17: -0.2817359994 | K17: 0.002327146434 | L17: -90.84016865 | M17: 0.002103920632 | N17: 87.96322631 | O17: 2.380521442e-06 | P17: -16.53311404 | Q17: 0.0002319166477 | R17: 96.08746126 | S17: 0.000194627298 | T17: -153.137561 | U17: 0.0001121239232 | V17: -8.724404659 | W17: 1.447675997e-05 | X17: -123.852091 | Y17: 5.984113347e-05 | Z17: 84.48288526 | AA17: 2.720473428e-05 | AB17: 87.12268653 | AC17: 7.646642855e-06 | AD17: 4.070996104 | AE17: 6.019339274e-06 | AF17: 15.93668676 | AG17: 4.25192633e-08 | AH17: -137.9813893 | AI17: 2.779021541e-08 | AJ17: -93.3999882 | AK17: 7.655959591e-08 | AL17: -19.62677814 | AM17: 4.763330903e-08 | AN17: -8.917610179 | AO17: 4.611597509e-09 | AP17: -15.46301274 | AQ17: 1.85661304e-09 | AR17: 125.0499178 | BM17: 0.002327146434 | BN17: 11 | BO17: =INDIRECT(SUBSTITUTE(ADDRESS(1,$BN17,4),"1","7")) -> 0.03611158331
B18: 8 | C18: ED 1st tower side-to-side bending mode DOF (internal DOF index = DOF_TSS1), m | D18: 0.006920654694 | E18: 9.917709328e-08 | F18: 136.4055633 | G18: 5.723475493e-06 | H18: -4.527369938 | I18: 0.0005074100872 | J18: 77.45595778 | K18: 0.001772392743 | L18: 15.98272368 | M18: 0.002363470114 | N18: -26.24911582 | O18: 5.491113919e-08 | P18: -167.2865092 | Q18: 6.999303882e-05 | R18: -174.8120057 | S18: 0.000787408745 | T18: 93.23944978 | U18: 1.041195705e-05 | V18: 76.25305198 | W18: 1.799877042e-05 | X18: -8.245305742 | Y18: 9.180027437e-06 | Z18: 57.29241092 | AA18: 1.479129793e-05 | AB18: 158.8915751 | AC18: 6.652161266e-05 | AD18: -92.84133349 | AE18: 1.783886198e-05 | AF18: -90.63221388 | AG18: 3.969165028e-08 | AH18: -70.47426439 | AI18: 1.17546841e-09 | AJ18: 133.5168605 | AK18: 2.097646699e-08 | AL18: -109.6968656 | AM18: 2.141545442e-08 | AN18: -141.2968833 | AO18: 5.404907125e-07 | AP18: 31.59388136 | AQ18: 4.203630055e-07 | AR18: -100.1415785 | BM18: 0.002363470114 | BN18: 13 | BO18: =INDIRECT(SUBSTITUTE(ADDRESS(1,$BN18,4),"1","7")) -> 0.03617905418
B19: 9 | C19: ED 2nd tower fore-aft bending mode DOF (internal DOF index = DOF_TFA2), m | D19: 0.006920654694 | E19: 1.589206238e-08 | F19: -7.150454816 | G19: 9.730495665e-10 | H19: 54.88991227 | I19: 2.801282903e-06 | J19: 179.854753 | K19: 4.572520633e-06 | L19: -91.31559575 | M19: 4.363198629e-06 | N19: 86.66799762 | O19: 3.737184579e-07 | P19: -179.1977997 | Q19: 1.292314154e-06 | R19: -87.22132684 | S19: 8.283841027e-07 | T19: 29.20705269 | U19: 4.569219843e-07 | V19: 9.65834113 | W19: 2.39932618e-07 | X19: -109.2176333 | Y19: 4.294091909e-08 | Z19: -80.06654003 | AA19: 6.266149744e-07 | AB19: 93.62796494 | AC19: 2.750330275e-07 | AD19: -12.14864031 | AE19: 1.948998699e-07 | AF19: 22.58392306 | AG19: 4.977989428e-08 | AH19: -112.139327 | AI19: 2.967701977e-09 | AJ19: -0.8766037383 | AK19: 1.359749263e-07 | AL19: -2.210809095 | AM19: 9.377375643e-08 | AN19: 16.3468485 | AO19: 3.06207028e-08 | AP19: -107.1126711 | AQ19: 2.486399612e-09 | AR19: -17.86856052 | BM19: 4.572520633e-06 | BN19: 11 | BO19: =INDIRECT(SUBSTITUTE(ADDRESS(1,$BN19,4),"1","7")) -> 0.03611158331
B20: 10 | C20: ED 2nd tower side-to-side bending mode DOF (internal DOF index = DOF_TSS2), m | D20: 0.006920654694 | E20: 2.559922358e-10 | F20: -138.9316028 | G20: 1.553377281e-08 | H20: -4.530174698 | I20: 9.437350362e-07 | J20: 76.51031871 | K20: 3.277178514e-06 | L20: 16.26440911 | M20: 4.768855992e-06 | N20: -26.05275008 | O20: 8.672217416e-10 | P20: 103.2965056 | Q20: 3.703774904e-07 | R20: 4.017585877 | S20: 3.615697627e-06 | T20: -86.9737108 | U20: 3.849058993e-08 | V20: 143.1008263 | W20: 1.718583568e-07 | X20: 174.7105118 | Y20: 2.166003242e-07 | Z20: 41.67556579 | AA20: 4.879070022e-07 | AB20: 170.8864848 | AC20: 1.962487834e-06 | AD20: -88.29655724 | AE20: 2.496331398e-07 | AF20: -84.06932796 | AG20: 8.223739059e-09 | AH20: -39.11849397 | AI20: 3.494856896e-09 | AJ20: 144.3398289 | AK20: 8.823920071e-09 | AL20: -75.62658572 | AM20: 9.243086876e-09 | AN20: -88.23123177 | AO20: 1.018491694e-06 | AP20: 36.83870002 | AQ20: 2.477339467e-08 | AR20: 80.28552171 | BM20: 4.768855992e-06 | BN20: 13 | BO20: =INDIRECT(SUBSTITUTE(ADDRESS(1,$BN20,4),"1","7")) -> 0.03617905418
B21: 11 | C21: ED Nacelle yaw DOF (internal DOF index = DOF_Yaw), rad | D21: 1 | E21: 1.228419082e-07 | F21: 94.03171899 | G21: 5.000613314e-07 | H21: -4.600117078 | I21: 5.431184955e-05 | J21: 82.61427583 | K21: 0.0002266966429 | L21: 10.58559329 | M21: 0.0001479139721 | N21: -37.09690683 | O21: 3.612358785e-07 | P21: -86.46379992 | Q21: 3.95230606e-05 | R21: -179.2765535 | S21: 4.410485553e-05 | T21: 83.19228604 | U21: 3.499670639e-05 | V21: -86.49244507 | W21: 1.052134425e-05 | X21: 152.2685508 | Y21: 1.411415942e-05 | Z21: 9.251255528 | AA21: 2.950175742e-05 | AB21: -179.9469544 | AC21: 1.00279251e-05 | AD21: -72.24365641 | AE21: 2.809593552e-06 | AF21: 168.7476352 | AG21: 7.659589882e-07 | AH21: 105.420834 | AI21: 3.292864781e-08 | AJ21: 94.95206723 | AK21: 4.50702178e-07 | AL21: 68.57387813 | AM21: 4.540823449e-07 | AN21: 38.16496685 | AO21: 3.462812613e-06 | AP21: -154.701488 | AQ21: 1.015603817e-05 | AR21: 79.81520932 | BM21: 0.0002266966429 | BN21: 11 | BO21: =INDIRECT(SUBSTITUTE(ADDRESS(1,$BN21,4),"1","7")) -> 0.03611158331
B22: 12 | C22: ED 1st flapwise bending-mode DOF of blade 1 (internal DOF index = DOF_BF(1,1)), m | D22: 0.008547008547 | E22: 8.610789134e-06 | F22: -6.818875431 | G22: 4.033025026e-07 | H22: 73.86383114 | I22: 0.0001590160946 | J22: 0.5482981256 | K22: 0.003193638522 | L22: -91.1284636 | M22: 0.003338508868 | N22: 84.60247995 | O22: 4.64628854e-05 | P22: -178.3719235 | Q22: 0.0005199951114 | R22: 98.00872447 | S22: 0.0007200466356 | T22: 157.2610416 | U22: 0.000575947671 | V22: -7.37997819 | W22: 0.0003258628682 | X22: -98.81836936 | Y22: 0.002110449189 | Z22: -91.62999357 | AA22: 0.0001693705428 | AB22: -76.77192961 | AC22: 0.0001709231356 | AD22: 64.26305064 | AE22: 2.553127499e-05 | AF22: 115.5487576 | AG22: 3.254516914e-06 | AH22: 33.93747053 | AI22: 0.0003780908598 | AJ22: 82.54269791 | AK22: 7.494325572e-06 | AL22: 72.50145871 | AM22: 5.539239826e-06 | AN22: 71.48172975 | AO22: 4.290618455e-05 | AP22: -84.81762785 | AQ22: 8.421967796e-07 | AR22: -82.90502887 | BM22: 0.003338508868 | BN22: 13 | BO22: =INDIRECT(SUBSTITUTE(ADDRESS(1,$BN22,4),"1","7")) -> 0.03617905418
B23: 13 | C23: ED 1st flapwise bending-mode DOF of blade 2 (internal DOF index = DOF_BF(2,1)), m | D23: 0.008547008547 | E23: 8.947578557e-07 | F23: -7.661195199 | G23: 2.199512735e-06 | H23: -105.0877164 | I23: 0.007283331063 | J23: 0 | K23: 0.001047382186 | L23: -84.77802614 | M23: 0.0004018515237 | N23: 86.7321062 | O23: 9.898410633e-06 | P23: 2.081583911 | Q23: 0.002296960334 | R23: 89.13278851 | S23: 0.001296688227 | T23: -161.237391 | U23: 0.001527797675 | V23: -179.8763807 | W23: 0.0001909618663 | X23: 133.6328543 | Y23: 0.0001024320962 | Z23: 75.18184238 | AA23: 0.001424166551 | AB23: -91.40793455 | AC23: 0.0007707679483 | AD23: 165.2681799 | AE23: 0.0001386564128 | AF23: 63.98608901 | AG23: 0.0002714411377 | AH23: 6.647878175 | AI23: 3.30516804e-06 | AJ23: 173.2640279 | AK23: 0.0003177333215 | AL23: 85.04308035 | AM23: 0.0003207881823 | AN23: 84.33371602 | AO23: 0.0001265496588 | AP23: -95.17120416 | AQ23: 5.177309124e-06 | AR23: 35.28593554 | BM23: 0.007283331063 | BN23: 9 | BO23: =INDIRECT(SUBSTITUTE(ADDRESS(1,$BN23,4),"1","7")) -> 0.01192383174
B24: 14 | C24: ED 1st flapwise bending-mode DOF of blade 3 (internal DOF index = DOF_BF(3,1)), m | D24: 0.008547008547 | E24: 6.745689258e-06 | F24: 91.49963687 | G24: 5.015568527e-07 | H24: -10.54029697 | I24: 0.0005792739683 | J24: 93.98914399 | K24: 0.004468919754 | L24: 0 | M24: 0.003643929379 | N24: 180 | O24: 2.342386744e-05 | P24: -115.3400255 | Q24: 0.001901095712 | R24: 177.7175931 | S24: 0.0006436456818 | T24: -55.70858915 | U24: 0.001978469785 | V24: -91.52082616 | W24: 0.0002356966979 | X24: -158.8046935 | Y24: 0.0005568484414 | Z24: 0.7025593075 | AA24: 0.001266102118 | AB24: 176.976623 | AC24: 0.0007912547289 | AD24: 80.36022588 | AE24: 0.0001251079843 | AF24: -29.0971296 | AG24: 0.0002924970271 | AH24: 83.29057967 | AI24: 1.017921768e-05 | AJ24: 96.12424836 | AK24: 0.0001885435744 | AL24: 54.01073251 | AM24: 0.0001672304914 | AN24: 24.89120228 | AO24: 0.0003237484938 | AP24: 87.27155848 | AQ24: 0.0002027883023 | AR24: -91.87091821 | BM24: 0.004468919754 | BN24: 11 | BO24: =INDIRECT(SUBSTITUTE(ADDRESS(1,$BN24,4),"1","7")) -> 0.03611158331
B25: 15 | C25: ED 1st edgewise bending-mode DOF of blade 1 (internal DOF index = DOF_BE(1,1)), m | D25: 0.008547008547 | E25: 5.572791546e-07 | F25: -7.439268012 | G25: 1.522931132e-07 | H25: 168.1577139 | I25: 5.537576489e-05 | J25: -103.228178 | K25: 0.0004026832367 | L25: -133.3209679 | M25: 0.0005003806735 | N25: 131.5347426 | O25: 3.004142377e-06 | P25: -177.210245 | Q25: 0.0001468005188 | R25: 17.77833681 | S25: 0.001927425089 | T25: -90.42774825 | U25: 4.661267111e-05 | V25: -60.13084988 | W25: 0.0001486931367 | X25: -179.8118172 | Y25: 0.0001739969948 | Z25: -22.12106205 | AA25: 0.0004310604686 | AB25: 170.571158 | AC25: 0.001541495381 | AD25: -91.54532874 | AE25: 0.0001719192966 | AF25: -90.11333309 | AG25: 2.242058368e-07 | AH25: -172.341007 | AI25: 1.749155146e-07 | AJ25: 19.14409837 | AK25: 3.134737332e-07 | AL25: 119.393846 | AM25: 3.844866127e-07 | AN25: 110.8652737 | AO25: 4.715575202e-05 | AP25: -141.9978937 | AQ25: 4.536087519e-06 | AR25: -99.63812595 | BM25: 0.001927425089 | BN25: 19 | BO25: =INDIRECT(SUBSTITUTE(ADDRESS(1,$BN25,4),"1","7")) -> 0.4262766496
B26: 16 | C26: ED 1st edgewise bending-mode DOF of blade 2 (internal DOF index = DOF_BE(2,1)), m | D26: 0.008547008547 | E26: 1.065072427e-07 | F26: -18.13271553 | G26: 4.21981685e-06 | H26: 177.2002534 | I26: 0.0005370880624 | J26: -46.80631662 | K26: 0.001316186819 | L26: -161.3452601 | M26: 0.001777291037 | N26: 153.1081293 | O26: 3.106904034e-06 | P26: -98.31181864 | Q26: 0.0001465496207 | R26: 59.37033498 | S26: 0.00119824139 | T26: -94.15678635 | U26: 0.0003013062776 | V26: -92.79595668 | W26: 0.001592559492 | X26: -2.450637234 | Y26: 0.0003138900414 | Z26: -170.4051835 | AA26: 6.780795523e-05 | AB26: -54.86654749 | AC26: 9.958760035e-05 | AD26: 100.2323951 | AE26: 0.001254611603 | AF26: -91.48892101 | AG26: 1.003310119e-07 | AH26: -94.51138451 | AI26: 2.9928278e-08 | AJ26: 45.79219275 | AK26: 8.648328823e-07 | AL26: 21.31802666 | AM26: 7.186371485e-07 | AN26: 36.8374055 | AO26: 3.22202967e-06 | AP26: -141.566657 | AQ26: 2.031832775e-06 | AR26: 79.70318398 | BM26: 0.001777291037 | BN26: 13 | BO26: =INDIRECT(SUBSTITUTE(ADDRESS(1,$BN26,4),"1","7")) -> 0.03617905418
B27: 17 | C27: ED 1st edgewise bending-mode DOF of blade 3 (internal DOF index = DOF_BE(3,1)), m | D27: 0.008547008547 | E27: 6.104048138e-07 | F27: 33.81417119 | G27: 2.59822738e-09 | H27: -85.43957169 | I27: 3.239846371e-05 | J27: 101.6432496 | K27: 0.0003810532762 | L27: -48.06222877 | M27: 0.0003241070463 | N27: 134.9266884 | O27: 0.0001222913641 | P27: -0.2743797628 | Q27: 0.0001609047756 | R27: 131.3835197 | S27: 0.0003568074452 | T27: -17.86421717 | U27: 0.0003776415868 | V27: -7.234031927 | W27: 0.001646328882 | X27: 88.02288248 | Y27: 0.0001860885555 | Z27: -69.2851826 | AA27: 0.0001792854259 | AB27: -100.6593049 | AC27: 0.0003546632641 | AD27: 4.759414425 | AE27: 0.001184493052 | AF27: 178.5015883 | AG27: 5.138984431e-07 | AH27: -101.9278704 | AI27: 4.555501555e-08 | AJ27: 41.829623 | AK27: 1.416975321e-06 | AL27: -2.207235288 | AM27: 9.519419667e-07 | AN27: 15.45796301 | AO27: 1.060266157e-06 | AP27: 36.58817843 | AQ27: 1.967810661e-06 | AR27: -97.51320468 | BM27: 0.001646328882 | BN27: 23 | BO27: =INDIRECT(SUBSTITUTE(ADDRESS(1,$BN27,4),"1","7")) -> 0.5586431164
B28: 18 | C28: ED 2nd flapwise bending-mode DOF of blade 1 (internal DOF index = DOF_BF(1,2)), m | D28: 0.008547008547 | E28: 2.887959117e-06 | F28: 173.1707472 | G28: 1.426365386e-07 | H28: -103.2340926 | I28: 4.504515964e-05 | J28: 178.0292522 | K28: 0.001068548928 | L28: 88.26068754 | M28: 0.001125669487 | N28: -94.81658007 | O28: 1.553641608e-05 | P28: 1.625545525 | Q28: 9.571327636e-05 | R28: -82.07390988 | S28: 0.0001151985157 | T28: -16.6021239 | U28: 6.781962785e-05 | V28: 171.6454239 | W28: 5.030012918e-06 | X28: 93.46376043 | Y28: 9.47240884e-05 | Z28: -86.65682051 | AA28: 4.541504627e-05 | AB28: -122.6114152 | AC28: 8.153608364e-05 | AD28: -92.63226148 | AE28: 1.805444104e-05 | AF28: -132.0159544 | AG28: 3.413135025e-06 | AH28: -145.0695287 | AI28: 0.0004009662975 | AJ28: -97.46619561 | AK28: 7.896780991e-06 | AL28: -106.5384098 | AM28: 5.822858856e-06 | AN28: -107.6504573 | AO28: 4.9443805e-05 | AP28: 88.56892756 | AQ28: 1.531689029e-06 | AR28: 89.69684312 | BM28: 0.001125669487 | BN28: 13 | BO28: =INDIRECT(SUBSTITUTE(ADDRESS(1,$BN28,4),"1","7")) -> 0.03617905418
B29: 19 | C29: ED 2nd flapwise bending-mode DOF of blade 2 (internal DOF index = DOF_BF(2,2)), m | D29: 0.008547008547 | E29: 2.609051466e-07 | F29: 170.9084707 | G29: 9.201859322e-07 | H29: 41.62457138 | I29: 0.002216491059 | J29: 178.7664808 | K29: 0.00035965806 | L29: 69.67098612 | M29: 0.0002683039342 | N29: -46.02952772 | O29: 3.803834105e-06 | P29: 179.9186686 | Q29: 0.0002043258464 | R29: -86.9815755 | S29: 0.0001524932784 | T29: 39.88329705 | U29: 0.0001293578824 | V29: 177.195929 | W29: 9.584377004e-05 | X29: 12.00785116 | Y29: 0.0001171660268 | Z29: -102.8151507 | AA29: 6.5382652e-05 | AB29: -96.77282716 | AC29: 2.209162337e-05 | AD29: -117.3742242 | AE29: 7.457814004e-05 | AF29: -93.1080602 | AG29: 0.0002891758238 | AH29: -172.8792418 | AI29: 3.66980165e-06 | AJ29: -4.442215056 | AK29: 0.0003366690028 | AL29: -93.70425838 | AM29: 0.0003383324384 | AN29: -94.87471455 | AO29: 0.0001328844127 | AP29: 84.84067063 | AQ29: 5.628761647e-06 | AR29: -141.274244 | BM29: 0.002216491059 | BN29: 9 | BO29: =INDIRECT(SUBSTITUTE(ADDRESS(1,$BN29,4),"1","7")) -> 0.01192383174
B30: 20 | C30: ED 2nd flapwise bending-mode DOF of blade 3 (internal DOF index = DOF_BF(3,2)), m | D30: 0.008547008547 | E30: 2.05271962e-06 | F30: -90.25516565 | G30: 1.698664404e-07 | H30: 171.3148525 | I30: 0.0001675787999 | J30: -87.6054389 | K30: 0.001361920482 | L30: 178.7972627 | M30: 0.001099554614 | N30: -1.395312863 | O30: 1.352868389e-05 | P30: 151.9327225 | Q30: 0.0001101550493 | R30: -0.2225424347 | S30: 3.97338931e-05 | T30: -100.9038052 | U30: 4.513622071e-05 | V30: -87.28557783 | W30: 8.449381083e-05 | X30: 97.39742912 | Y30: 4.232025428e-05 | Z30: -32.35549877 | AA30: 4.606770731e-05 | AB30: -23.85301022 | AC30: 3.694517221e-05 | AD30: 61.15128767 | AE30: 5.409741097e-05 | AF30: -177.7525318 | AG30: 0.0003115967014 | AH30: -96.60490081 | AI30: 1.085404062e-05 | AJ30: -83.99629135 | AK30: 0.000201022262 | AL30: -125.9651013 | AM30: 0.0001784133451 | AN30: -155.0333274 | AO30: 0.0003367077255 | AP30: -91.00468016 | AQ30: 0.0001966647749 | AR30: 88.88236304 | BM30: 0.001361920482 | BN30: 11 | BO30: =INDIRECT(SUBSTITUTE(ADDRESS(1,$BN30,4),"1","7")) -> 0.03611158331
B31: 21 | D31: =1 -> 1 | BM31: 0 | BO31: =INDIRECT(SUBSTITUTE(ADDRESS(1,$BN31,4),"1","7")) -> 
B32: 22 | D32: =1 -> 1 | BM32: 0 | BO32: =INDIRECT(SUBSTITUTE(ADDRESS(1,$BN32,4),"1","7")) -> 
B33: 23 | D33: =1 -> 1 | BM33: 0 | BO33: =INDIRECT(SUBSTITUTE(ADDRESS(1,$BN33,4),"1","7")) -> 
B34: 24 | D34: =1 -> 1 | BM34: 0 | BO34: =INDIRECT(SUBSTITUTE(ADDRESS(1,$BN34,4),"1","7")) -> 
B35: 25 | D35: =1 -> 1 | BM35: 0 | BO35: =INDIRECT(SUBSTITUTE(ADDRESS(1,$BN35,4),"1","7")) -> 
B36: 26 | D36: =1 -> 1 | BM36: 0 | BO36: =INDIRECT(SUBSTITUTE(ADDRESS(1,$BN36,4),"1","7")) -> 
B37: 27 | D37: =1 -> 1 | BM37: 0 | BO37: =INDIRECT(SUBSTITUTE(ADDRESS(1,$BN37,4),"1","7")) -> 
B38: 28 | D38: =1 -> 1 | BM38: 0 | BO38: =INDIRECT(SUBSTITUTE(ADDRESS(1,$BN38,4),"1","7")) -> 
B39: 29 | D39: =1 -> 1 | BM39: 0 | BO39: =INDIRECT(SUBSTITUTE(ADDRESS(1,$BN39,4),"1","7")) -> 
B40: 30 | D40: =1 -> 1 | BM40: 0 | BO40: =INDIRECT(SUBSTITUTE(ADDRESS(1,$BN40,4),"1","7")) -> 
E41: =MAX(E11:E40) -> 0.998819704 | G41: =MAX(G11:G40) -> 0.9987891484 | I41: =MAX(I11:I40) -> 0.3943494277 | K41: =MAX(K11:K40) -> 0.4098864348 | M41: =MAX(M11:M40) -> 0.4178349975 | O41: =MAX(O11:O40) -> 0.9529016832 | Q41: =MAX(Q11:Q40) -> 0.002296960334 | S41: =MAX(S11:S40) -> 0.006805915202 | U41: =MAX(U11:U40) -> 0.001978469785 | W41: =MAX(W11:W40) -> 0.001646328882 | Y41: =MAX(Y11:Y40) -> 0.002110449189 | AA41: =MAX(AA11:AA40) -> 0.001424166551 | AC41: =MAX(AC11:AC40) -> 0.001541495381 | AE41: =MAX(AE11:AE40) -> 0.001254611603 | AG41: =MAX(AG11:AG40) -> 0.0003115967014 | AI41: =MAX(AI11:AI40) -> 0.0004009662975 | AK41: =MAX(AK11:AK40) -> 0.0003366690028 | AM41: =MAX(AM11:AM40) -> 0.0003383324384 | AO41: =MAX(AO11:AO40) -> 0.0003367077255 | AQ41: =MAX(AQ11:AQ40) -> 0.0002027883023 | AS41: =MAX(AS11:AS40) -> 0 | AU41: =MAX(AU11:AU40) -> 0 | AW41: =MAX(AW11:AW40) -> 0 | AY41: =MAX(AY11:AY40) -> 0 | BA41: =MAX(BA11:BA40) -> 0 | BC41: =MAX(BC11:BC40) -> 0 | BE41: =MAX(BE11:BE40) -> 0 | BG41: =MAX(BG11:BG40) -> 0 | BI41: =MAX(BI11:BI40) -> 0 | BK41: =MAX(BK11:BK40) -> 0
C42: Green Background = Maximum value of the mode shape magnitude within a row
C43: Red Bold Text = Maximum value of the mode shape magnitude within a column
E47: =D48 -> 56 | F47: =D49 -> 55 | G47: =D50 -> 54 | H47: =D51 -> 53 | I47: =D52 -> 52 | J47: =D53 -> 51 | K47: =D54 -> 50 | L47: =D55 -> 49 | M47: =D56 -> 48 | N47: =D57 -> 47 | O47: =D58 -> 46 | P47: =D59 -> 45 | Q47: =D60 -> 43 | R47: =D61 -> 44 | S47: =D62 -> 42 | T47: =D63 -> 40 | U47: =D64 -> 41 | V47: =D65 -> 39 | W47: =D66 -> 37 | X47: =D67 -> 38 | Y47: =D68 -> 57 | Z47: =D69 -> 58 | AA47: =D70 -> 59 | AB47: =D71 -> 60 | AC47: =D72 -> 61 | AD47: =D73 -> 62 | AE47: =D74 -> 63 | AF47: =D75 -> 64 | AG47: =D76 -> 65 | AH47: =D77 -> 66 | AI47: =E47 -> 56 | AJ47: 55 | AK47: 54 | AL47: 53 | AM47: 52 | AN47: 51 | AO47: 50 | AP47: 49 | AQ47: 48 | AR47: 47 | AS47: 46 | AT47: 45 | AU47: 43 | AV47: 44 | AW47: 42 | AX47: 40 | AY47: 41 | AZ47: 39 | BA47: 37 | BB47: 38 | BC47: 57 | BD47: 58 | BE47: 59 | BF47: 60 | BG47: 61 | BH47: 62 | BI47: 63 | BJ47: 64 | BK47: 65 | BL47: 66 | BO47: =CT77+1 -> 36 | BP47: =BO47+1 -> 37 | BQ47: 38 | BR47: 39 | BS47: 40 | BT47: 41 | BU47: 42 | BV47: 43 | BW47: 44 | BX47: 45 | BY47: 46 | BZ47: 47 | CA47: 48 | CB47: 49 | CC47: 50 | CD47: 51 | CE47: 52 | CF47: 53 | CG47: 54 | CH47: 55 | CI47: 56 | CJ47: 57 | CK47: 58 | CL47: 59 | CM47: 60 | CN47: 61 | CO47: 62 | CP47: 63 | CQ47: 64 | CR47: 65 | CS47: 66
D48: =CS48 -> 56 | E48: 3.021339043e-08 | F48: 5.043366139e-07 | G48: 1.854547544e-06 | H48: 2.765818996e-06 | I48: 6.263792039e-08 | J48: 1.10657382e-06 | K48: 4.43696122e-05 | L48: 7.421454177e-05 | M48: 0.0002176387369 | N48: 0.0003248836398 | O48: 0.0001411776046 | P48: 0.0009971951756 | Q48: 0.002028109033 | R48: 0.001694470158 | S48: 0.001865019959 | T48: 0.4098864348 | U48: 0.3717662298 | V48: 0.03647947193 | W48: 0.998819704 | X48: 0.00090230301 | AI48: 163.6670559 | AJ48: 79.26632235 | AK48: -168.444185 | AL48: 174.2095002 | AM48: 154.7897959 | AN48: 60.45392354 | AO48: -162.8441748 | AP48: 170.4943648 | AQ48: -91.67399498 | AR48: -98.17169261 | AS48: 58.59156188 | AT48: 171.5303458 | AU48: -83.75224435 | AV48: 25.4843478 | AW48: -176.9740142 | AX48: -91.65057258 | AY48: 86.87580042 | AZ48: -40.27984985 | BA48: 180 | BB48: 46.4801888 | BM48: 0.03264788013 | BN48: 4.807479527 | BO48: 4.810043685 | BP48: =IF(MIN(BO$48:BO$77)=$BP$47,BO48,IF(BO48=MIN(BO$48:BO$77),BP$47,IF(BO48="",$CT48,BO48))) -> 4.810043685 | BQ48: 4.810043685 | BR48: 4.810043685 | BS48: 4.810043685 | BT48: 4.810043685 | BU48: 4.810043685 | BV48: 4.810043685 | BW48: 4.810043685 | BX48: 4.810043685 | BY48: 4.810043685 | BZ48: 4.810043685 | CA48: 4.810043685 | CB48: 4.810043685 | CC48: 4.810043685 | CD48: 4.810043685 | CE48: 4.810043685 | CF48: 4.810043685 | CG48: 4.810043685 | CH48: 4.810043685 | CI48: 56 | CJ48: 56 | CK48: 56 | CL48: 56 | CM48: 56 | CN48: 56 | CO48: 56 | CP48: 56 | CQ48: 56 | CR48: 56 | CS48: 56 | CT48: =CEILING(MAX(BO48:BO77),1)+1 -> 6
D49: 55 | E49: 1.267319121e-07 | F49: 1.963564911e-05 | G49: 1.923129632e-07 | H49: 1.853317378e-07 | I49: 7.247131393e-08 | J49: 2.010523206e-07 | K49: 9.257590687e-05 | L49: 0.000582569379 | M49: 0.0001409221649 | N49: 9.279971564e-05 | O49: 7.215477695e-05 | P49: 8.566975033e-05 | Q49: 0.0006197946937 | R49: 0.006805915202 | S49: 4.746719051e-06 | T49: 0.3123127288 | U49: 0.4178349975 | V49: 0.1688075612 | W49: 0.0009932066141 | X49: 0.9987891484 | AI49: 79.69727925 | AJ49: 36.36032406 | AK49: -98.38531163 | AL49: -85.19307925 | AM49: 136.9523838 | AN49: -48.20356473 | AO49: -90.5446541 | AP49: -92.76394082 | AQ49: 163.8621249 | AR49: 47.02823095 | AS49: -12.02440458 | AT49: 84.02742157 | AU49: -174.4849234 | AV49: 93.21934834 | AW49: -148.0521508 | AX49: -165.3689922 | AY49: 152.1266109 | AZ49: -164.6954501 | BA49: 98.54898693 | BB49: 0 | BM49: 0.01753407808 | BN49: 2.670961956 | BO49: 2.671372636 | BP49: =IF(MIN(BO$48:BO$77)=$BP$47,BO49,IF(BO49=MIN(BO$48:BO$77),BP$47,IF(BO49="",$CT49,BO49))) -> 2.671372636 | BQ49: 2.671372636 | BR49: 2.671372636 | BS49: 2.671372636 | BT49: 2.671372636 | BU49: 2.671372636 | BV49: 2.671372636 | BW49: 2.671372636 | BX49: 2.671372636 | BY49: 2.671372636 | BZ49: 2.671372636 | CA49: 2.671372636 | CB49: 2.671372636 | CC49: 2.671372636 | CD49: 2.671372636 | CE49: 2.671372636 | CF49: 2.671372636 | CG49: 2.671372636 | CH49: 55 | CI49: 55 | CJ49: 55 | CK49: 55 | CL49: 55 | CM49: 55 | CN49: 55 | CO49: 55 | CP49: 55 | CQ49: 55 | CR49: 55 | CS49: 55 | CT49: =CT48+1 -> 7
D50: 54 | E50: 9.754832905e-09 | F50: 1.492022879e-07 | G50: 4.017563082e-07 | H50: 5.843737149e-07 | I50: 2.445150029e-08 | J50: 2.205330479e-07 | K50: 2.605747506e-05 | L50: 7.113210873e-06 | M50: 3.231427188e-06 | N50: 2.36156678e-05 | O50: 3.714808974e-05 | P50: 3.065715385e-05 | Q50: 6.810262739e-05 | R50: 4.770548676e-05 | S50: 0.9529016832 | T50: 0.01481184643 | U50: 0.01358622083 | V50: 0.00204510666 | W50: 0.0001962696054 | X50: 5.011435834e-07 | AI50: -1.730988815 | AJ50: -105.4349658 | AK50: 16.71083517 | AL50: -2.254678857 | AM50: 51.80056132 | AN50: -110.9050582 | AO50: -1.846726289 | AP50: -177.8605493 | AQ50: 167.1485657 | AR50: -94.05865729 | AS50: -91.06340134 | AT50: 178.3395775 | AU50: -87.26024172 | AV50: 33.57343578 | AW50: 0 | AX50: -85.50408167 | AY50: 93.08229577 | AZ50: -102.6199593 | BA50: 179.8760607 | BB50: 87.01449367 | BM50: 0.08497721331 | BN50: 2.569265201 | BO50: 2.57859224 | BP50: =IF(MIN(BO$48:BO$77)=$BP$47,BO50,IF(BO50=MIN(BO$48:BO$77),BP$47,IF(BO50="",$CT50,BO50))) -> 2.57859224 | BQ50: 2.57859224 | BR50: 2.57859224 | BS50: 2.57859224 | BT50: 2.57859224 | BU50: 2.57859224 | BV50: 2.57859224 | BW50: 2.57859224 | BX50: 2.57859224 | BY50: 2.57859224 | BZ50: 2.57859224 | CA50: 2.57859224 | CB50: 2.57859224 | CC50: 2.57859224 | CD50: 2.57859224 | CE50: 2.57859224 | CF50: 2.57859224 | CG50: 54 | CH50: 54 | CI50: 54 | CJ50: 54 | CK50: 54 | CL50: 54 | CM50: 54 | CN50: 54 | CO50: 54 | CP50: 54 | CQ50: 54 | CR50: 54 | CS50: 54 | CT50: 8
D51: 53 | E51: 4.713514625e-09 | F51: 8.157198932e-07 | G51: 8.037694296e-09 | H51: 7.783265986e-09 | I51: 3.049803269e-09 | J51: 8.575746841e-09 | K51: 4.900874096e-06 | L51: 3.011567464e-05 | M51: 7.273769698e-06 | N51: 4.881856334e-06 | O51: 4.460109999e-06 | P51: 4.805270564e-06 | Q51: 3.725019212e-05 | R51: 0.0004054954399 | S51: 1.260739676e-06 | T51: 0.05368066711 | U51: 0.07204664394 | V51: 0.01188820317 | W51: 4.53028309e-06 | X51: 0.0005404911359 | AI51: -100.7726503 | AJ51: -143.6784251 | AK51: 80.89992973 | AL51: 94.34307665 | AM51: -44.1331867 | AN51: 130.7148979 | AO51: 89.22627595 | AP51: 87.09107601 | AQ51: -16.55118235 | AR51: -132.373969 | AS51: 168.2366329 | AT51: -97.07588929 | AU51: 5.534087797 | AV51: -86.69409053 | AW51: 38.40956504 | AX51: 15.13643594 | AY51: -27.48628767 | AZ51: 78.42793587 | BA51: 155.883948 | BB51: -1.258767939 | BM51: 0.06460647598 | BN51: 2.514070037 | BO51: 2.51933338 | BP51: =IF(MIN(BO$48:BO$77)=$BP$47,BO51,IF(BO51=MIN(BO$48:BO$77),BP$47,IF(BO51="",$CT51,BO51))) -> 2.51933338 | BQ51: 2.51933338 | BR51: 2.51933338 | BS51: 2.51933338 | BT51: 2.51933338 | BU51: 2.51933338 | BV51: 2.51933338 | BW51: 2.51933338 | BX51: 2.51933338 | BY51: 2.51933338 | BZ51: 2.51933338 | CA51: 2.51933338 | CB51: 2.51933338 | CC51: 2.51933338 | CD51: 2.51933338 | CE51: 2.51933338 | CF51: 53 | CG51: 53 | CH51: 53 | CI51: 53 | CJ51: 53 | CK51: 53 | CL51: 53 | CM51: 53 | CN51: 53 | CO51: 53 | CP51: 53 | CQ51: 53 | CR51: 53 | CS51: 53 | CT51: 9
D52: 52 | E52: 1.158268269e-09 | F52: 2.102904587e-08 | G52: 7.777277003e-08 | H52: 1.164217021e-07 | I52: 2.649684762e-09 | J52: 4.717557108e-08 | K52: 2.292842726e-06 | L52: 3.794814672e-06 | M52: 1.137941198e-05 | N52: 1.851473699e-05 | O52: 7.580911971e-06 | P52: 5.592209388e-05 | Q52: 0.0001219001768 | R52: 0.0001006191097 | S52: 0.0002839726584 | T52: 0.07057820155 | U52: 0.06406956303 | V52: 0.002339531275 | W52: 0.0005463790949 | X52: 3.563938101e-06 | AI52: 163.4629797 | AJ52: 79.22845963 | AK52: -169.1035032 | AL52: 173.7333317 | AM52: 152.6919274 | AN52: 59.52617116 | AO52: -163.3417583 | AP52: 171.1743561 | AQ52: -91.92423832 | AR52: -98.1278869 | AS52: 58.15829019 | AT52: 171.1977848 | AU52: -83.90330947 | AV52: 25.59664996 | AW52: -176.7771584 | AX52: -91.89171049 | AY52: 86.50085195 | AZ52: 1.608103229 | BA52: -1.631381409 | BB52: -17.98934752 | BM52: 0.1299412191 | BN52: 2.441259108 | BO52: 2.46213382 | BP52: =IF(MIN(BO$48:BO$77)=$BP$47,BO52,IF(BO52=MIN(BO$48:BO$77),BP$47,IF(BO52="",$CT52,BO52))) -> 2.46213382 | BQ52: 2.46213382 | BR52: 2.46213382 | BS52: 2.46213382 | BT52: 2.46213382 | BU52: 2.46213382 | BV52: 2.46213382 | BW52: 2.46213382 | BX52: 2.46213382 | BY52: 2.46213382 | BZ52: 2.46213382 | CA52: 2.46213382 | CB52: 2.46213382 | CC52: 2.46213382 | CD52: 2.46213382 | CE52: 52 | CF52: 52 | CG52: 52 | CH52: 52 | CI52: 52 | CJ52: 52 | CK52: 52 | CL52: 52 | CM52: 52 | CN52: 52 | CO52: 52 | CP52: 52 | CQ52: 52 | CR52: 52 | CS52: 52 | CT52: 10
